Workbook

Sheet 10 General Fund (hidden)
A1: FundCode | B1: 10
A3: Sum of Amount | C3: BalanceSheetCode | D3: BalanceSheetDescription
C4: 8110 | D4: 8111 | E4: 8112 | F4: 8113 | G4: 8119 | H4: 8120 | I4: 8131 | J4: 8132 | K4: 8133 | L4: 8134 | M4: 8135 | N4: 8136 | O4: 8139 | P4: 8140 | Q4: 8150 | R4: 8160 | S4: 8190 | T4: 8290 | U4: 8320 | V4: 8330 | W4: 8450 | X4: 9505 | Y4: 9510 | Z4: 9520 | AA4: 9530 | AB4: 9540 | AC4: 9550 | AD4: 9561 | AE4: 9563 | AF4: 9564 | AG4: 9590 | AH4: 9630 | AI4: 9750 | AJ4: 9765 | AK4: 9860 | AL4: 9870 | AM4: 9872 | AN4: 9873 | AO4: 9874 | AP4: 9878 | AQ4: 9879 | AR4: 9880 | AS4: 9881 | AT4: 9882 | AU4: 9889 | AV4: 9890 | AW4: 9899 | AX4: Grand Total
A5: district_nbr | B5: LEA_name | C5: Cash | D5: Cash in Banks | E5: Petty Cash | F5: Cash Change Funds | G5: Other Cash | H5: Investments | I5: Local | J5: Local Property Taxes | K5: State | L5: Federal | M5: Due From Other Funds | N5: Lease Receivables | O5: Other Receivables | P5: Inventories | Q5: Prepaid Expenditures | R5: Net Pension Asset | S5: Other Current Assets | T5: Other Fixed Assets | U5: Lease- Building | V5: Lease- Equipment | W5: Deferred Outflows of Resources | X5: Negative Cash Balance | Y5: Accounts Payable | Z5: Notes Payable | AA5: Accrued Liabilities | AB5: Accrued Salaries and Withholdings | AC5: Due to Other Funds | AD5: Unearned Revenue- Local | AE5: Unearned Revenue- State | AF5: Unearned Revenue- Federal | AG5: Other Current Liabilities | AH5: Lease Liabilities | AI5: Deferred Inflows of Resources | AJ5: Deferred Inflows of Resources - Leases | AK5: Non-Spendable - Inventories & Prepaid Expenditures | AL5: Restricted - Debt Service | AM5: Restricted – Food Service | AN5: Restricted – Student Activities | AO5: Restricted – Non K-12 | AP5: Restricted – Reading Levy | AQ5: Restricted -- Other | AR5: Committed – Economic Stabilization | AS5: Committed – Contracts | AT5: Committed – Employee Obligations | AU5: Committed – Other | AV5: Assigned – Unrestricted Programs | AW5: Unassigned Fund Balance
A6: 1 | B6: Alpine District | C6: 0 | D6: -16555 | E6: 0 | F6: 50 | G6: -31444 | H6: 182783583 | I6: 2129567 | J6: 174378580 | K6: 4587327 | L6: 37484373 | M6: 0 | N6: 0 | O6: 0 | P6: 0 | Q6: 7851 | R6: 0 | S6: 0 | T6: 0 | U6: 0 | V6: 0 | W6: 0 | X6: 0 | Y6: 6193370 | Z6: 0 | AA6: 0 | AB6: 86886670 | AC6: 0 | AD6: 617932 | AE6: 27398944 | AF6: 137 | AG6: 8658 | AH6: 0 | AI6: 173767178 | AJ6: 0 | AK6: 0 | AL6: 0 | AM6: 0 | AN6: 0 | AO6: 0 | AP6: 0 | AQ6: 0 | AR6: 38134095 | AS6: 2378466 | AT6: 3891476 | AU6: 0 | AV6: 48447104 | AW6: 13599302 | AX6: 802646664
A7: 2 | B7: Beaver District | C7: 0 | D7: -3495198.85 | E7: 0 | F7: 0 | G7: 0 | H7: 14009702.03 | I7: 2461.5 | J7: 7723968.36 | K7: 238859 | L7: 1061811.8 | M7: 3750 | N7: 370591.89 | O7: 0 | P7: 0 | Q7: 13234.35 | R7: 0 | S7: 0 | T7: 0 | U7: 0 | V7: 0 | W7: 0 | X7: 0 | Y7: 256434.8 | Z7: 0 | AA7: 0 | AB7: 2019454.98 | AC7: 100 | AD7: 0 | AE7: 1356743.05 | AF7: 65847.58 | AG7: 0 | AH7: 0 | AI7: 7660717.39 | AJ7: 370591.89 | AK7: 13234.35 | AL7: 0 | AM7: 0 | AN7: 0 | AO7: 0 | AP7: 0 | AQ7: 0 | AR7: 890025 | AS7: 0 | AT7: 711466.67 | AU7: 2514268.37 | AV7: 196087 | AW7: 3874209 | AX7: 39858360.16
A8: 3 | B8: Box Elder District | C8: 0 | D8: 1495715.32 | E8: 0 | F8: 0 | G8: 0 | H8: 22640664.43 | I8: 85098.08 | J8: 28050957 | K8: 487918.2 | L8: 2871828.6 | M8: 0 | N8: 0 | O8: 0 | P8: 0 | Q8: 10000 | R8: 0 | S8: 0 | T8: 0 | U8: 0 | V8: 0 | W8: 0 | X8: 0 | Y8: 425157.31 | Z8: 0 | AA8: 0 | AB8: 7245399.27 | AC8: 0 | AD8: 0 | AE8: 3327615.31 | AF8: 0 | AG8: 0 | AH8: 0 | AI8: 27194582 | AJ8: 0 | AK8: 0 | AL8: 0 | AM8: 0 | AN8: 0 | AO8: 0 | AP8: 0 | AQ8: 0 | AR8: 0 | AS8: 0 | AT8: 0 | AU8: 0 | AV8: 15807297.27 | AW8: 1642130.47 | AX8: 111284363.3
A9: 4 | B9: Cache District | C9: 0 | D9: 12299689.45 | E9: 250 | F9: 0 | G9: 818.49 | H9: 4655079.53 | I9: 929393.85 | J9: 32393752.63 | K9: 686026.92 | L9: 4257459.28 | M9: 0 | N9: 0 | O9: 0 | P9: 141932.56 | Q9: 0 | R9: 0 | S9: 0 | T9: 0 | U9: 0 | V9: 0 | W9: 0 | X9: 0 | Y9: 1720751.7 | Z9: 0 | AA9: 0 | AB9: 652658 | AC9: 0 | AD9: 4832.6 | AE9: 5807175.35 | AF9: 271194.59 | AG9: 16.83 | AH9: 0 | AI9: 31881828 | AJ9: 0 | AK9: 141932.56 | AL9: 0 | AM9: 0 | AN9: 0 | AO9: 0 | AP9: 0 | AQ9: 0 | AR9: 5500000 | AS9: 0 | AT9: 0 | AU9: 0 | AV9: 3832117 | AW9: 5551896.09 | AX9: 110728805.4
A10: 5 | B10: Carbon District | C10: 0 | D10: 2684346.12 | E10: 0 | F10: 0 | G10: 0 | H10: 7449672.48 | I10: 0 | J10: 10473096.05 | K10: 3566414.46 | L10: 0 | M10: 0 | N10: 0 | O10: 0 | P10: 343981.59 | Q10: 112793.93 | R10: 0 | S10: 0 | T10: 0 | U10: 0 | V10: 0 | W10: 0 | X10: 0 | Y10: 676779.21 | Z10: 0 | AA10: 1681276.82 | AB10: 1718593.7 | AC10: 0 | AD10: 9961659 | AE10: 221000.43 | AF10: 0 | AG10: 0 | AH10: 0 | AI10: 0 | AJ10: 0 | AK10: 300994.91 | AL10: 0 | AM10: 0 | AN10: 0 | AO10: 0 | AP10: 0 | AQ10: 0 | AR10: 300000 | AS10: 0 | AT10: 3500000 | AU10: 0 | AV10: 0 | AW10: 6270000.56 | AX10: 49260609.26
A11: 6 | B11: Daggett District | C11: 0 | D11: 2493076 | E11: 0 | F11: 0 | G11: 0 | H11: 0 | I11: 0 | J11: 1412632 | K11: 3905 | L11: 63303 | M11: 0 | N11: 0 | O11: 0 | P11: 0 | Q11: 0 | R11: 0 | S11: 0 | T11: 0 | U11: 0 | V11: 0 | W11: 0 | X11: 0 | Y11: 81628 | Z11: 0 | AA11: 170850 | AB11: 175525 | AC11: 0 | AD11: 0 | AE11: 212316 | AF11: 61363 | AG11: 0 | AH11: 0 | AI11: 1371403 | AJ11: 0 | AK11: 0 | AL11: 0 | AM11: 0 | AN11: 0 | AO11: 0 | AP11: 0 | AQ11: 0 | AR11: 235173 | AS11: 0 | AT11: 186637 | AU11: 0 | AV11: 0 | AW11: 1478021 | AX11: 7945832
A12: 7 | B12: Davis District | C12: 701436.11 | D12: 27483097.07 | E12: 0 | F12: 0 | G12: 0 | H12: 119403884.1 | I12: 0 | J12: 169688169.5 | K12: 4728450.33 | L12: 30941618.68 | M12: 0 | N12: 5587072.19 | O12: 0 | P12: 6978683.68 | Q12: 0 | R12: 0 | S12: 0 | T12: 0 | U12: 0 | V12: 0 | W12: 0 | X12: 0 | Y12: 3244154.55 | Z12: 0 | AA12: 28650464.45 | AB12: 29700456.61 | AC12: 0 | AD12: 0 | AE12: 10619139.99 | AF12: 0 | AG12: 0 | AH12: 0 | AI12: 164547641.1 | AJ12: 5587072.19 | AK12: 6978684 | AL12: 0 | AM12: 0 | AN12: 0 | AO12: 0 | AP12: 0 | AQ12: 0 | AR12: 0 | AS12: 0 | AT12: 43000000 | AU12: 0 | AV12: 25625000 | AW12: 47559798.77 | AX12: 731024823.3
A13: 8 | B13: Duchesne District | C13: 0 | D13: 1481124.41 | E13: 0 | F13: 0 | G13: 0 | H13: 13302286.47 | I13: 13413.21 | J13: 13706131.16 | K13: 405521.02 | L13: 2182916.02 | M13: 0 | N13: 0 | O13: 3329.34 | P13: 0 | Q13: 0 | R13: 0 | S13: 0 | T13: 0 | U13: 0 | V13: 0 | W13: 0 | X13: 0 | Y13: 644948.72 | Z13: 0 | AA13: 0 | AB13: 4794334.3 | AC13: 0 | AD13: 0 | AE13: 814356.76 | AF13: 0 | AG13: 0 | AH13: 0 | AI13: 13648575 | AJ13: 0 | AK13: 0 | AL13: 0 | AM13: 0 | AN13: 0 | AO13: 0 | AP13: 0 | AQ13: 0 | AR13: 2735000 | AS13: 0 | AT13: 1185884 | AU13: 375000 | AV13: 2257007.18 | AW13: 4639615.85 | AX13: 62189443.44
A14: 9 | B14: Emery District | C14: 12621625 | D14: 0 | E14: 0 | F14: 0 | G14: 0 | H14: 0 | I14: 167927 | J14: 11783914 | K14: 41799 | L14: 826477 | M14: 0 | N14: 0 | O14: 0 | P14: 43732 | Q14: 0 | R14: 0 | S14: 0 | T14: 0 | U14: 0 | V14: 0 | W14: 0 | X14: 0 | Y14: 242275 | Z14: 0 | AA14: 1330488 | AB14: 1218507 | AC14: 0 | AD14: 89278 | AE14: 1217822 | AF14: 114448 | AG14: 0 | AH14: 0 | AI14: 11678943 | AJ14: 0 | AK14: 43732 | AL14: 0 | AM14: 0 | AN14: 0 | AO14: 0 | AP14: 0 | AQ14: 0 | AR14: 0 | AS14: 0 | AT14: 0 | AU14: 1000000 | AV14: 604453 | AW14: 7945528 | AX14: 50970948
A15: 10 | B15: Garfield District | C15: 0 | D15: 5185040 | E15: 44335 | F15: 0 | G15: 0 | H15: 8858277 | I15: 14455 | J15: 3186863 | K15: 199624 | L15: 1002837 | M15: 0 | N15: 0 | O15: 2979 | P15: 0 | Q15: 0 | R15: 0 | S15: 0 | T15: 0 | U15: 0 | V15: 0 | W15: 0 | X15: 0 | Y15: 564957 | Z15: 0 | AA15: 620808 | AB15: 743141 | AC15: 0 | AD15: 0 | AE15: 1783838 | AF15: 10048 | AG15: 0 | AH15: 0 | AI15: 3107448 | AJ15: 0 | AK15: 4766504 | AL15: 0 | AM15: 0 | AN15: 0 | AO15: 0 | AP15: 0 | AQ15: 0 | AR15: 775393 | AS15: 0 | AT15: 148682 | AU15: 0 | AV15: 2000000 | AW15: 3973591 | AX15: 36988820
A16: 11 | B16: Grand District | C16: 0 | D16: 488329.48 | E16: 45.26 | F16: 0 | G16: 0 | H16: 9222609.24 | I16: 24427.59 | J16: 12351587.08 | K16: 24361.83 | L16: 662305.78 | M16: 0 | N16: 0 | O16: 0 | P16: 0 | Q16: 0 | R16: 0 | S16: 0 | T16: 0 | U16: 0 | V16: 0 | W16: 0 | X16: 0 | Y16: 221375.98 | Z16: 0 | AA16: 0 | AB16: 1701443.53 | AC16: 1895.1 | AD16: 0 | AE16: 242778.85 | AF16: 0 | AG16: 10437.61 | AH16: 0 | AI16: 12268328 | AJ16: 0 | AK16: 0 | AL16: 0 | AM16: 0 | AN16: 0 | AO16: 0 | AP16: 0 | AQ16: 11908 | AR16: 1138832 | AS16: 0 | AT16: 455450 | AU16: 0 | AV16: 777257.31 | AW16: 5943959.88 | AX16: 45547332.52
A17: 12 | B17: Granite District | C17: 0 | D17: 4205891.09 | E17: 0 | F17: 100 | G17: 538789.6 | H17: 170419470.7 | I17: 1583334.16 | J17: 178830089 | K17: 1169605.32 | L17: 34133219.28 | M17: 0 | N17: 183852.57 | O17: -8453.98 | P17: 4190596.81 | Q17: 3231663.53 | R17: 0 | S17: 0 | T17: 0 | U17: 0 | V17: 0 | W17: 0 | X17: 0 | Y17: 1424360.28 | Z17: 0 | AA17: 0 | AB17: 50025763.06 | AC17: 0 | AD17: 2120682.98 | AE17: 17715170.07 | AF17: 842061.87 | AG17: 339958 | AH17: 0 | AI17: 180256520 | AJ17: 184605.7 | AK17: 7422260.34 | AL17: 0 | AM17: 0 | AN17: 0 | AO17: 0 | AP17: 0 | AQ17: 0 | AR17: 34657913 | AS17: 4909872.47 | AT17: 40486327.13 | AU17: 0 | AV17: 49552257.77 | AW17: 8540405.4 | AX17: 796956316.1
A18: 13 | B18: Iron District | C18: 0 | D18: 7713.32 | E18: 0 | F18: 0 | G18: 0 | H18: 29825487.24 | I18: 23677.49 | J18: 20550019.42 | K18: 1676215.48 | L18: 3377576.29 | M18: 0 | N18: 0 | O18: 0 | P18: 379450.22 | Q18: 0 | R18: 0 | S18: 0 | T18: 0 | U18: 0 | V18: 0 | W18: 0 | X18: 0 | Y18: 660474.14 | Z18: 0 | AA18: 4418937.83 | AB18: 4323137.56 | AC18: 0 | AD18: 0 | AE18: 0 | AF18: 0 | AG18: 0 | AH18: 0 | AI18: 20329367 | AJ18: 0 | AK18: 379450.22 | AL18: 0 | AM18: 0 | AN18: 0 | AO18: 0 | AP18: 0 | AQ18: 4446620.42 | AR18: 2400000 | AS18: 0 | AT18: 0 | AU18: 0 | AV18: 9900000 | AW18: 8982152.29 | AX18: 111680278.9
A19: 14 | B19: Jordan District | C19: 0 | D19: 20910951.43 | E19: 4280 | F19: 0 | G19: 0 | H19: 166146923.1 | I19: 809696.46 | J19: 161971618.8 | K19: 3558758.46 | L19: 12600669.22 | M19: 0 | N19: 5608850 | O19: 0 | P19: 1214094.32 | Q19: 0 | R19: 0 | S19: 0 | T19: 0 | U19: 0 | V19: 0 | W19: 0 | X19: 0 | Y19: 3357581.09 | Z19: 0 | AA19: 0 | AB19: 56265778.4 | AC19: 0 | AD19: 0 | AE19: 19439870.81 | AF19: 0 | AG19: 0 | AH19: 0 | AI19: 162348132.8 | AJ19: 5608850 | AK19: 1214094.32 | AL19: 0 | AM19: 0 | AN19: 0 | AO19: 0 | AP19: 2163806.99 | AQ19: 0 | AR19: 27100000 | AS19: 11983489.13 | AT19: 30446041.96 | AU19: 1897791.03 | AV19: 44272943.23 | AW19: 6727462.12 | AX19: 745651683.7
A20: 15 | B20: Juab District | C20: 0 | D20: 3786910.9 | E20: 100 | F20: 0 | G20: 0 | H20: 24555.82 | I20: 0 | J20: 6783967.75 | K20: 767896.42 | L20: 2657065.94 | M20: 0 | N20: 0 | O20: 0 | P20: 0 | Q20: 93352 | R20: 0 | S20: 0 | T20: 0 | U20: 0 | V20: 0 | W20: 0 | X20: 0 | Y20: 1482165.71 | Z20: 0 | AA20: 0 | AB20: 2190026.83 | AC20: 0 | AD20: 0 | AE20: 1252011.74 | AF20: 0 | AG20: 0 | AH20: 0 | AI20: 6736985 | AJ20: 0 | AK20: 93352 | AL20: 0 | AM20: 0 | AN20: 0 | AO20: 0 | AP20: 0 | AQ20: 0 | AR20: 1376250.45 | AS20: 0 | AT20: 0 | AU20: 0 | AV20: 168418.71 | AW20: 814638.39 | AX20: 28227697.66
A21: 16 | B21: Kane District | C21: 0 | D21: 1335047.3 | E21: 0 | F21: 0 | G21: 0 | H21: 10977616.38 | I21: 59018.89 | J21: 7905372 | K21: 326484 | L21: 1120681.15 | M21: 0 | N21: 0 | O21: 0 | P21: 0 | Q21: 0 | R21: 0 | S21: 0 | T21: 0 | U21: 0 | V21: 0 | W21: 0 | X21: 0 | Y21: 114910 | Z21: 0 | AA21: 0 | AB21: 1607073 | AC21: 0 | AD21: 0 | AE21: 620135 | AF21: 81263 | AG21: 0 | AH21: 0 | AI21: 7808979 | AJ21: 0 | AK21: 0 | AL21: 0 | AM21: 0 | AN21: 0 | AO21: 0 | AP21: 0 | AQ21: 100548 | AR21: 0 | AS21: 0 | AT21: 278246 | AU21: 0 | AV21: 4988021 | AW21: 6125045 | AX21: 43448439.72
A22: 17 | B22: Millard District | C22: 0 | D22: 5071643.77 | E22: 0 | F22: 0 | G22: 276937.03 | H22: 0 | I22: 0 | J22: 13910480.95 | K22: 188704.59 | L22: 1649345.3 | M22: 0 | N22: 0 | O22: 0 | P22: 0 | Q22: 0 | R22: 0 | S22: 0 | T22: 0 | U22: 0 | V22: 0 | W22: 0 | X22: 0 | Y22: 1 | Z22: 0 | AA22: 0 | AB22: 446685.09 | AC22: 0 | AD22: 0 | AE22: 352474.08 | AF22: 71031.44 | AG22: 0 | AH22: 0 | AI22: 15864538.9 | AJ22: 0 | AK22: 0 | AL22: 0 | AM22: 0 | AN22: 0 | AO22: 145253.14 | AP22: 0 | AQ22: 0 | AR22: 0 | AS22: 0 | AT22: 300000 | AU22: 200000 | AV22: 60705.65 | AW22: 3656422.34 | AX22: 42194223.28
A23: 18 | B23: Morgan District | C23: 0 | D23: -1548978.22 | E23: 0 | F23: 0 | G23: 0 | H23: 15769780.04 | I23: 54973.29 | J23: 6403392.73 | K23: 0 | L23: 930847.63 | M23: 0 | N23: 0 | O23: 0 | P23: 0 | Q23: 3291 | R23: 0 | S23: 0 | T23: 0 | U23: 0 | V23: 0 | W23: 0 | X23: 0 | Y23: 277402.55 | Z23: 0 | AA23: 0 | AB23: 2300838.84 | AC23: 0 | AD23: 6326256 | AE23: 0 | AF23: 0 | AG23: 0 | AH23: 0 | AI23: 0 | AJ23: 0 | AK23: 0 | AL23: 0 | AM23: 0 | AN23: 0 | AO23: 0 | AP23: 0 | AQ23: 0 | AR23: 0 | AS23: 0 | AT23: 0 | AU23: 0 | AV23: 0 | AW23: 12708809.19 | AX23: 43226613.05
A24: 19 | B24: Nebo District | C24: 0 | D24: -54595890.15 | E24: 0 | F24: 0 | G24: 0 | H24: 155538696.4 | I24: 218147.22 | J24: 67600639.72 | K24: 1789789.68 | L24: 14775702.92 | M24: 0 | N24: 0 | O24: 800 | P24: 851033.51 | Q24: 192370 | R24: 0 | S24: 0 | T24: 0 | U24: 0 | V24: 0 | W24: 0 | X24: 0 | Y24: 486961.21 | Z24: 0 | AA24: 0 | AB24: 10885289.03 | AC24: 0 | AD24: 1317618.04 | AE24: 15070937.77 | AF24: 166070.07 | AG24: 1345863.61 | AH24: 0 | AI24: 67118103.72 | AJ24: 0 | AK24: 851033.51 | AL24: 0 | AM24: 0 | AN24: 0 | AO24: 0 | AP24: 0 | AQ24: 0 | AR24: 15000000 | AS24: 0 | AT24: 0 | AU24: 0 | AV24: 47142330.29 | AW24: 26987082.1 | AX24: 372742578.7
A25: 20 | B25: North Sanpete District | C25: 6859979.24 | D25: 0 | E25: 0 | F25: 0 | G25: 0 | H25: 0 | I25: 272609.95 | J25: 4750038 | K25: 190393.44 | L25: 2110045.77 | M25: 0 | N25: 0 | O25: 0 | P25: 0 | Q25: 103983 | R25: 0 | S25: 209973.9 | T25: 0 | U25: 0 | V25: 0 | W25: 0 | X25: 0 | Y25: 186411.1 | Z25: 0 | AA25: 1415925.58 | AB25: 1492662.39 | AC25: 0 | AD25: 0 | AE25: 1383875.03 | AF25: 0 | AG25: 0 | AH25: 0 | AI25: 4750038 | AJ25: 0 | AK25: 0 | AL25: 0 | AM25: 0 | AN25: 0 | AO25: 0 | AP25: 0 | AQ25: 0 | AR25: 1250000 | AS25: 0 | AT25: 0 | AU25: 0 | AV25: 2495697.32 | AW25: 1522413.88 | AX25: 28994046.6
A26: 21 | B26: North Summit District | C26: 0 | D26: 3078281.04 | E26: 0 | F26: 0 | G26: 6596.42 | H26: 1229452.92 | I26: 0 | J26: 8842168.26 | K26: 853276.6 | L26: 0 | M26: 0 | N26: 0 | O26: 0 | P26: 0 | Q26: 0 | R26: 0 | S26: 0 | T26: 0 | U26: 0 | V26: 0 | W26: 0 | X26: 0 | Y26: 0 | Z26: 0 | AA26: 0 | AB26: 1384495.22 | AC26: 0 | AD26: 0 | AE26: 0 | AF26: 0 | AG26: 0 | AH26: 0 | AI26: 8762298 | AJ26: 0 | AK26: 0 | AL26: 0 | AM26: 0 | AN26: 0 | AO26: 0 | AP26: 0 | AQ26: 897097 | AR26: 0 | AS26: 0 | AT26: 0 | AU26: 0 | AV26: 0 | AW26: 2965885.01 | AX26: 28019550.47
A27: 22 | B27: Park City District | C27: 0 | D27: 5524484 | E27: 0 | F27: 700 | G27: 0 | H27: 30837570 | I27: 94852175 | J27: 0 | K27: 187662 | L27: 1132264 | M27: 0 | N27: 0 | O27: 0 | P27: 0 | Q27: 6803 | R27: 0 | S27: 0 | T27: 0 | U27: 0 | V27: 0 | W27: 0 | X27: 0 | Y27: 529409 | Z27: 0 | AA27: 5498900 | AB27: 2004782 | AC27: 194228 | AD27: 93779972 | AE27: 619490 | AF27: 0 | AG27: 0 | AH27: 0 | AI27: 0 | AJ27: 0 | AK27: 6803 | AL27: 0 | AM27: 0 | AN27: 0 | AO27: 0 | AP27: 0 | AQ27: 0 | AR27: 4052675 | AS27: 0 | AT27: 1596943 | AU27: 0 | AV27: 980000 | AW27: 23278456 | AX27: 265083316
A28: 23 | B28: Piute District | C28: 0 | D28: 1387842.8 | E28: 0 | F28: 0 | G28: 0 | H28: 1179663.39 | I28: 9471.18 | J28: 661087.34 | K28: 61799.62 | L28: 516895.73 | M28: 0 | N28: 0 | O28: 0 | P28: 0 | Q28: 0 | R28: 0 | S28: 0 | T28: 0 | U28: 0 | V28: 0 | W28: 0 | X28: 0 | Y28: 501079.69 | Z28: 0 | AA28: 0 | AB28: 249971.76 | AC28: 0 | AD28: 660305.56 | AE28: 0 | AF28: 0 | AG28: 0 | AH28: 0 | AI28: 0 | AJ28: 0 | AK28: 0 | AL28: 0 | AM28: 0 | AN28: 0 | AO28: 0 | AP28: 0 | AQ28: 0 | AR28: 175000 | AS28: 0 | AT28: 0 | AU28: 0 | AV28: 487364 | AW28: 1743039 | AX28: 7633520.07
A29: 24 | B29: Rich District | C29: -434.42 | D29: 78999.01 | E29: 0 | F29: 0 | G29: 0 | H29: 6652715.04 | I29: 1270369.49 | J29: 4519528.61 | K29: 0 | L29: 0 | M29: 0 | N29: 0 | O29: 0 | P29: 0 | Q29: 0 | R29: 0 | S29: 0 | T29: 0 | U29: 0 | V29: 0 | W29: 0 | X29: 0 | Y29: 5898.63 | Z29: 0 | AA29: 0 | AB29: 870048.63 | AC29: 0 | AD29: 4787429 | AE29: 289290.36 | AF29: 0 | AG29: 0 | AH29: 0 | AI29: 0 | AJ29: 0 | AK29: 0 | AL29: 0 | AM29: 0 | AN29: 0 | AO29: 0 | AP29: 0 | AQ29: 0 | AR29: 330000 | AS29: 0 | AT29: 826945 | AU29: 0 | AV29: 0 | AW29: 5411566.18 | AX29: 25042355.53
A30: 25 | B30: San Juan District | C30: 0 | D30: 25038056.79 | E30: 0 | F30: 0 | G30: 0 | H30: 0 | I30: 236904.75 | J30: 3578244.78 | K30: 151106.44 | L30: 1540611.79 | M30: 0 | N30: 0 | O30: 0 | P30: 0 | Q30: 19774.82 | R30: 0 | S30: 0 | T30: 0 | U30: 0 | V30: 0 | W30: 0 | X30: 0 | Y30: 950858.17 | Z30: 0 | AA30: 1683079.26 | AB30: 853481.5 | AC30: 0 | AD30: 4276274.64 | AE30: 4868649.89 | AF30: 0 | AG30: 0 | AH30: 0 | AI30: 0 | AJ30: 0 | AK30: 2216300 | AL30: 0 | AM30: 0 | AN30: 0 | AO30: 0 | AP30: 0 | AQ30: 0 | AR30: 1915010.34 | AS30: 0 | AT30: 0 | AU30: 0 | AV30: 13801044.91 | AW30: 0 | AX30: 61129398.08
A31: 26 | B31: Sevier District | C31: 46195522.2 | D31: 0 | E31: 0 | F31: 0 | G31: 0 | H31: 0 | I31: 94412.62 | J31: 9051505.29 | K31: 850084.98 | L31: 4041123.85 | M31: 0 | N31: 0 | O31: 0 | P31: 0 | Q31: 0 | R31: 0 | S31: 0 | T31: 0 | U31: 0 | V31: 0 | W31: 0 | X31: 0 | Y31: 2187440.13 | Z31: 0 | AA31: 0 | AB31: 3676409.74 | AC31: 0 | AD31: 197983.38 | AE31: 3426193.07 | AF31: 1783436.43 | AG31: 0 | AH31: 0 | AI31: 8945067 | AJ31: 0 | AK31: 0 | AL31: 0 | AM31: 0 | AN31: 0 | AO31: 0 | AP31: 0 | AQ31: 0 | AR31: 3750000 | AS31: 0 | AT31: 0 | AU31: 2665360 | AV31: 18065030 | AW31: 15535729 | AX31: 120465297.7
A32: 27 | B32: South Sanpete District | C32: 0 | D32: -4286429.9 | E32: 0 | F32: 0 | G32: 0 | H32: 21506125.62 | I32: 4286730.99 | J32: 0 | K32: 537311.61 | L32: 307019.83 | M32: 0 | N32: 0 | O32: 0 | P32: 0 | Q32: 0 | R32: 0 | S32: 0 | T32: 0 | U32: 0 | V32: 0 | W32: 0 | X32: 0 | Y32: 964054.7 | Z32: 0 | AA32: 1445563.86 | AB32: 1461049.78 | AC32: 0 | AD32: 0 | AE32: 0 | AF32: 0 | AG32: 0 | AH32: 0 | AI32: 3970171 | AJ32: 0 | AK32: 0 | AL32: 0 | AM32: 0 | AN32: 0 | AO32: 0 | AP32: 0 | AQ32: 0 | AR32: 0 | AS32: 0 | AT32: 0 | AU32: 0 | AV32: 1500000 | AW32: 13009918.81 | AX32: 44701516.3
A33: 28 | B33: South Summit District | C33: 0 | D33: 407902.02 | E33: 250 | F33: 0 | G33: 27632.44 | H33: 17126138.26 | I33: 6118.29 | J33: 15389823.23 | K33: 109117.45 | L33: 167877.9 | M33: 0 | N33: 0 | O33: 0 | P33: 33574.8 | Q33: 19.6 | R33: 0 | S33: 0 | T33: 0 | U33: 0 | V33: 0 | W33: 0 | X33: 0 | Y33: 127953.67 | Z33: 0 | AA33: 226132.64 | AB33: 1730626.93 | AC33: 0 | AD33: 15266276.86 | AE33: 0 | AF33: 0 | AG33: 10188.86 | AH33: 0 | AI33: 0 | AJ33: 0 | AK33: 0 | AL33: 0 | AM33: 0 | AN33: 0 | AO33: 25949.78 | AP33: 0 | AQ33: 1987653.82 | AR33: 674498 | AS33: 0 | AT33: 2293446.64 | AU33: 2076349.86 | AV33: 89272.61 | AW33: 8760104.32 | AX33: 66536907.98
A34: 29 | B34: Tintic District | C34: 0 | D34: -545505.4 | E34: 0 | F34: 0 | G34: 0 | H34: 6554075.47 | I34: 448536.13 | J34: 0 | K34: 0 | L34: 324668.11 | M34: 0 | N34: 0 | O34: 57406.13 | P34: 200 | Q34: 0 | R34: 0 | S34: 0 | T34: 0 | U34: 0 | V34: 0 | W34: 0 | X34: 0 | Y34: 79763.3 | Z34: 0 | AA34: 191411.12 | AB34: 136900.11 | AC34: -601.95 | AD34: 438454.94 | AE34: 0 | AF34: 0 | AG34: 0 | AH34: 0 | AI34: 0 | AJ34: 0 | AK34: 0 | AL34: 0 | AM34: 0 | AN34: 0 | AO34: 0 | AP34: 0 | AQ34: 0 | AR34: 0 | AS34: 0 | AT34: 0 | AU34: 0 | AV34: 0 | AW34: 5993452.92 | AX34: 13678760.88
A35: 30 | B35: Tooele District | C35: 0 | D35: 16758181.23 | E35: 0 | F35: 0 | G35: 0 | H35: 17069651.55 | I35: 47966.07 | J35: 33697129.22 | K35: 1736472.84 | L35: 9256872.01 | M35: 52822.51 | N35: 0 | O35: 748.96 | P35: 98294.03 | Q35: 1195697.85 | R35: 0 | S35: 0 | T35: 0 | U35: 0 | V35: 0 | W35: 0 | X35: 0 | Y35: 1330076.8 | Z35: 0 | AA35: 0 | AB35: 16104139.56 | AC35: 0 | AD35: 47353.44 | AE35: 1223428.79 | AF35: 115996.1 | AG35: 0 | AH35: 0 | AI35: 32990204.54 | AJ35: 0 | AK35: 1293991.88 | AL35: 0 | AM35: 0 | AN35: 0 | AO35: 0 | AP35: 0 | AQ35: 0 | AR35: 8800000 | AS35: 0 | AT35: 5500000 | AU35: 0 | AV35: 0 | AW35: 12508645.16 | AX35: 159827672.5
A36: 31 | B36: Uintah District | C36: 0 | D36: 742738.75 | E36: 0 | F36: 200 | G36: 0 | H36: 34050272.45 | I36: 189017.54 | J36: 18599254 | K36: 603947.89 | L36: 2255935.08 | M36: 0 | N36: 0 | O36: 0 | P36: 222980.1 | Q36: 0 | R36: 0 | S36: 0 | T36: 0 | U36: 0 | V36: 0 | W36: 0 | X36: 0 | Y36: 251625.23 | Z36: 0 | AA36: 0 | AB36: 6914487.71 | AC36: 0 | AD36: 19150797.87 | AE36: 3139655.88 | AF36: 0 | AG36: 0 | AH36: 0 | AI36: 0 | AJ36: 0 | AK36: 222980.1 | AL36: 0 | AM36: 0 | AN36: 0 | AO36: 0 | AP36: 159728.65 | AQ36: 491673.94 | AR36: 3664343 | AS36: 0 | AT36: 0 | AU36: 0 | AV36: 1045684.93 | AW36: 21623368.5 | AX36: 113328691.6
A37: 32 | B37: Wasatch District | C37: 0 | D37: 23860615 | E37: 0 | F37: 0 | G37: 0 | H37: 0 | I37: 44633 | J37: 50577677 | K37: 566951 | L37: 3874153 | M37: 0 | N37: 0 | O37: 0 | P37: 0 | Q37: 0 | R37: 0 | S37: 0 | T37: 0 | U37: 0 | V37: 0 | W37: 0 | X37: 0 | Y37: 616132 | Z37: 0 | AA37: 6761330 | AB37: 0 | AC37: 0 | AD37: 50204362 | AE37: 0 | AF37: 0 | AG37: 0 | AH37: 0 | AI37: 0 | AJ37: 0 | AK37: 0 | AL37: 0 | AM37: 0 | AN37: 0 | AO37: 0 | AP37: 0 | AQ37: 0 | AR37: 1750000 | AS37: 0 | AT37: 898148 | AU37: 0 | AV37: 0 | AW37: 18694055 | AX37: 157848056
A38: 33 | B38: Washington District | C38: 0 | D38: 2815772.21 | E38: 0 | F38: 0 | G38: 0 | H38: 110746773.8 | I38: 1564389.75 | J38: 97344297 | K38: 1885393.74 | L38: 12130947.55 | M38: 0 | N38: 0 | O38: 304238 | P38: 478231.91 | Q38: 0 | R38: 0 | S38: 0 | T38: 0 | U38: 0 | V38: 0 | W38: 0 | X38: 0 | Y38: 1868326.29 | Z38: 0 | AA38: 32579.45 | AB38: 21262586.38 | AC38: 0 | AD38: 97932383.73 | AE38: 16462535.51 | AF38: 1714752.91 | AG38: 0 | AH38: 0 | AI38: 304238 | AJ38: 0 | AK38: 0 | AL38: 0 | AM38: 0 | AN38: 0 | AO38: 0 | AP38: 0 | AQ38: 0 | AR38: 0 | AS38: 0 | AT38: 0 | AU38: 5591179 | AV38: 0 | AW38: 82101462.68 | AX38: 454540087.9
A39: 34 | B39: Wayne District | C39: 0 | D39: 531124.94 | E39: 0 | F39: 0 | G39: 0 | H39: 4310375.17 | I39: -800 | J39: 1839369.33 | K39: 26769.9 | L39: 344344.94 | M39: 0 | N39: 0 | O39: 0 | P39: 0 | Q39: 0 | R39: 0 | S39: 0 | T39: 0 | U39: 0 | V39: 0 | W39: 0 | X39: 0 | Y39: 89632 | Z39: 0 | AA39: 0 | AB39: 687282.58 | AC39: 0 | AD39: 0 | AE39: 322056.01 | AF39: 0 | AG39: 0 | AH39: 0 | AI39: 1671341 | AJ39: 0 | AK39: 0 | AL39: 0 | AM39: 0 | AN39: 0 | AO39: 0 | AP39: 0 | AQ39: 0 | AR39: 395000 | AS39: 0 | AT39: 128876 | AU39: 0 | AV39: 2150000 | AW39: 1606996.77 | AX39: 14102368.64
A40: 35 | B40: Weber District | C40: 69343566 | D40: 0 | E40: 0 | F40: 0 | G40: 0 | H40: 0 | I40: 173551 | J40: 69982497 | K40: 4634666 | L40: 23832430 | M40: 0 | N40: 0 | O40: 325468 | P40: 2807780 | Q40: 312638 | R40: 0 | S40: 0 | T40: 0 | U40: 0 | V40: 0 | W40: 0 | X40: 0 | Y40: 1960541 | Z40: 0 | AA40: 59430 | AB40: 52658637 | AC40: 0 | AD40: 0 | AE40: 4243827 | AF40: 836673 | AG40: 0 | AH40: 0 | AI40: 70292323 | AJ40: 0 | AK40: 3120418 | AL40: 0 | AM40: 0 | AN40: 0 | AO40: 0 | AP40: 0 | AQ40: 0 | AR40: 6000000 | AS40: 199743 | AT40: 2948369 | AU40: 0 | AV40: 14372437 | AW40: 14720198 | AX40: 342825192
A41: 36 | B41: Salt Lake District | C41: 0 | D41: 53927.81 | E41: 0 | F41: 615 | G41: 0 | H41: 86973252.72 | I41: 3265842.41 | J41: 130170231.8 | K41: 3023472.42 | L41: 24031678.42 | M41: 0 | N41: 0 | O41: 0 | P41: 0 | Q41: 641821.73 | R41: 0 | S41: 0 | T41: 0 | U41: 0 | V41: 0 | W41: 0 | X41: 0 | Y41: 1491981.14 | Z41: 0 | AA41: 0 | AB41: 29403391.31 | AC41: 0 | AD41: 2610638.65 | AE41: 3918026.79 | AF41: 0 | AG41: 0 | AH41: 0 | AI41: 129556215 | AJ41: 0 | AK41: 641821.73 | AL41: 0 | AM41: 0 | AN41: 0 | AO41: 0 | AP41: 0 | AQ41: 0 | AR41: 7000000 | AS41: 0 | AT41: 0 | AU41: 0 | AV41: 50833018 | AW41: 22705749.73 | AX41: 496321684.7
A42: 37 | B42: Ogden City District | C42: 0 | D42: 3765891.48 | E42: 0 | F42: 0 | G42: 0 | H42: 20602037.78 | I42: 39531.3 | J42: 31649454.56 | K42: 1500652.21 | L42: 12141455.56 | M42: 0 | N42: 0 | O42: 0 | P42: 0 | Q42: 0 | R42: 0 | S42: 0 | T42: 0 | U42: 0 | V42: 0 | W42: 0 | X42: 0 | Y42: 5845464.66 | Z42: 0 | AA42: 0 | AB42: 9412096.65 | AC42: 0 | AD42: 35649374.05 | AE42: 0 | AF42: 0 | AG42: 0 | AH42: 0 | AI42: 0 | AJ42: 0 | AK42: 0 | AL42: 0 | AM42: 0 | AN42: 0 | AO42: 0 | AP42: 0 | AQ42: 3935182.62 | AR42: 0 | AS42: 0 | AT42: 0 | AU42: 0 | AV42: 14856904.91 | AW42: 0 | AX42: 139398045.8
A43: 38 | B43: Provo District | C43: 0 | D43: 33029705.3 | E43: 600 | F43: 0 | G43: 0 | H43: 0 | I43: 2907818.08 | J43: 33066830.59 | K43: 1097657.92 | L43: 12688925.9 | M43: 0 | N43: 0 | O43: 0 | P43: 0 | Q43: 170723.37 | R43: 0 | S43: 0 | T43: 11091242.12 | U43: 0 | V43: 0 | W43: 0 | X43: 0 | Y43: 3533830.86 | Z43: 0 | AA43: 0 | AB43: 14653848.91 | AC43: 0 | AD43: 33214667.25 | AE43: 0 | AF43: 0 | AG43: 0 | AH43: 0 | AI43: 0 | AJ43: 0 | AK43: 170723.25 | AL43: 0 | AM43: 0 | AN43: 0 | AO43: 0 | AP43: 0 | AQ43: 4039026.79 | AR43: 0 | AS43: 0 | AT43: 13448244.26 | AU43: 4344402.25 | AV43: 4418354 | AW43: 16230405.01 | AX43: 188107005.9
A44: 39 | B44: Logan City District | C44: 0 | D44: 22842460.06 | E44: 339.15 | F44: 0 | G44: 0 | H44: 0 | I44: 121900.13 | J44: 17010622.84 | K44: 76305.67 | L44: 7319225.16 | M44: 0 | N44: 0 | O44: 0 | P44: 0 | Q44: 69833.36 | R44: 0 | S44: 0 | T44: 0 | U44: 0 | V44: 0 | W44: 0 | X44: 0 | Y44: 1152506.36 | Z44: 0 | AA44: 0 | AB44: 4662195.48 | AC44: 0 | AD44: 432.66 | AE44: 2576199.59 | AF44: 636244.31 | AG44: 0 | AH44: 0 | AI44: 16623898 | AJ44: 0 | AK44: 0 | AL44: 0 | AM44: 0 | AN44: 0 | AO44: 0 | AP44: 0 | AQ44: 560515.37 | AR44: 2625000 | AS44: 0 | AT44: 0 | AU44: 0 | AV44: 5811417 | AW44: 12792277.6 | AX44: 94881372.74
A45: 40 | B45: Murray District | C45: 32314 | D45: 4906878 | E45: -35 | F45: 0 | G45: 0 | H45: 18853855 | I45: 50000 | J45: 21665246 | K45: 725642 | L45: 3966071 | M45: 0 | N45: 9842569 | O45: 0 | P45: 1329790 | Q45: 0 | R45: 0 | S45: 0 | T45: 0 | U45: 0 | V45: 0 | W45: 0 | X45: 0 | Y45: 839448 | Z45: 0 | AA45: 0 | AB45: 5785808 | AC45: 0 | AD45: 59390 | AE45: 1885081 | AF45: 194781 | AG45: 0 | AH45: 0 | AI45: 21808509 | AJ45: 9842569 | AK45: 1329793 | AL45: 0 | AM45: 0 | AN45: 0 | AO45: 0 | AP45: 0 | AQ45: 0 | AR45: 3150417 | AS45: 0 | AT45: 2824526 | AU45: 0 | AV45: 0 | AW45: 13652008 | AX45: 122744660
A46: 42 | B46: Canyons District | C46: 0 | D46: 2712928.11 | E46: 0 | F46: 0 | G46: 0 | H46: 94809877.1 | I46: 940823.16 | J46: 137651278.3 | K46: 2484283.4 | L46: 17309201.77 | M46: 0 | N46: 6119196.57 | O46: 39648.78 | P46: 1966112.66 | Q46: 53896 | R46: 0 | S46: 0 | T46: 0 | U46: 0 | V46: 0 | W46: 0 | X46: 0 | Y46: 6156880.38 | Z46: 0 | AA46: 0 | AB46: 33488574.81 | AC46: 0 | AD46: 0 | AE46: 2248355.56 | AF46: 331038.09 | AG46: 0 | AH46: 0 | AI46: 138659940 | AJ46: 6037838.16 | AK46: 2020008.66 | AL46: 0 | AM46: 0 | AN46: 0 | AO46: 0 | AP46: 0 | AQ46: 0 | AR46: 17367782 | AS46: 3666993.08 | AT46: 10542932.2 | AU46: 0 | AV46: 13453632.75 | AW46: 30113270.13 | AX46: 528174491.6
A47: 68 | B47: Ogden Preparatory Academy | C47: 0 | D47: 721764 | E47: 0 | F47: 0 | G47: 0 | H47: 5552961 | I47: 6174 | J47: 0 | K47: 40123 | L47: 1229500 | M47: 0 | N47: 0 | O47: 0 | P47: 0 | Q47: 27140 | R47: 0 | S47: 0 | T47: 0 | U47: 0 | V47: 0 | W47: 0 | X47: 0 | Y47: 171668 | Z47: 0 | AA47: 911673 | AB47: 0 | AC47: 0 | AD47: 0 | AE47: 66801 | AF47: 0 | AG47: 0 | AH47: 0 | AI47: 0 | AJ47: 0 | AK47: 0 | AL47: 0 | AM47: 0 | AN47: 0 | AO47: 0 | AP47: 0 | AQ47: 0 | AR47: 0 | AS47: 0 | AT47: 0 | AU47: 0 | AV47: 6427520 | AW47: 0 | AX47: 15155324
A48: 74 | B48: American Preparatory Academy | C48: 0 | D48: 9689041.56 | E48: 0 | F48: 0 | G48: 0 | H48: 17536673.46 | I48: 4540.54 | J48: 0 | K48: 133667.68 | L48: 2160725.76 | M48: 0 | N48: 0 | O48: 0 | P48: 0 | Q48: 21545 | R48: 0 | S48: 0 | T48: 0 | U48: 0 | V48: 0 | W48: 0 | X48: 0 | Y48: 374192.1 | Z48: 0 | AA48: 33743.75 | AB48: 3520168.38 | AC48: 0 | AD48: 0 | AE48: 330997.63 | AF48: 89427.98 | AG48: 0 | AH48: 0 | AI48: 0 | AJ48: 0 | AK48: 0 | AL48: 0 | AM48: 0 | AN48: 0 | AO48: 0 | AP48: 0 | AQ48: 0 | AR48: 0 | AS48: 0 | AT48: 0 | AU48: 0 | AV48: 0 | AW48: 25197664.16 | AX48: 59092388
A49: 81 | B49: Walden School of Liberal Arts | C49: 0 | D49: 2410842.52 | E49: 0 | F49: 0 | G49: 2163.31 | H49: 0 | I49: 488786.64 | J49: 0 | K49: 0 | L49: 0 | M49: 0 | N49: 0 | O49: 0 | P49: 0 | Q49: 0 | R49: 0 | S49: 0 | T49: 0 | U49: 0 | V49: 0 | W49: 0 | X49: 0 | Y49: 59232.72 | Z49: 0 | AA49: 0 | AB49: 0 | AC49: 0 | AD49: 0 | AE49: 0 | AF49: 0 | AG49: 0 | AH49: 0 | AI49: 0 | AJ49: 0 | AK49: 0 | AL49: 0 | AM49: 0 | AN49: 0 | AO49: 0 | AP49: 0 | AQ49: 326256 | AR49: 0 | AS49: 0 | AT49: 0 | AU49: 0 | AV49: 0 | AW49: 2516303.72 | AX49: 5803584.91
A50: 82 | B50: Freedom Preparatory Academy | C50: 0 | D50: 2826623.69 | E50: 0 | F50: 0 | G50: 0 | H50: 5344758.83 | I50: 542.4 | J50: 0 | K50: 79104.68 | L50: 620575.88 | M50: 0 | N50: 0 | O50: 0 | P50: 0 | Q50: 0 | R50: 0 | S50: 0 | T50: 0 | U50: 0 | V50: 0 | W50: 0 | X50: 0 | Y50: 303113.42 | Z50: 0 | AA50: 0 | AB50: 2709801.84 | AC50: 0 | AD50: 0 | AE50: 0 | AF50: 0 | AG50: 0 | AH50: 0 | AI50: 0 | AJ50: 0 | AK50: 0 | AL50: 0 | AM50: 0 | AN50: 0 | AO50: 0 | AP50: 0 | AQ50: 0 | AR50: 0 | AS50: 0 | AT50: 0 | AU50: 0 | AV50: 0 | AW50: 5858690.22 | AX50: 17743210.96
A51: 83 | B51: Academy for Math Engineering & Science | C51: 0 | D51: 827231.47 | E51: 0 | F51: 0 | G51: 0 | H51: 2666421.06 | I51: 0 | J51: 0 | K51: 0 | L51: 25485.31 | M51: 0 | N51: 0 | O51: 0 | P51: 0 | Q51: 0 | R51: 0 | S51: 0 | T51: 0 | U51: 0 | V51: 0 | W51: 0 | X51: 0 | Y51: 15959.2 | Z51: 0 | AA51: 0 | AB51: 721564.2 | AC51: 0 | AD51: 0 | AE51: 0 | AF51: 0 | AG51: 0 | AH51: 0 | AI51: 0 | AJ51: 0 | AK51: 0 | AL51: 0 | AM51: 0 | AN51: 0 | AO51: 0 | AP51: 0 | AQ51: 0 | AR51: 0 | AS51: 0 | AT51: 0 | AU51: 0 | AV51: 0 | AW51: 2781614.44 | AX51: 7038275.68
A52: 86 | B52: Pinnacle Canyon Academy | C52: 0 | D52: 369151.09 | E52: 0 | F52: 0 | G52: 0 | H52: 0 | I52: 0 | J52: 0 | K52: 30974.81 | L52: 264755.74 | M52: 0 | N52: 0 | O52: 0 | P52: 0 | Q52: 0 | R52: 0 | S52: 4.36 | T52: 0 | U52: 0 | V52: 0 | W52: 0 | X52: 0 | Y52: 44122.73 | Z52: 0 | AA52: 0 | AB52: 139289.86 | AC52: 0 | AD52: 0 | AE52: 0 | AF52: 0 | AG52: 0 | AH52: 0 | AI52: 0 | AJ52: 0 | AK52: 0 | AL52: 0 | AM52: 0 | AN52: 87887.62 | AO52: 0 | AP52: 0 | AQ52: 0 | AR52: 0 | AS52: 0 | AT52: 0 | AU52: 0 | AV52: 0 | AW52: 393585.79 | AX52: 1329772
A53: 87 | B53: City Academy | C53: 0 | D53: 180594 | E53: 0 | F53: 105231 | G53: 0 | H53: 0 | I53: 81631 | J53: 191 | K53: 45397 | L53: 51039 | M53: 0 | N53: 0 | O53: 1067 | P53: 0 | Q53: 50838 | R53: 0 | S53: 0 | T53: 0 | U53: 0 | V53: 0 | W53: 0 | X53: 0 | Y53: 23389 | Z53: 0 | AA53: 709 | AB53: 126108 | AC53: 0 | AD53: 80610 | AE53: 200845 | AF53: 0 | AG53: 0 | AH53: 0 | AI53: 0 | AJ53: 0 | AK53: 50838 | AL53: 0 | AM53: 3132 | AN53: 0 | AO53: 0 | AP53: 0 | AQ53: 0 | AR53: 0 | AS53: 0 | AT53: 0 | AU53: 0 | AV53: 0 | AW53: 30357 | AX53: 1031976
A54: 89 | B54: Soldier Hollow Charter School | C54: 0 | D54: 1207734.01 | E54: 0 | F54: 0 | G54: 0 | H54: 0 | I54: 25502.25 | J54: 0 | K54: 1847.92 | L54: 111527.55 | M54: 0 | N54: 0 | O54: 0 | P54: 0 | Q54: 1325 | R54: 0 | S54: 0 | T54: 0 | U54: 0 | V54: 0 | W54: 0 | X54: 0 | Y54: 5979.54 | Z54: 0 | AA54: 0 | AB54: 336631.56 | AC54: 0 | AD54: 7131 | AE54: 0 | AF54: 0 | AG54: 0 | AH54: 0 | AI54: 0 | AJ54: 0 | AK54: 0 | AL54: 0 | AM54: 0 | AN54: 10925.97 | AO54: 0 | AP54: 0 | AQ54: 0 | AR54: 0 | AS54: 0 | AT54: 0 | AU54: 0 | AV54: 0 | AW54: 987268.65 | AX54: 2695873.45
A55: 90 | B55: Utah Arts Academy OLD | C55: 0 | D55: 1131048.7 | E55: 345 | F55: 0 | G55: 0 | H55: 493498.73 | I55: 0 | J55: 0 | K55: 30946.71 | L55: 7500 | M55: 0 | N55: 0 | O55: 0 | P55: 2584.45 | Q55: 5597.91 | R55: 0 | S55: 0 | T55: 0 | U55: 0 | V55: 0 | W55: 0 | X55: 0 | Y55: 2242.66 | Z55: 0 | AA55: 500 | AB55: 170800.19 | AC55: 0 | AD55: 6400 | AE55: 30000 | AF55: 0 | AG55: 0 | AH55: 0 | AI55: 0 | AJ55: 0 | AK55: 0 | AL55: 0 | AM55: 0 | AN55: 0 | AO55: 0 | AP55: 0 | AQ55: 0 | AR55: 0 | AS55: 0 | AT55: 0 | AU55: 0 | AV55: 0 | AW55: 1461578.65 | AX55: 3343043
A56: 92 | B56: Uintah River High | C56: 2025387 | D56: 0 | E56: 0 | F56: 0 | G56: 0 | H56: 0 | I56: 0 | J56: 0 | K56: 6780 | L56: 0 | M56: 0 | N56: 0 | O56: 0 | P56: 0 | Q56: 0 | R56: 0 | S56: 0 | T56: 0 | U56: 0 | V56: 0 | W56: 0 | X56: 0 | Y56: 47320 | Z56: 0 | AA56: 0 | AB56: 0 | AC56: 0 | AD56: 0 | AE56: 0 | AF56: 0 | AG56: 0 | AH56: 0 | AI56: 0 | AJ56: 0 | AK56: 0 | AL56: 0 | AM56: 0 | AN56: 0 | AO56: 0 | AP56: 0 | AQ56: 41809 | AR56: 0 | AS56: 0 | AT56: 0 | AU56: 0 | AV56: 0 | AW56: 1943038 | AX56: 4064334
A57: 93 | B57: John Hancock Charter School | C57: 0 | D57: 336382.66 | E57: 0 | F57: 0 | G57: 0 | H57: 0 | I57: 44294.35 | J57: 0 | K57: 0 | L57: 5608.27 | M57: 0 | N57: 0 | O57: 0 | P57: 0 | Q57: 1140 | R57: 0 | S57: 0 | T57: 0 | U57: 0 | V57: 0 | W57: 0 | X57: 0 | Y57: 25983.18 | Z57: 0 | AA57: 0 | AB57: 18328.19 | AC57: 0 | AD57: 0 | AE57: 5514.15 | AF57: 7434.75 | AG57: 0 | AH57: 0 | AI57: 0 | AJ57: 0 | AK57: 0 | AL57: 0 | AM57: 0 | AN57: 0 | AO57: 0 | AP57: 0 | AQ57: 0 | AR57: 0 | AS57: 0 | AT57: 0 | AU57: 0 | AV57: 0 | AW57: 330165.01 | AX57: 774850.56
A58: 94 | B58: Thomas Edison | C58: 0 | D58: 2194550 | E58: 0 | F58: 0 | G58: 0 | H58: 997815 | I58: 3067 | J58: 0 | K58: 11426 | L58: 191800 | M58: 0 | N58: 0 | O58: 0 | P58: 0 | Q58: 22592 | R58: 0 | S58: 0 | T58: 0 | U58: 0 | V58: 0 | W58: 0 | X58: 0 | Y58: 137436 | Z58: 0 | AA58: 622695 | AB58: 0 | AC58: 0 | AD58: 0 | AE58: 0 | AF58: 0 | AG58: 0 | AH58: 0 | AI58: 0 | AJ58: 0 | AK58: 0 | AL58: 0 | AM58: 0 | AN58: 0 | AO58: 0 | AP58: 0 | AQ58: 0 | AR58: 0 | AS58: 0 | AT58: 0 | AU58: 0 | AV58: 2661119 | AW58: 0 | AX58: 6842500
A59: 95 | B59: Timpanogos Academy | C59: 0 | D59: 1175799 | E59: 0 | F59: 0 | G59: 0 | H59: 0 | I59: 8013 | J59: 0 | K59: 10831 | L59: 1406 | M59: 0 | N59: 0 | O59: 0 | P59: 0 | Q59: 47504 | R59: 0 | S59: 0 | T59: 0 | U59: 0 | V59: 0 | W59: 0 | X59: 0 | Y59: 128 | Z59: 0 | AA59: 0 | AB59: 10831 | AC59: 0 | AD59: 0 | AE59: 0 | AF59: 0 | AG59: 0 | AH59: 0 | AI59: 0 | AJ59: 0 | AK59: 47504 | AL59: 0 | AM59: 0 | AN59: 0 | AO59: 0 | AP59: 0 | AQ59: 0 | AR59: 0 | AS59: 0 | AT59: 0 | AU59: 0 | AV59: 0 | AW59: 1185090 | AX59: 2487106
A60: 97 | B60: Salt Lake Arts Academy | C60: 0 | D60: 279418 | E60: 0 | F60: 0 | G60: 0 | H60: 1286306 | I60: 14729 | J60: 0 | K60: 0 | L60: 7015 | M60: 0 | N60: 0 | O60: 0 | P60: 0 | Q60: 14336 | R60: 0 | S60: 0 | T60: 0 | U60: 0 | V60: 0 | W60: 0 | X60: 0 | Y60: 37202 | Z60: 0 | AA60: 0 | AB60: 463351 | AC60: 0 | AD60: 0 | AE60: 6984 | AF60: 131021 | AG60: 0 | AH60: 0 | AI60: 0 | AJ60: 0 | AK60: 0 | AL60: 0 | AM60: 0 | AN60: 0 | AO60: 0 | AP60: 0 | AQ60: 0 | AR60: 0 | AS60: 0 | AT60: 0 | AU60: 0 | AV60: 0 | AW60: 963246 | AX60: 3203608
A61: 98 | B61: Fast Forward High | C61: 0 | D61: 979595 | E61: 0 | F61: 0 | G61: 0 | H61: 0 | I61: 2111 | J61: 0 | K61: 608 | L61: 165732 | M61: 0 | N61: 0 | O61: 0 | P61: 0 | Q61: 2000 | R61: 0 | S61: 0 | T61: 0 | U61: 0 | V61: 0 | W61: 0 | X61: 0 | Y61: 45803 | Z61: 0 | AA61: 0 | AB61: 252493 | AC61: 0 | AD61: 0 | AE61: 0 | AF61: 0 | AG61: 0 | AH61: 0 | AI61: 0 | AJ61: 0 | AK61: 2000 | AL61: 0 | AM61: 0 | AN61: 0 | AO61: 0 | AP61: 0 | AQ61: 0 | AR61: 0 | AS61: 0 | AT61: 0 | AU61: 0 | AV61: 0 | AW61: 849750 | AX61: 2300092
A62: 1B | B62: Utah County Academy of Science | C62: 0 | D62: 3702292 | E62: 87 | F62: 0 | G62: 0 | H62: 2257226 | I62: 0 | J62: 0 | K62: 32010 | L62: 63464 | M62: 0 | N62: 257862 | O62: 0 | P62: 0 | Q62: 0 | R62: 0 | S62: 0 | T62: 0 | U62: 0 | V62: 0 | W62: 0 | X62: 0 | Y62: 47761 | Z62: 0 | AA62: 0 | AB62: 501211 | AC62: 0 | AD62: 12000 | AE62: 0 | AF62: 14456 | AG62: 0 | AH62: 0 | AI62: 0 | AJ62: 252591 | AK62: 0 | AL62: 2257226 | AM62: 0 | AN62: 0 | AO62: 0 | AP62: 0 | AQ62: 0 | AR62: 0 | AS62: 0 | AT62: 0 | AU62: 0 | AV62: 0 | AW62: 3227696 | AX62: 12625882
A63: 1C | B63: Odyssey Charter School | C63: 735634 | D63: 0 | E63: 150 | F63: 0 | G63: 0 | H63: 0 | I63: 1687 | J63: 0 | K63: 6007 | L63: 36300 | M63: 0 | N63: 0 | O63: 0 | P63: 0 | Q63: 0 | R63: 0 | S63: 0 | T63: 0 | U63: 0 | V63: 0 | W63: 0 | X63: 0 | Y63: 11699 | Z63: 0 | AA63: 0 | AB63: 270470 | AC63: 0 | AD63: 0 | AE63: 0 | AF63: 0 | AG63: 0 | AH63: 0 | AI63: 0 | AJ63: 0 | AK63: 0 | AL63: 0 | AM63: 33880 | AN63: 0 | AO63: 0 | AP63: 0 | AQ63: 0 | AR63: 0 | AS63: 0 | AT63: 0 | AU63: 0 | AV63: 0 | AW63: 463729 | AX63: 1559556
A64: 1D | B64: Renaissance Academy | C64: 0 | D64: 2852293 | E64: 0 | F64: 0 | G64: 0 | H64: 923736 | I64: 32117 | J64: 0 | K64: 28833 | L64: 407564 | M64: 0 | N64: 0 | O64: 0 | P64: 0 | Q64: 0 | R64: 0 | S64: 0 | T64: 0 | U64: 0 | V64: 0 | W64: 0 | X64: 0 | Y64: 14021 | Z64: 0 | AA64: 0 | AB64: 676644 | AC64: 0 | AD64: 0 | AE64: 0 | AF64: 0 | AG64: 0 | AH64: 0 | AI64: 0 | AJ64: 0 | AK64: 0 | AL64: 923736 | AM64: 171475 | AN64: 0 | AO64: 0 | AP64: 0 | AQ64: 0 | AR64: 0 | AS64: 0 | AT64: 0 | AU64: 0 | AV64: 0 | AW64: 2458667 | AX64: 8489086
A65: 1E | B65: Guadalupe School | C65: 0 | D65: 757804.9 | E65: 0 | F65: 0 | G65: 0 | H65: 0 | I65: 2244.32 | J65: 0 | K65: 11492.66 | L65: 308931.77 | M65: 0 | N65: 0 | O65: 0 | P65: 0 | Q65: 26492.14 | R65: 0 | S65: 0 | T65: 0 | U65: 0 | V65: 0 | W65: 0 | X65: 0 | Y65: 482705.15 | Z65: 0 | AA65: 2070 | AB65: 169529.88 | AC65: 0 | AD65: 0 | AE65: 0 | AF65: 0 | AG65: 0 | AH65: 0 | AI65: 0 | AJ65: 0 | AK65: 0 | AL65: 0 | AM65: 0 | AN65: 0 | AO65: 0 | AP65: 0 | AQ65: 0 | AR65: 0 | AS65: 0 | AT65: 0 | AU65: 0 | AV65: 0 | AW65: 452661 | AX65: 2213931.82
A66: 1F | B66: Quest Academy | C66: 0 | D66: 1783829.35 | E66: 3215.99 | F66: 0 | G66: 1093638.53 | H66: 4645765.27 | I66: 0 | J66: 0 | K66: 18113.3 | L66: 500399.72 | M66: 0 | N66: 0 | O66: 3066.65 | P66: 0 | Q66: 5798.42 | R66: 0 | S66: 0 | T66: 0 | U66: 0 | V66: 0 | W66: 0 | X66: 0 | Y66: 111261.41 | Z66: 0 | AA66: 12955.54 | AB66: 627507.44 | AC66: 0 | AD66: 23953 | AE66: 0 | AF66: 0 | AG66: 0 | AH66: 0 | AI66: 0 | AJ66: 0 | AK66: 0 | AL66: 0 | AM66: 0 | AN66: 0 | AO66: 0 | AP66: 0 | AQ66: 0 | AR66: 0 | AS66: 0 | AT66: 0 | AU66: 0 | AV66: 0 | AW66: 7278149.84 | AX66: 16107654.46
A67: 1G | B67: Jefferson Academy | C67: 0 | D67: 1760141.33 | E67: 1618.57 | F67: 0 | G67: 492157.95 | H67: 158283.44 | I67: 0 | J67: 0 | K67: 17163.71 | L67: 227752.27 | M67: 0 | N67: 0 | O67: 2822.91 | P67: 0 | Q67: 3770 | R67: 0 | S67: 0 | T67: 0 | U67: 0 | V67: 0 | W67: 0 | X67: 0 | Y67: 857.24 | Z67: 0 | AA67: 36745.57 | AB67: 257133.21 | AC67: 0 | AD67: 0 | AE67: 0 | AF67: 0 | AG67: 0 | AH67: 0 | AI67: 0 | AJ67: 0 | AK67: 0 | AL67: 0 | AM67: 0 | AN67: 0 | AO67: 0 | AP67: 0 | AQ67: 0 | AR67: 0 | AS67: 0 | AT67: 0 | AU67: 0 | AV67: 0 | AW67: 2368974.16 | AX67: 5327420.36
A68: 1I | B68: Utah International Charter School | C68: 0 | D68: 1183301 | E68: 0 | F68: 0 | G68: 0 | H68: 0 | I68: 592 | J68: 0 | K68: 35917 | L68: 74015 | M68: 0 | N68: 0 | O68: 0 | P68: 0 | Q68: 0 | R68: 0 | S68: 0 | T68: 0 | U68: 0 | V68: 0 | W68: 0 | X68: 0 | Y68: 48111 | Z68: 0 | AA68: 204407 | AB68: 0 | AC68: 0 | AD68: 0 | AE68: 120281 | AF68: 0 | AG68: 0 | AH68: 0 | AI68: 0 | AJ68: 0 | AK68: 0 | AL68: 0 | AM68: 0 | AN68: 0 | AO68: 0 | AP68: 0 | AQ68: 21075 | AR68: 0 | AS68: 0 | AT68: 0 | AU68: 0 | AV68: 899951 | AW68: 0 | AX68: 2587650
A69: 1K | B69: Vanguard Academy | C69: 0 | D69: 3040802 | E69: 272 | F69: 0 | G69: 0 | H69: 0 | I69: 90 | J69: 0 | K69: 0 | L69: 119630 | M69: 0 | N69: 0 | O69: 0 | P69: 0 | Q69: 4735 | R69: 0 | S69: 113391 | T69: 0 | U69: 0 | V69: 0 | W69: 0 | X69: 0 | Y69: 390834 | Z69: 0 | AA69: 0 | AB69: 327055 | AC69: 0 | AD69: 0 | AE69: 654099 | AF69: 479095 | AG69: 0 | AH69: 0 | AI69: 0 | AJ69: 0 | AK69: 4735 | AL69: 0 | AM69: 0 | AN69: 0 | AO69: 0 | AP69: 0 | AQ69: 0 | AR69: 0 | AS69: 0 | AT69: 0 | AU69: 0 | AV69: 0 | AW69: 1423102 | AX69: 6557840
A70: 1L | B70: Athlos Academy of Utah | C70: 0 | D70: 1004832.17 | E70: 300 | F70: 0 | G70: 0 | H70: 0 | I70: 3000 | J70: 0 | K70: 26444.22 | L70: 19692 | M70: 0 | N70: 0 | O70: 146.14 | P70: 0 | Q70: 405.72 | R70: 0 | S70: 78.77 | T70: 0 | U70: 0 | V70: 0 | W70: 0 | X70: 0 | Y70: 127343.91 | Z70: 0 | AA70: 0 | AB70: 320509.98 | AC70: 0 | AD70: 0 | AE70: 0 | AF70: 0 | AG70: 0 | AH70: 0 | AI70: 0 | AJ70: 0 | AK70: 0 | AL70: 0 | AM70: 185311.44 | AN70: 221700.94 | AO70: 0 | AP70: 0 | AQ70: 0 | AR70: 0 | AS70: 0 | AT70: 0 | AU70: 0 | AV70: 0 | AW70: 200032.75 | AX70: 2109798.04
A71: 1M | B71: Advantage Arts Academy | C71: 319564.71 | D71: 0 | E71: 0 | F71: 0 | G71: 0 | H71: 14870.98 | I71: -10.75 | J71: 0 | K71: 2798.51 | L71: 118496.17 | M71: 0 | N71: 0 | O71: 848.66 | P71: 0 | Q71: 0 | R71: 0 | S71: 0 | T71: 0 | U71: 0 | V71: 0 | W71: 0 | X71: 0 | Y71: 25838.31 | Z71: 0 | AA71: 0 | AB71: 144211.84 | AC71: 0 | AD71: 0 | AE71: 49564.96 | AF71: 0 | AG71: 0 | AH71: 0 | AI71: 0 | AJ71: 0 | AK71: 0 | AL71: 0 | AM71: 0 | AN71: 0 | AO71: 0 | AP71: 0 | AQ71: 0 | AR71: 0 | AS71: 0 | AT71: 0 | AU71: 0 | AV71: 0 | AW71: 236953.17 | AX71: 913136.56
A72: 2B | B72: Lincoln Academy | C72: 0 | D72: 670668 | E72: 300 | F72: 400 | G72: 0 | H72: 5015357 | I72: 7519 | J72: 0 | K72: 62665 | L72: 90294 | M72: 0 | N72: 0 | O72: 0 | P72: 0 | Q72: 15049 | R72: 0 | S72: 0 | T72: 0 | U72: 0 | V72: 0 | W72: 0 | X72: 0 | Y72: 49059 | Z72: 0 | AA72: 0 | AB72: 12197 | AC72: 0 | AD72: 7818 | AE72: 263411 | AF72: 18389 | AG72: 0 | AH72: 0 | AI72: 0 | AJ72: 0 | AK72: 15049 | AL72: 1402508 | AM72: 259268 | AN72: 0 | AO72: 0 | AP72: 0 | AQ72: 0 | AR72: 0 | AS72: 0 | AT72: 0 | AU72: 0 | AV72: 12143 | AW72: 3822410 | AX72: 11724504
A73: 2C | B73: Intech Collegiate Academy | C73: 0 | D73: 776052 | E73: 0 | F73: 0 | G73: 0 | H73: 0 | I73: 2315 | J73: 0 | K73: 28777 | L73: 87788 | M73: 0 | N73: 0 | O73: 0 | P73: 0 | Q73: 24760 | R73: 0 | S73: 0 | T73: 0 | U73: 0 | V73: 0 | W73: 0 | X73: 0 | Y73: 17191 | Z73: 0 | AA73: 131223 | AB73: 0 | AC73: 0 | AD73: 0 | AE73: 50099 | AF73: 0 | AG73: 3961 | AH73: 0 | AI73: 0 | AJ73: 0 | AK73: 0 | AL73: 0 | AM73: 0 | AN73: 0 | AO73: 0 | AP73: 0 | AQ73: 0 | AR73: 0 | AS73: 0 | AT73: 0 | AU73: 0 | AV73: 717218 | AW73: 0 | AX73: 1839384
A74: 2D | B74: Channing Hall | C74: 0 | D74: 577727 | E74: 0 | F74: 0 | G74: 0 | H74: 2753593 | I74: 688 | J74: 0 | K74: 30276 | L74: 138940 | M74: 0 | N74: 0 | O74: 0 | P74: 4835 | Q74: 74312 | R74: 0 | S74: 0 | T74: 0 | U74: 0 | V74: 0 | W74: 0 | X74: 0 | Y74: 18865 | Z74: 0 | AA74: 0 | AB74: 456070 | AC74: 0 | AD74: 16746 | AE74: 106171 | AF74: 13105 | AG74: 0 | AH74: 0 | AI74: 0 | AJ74: 0 | AK74: 79147 | AL74: 1263282 | AM74: 131649 | AN74: 0 | AO74: 0 | AP74: 0 | AQ74: 0 | AR74: 0 | AS74: 0 | AT74: 0 | AU74: 0 | AV74: 198583 | AW74: 1296753 | AX74: 7160742
A75: 2E | B75: Karl G. Maeser Preparatory Academy | C75: 0 | D75: 3202113 | E75: 0 | F75: 0 | G75: 0 | H75: 2443877 | I75: 3401 | J75: 0 | K75: 66527 | L75: 233977 | M75: 0 | N75: 0 | O75: 0 | P75: 0 | Q75: 25818 | R75: 0 | S75: 0 | T75: 0 | U75: 0 | V75: 0 | W75: 0 | X75: 0 | Y75: 56299 | Z75: 0 | AA75: 0 | AB75: 142026 | AC75: 0 | AD75: 24650 | AE75: 184197 | AF75: 0 | AG75: 0 | AH75: 0 | AI75: 0 | AJ75: 0 | AK75: 0 | AL75: 0 | AM75: 0 | AN75: 0 | AO75: 0 | AP75: 0 | AQ75: 0 | AR75: 0 | AS75: 0 | AT75: 0 | AU75: 0 | AV75: 5568541 | AW75: 0 | AX75: 11951426
A76: 2F | B76: Rockwell Charter High School | C76: 0 | D76: 843541 | E76: 0 | F76: 0 | G76: 0 | H76: 2155891 | I76: 273309 | J76: 0 | K76: 16005 | L76: 33096 | M76: 0 | N76: 0 | O76: 0 | P76: 0 | Q76: 6318 | R76: 0 | S76: 0 | T76: 0 | U76: 0 | V76: 0 | W76: 0 | X76: 0 | Y76: 39726 | Z76: 0 | AA76: 16886 | AB76: 0 | AC76: 0 | AD76: 0 | AE76: 0 | AF76: 0 | AG76: 0 | AH76: 0 | AI76: 0 | AJ76: 0 | AK76: 0 | AL76: 0 | AM76: 0 | AN76: 0 | AO76: 0 | AP76: 0 | AQ76: 0 | AR76: 0 | AS76: 0 | AT76: 0 | AU76: 0 | AV76: 3271548 | AW76: 0 | AX76: 6656320
A77: 2G | B77: Vista School | C77: 0 | D77: 3509910 | E77: 295 | F77: 0 | G77: 0 | H77: 23273656 | I77: 4156 | J77: 0 | K77: 37238 | L77: 214526 | M77: 0 | N77: 0 | O77: 0 | P77: 0 | Q77: 10143 | R77: 0 | S77: 0 | T77: 0 | U77: 0 | V77: 0 | W77: 0 | X77: 0 | Y77: 1068918 | Z77: 0 | AA77: 0 | AB77: 484808 | AC77: 0 | AD77: 13363 | AE77: 359267 | AF77: 0 | AG77: 0 | AH77: 0 | AI77: 0 | AJ77: 0 | AK77: 10143 | AL77: 18070625 | AM77: 375762 | AN77: 0 | AO77: 0 | AP77: 0 | AQ77: 0 | AR77: 0 | AS77: 0 | AT77: 0 | AU77: 0 | AV77: 0 | AW77: 6667038 | AX77: 54099848
A78: 2H | B78: Utah Connections Academy | C78: 7964076.67 | D78: 0 | E78: 0 | F78: 0 | G78: 0 | H78: 0 | I78: 0 | J78: 0 | K78: 211510.71 | L78: 15804.29 | M78: 0 | N78: 0 | O78: 0 | P78: 0 | Q78: 1282.87 | R78: 0 | S78: 4586.67 | T78: 0 | U78: 0 | V78: 225156 | W78: 0 | X78: 0 | Y78: 1653972.39 | Z78: 0 | AA78: 0 | AB78: 376022.91 | AC78: 0 | AD78: 0 | AE78: 0 | AF78: 0 | AG78: 0 | AH78: 164969.92 | AI78: 0 | AJ78: 0 | AK78: 0 | AL78: 0 | AM78: 0 | AN78: 0 | AO78: 0 | AP78: 0 | AQ78: 17879.73 | AR78: 0 | AS78: 0 | AT78: 0 | AU78: 0 | AV78: 6209572.26 | AW78: 0 | AX78: 16844834.42
A79: 2I | B79: Esperanza School | C79: 0 | D79: 741303 | E79: 0 | F79: 0 | G79: 0 | H79: 2273401 | I79: 4442 | J79: 0 | K79: 37335 | L79: 761013 | M79: 0 | N79: 0 | O79: 0 | P79: 0 | Q79: 7851 | R79: 0 | S79: 0 | T79: 0 | U79: 0 | V79: 0 | W79: 0 | X79: 0 | Y79: 39646 | Z79: 0 | AA79: 282741 | AB79: 0 | AC79: 0 | AD79: 0 | AE79: 0 | AF79: 0 | AG79: 0 | AH79: 0 | AI79: 0 | AJ79: 0 | AK79: 0 | AL79: 0 | AM79: 0 | AN79: 0 | AO79: 0 | AP79: 0 | AQ79: 0 | AR79: 0 | AS79: 0 | AT79: 0 | AU79: 0 | AV79: 3502958 | AW79: 0 | AX79: 7650690
A80: 2J | B80: Ascent Academies of Utah | C80: 2423756.74 | D80: 0 | E80: 3930.25 | F80: 0 | G80: 5224449.96 | H80: 314102.99 | I80: 46 | J80: 0 | K80: 119525.22 | L80: 381976.7 | M80: 102983.75 | N80: 0 | O80: 14044.43 | P80: 0 | Q80: 128401.9 | R80: 0 | S80: 3.98 | T80: 0 | U80: 0 | V80: 0 | W80: 0 | X80: -0.48 | Y80: 515126.92 | Z80: 0 | AA80: 0 | AB80: 1419266.02 | AC80: 0 | AD80: 0 | AE80: 0 | AF80: 0 | AG80: 0 | AH80: 0 | AI80: 0 | AJ80: 0 | AK80: 0 | AL80: 0 | AM80: 0 | AN80: 0 | AO80: 0 | AP80: 0 | AQ80: 0 | AR80: 0 | AS80: 0 | AT80: 0 | AU80: 0 | AV80: 0 | AW80: 6778829.46 | AX80: 17426443.84
A81: 2K | B81: Utah Military Academy | C81: 0 | D81: 2556662 | E81: 0 | F81: 0 | G81: 0 | H81: 3066788 | I81: 1883 | J81: 0 | K81: 78173 | L81: 380462 | M81: 0 | N81: 0 | O81: 0 | P81: 0 | Q81: 15230 | R81: 0 | S81: 0 | T81: 0 | U81: 0 | V81: 0 | W81: 0 | X81: 0 | Y81: 136173 | Z81: 0 | AA81: 780976 | AB81: 0 | AC81: 0 | AD81: 0 | AE81: 0 | AF81: 0 | AG81: 0 | AH81: 0 | AI81: 0 | AJ81: 0 | AK81: 0 | AL81: 0 | AM81: 0 | AN81: 1480882 | AO81: 0 | AP81: 0 | AQ81: 0 | AR81: 0 | AS81: 0 | AT81: 0 | AU81: 0 | AV81: 3701167 | AW81: 0 | AX81: 12198396
A82: 2L | B82: The Center for Creativity Innovation and Discovery | C82: 0 | D82: 1147599 | E82: 0 | F82: 0 | G82: 0 | H82: 251824 | I82: 8419 | J82: 0 | K82: 33082 | L82: 326032 | M82: 0 | N82: 0 | O82: 0 | P82: 0 | Q82: 6024 | R82: 0 | S82: 0 | T82: 0 | U82: 0 | V82: 0 | W82: 0 | X82: 0 | Y82: 5574 | Z82: 0 | AA82: 259704 | AB82: 0 | AC82: 0 | AD82: 0 | AE82: 0 | AF82: 0 | AG82: 0 | AH82: 0 | AI82: 0 | AJ82: 0 | AK82: 0 | AL82: 0 | AM82: 0 | AN82: 0 | AO82: 0 | AP82: 0 | AQ82: 0 | AR82: 0 | AS82: 0 | AT82: 0 | AU82: 0 | AV82: 1507702 | AW82: 0 | AX82: 3545960
A83: 3B | B83: Beehive Science & Technology Academy | C83: 2079884 | D83: 0 | E83: 0 | F83: 0 | G83: 0 | H83: 5887738 | I83: 6593 | J83: 0 | K83: 35927 | L83: 94290 | M83: 0 | N83: 0 | O83: 0 | P83: 0 | Q83: 238337 | R83: 0 | S83: 0 | T83: 0 | U83: 0 | V83: 0 | W83: 0 | X83: 0 | Y83: 1431721 | Z83: 0 | AA83: 0 | AB83: 278882 | AC83: 0 | AD83: 71098 | AE83: 80605 | AF83: 0 | AG83: 0 | AH83: 0 | AI83: 0 | AJ83: 0 | AK83: 238337 | AL83: 5887738 | AM83: 9367 | AN83: 0 | AO83: 0 | AP83: 0 | AQ83: 0 | AR83: 0 | AS83: 0 | AT83: 0 | AU83: 0 | AV83: 0 | AW83: 345021 | AX83: 16685538
A84: 3C | B84: Entheos Academy | C84: 0 | D84: 1431053 | E84: 0 | F84: 0 | G84: 0 | H84: 4070591 | I84: 7580 | J84: 0 | K84: 275629 | L84: 1164375 | M84: 0 | N84: 0 | O84: 0 | P84: 0 | Q84: 10099 | R84: 0 | S84: 0 | T84: 0 | U84: 0 | V84: 0 | W84: 0 | X84: 0 | Y84: 104522 | Z84: 0 | AA84: 489533 | AB84: 0 | AC84: 0 | AD84: 0 | AE84: 0 | AF84: 0 | AG84: 1726 | AH84: 0 | AI84: 0 | AJ84: 0 | AK84: 0 | AL84: 0 | AM84: 0 | AN84: 0 | AO84: 0 | AP84: 0 | AQ84: 0 | AR84: 0 | AS84: 0 | AT84: 0 | AU84: 0 | AV84: 6363546 | AW84: 0 | AX84: 13918654
A85: 3D | B85: Spectrum Academy | C85: 0 | D85: 5585709 | E85: 680 | F85: 0 | G85: 0 | H85: 2205267 | I85: 1000 | J85: 0 | K85: 291094 | L85: 311755 | M85: 0 | N85: 0 | O85: 0 | P85: 0 | Q85: 37916 | R85: 0 | S85: 0 | T85: 0 | U85: 0 | V85: 0 | W85: 0 | X85: 0 | Y85: 105054 | Z85: 0 | AA85: 0 | AB85: 1865740 | AC85: 0 | AD85: 0 | AE85: 0 | AF85: 0 | AG85: 0 | AH85: 0 | AI85: 0 | AJ85: 0 | AK85: 37916 | AL85: 2205267 | AM85: 291702 | AN85: 0 | AO85: 0 | AP85: 0 | AQ85: 0 | AR85: 0 | AS85: 0 | AT85: 0 | AU85: 0 | AV85: 0 | AW85: 3927742 | AX85: 16866842
A86: 3E | B86: C.S. Lewis Academy | C86: 0 | D86: 571498 | E86: 0 | F86: 0 | G86: 0 | H86: 243179 | I86: 6082 | J86: 0 | K86: 27514 | L86: 474274 | M86: 0 | N86: 0 | O86: 0 | P86: 0 | Q86: 0 | R86: 0 | S86: 0 | T86: 0 | U86: 0 | V86: 0 | W86: 0 | X86: 0 | Y86: 8933 | Z86: 0 | AA86: 250917 | AB86: 0 | AC86: 0 | AD86: 0 | AE86: 51748 | AF86: 0 | AG86: 0 | AH86: 0 | AI86: 0 | AJ86: 0 | AK86: 0 | AL86: 0 | AM86: 0 | AN86: 0 | AO86: 0 | AP86: 0 | AQ86: 0 | AR86: 0 | AS86: 0 | AT86: 0 | AU86: 0 | AV86: 0 | AW86: 1010949 | AX86: 2645094
A87: 3F | B87: Venture Academy | C87: 0 | D87: 1215557 | E87: 0 | F87: 0 | G87: 0 | H87: 3560309 | I87: 13015 | J87: 0 | K87: 30929 | L87: 311795 | M87: 0 | N87: 0 | O87: 0 | P87: 0 | Q87: 25350 | R87: 0 | S87: 0 | T87: 0 | U87: 0 | V87: 0 | W87: 0 | X87: 0 | Y87: 23947 | Z87: 0 | AA87: 359467 | AB87: 0 | AC87: 0 | AD87: 0 | AE87: 0 | AF87: 0 | AG87: 0 | AH87: 0 | AI87: 0 | AJ87: 0 | AK87: 0 | AL87: 0 | AM87: 0 | AN87: 0 | AO87: 0 | AP87: 0 | AQ87: 0 | AR87: 0 | AS87: 0 | AT87: 0 | AU87: 0 | AV87: 4773541 | AW87: 0 | AX87: 10313910
A88: 3G | B88: Bear River Charter School | C88: 358799 | D88: 0 | E88: 0 | F88: 0 | G88: 0 | H88: 257272 | I88: 2558 | J88: 0 | K88: 37295 | L88: 145310 | M88: 0 | N88: 0 | O88: 0 | P88: 0 | Q88: 18533 | R88: 0 | S88: 0 | T88: 0 | U88: 0 | V88: 0 | W88: 0 | X88: 0 | Y88: 9317 | Z88: 0 | AA88: 0 | AB88: 116184 | AC88: 0 | AD88: 0 | AE88: 0 | AF88: 0 | AG88: 0 | AH88: 0 | AI88: 0 | AJ88: 0 | AK88: 0 | AL88: 0 | AM88: 0 | AN88: 0 | AO88: 0 | AP88: 0 | AQ88: 0 | AR88: 0 | AS88: 0 | AT88: 0 | AU88: 0 | AV88: 694266 | AW88: 0 | AX88: 1639534
A89: 3H | B89: Endeavor Hall | C89: 0 | D89: 487222 | E89: 0 | F89: 0 | G89: 0 | H89: 1151146 | I89: 0 | J89: 0 | K89: 18960 | L89: 763315 | M89: 0 | N89: 0 | O89: 0 | P89: 0 | Q89: 4900 | R89: 0 | S89: 0 | T89: 0 | U89: 0 | V89: 0 | W89: 0 | X89: 0 | Y89: 6517 | Z89: 0 | AA89: 232407 | AB89: 0 | AC89: 0 | AD89: 0 | AE89: 0 | AF89: 0 | AG89: 0 | AH89: 0 | AI89: 0 | AJ89: 0 | AK89: 0 | AL89: 0 | AM89: 0 | AN89: 0 | AO89: 0 | AP89: 0 | AQ89: 0 | AR89: 0 | AS89: 0 | AT89: 0 | AU89: 0 | AV89: 2186619 | AW89: 0 | AX89: 4851086
A90: 3I | B90: Leadership Learning Academy | C90: 0 | D90: 1152968.85 | E90: 7945.58 | F90: 0 | G90: 1399906.68 | H90: 1814429.68 | I90: 0 | J90: 0 | K90: 12485 | L90: 743296.89 | M90: 0 | N90: 0 | O90: 5556.69 | P90: 0 | Q90: 72118.32 | R90: 0 | S90: 0 | T90: 0 | U90: 0 | V90: 0 | W90: 0 | X90: 0 | Y90: 32793.86 | Z90: 0 | AA90: 91896.5 | AB90: 444994.71 | AC90: 0 | AD90: 0 | AE90: 52086.89 | AF90: 0 | AG90: 0 | AH90: 0 | AI90: 0 | AJ90: 0 | AK90: 0 | AL90: 0 | AM90: 0 | AN90: 0 | AO90: 0 | AP90: 0 | AQ90: 0 | AR90: 0 | AS90: 0 | AT90: 0 | AU90: 0 | AV90: 0 | AW90: 4586935.73 | AX90: 10417415.38
A91: 3J | B91: Mountain View Montessori | C91: 0 | D91: 662110 | E91: 0 | F91: 0 | G91: 0 | H91: 492361 | I91: 1194 | J91: 0 | K91: 22693 | L91: 172329 | M91: 0 | N91: 0 | O91: 0 | P91: 0 | Q91: 5811 | R91: 0 | S91: 0 | T91: 0 | U91: 0 | V91: 0 | W91: 0 | X91: 0 | Y91: 4369 | Z91: 0 | AA91: 147442 | AB91: 0 | AC91: 0 | AD91: 0 | AE91: 0 | AF91: 0 | AG91: 0 | AH91: 0 | AI91: 0 | AJ91: 0 | AK91: 0 | AL91: 0 | AM91: 0 | AN91: 0 | AO91: 0 | AP91: 0 | AQ91: 0 | AR91: 0 | AS91: 0 | AT91: 0 | AU91: 0 | AV91: 1204687 | AW91: 0 | AX91: 2712996
A92: 3K | B92: Roots Charter High School | C92: 0 | D92: 515274.81 | E92: 0 | F92: 0 | G92: 0 | H92: 0 | I92: 0 | J92: 0 | K92: 168761.15 | L92: 244819.03 | M92: 0 | N92: 0 | O92: 8356.92 | P92: 0 | Q92: 3505 | R92: 0 | S92: 0 | T92: 0 | U92: 0 | V92: 0 | W92: 0 | X92: 0 | Y92: 53308.69 | Z92: 0 | AA92: 0 | AB92: 157151.35 | AC92: 0 | AD92: 0 | AE92: 0 | AF92: 0 | AG92: 0 | AH92: 0 | AI92: 0 | AJ92: 0 | AK92: 0 | AL92: 0 | AM92: 0 | AN92: 232266.83 | AO92: 0 | AP92: 0 | AQ92: 0 | AR92: 0 | AS92: 0 | AT92: 0 | AU92: 0 | AV92: 0 | AW92: 497990.05 | AX92: 1881433.83
A93: 3L | B93: Leadership Academy of Utah | C93: 0 | D93: 1045221 | E93: 0 | F93: 0 | G93: 0 | H93: 0 | I93: 5479 | J93: 0 | K93: 26773 | L93: 95069 | M93: 0 | N93: 0 | O93: 0 | P93: 0 | Q93: 8766 | R93: 0 | S93: 0 | T93: 0 | U93: 0 | V93: 0 | W93: 0 | X93: 0 | Y93: 3594 | Z93: 0 | AA93: 35210 | AB93: 0 | AC93: 0 | AD93: 0 | AE93: 0 | AF93: 0 | AG93: 0 | AH93: 0 | AI93: 0 | AJ93: 0 | AK93: 0 | AL93: 0 | AM93: 0 | AN93: 0 | AO93: 0 | AP93: 0 | AQ93: 0 | AR93: 0 | AS93: 0 | AT93: 0 | AU93: 0 | AV93: 1142504 | AW93: 0 | AX93: 2362616
A94: 3M | B94: Bridge Elementary School | C94: 0 | D94: 458509.17 | E94: 0 | F94: 0 | G94: 1030168.63 | H94: 0 | I94: 0 | J94: 0 | K94: 11179.03 | L94: 304675.07 | M94: 0 | N94: 0 | O94: 2144.77 | P94: 0 | Q94: 6096 | R94: 0 | S94: 0 | T94: 0 | U94: 0 | V94: 0 | W94: 0 | X94: 0 | Y94: 216044.81 | Z94: 0 | AA94: 0 | AB94: 190859.11 | AC94: 0 | AD94: 0 | AE94: 0 | AF94: 0 | AG94: 0 | AH94: 0 | AI94: 0 | AJ94: 0 | AK94: 0 | AL94: 0 | AM94: 0 | AN94: 0 | AO94: 0 | AP94: 0 | AQ94: 0 | AR94: 0 | AS94: 0 | AT94: 0 | AU94: 0 | AV94: 0 | AW94: 1405868.75 | AX94: 3625545.34
A95: 4B | B95: Wasatch Peak Academy | C95: 0 | D95: 1320673.22 | E95: 918.64 | F95: 0 | G95: 679241.65 | H95: 642280.34 | I95: 0 | J95: 0 | K95: 6806.72 | L95: 36911.96 | M95: 0 | N95: 0 | O95: 3208.81 | P95: 0 | Q95: 0 | R95: 0 | S95: 0 | T95: 0 | U95: 0 | V95: 0 | W95: 0 | X95: 0 | Y95: 12605.34 | Z95: 0 | AA95: 0 | AB95: 142659.15 | AC95: 0 | AD95: 0 | AE95: 0 | AF95: 0 | AG95: 0 | AH95: 0 | AI95: 0 | AJ95: 0 | AK95: 0 | AL95: 0 | AM95: 0 | AN95: 0 | AO95: 0 | AP95: 0 | AQ95: 0 | AR95: 0 | AS95: 0 | AT95: 0 | AU95: 0 | AV95: 0 | AW95: 2534776.85 | AX95: 5380082.68
A96: 4C | B96: Lakeview Academy | C96: 0 | D96: 4280980.28 | E96: 300 | F96: 0 | G96: 54.75 | H96: 1439280.7 | I96: 0 | J96: 0 | K96: 21904 | L96: 43135.31 | M96: 0 | N96: 0 | O96: 692.23 | P96: 0 | Q96: 3067.67 | R96: 0 | S96: 0 | T96: 0 | U96: 0 | V96: 0 | W96: 0 | X96: 0 | Y96: 54336.01 | Z96: 137.25 | AA96: 0 | AB96: 638441.18 | AC96: 0 | AD96: 0 | AE96: 11936.98 | AF96: 0 | AG96: 0 | AH96: 0 | AI96: 0 | AJ96: 0 | AK96: 0 | AL96: 0 | AM96: 0 | AN96: 264978.55 | AO96: 0 | AP96: 0 | AQ96: 0 | AR96: 0 | AS96: 0 | AT96: 0 | AU96: 0 | AV96: 0 | AW96: 4819584.96 | AX96: 11578829.87
A97: 4D | B97: Syracuse Arts Academy | C97: 0 | D97: 7830447.71 | E97: 3601.62 | F97: 0 | G97: 3796091.89 | H97: 1151289.15 | I97: -81.5 | J97: 0 | K97: 55398.25 | L97: 1039256.29 | M97: 0 | N97: 0 | O97: 6023.3 | P97: 0 | Q97: 216839.32 | R97: 0 | S97: 0 | T97: 0 | U97: 0 | V97: 0 | W97: 0 | X97: 0 | Y97: 74497.19 | Z97: 0 | AA97: 0 | AB97: 1096541.89 | AC97: 0 | AD97: 2382.5 | AE97: 0 | AF97: 0 | AG97: 0 | AH97: 0 | AI97: 0 | AJ97: 0 | AK97: 0 | AL97: 0 | AM97: 0 | AN97: 0 | AO97: 0 | AP97: 0 | AQ97: 0 | AR97: 0 | AS97: 0 | AT97: 0 | AU97: 0 | AV97: 0 | AW97: 12925444.45 | AX97: 28197732.06
A98: 4E | B98: Dual Immersion Academy | C98: 0 | D98: 1813752 | E98: 0 | F98: 0 | G98: 0 | H98: 839197 | I98: 4695 | J98: 0 | K98: 18251 | L98: 895738 | M98: 0 | N98: 0 | O98: 0 | P98: 0 | Q98: 27636 | R98: 0 | S98: 0 | T98: 0 | U98: 0 | V98: 0 | W98: 0 | X98: 0 | Y98: 86913 | Z98: 0 | AA98: 300096 | AB98: 0 | AC98: 0 | AD98: 0 | AE98: 0 | AF98: 0 | AG98: 0 | AH98: 0 | AI98: 0 | AJ98: 0 | AK98: 0 | AL98: 0 | AM98: 0 | AN98: 0 | AO98: 0 | AP98: 0 | AQ98: 0 | AR98: 0 | AS98: 0 | AT98: 0 | AU98: 0 | AV98: 0 | AW98: 3212260 | AX98: 7198538
A99: 4F | B99: Salt Lake Center for Science Education | C99: 0 | D99: 0 | E99: 0 | F99: 60 | G99: 0 | H99: 858849.47 | I99: 0 | J99: 0 | K99: 48439.08 | L99: 84170.29 | M99: 0 | N99: 0 | O99: 0 | P99: 0 | Q99: 2976.72 | R99: 0 | S99: 0 | T99: 0 | U99: 0 | V99: 0 | W99: 0 | X99: 0 | Y99: 11431.76 | Z99: 0 | AA99: 0 | AB99: 0 | AC99: 0 | AD99: 0 | AE99: 177326 | AF99: 0 | AG99: 10795.6 | AH99: 0 | AI99: 0 | AJ99: 0 | AK99: 2976.72 | AL99: 0 | AM99: 0 | AN99: 0 | AO99: 0 | AP99: 0 | AQ99: 0 | AR99: 0 | AS99: 0 | AT99: 0 | AU99: 0 | AV99: 0 | AW99: 791965.48 | AX99: 1988991.12
A100: 4G | B100: Maria Montessori Academy | C100: 0 | D100: 725170.31 | E100: 1745.61 | F100: 0 | G100: 0 | H100: 965563.42 | I100: 0 | J100: 0 | K100: 0 | L100: 381193.73 | M100: 0 | N100: 0 | O100: 2299.89 | P100: 0 | Q100: 0 | R100: 0 | S100: 0 | T100: 0 | U100: 0 | V100: 0 | W100: 0 | X100: 0 | Y100: 7016.3 | Z100: 0 | AA100: 0 | AB100: 179597.18 | AC100: 0 | AD100: 0 | AE100: 3566.68 | AF100: 0 | AG100: 0 | AH100: 0 | AI100: 0 | AJ100: 0 | AK100: 0 | AL100: 0 | AM100: 0 | AN100: 0 | AO100: 0 | AP100: 0 | AQ100: 0 | AR100: 0 | AS100: 0 | AT100: 0 | AU100: 0 | AV100: 0 | AW100: 1885792.8 | AX100: 4151945.92
A101: 4I | B101: Mana Academy Charter School | C101: 1747041 | D101: 0 | E101: 0 | F101: 0 | G101: 0 | H101: 865976 | I101: 3011 | J101: 0 | K101: 3931 | L101: 337284 | M101: 0 | N101: 0 | O101: 0 | P101: 0 | Q101: 39718 | R101: 0 | S101: 0 | T101: 0 | U101: 0 | V101: 0 | W101: 0 | X101: 0 | Y101: 7702 | Z101: 0 | AA101: 141507 | AB101: 0 | AC101: 0 | AD101: 0 | AE101: 0 | AF101: 0 | AG101: 0 | AH101: 0 | AI101: 0 | AJ101: 0 | AK101: 0 | AL101: 0 | AM101: 0 | AN101: 0 | AO101: 0 | AP101: 0 | AQ101: 0 | AR101: 0 | AS101: 0 | AT101: 0 | AU101: 0 | AV101: 2847752 | AW101: 0 | AX101: 5993922
A102: 4K | B102: Athenian eAcademy | C102: 0 | D102: 1190488.76 | E102: 0 | F102: 0 | G102: 0 | H102: 0 | I102: 0 | J102: 0 | K102: 85321.87 | L102: 125175.05 | M102: 0 | N102: 0 | O102: 0 | P102: 0 | Q102: 0 | R102: 0 | S102: 53500 | T102: 0 | U102: 0 | V102: 0 | W102: 0 | X102: 0 | Y102: 100579.42 | Z102: 0 | AA102: 0 | AB102: 218034.04 | AC102: 0 | AD102: 0 | AE102: 0 | AF102: 0 | AG102: 0 | AH102: 0 | AI102: 0 | AJ102: 0 | AK102: 0 | AL102: 0 | AM102: 0 | AN102: 9911.34 | AO102: 0 | AP102: 0 | AQ102: 0 | AR102: 0 | AS102: 0 | AT102: 0 | AU102: 0 | AV102: 0 | AW102: 1125960.88 | AX102: 2908971.36
A103: 4M | B103: Mountain Sunrise Academy | C103: 0 | D103: 580962 | E103: 0 | F103: 0 | G103: 0 | H103: 786637 | I103: 3670 | J103: 0 | K103: 7643 | L103: 400003 | M103: 0 | N103: 0 | O103: 0 | P103: 0 | Q103: 0 | R103: 0 | S103: 0 | T103: 0 | U103: 0 | V103: 0 | W103: 0 | X103: 0 | Y103: 12057 | Z103: 0 | AA103: 182285 | AB103: 0 | AC103: 0 | AD103: 0 | AE103: 0 | AF103: 0 | AG103: 0 | AH103: 0 | AI103: 0 | AJ103: 0 | AK103: 0 | AL103: 0 | AM103: 0 | AN103: 0 | AO103: 0 | AP103: 0 | AQ103: 0 | AR103: 0 | AS103: 0 | AT103: 0 | AU103: 0 | AV103: 1584573 | AW103: 0 | AX103: 3557830
A104: 5B | B104: North Star Academy | C104: 0 | D104: 920095.7 | E104: 13834.23 | F104: 0 | G104: 652416.83 | H104: 1915202.95 | I104: 0 | J104: 0 | K104: 13815.18 | L104: 133847.61 | M104: 0 | N104: 0 | O104: 1341.61 | P104: 0 | Q104: 14652.5 | R104: 0 | S104: 0 | T104: 0 | U104: 0 | V104: 0 | W104: 0 | X104: 0 | Y104: 21861.48 | Z104: 0 | AA104: 0 | AB104: 189898.92 | AC104: 0 | AD104: 0 | AE104: 0 | AF104: 0 | AG104: 0 | AH104: 0 | AI104: 0 | AJ104: 0 | AK104: 0 | AL104: 0 | AM104: 0 | AN104: 0 | AO104: 0 | AP104: 0 | AQ104: 0 | AR104: 0 | AS104: 0 | AT104: 0 | AU104: 0 | AV104: 0 | AW104: 3453446.21 | AX104: 7330413.22
A105: 5C | B105: Legacy Preparatory Academy | C105: 0 | D105: 1793026.24 | E105: 0 | F105: 200 | G105: 9642965.58 | H105: 3156020.47 | I105: 1.25 | J105: 0 | K105: 20082.56 | L105: 42460.07 | M105: 0 | N105: 0 | O105: 55387.41 | P105: 0 | Q105: 0 | R105: 0 | S105: 0 | T105: 0 | U105: 0 | V105: 0 | W105: 0 | X105: 0 | Y105: 118881.04 | Z105: 0 | AA105: 0 | AB105: 505959.54 | AC105: 0 | AD105: 0 | AE105: 0 | AF105: 0 | AG105: 0 | AH105: 0 | AI105: 0 | AJ105: 0 | AK105: 0 | AL105: 0 | AM105: 0 | AN105: 0 | AO105: 0 | AP105: 0 | AQ105: 0 | AR105: 0 | AS105: 0 | AT105: 0 | AU105: 0 | AV105: 0 | AW105: 14085303 | AX105: 29420287.16
A106: 5D | B106: George Washington Academy | C106: 0 | D106: 3434056 | E106: 0 | F106: 0 | G106: 0 | H106: 5257359 | I106: 6505 | J106: 0 | K106: 59266 | L106: 353424 | M106: 0 | N106: 0 | O106: 0 | P106: 0 | Q106: 6528 | R106: 0 | S106: 0 | T106: 0 | U106: 0 | V106: 0 | W106: 0 | X106: 0 | Y106: 26327 | Z106: 0 | AA106: 279273 | AB106: 0 | AC106: 0 | AD106: 0 | AE106: 400000 | AF106: 0 | AG106: 0 | AH106: 0 | AI106: 0 | AJ106: 0 | AK106: 0 | AL106: 0 | AM106: 0 | AN106: 0 | AO106: 0 | AP106: 0 | AQ106: 0 | AR106: 0 | AS106: 0 | AT106: 0 | AU106: 0 | AV106: 8411538 | AW106: 0 | AX106: 18234276
A107: 5E | B107: Edith Bowen Laboratory School | C107: 658610.46 | D107: 0 | E107: 0 | F107: 0 | G107: 0 | H107: 0 | I107: 0 | J107: 0 | K107: 5216.86 | L107: 261032.44 | M107: 0 | N107: 0 | O107: 0 | P107: 13112 | Q107: 7259.54 | R107: 1441134.42 | S107: 0 | T107: 0 | U107: 0 | V107: 0 | W107: 196268.28 | X107: 0 | Y107: 11661.42 | Z107: 0 | AA107: 0 | AB107: 300899.25 | AC107: 0 | AD107: 2181.6 | AE107: 0 | AF107: 0 | AG107: 36395.17 | AH107: 0 | AI107: 1846987.86 | AJ107: 0 | AK107: 0 | AL107: 0 | AM107: 0 | AN107: 0 | AO107: 0 | AP107: 0 | AQ107: 0 | AR107: 0 | AS107: 0 | AT107: 0 | AU107: 0 | AV107: 0 | AW107: 384508.7 | AX107: 5165268
A108: 5F | B108: Utah Virtual Academy | C108: 8560038.88 | D108: 0 | E108: 0 | F108: 0 | G108: 0 | H108: 823208.74 | I108: 0 | J108: 0 | K108: 160936.59 | L108: 1631660.37 | M108: 0 | N108: 0 | O108: 1391.17 | P108: 0 | Q108: 0 | R108: 0 | S108: 0 | T108: 0 | U108: 0 | V108: 0 | W108: 0 | X108: 0 | Y108: 542088.37 | Z108: 0 | AA108: 0 | AB108: 853028.99 | AC108: 0 | AD108: 0 | AE108: 0 | AF108: 0 | AG108: 0 | AH108: 0 | AI108: 0 | AJ108: 0 | AK108: 0 | AL108: 0 | AM108: 0 | AN108: 0 | AO108: 0 | AP108: 0 | AQ108: 0 | AR108: 0 | AS108: 0 | AT108: 0 | AU108: 0 | AV108: 0 | AW108: 9782118.39 | AX108: 22354471.5
A109: 5G | B109: Canyon Grove Academy | C109: 0 | D109: 1925050 | E109: 0 | F109: 0 | G109: 0 | H109: 503708 | I109: 4759 | J109: 0 | K109: 901 | L109: 448689 | M109: 0 | N109: 0 | O109: 0 | P109: 0 | Q109: 14337 | R109: 0 | S109: 0 | T109: 0 | U109: 0 | V109: 0 | W109: 0 | X109: 0 | Y109: 108346 | Z109: 0 | AA109: 886792 | AB109: 0 | AC109: 0 | AD109: 0 | AE109: 0 | AF109: 0 | AG109: 0 | AH109: 0 | AI109: 0 | AJ109: 0 | AK109: 0 | AL109: 0 | AM109: 0 | AN109: 0 | AO109: 0 | AP109: 0 | AQ109: 0 | AR109: 0 | AS109: 0 | AT109: 0 | AU109: 0 | AV109: 1902306 | AW109: 0 | AX109: 5794888
A110: 5H | B110: Highmark Charter School | C110: 0 | D110: 1157237.58 | E110: 1237.4 | F110: 0 | G110: 406373.2 | H110: 937106.6 | I110: 0 | J110: 0 | K110: 13389.56 | L110: 288062.92 | M110: 0 | N110: 0 | O110: 1646.21 | P110: 0 | Q110: 12244.14 | R110: 0 | S110: 0 | T110: 0 | U110: 0 | V110: 0 | W110: 0 | X110: 0 | Y110: 9842.65 | Z110: 0 | AA110: 8533.57 | AB110: 350599.33 | AC110: 0 | AD110: 17732 | AE110: 0 | AF110: 0 | AG110: 0 | AH110: 0 | AI110: 0 | AJ110: 0 | AK110: 0 | AL110: 0 | AM110: 0 | AN110: 0 | AO110: 0 | AP110: 0 | AQ110: 0 | AR110: 0 | AS110: 0 | AT110: 0 | AU110: 0 | AV110: 0 | AW110: 2430590.06 | AX110: 5634595.22
A111: 5I | B111: Voyage Academy | C111: 0 | D111: 2710495.75 | E111: 0 | F111: 591.25 | G111: 0 | H111: 820318.37 | I111: 0 | J111: 0 | K111: 38937.12 | L111: 88060.62 | M111: 0 | N111: 0 | O111: 0 | P111: 0 | Q111: 0 | R111: 0 | S111: 0 | T111: 0 | U111: 0 | V111: 0 | W111: 0 | X111: 0 | Y111: 47669.52 | Z111: 0 | AA111: 0 | AB111: 153835.99 | AC111: 0 | AD111: 0 | AE111: 5382.1 | AF111: 0 | AG111: 0 | AH111: 0 | AI111: 0 | AJ111: 0 | AK111: 0 | AL111: 0 | AM111: 159656 | AN111: 0 | AO111: 0 | AP111: 0 | AQ111: 0 | AR111: 0 | AS111: 0 | AT111: 0 | AU111: 0 | AV111: 0 | AW111: 3291859.5 | AX111: 7316806.22
A112: 5J | B112: Mountain West Montessori Academy | C112: 0 | D112: 1304396.21 | E112: 4764.74 | F112: 0 | G112: 682708.91 | H112: 1342465.25 | I112: 0 | J112: 0 | K112: 9349.37 | L112: 70150.99 | M112: 0 | N112: 0 | O112: 2727.58 | P112: 0 | Q112: 464 | R112: 0 | S112: 0 | T112: 0 | U112: 0 | V112: 0 | W112: 0 | X112: 0 | Y112: 13500 | Z112: 0 | AA112: 0 | AB112: 224081.85 | AC112: 0 | AD112: 0 | AE112: 0 | AF112: 0 | AG112: 0 | AH112: 0 | AI112: 0 | AJ112: 0 | AK112: 0 | AL112: 0 | AM112: 0 | AN112: 0 | AO112: 0 | AP112: 0 | AQ112: 0 | AR112: 0 | AS112: 0 | AT112: 0 | AU112: 0 | AV112: 0 | AW112: 3179445.2 | AX112: 6834054.1
A113: 5K | B113: Wasatch Waldorf Charter School | C113: 0 | D113: 954500 | E113: 0 | F113: 0 | G113: 0 | H113: 1331020 | I113: 39315 | J113: 0 | K113: 32786 | L113: 390711 | M113: 0 | N113: 0 | O113: 0 | P113: 0 | Q113: 2100 | R113: 0 | S113: 0 | T113: 0 | U113: 0 | V113: 0 | W113: 0 | X113: 0 | Y113: 11807 | Z113: 0 | AA113: 332614 | AB113: 0 | AC113: 0 | AD113: 0 | AE113: 0 | AF113: 0 | AG113: 0 | AH113: 0 | AI113: 0 | AJ113: 0 | AK113: 0 | AL113: 0 | AM113: 0 | AN113: 0 | AO113: 0 | AP113: 0 | AQ113: 0 | AR113: 0 | AS113: 0 | AT113: 0 | AU113: 0 | AV113: 2406011 | AW113: 0 | AX113: 5500864
A114: 5L | B114: Ignite Entrepreneurship Academy | C114: 0 | D114: 1292601.74 | E114: 0 | F114: 0 | G114: 523930.68 | H114: 0 | I114: 0 | J114: 0 | K114: 9116.21 | L114: 0 | M114: 0 | N114: 0 | O114: 0 | P114: 0 | Q114: 5000 | R114: 0 | S114: 0 | T114: 0 | U114: 0 | V114: 0 | W114: 0 | X114: 0 | Y114: 23565.16 | Z114: 0 | AA114: 14949.7 | AB114: 225555.27 | AC114: 0 | AD114: 0 | AE114: 13930.3 | AF114: 0 | AG114: 0 | AH114: 0 | AI114: 0 | AJ114: 0 | AK114: 0 | AL114: 0 | AM114: 0 | AN114: 8759.8 | AO114: 0 | AP114: 0 | AQ114: 43983.2 | AR114: 0 | AS114: 0 | AT114: 0 | AU114: 10505.75 | AV114: 0 | AW114: 1489399.44 | AX114: 3661297.25
A115: 6D | B115: Noah Webster Academy | C115: 0 | D115: 3104228.98 | E115: 26 | F115: 0 | G115: 0 | H115: 936524.61 | I115: 0 | J115: 0 | K115: 5632.42 | L115: 244791.05 | M115: 0 | N115: 0 | O115: 913.39 | P115: 0 | Q115: 0 | R115: 0 | S115: 0 | T115: 0 | U115: 0 | V115: 0 | W115: 0 | X115: 0 | Y115: 20979.42 | Z115: 0 | AA115: 0 | AB115: 247323.49 | AC115: 0 | AD115: 0 | AE115: 0 | AF115: 0 | AG115: 0 | AH115: 0 | AI115: 0 | AJ115: 0 | AK115: 0 | AL115: 0 | AM115: 0 | AN115: 0 | AO115: 0 | AP115: 0 | AQ115: 0 | AR115: 0 | AS115: 0 | AT115: 0 | AU115: 0 | AV115: 0 | AW115: 4023813.54 | AX115: 8584232.9
A116: 6F | B116: Early Light Academy at Daybreak | C116: 0 | D116: 1540133.66 | E116: 152626.56 | F116: 0 | G116: 3802151.91 | H116: 1624943.71 | I116: 0 | J116: 0 | K116: 89271.74 | L116: 129320.88 | M116: 0 | N116: 0 | O116: 10719.22 | P116: 0 | Q116: 4608.2 | R116: 0 | S116: 0 | T116: 0 | U116: 0 | V116: 0 | W116: 0 | X116: 0 | Y116: 0 | Z116: 0 | AA116: 0 | AB116: 487228.48 | AC116: 0 | AD116: 0 | AE116: 0 | AF116: 0 | AG116: 0 | AH116: 0 | AI116: 0 | AJ116: 0 | AK116: 0 | AL116: 0 | AM116: 0 | AN116: 0 | AO116: 0 | AP116: 0 | AQ116: 0 | AR116: 0 | AS116: 0 | AT116: 0 | AU116: 0 | AV116: 0 | AW116: 6866547.4 | AX116: 14707551.76
A117: 6G | B117: Weilenmann School of Discovery | C117: 0 | D117: 854173.28 | E117: 0 | F117: 0 | G117: 476815.94 | H117: 0 | I117: 0 | J117: 0 | K117: 66345.68 | L117: 270085.55 | M117: 0 | N117: 0 | O117: 741.66 | P117: 0 | Q117: 0 | R117: 0 | S117: 0 | T117: 0 | U117: 0 | V117: 0 | W117: 0 | X117: 0 | Y117: 321.65 | Z117: 0 | AA117: 0 | AB117: 334432.8 | AC117: 0 | AD117: 0 | AE117: 0 | AF117: 0 | AG117: 0 | AH117: 0 | AI117: 0 | AJ117: 0 | AK117: 0 | AL117: 0 | AM117: 0 | AN117: 4558.55 | AO117: 0 | AP117: 0 | AQ117: 0 | AR117: 0 | AS117: 0 | AT117: 0 | AU117: 0 | AV117: 0 | AW117: 1328849.11 | AX117: 3336324.22
A118: 6H | B118: Promontory School of Expeditionary Learning | C118: 0 | D118: 986220 | E118: 0 | F118: 0 | G118: 0 | H118: 999818 | I118: 16423 | J118: 0 | K118: 34637 | L118: 251256 | M118: 0 | N118: 0 | O118: 0 | P118: 0 | Q118: 20551 | R118: 0 | S118: 0 | T118: 0 | U118: 0 | V118: 0 | W118: 0 | X118: 0 | Y118: 40373 | Z118: 0 | AA118: 191498 | AB118: 0 | AC118: 0 | AD118: 0 | AE118: 0 | AF118: 0 | AG118: 0 | AH118: 0 | AI118: 0 | AJ118: 0 | AK118: 0 | AL118: 0 | AM118: 0 | AN118: 0 | AO118: 0 | AP118: 0 | AQ118: 0 | AR118: 0 | AS118: 0 | AT118: 0 | AU118: 0 | AV118: 2077034 | AW118: 0 | AX118: 4617810
A119: 6J | B119: Scholar Academy | C119: 0 | D119: 1081107.14 | E119: 1774.42 | F119: 0 | G119: 935434.87 | H119: 1456037.32 | I119: 0 | J119: 0 | K119: 51948.05 | L119: 187088.2 | M119: 0 | N119: 0 | O119: 1925.4 | P119: 0 | Q119: 0 | R119: 0 | S119: 0 | T119: 0 | U119: 0 | V119: 0 | W119: 0 | X119: 0 | Y119: 31801.02 | Z119: 0 | AA119: 0 | AB119: 229278.67 | AC119: 0 | AD119: 0 | AE119: 0 | AF119: 0 | AG119: 0 | AH119: 0 | AI119: 0 | AJ119: 0 | AK119: 0 | AL119: 0 | AM119: 0 | AN119: 0 | AO119: 0 | AP119: 0 | AQ119: 0 | AR119: 0 | AS119: 0 | AT119: 0 | AU119: 0 | AV119: 0 | AW119: 3454235.71 | AX119: 7430630.8
A120: 6K | B120: Franklin Discovery Academy | C120: 0 | D120: 1812463 | E120: 0 | F120: 200 | G120: 0 | H120: 85833 | I120: 0 | J120: 0 | K120: 46187 | L120: 157207 | M120: 0 | N120: 0 | O120: 478 | P120: 0 | Q120: 0 | R120: 0 | S120: 0 | T120: 0 | U120: 0 | V120: 0 | W120: 0 | X120: 0 | Y120: 71344 | Z120: 0 | AA120: 0 | AB120: 103851 | AC120: 0 | AD120: 0 | AE120: 1203 | AF120: 0 | AG120: 0 | AH120: 0 | AI120: 0 | AJ120: 0 | AK120: 0 | AL120: 0 | AM120: 278364 | AN120: 0 | AO120: 0 | AP120: 0 | AQ120: 0 | AR120: 0 | AS120: 0 | AT120: 0 | AU120: 0 | AV120: 0 | AW120: 1647606 | AX120: 4204736
A121: 6L | B121: Bonneville Academy | C121: 0 | D121: 1174551 | E121: 0 | F121: 0 | G121: 0 | H121: 553207 | I121: 216166 | J121: 0 | K121: 10856 | L121: 252933 | M121: 0 | N121: 0 | O121: 0 | P121: 0 | Q121: 0 | R121: 0 | S121: 0 | T121: 0 | U121: 0 | V121: 0 | W121: 0 | X121: 0 | Y121: 27342 | Z121: 0 | AA121: 285598 | AB121: 0 | AC121: 0 | AD121: 500 | AE121: 0 | AF121: 0 | AG121: 0 | AH121: 0 | AI121: 0 | AJ121: 0 | AK121: 0 | AL121: 0 | AM121: 0 | AN121: 0 | AO121: 0 | AP121: 0 | AQ121: 0 | AR121: 0 | AS121: 0 | AT121: 0 | AU121: 0 | AV121: 1894273 | AW121: 0 | AX121: 4415426
A122: 7B | B122: Reagan Academy | C122: 0 | D122: 1792170 | E122: 0 | F122: 0 | G122: 0 | H122: 1277699 | I122: 0 | J122: 0 | K122: 24161 | L122: 23623 | M122: 0 | N122: 0 | O122: 0 | P122: 0 | Q122: 0 | R122: 0 | S122: 10651 | T122: 0 | U122: 0 | V122: 0 | W122: 0 | X122: 0 | Y122: 6276 | Z122: 0 | AA122: 0 | AB122: 205408 | AC122: 0 | AD122: 0 | AE122: 1251 | AF122: 0 | AG122: 0 | AH122: 0 | AI122: 0 | AJ122: 0 | AK122: 0 | AL122: 0 | AM122: 353849 | AN122: 0 | AO122: 0 | AP122: 0 | AQ122: 0 | AR122: 0 | AS122: 0 | AT122: 0 | AU122: 0 | AV122: 0 | AW122: 2561520 | AX122: 6256608
A123: 7C | B123: Monticello Academy | C123: 0 | D123: 1412451 | E123: 10361 | F123: 0 | G123: 0 | H123: 1699252 | I123: 28729 | J123: 0 | K123: 51034 | L123: 272017 | M123: 0 | N123: 0 | O123: 0 | P123: 0 | Q123: 0 | R123: 0 | S123: 0 | T123: 0 | U123: 0 | V123: 0 | W123: 0 | X123: 0 | Y123: 162211 | Z123: 0 | AA123: 0 | AB123: 355183 | AC123: 0 | AD123: 0 | AE123: 200948 | AF123: 0 | AG123: 0 | AH123: 0 | AI123: 0 | AJ123: 0 | AK123: 0 | AL123: 0 | AM123: 348701 | AN123: 0 | AO123: 0 | AP123: 0 | AQ123: 0 | AR123: 0 | AS123: 0 | AT123: 0 | AU123: 0 | AV123: 0 | AW123: 2406801 | AX123: 6947688
A124: 7D | B124: Salt Lake School for the Performing Arts | C124: 0 | D124: 659024 | E124: 0 | F124: 0 | G124: 0 | H124: 326415 | I124: 3816 | J124: 0 | K124: 40026 | L124: 91000 | M124: 0 | N124: 0 | O124: 0 | P124: 0 | Q124: 0 | R124: 0 | S124: 0 | T124: 0 | U124: 0 | V124: 0 | W124: 0 | X124: 0 | Y124: 271696 | Z124: 0 | AA124: 142774 | AB124: 0 | AC124: 0 | AD124: 0 | AE124: 0 | AF124: 0 | AG124: 0 | AH124: 0 | AI124: 0 | AJ124: 0 | AK124: 0 | AL124: 0 | AM124: 0 | AN124: 0 | AO124: 0 | AP124: 0 | AQ124: 0 | AR124: 0 | AS124: 0 | AT124: 0 | AU124: 0 | AV124: 705811 | AW124: 0 | AX124: 2240562
A125: 7E | B125: Gateway Preparatory Academy | C125: 0 | D125: 3897792.51 | E125: 0 | F125: 0 | G125: 0 | H125: 0 | I125: 7101.14 | J125: 0 | K125: 35965.22 | L125: 669059.02 | M125: 0 | N125: 0 | O125: 1992.58 | P125: 0 | Q125: 22404.18 | R125: 0 | S125: 0 | T125: 0 | U125: 0 | V125: 0 | W125: 0 | X125: 0 | Y125: 46303.96 | Z125: 0 | AA125: 0 | AB125: 217601.35 | AC125: 0 | AD125: 0 | AE125: 3050.49 | AF125: 0 | AG125: 0 | AH125: 0 | AI125: 0 | AJ125: 0 | AK125: 0 | AL125: 0 | AM125: 173824.21 | AN125: 34936.5 | AO125: 0 | AP125: 0 | AQ125: 0 | AR125: 0 | AS125: 0 | AT125: 0 | AU125: 0 | AV125: 0 | AW125: 4158598.14 | AX125: 9268629.3
A126: 7F | B126: Excelsior Academy | C126: 0 | D126: 3766230.14 | E126: 500 | F126: 0 | G126: 0 | H126: 0 | I126: 3520 | J126: 0 | K126: 40314.15 | L126: 548663.06 | M126: 0 | N126: 0 | O126: 1689.69 | P126: 0 | Q126: 30075 | R126: 0 | S126: 0 | T126: 0 | U126: 0 | V126: 0 | W126: 0 | X126: 0 | Y126: 38614.83 | Z126: 450.1 | AA126: 0 | AB126: 675550.95 | AC126: 0 | AD126: 0 | AE126: 0 | AF126: 0 | AG126: 0 | AH126: 0 | AI126: 0 | AJ126: 0 | AK126: 0 | AL126: 0 | AM126: 501158.48 | AN126: 42414.64 | AO126: 0 | AP126: 0 | AQ126: 0 | AR126: 0 | AS126: 0 | AT126: 0 | AU126: 0 | AV126: 0 | AW126: 3132803.04 | AX126: 8781984.08
A127: 7G | B127: Summit Academy High School | C127: 1875469 | D127: 0 | E127: 0 | F127: 0 | G127: 0 | H127: 520539 | I127: 28106 | J127: 0 | K127: 28957 | L127: 105115 | M127: 0 | N127: 0 | O127: 0 | P127: 0 | Q127: 0 | R127: 0 | S127: 0 | T127: 0 | U127: 0 | V127: 0 | W127: 0 | X127: 0 | Y127: 53693 | Z127: 0 | AA127: 0 | AB127: 413667 | AC127: 0 | AD127: 0 | AE127: 203574 | AF127: 14813 | AG127: 0 | AH127: 0 | AI127: 0 | AJ127: 0 | AK127: 0 | AL127: 0 | AM127: 0 | AN127: 0 | AO127: 0 | AP127: 0 | AQ127: 0 | AR127: 0 | AS127: 0 | AT127: 0 | AU127: 0 | AV127: 1872439 | AW127: 0 | AX127: 5116372
A128: 7H | B128: Pacific Heritage Academy | C128: 0 | D128: 530815.46 | E128: 0 | F128: 0 | G128: 0 | H128: 1013826.29 | I128: 2447.87 | J128: 0 | K128: 19282.62 | L128: 400170.59 | M128: 0 | N128: 0 | O128: 3959.65 | P128: 0 | Q128: 0 | R128: 0 | S128: 0 | T128: 0 | U128: 0 | V128: 0 | W128: 0 | X128: 0 | Y128: 44413.99 | Z128: 0 | AA128: 0 | AB128: 144208.27 | AC128: 0 | AD128: 0 | AE128: 0 | AF128: 0 | AG128: 0 | AH128: 0 | AI128: 0 | AJ128: 0 | AK128: 0 | AL128: 0 | AM128: 254951 | AN128: 161385.71 | AO128: 0 | AP128: 0 | AQ128: 0 | AR128: 0 | AS128: 0 | AT128: 0 | AU128: 0 | AV128: 0 | AW128: 1365543.51 | AX128: 3941004.96
A129: 7I | B129: Weber State University Charter Academy | C129: 0 | D129: 323185.95 | E129: 0 | F129: 0 | G129: 0 | H129: 0 | I129: 0 | J129: 0 | K129: 0 | L129: 0 | M129: 0 | N129: 0 | O129: 0 | P129: 0 | Q129: 0 | R129: 0 | S129: 0 | T129: 0 | U129: 0 | V129: 0 | W129: 0 | X129: 0 | Y129: 0 | Z129: 0 | AA129: 0 | AB129: 0 | AC129: 0 | AD129: 0 | AE129: 0 | AF129: 0 | AG129: 0 | AH129: 0 | AI129: 0 | AJ129: 0 | AK129: 0 | AL129: 0 | AM129: 0 | AN129: 0 | AO129: 0 | AP129: 0 | AQ129: 0 | AR129: 0 | AS129: 0 | AT129: 0 | AU129: 0 | AV129: 0 | AW129: 323185.95 | AX129: 646371.9
A130: 7J | B130: Greenwood Charter School | C130: 0 | D130: 609524 | E130: 0 | F130: 0 | G130: 0 | H130: 930775 | I130: 22621 | J130: 0 | K130: 39352 | L130: 409795 | M130: 0 | N130: 0 | O130: 0 | P130: 0 | Q130: 6103 | R130: 0 | S130: 0 | T130: 0 | U130: 0 | V130: 0 | W130: 0 | X130: 0 | Y130: 46687 | Z130: 0 | AA130: 201219 | AB130: 0 | AC130: 0 | AD130: 0 | AE130: 0 | AF130: 0 | AG130: 0 | AH130: 0 | AI130: 0 | AJ130: 0 | AK130: 0 | AL130: 0 | AM130: 0 | AN130: 0 | AO130: 0 | AP130: 0 | AQ130: 0 | AR130: 0 | AS130: 0 | AT130: 0 | AU130: 0 | AV130: 1770264 | AW130: 0 | AX130: 4036340
A131: 7K | B131: Wallace Stegner Academy | C131: 0 | D131: 2242728.53 | E131: 4942.5 | F131: 0 | G131: 20044940.49 | H131: 0 | I131: 161.92 | J131: 0 | K131: 111701.14 | L131: 1060285.2 | M131: 0 | N131: 0 | O131: 10022.58 | P131: 0 | Q131: 0 | R131: 0 | S131: 0 | T131: 0 | U131: 0 | V131: 0 | W131: 0 | X131: 0 | Y131: 145670.49 | Z131: 0 | AA131: 0 | AB131: 642852.57 | AC131: 0 | AD131: 0 | AE131: 0 | AF131: 0 | AG131: 0 | AH131: 0 | AI131: 0 | AJ131: 0 | AK131: 0 | AL131: 0 | AM131: 0 | AN131: 0 | AO131: 0 | AP131: 0 | AQ131: 0 | AR131: 0 | AS131: 0 | AT131: 0 | AU131: 0 | AV131: 0 | AW131: 22686259.3 | AX131: 46949564.72
A132: 7L | B132: Treeside Charter School | C132: 0 | D132: 610583 | E132: 0 | F132: 0 | G132: 0 | H132: 0 | I132: 1000 | J132: 0 | K132: 3736 | L132: 283159 | M132: 0 | N132: 0 | O132: 0 | P132: 0 | Q132: 133204 | R132: 0 | S132: 0 | T132: 0 | U132: 0 | V132: 0 | W132: 0 | X132: 0 | Y132: 39521 | Z132: 0 | AA132: 229324 | AB132: 0 | AC132: 0 | AD132: 0 | AE132: 63662 | AF132: 0 | AG132: 0 | AH132: 0 | AI132: 0 | AJ132: 0 | AK132: 0 | AL132: 0 | AM132: 0 | AN132: 0 | AO132: 0 | AP132: 0 | AQ132: 0 | AR132: 0 | AS132: 0 | AT132: 0 | AU132: 0 | AV132: 699175 | AW132: 0 | AX132: 2063364
A133: 8B | B133: American Leadership Academy | C133: 0 | D133: 17727035.2 | E133: 0 | F133: 0 | G133: 40562.5 | H133: 2533489.92 | I133: 0 | J133: 0 | K133: 75612.33 | L133: 383338.8 | M133: 0 | N133: 0 | O133: 0 | P133: 0 | Q133: 0 | R133: 0 | S133: 3314.24 | T133: 0 | U133: 0 | V133: 0 | W133: 0 | X133: 0 | Y133: 41509.06 | Z133: 0 | AA133: 0 | AB133: 610254 | AC133: 0 | AD133: 0 | AE133: 0 | AF133: 0 | AG133: 0 | AH133: 0 | AI133: 0 | AJ133: 0 | AK133: 0 | AL133: 0 | AM133: 0 | AN133: 1088678.4 | AO133: 0 | AP133: 0 | AQ133: 0 | AR133: 0 | AS133: 0 | AT133: 0 | AU133: 0 | AV133: 0 | AW133: 19022911.53 | AX133: 41526705.98
A134: 8C | B134: Mountainville Academy | C134: 0 | D134: 2934837 | E134: 0 | F134: 0 | G134: 0 | H134: 1220015 | I134: 8681 | J134: 0 | K134: 5000 | L134: 210058 | M134: 0 | N134: 0 | O134: 0 | P134: 0 | Q134: 23132 | R134: 0 | S134: 0 | T134: 0 | U134: 0 | V134: 0 | W134: 0 | X134: 0 | Y134: 44100 | Z134: 0 | AA134: 440000 | AB134: 0 | AC134: 0 | AD134: 0 | AE134: 0 | AF134: 0 | AG134: 0 | AH134: 0 | AI134: 0 | AJ134: 0 | AK134: 0 | AL134: 0 | AM134: 0 | AN134: 0 | AO134: 0 | AP134: 0 | AQ134: 0 | AR134: 0 | AS134: 0 | AT134: 0 | AU134: 0 | AV134: 3917623 | AW134: 0 | AX134: 8803446
A135: 8D | B135: Open Classroom | C135: 0 | D135: 0 | E135: 0 | F135: 0 | G135: 0 | H135: 0 | I135: 0 | J135: 0 | K135: 52488.92 | L135: 154890.44 | M135: 0 | N135: 0 | O135: 0 | P135: 0 | Q135: 0 | R135: 0 | S135: 0 | T135: 0 | U135: 0 | V135: 0 | W135: 0 | X135: 8040 | Y135: 3363.46 | Z135: 0 | AA135: 0 | AB135: 0 | AC135: 0 | AD135: 0 | AE135: 1280.51 | AF135: 0 | AG135: 0 | AH135: 0 | AI135: 0 | AJ135: 0 | AK135: 0 | AL135: 0 | AM135: 0 | AN135: 0 | AO135: 0 | AP135: 0 | AQ135: 0 | AR135: 0 | AS135: 0 | AT135: 0 | AU135: 0 | AV135: 0 | AW135: 194695.39 | AX135: 414758.72
A136: 8E | B136: Merit College Preparatory Academy | C136: 0 | D136: 1428320 | E136: 0 | F136: 0 | G136: 0 | H136: 1464909 | I136: 6348 | J136: 0 | K136: 48881 | L136: 390872 | M136: 0 | N136: 0 | O136: 0 | P136: 0 | Q136: 39357 | R136: 0 | S136: 0 | T136: 0 | U136: 0 | V136: 0 | W136: 0 | X136: 0 | Y136: 52527 | Z136: 0 | AA136: 231211 | AB136: 0 | AC136: 0 | AD136: 0 | AE136: 0 | AF136: 0 | AG136: 0 | AH136: 0 | AI136: 0 | AJ136: 0 | AK136: 0 | AL136: 0 | AM136: 0 | AN136: 0 | AO136: 0 | AP136: 0 | AQ136: 0 | AR136: 0 | AS136: 0 | AT136: 0 | AU136: 0 | AV136: 3094949 | AW136: 0 | AX136: 6757374
A137: 8F | B137: Hawthorn Academy | C137: 0 | D137: 3519159.45 | E137: 2956.2 | F137: 0 | G137: 3924931.35 | H137: 10894173.91 | I137: 0 | J137: 0 | K137: 37351.84 | L137: 308981.72 | M137: 0 | N137: 0 | O137: 2829.74 | P137: 0 | Q137: 12202.53 | R137: 0 | S137: 0 | T137: 0 | U137: 0 | V137: 0 | W137: 0 | X137: 0 | Y137: 85186.57 | Z137: 0 | AA137: 0 | AB137: 731786.05 | AC137: 0 | AD137: 0 | AE137: 0 | AF137: 0 | AG137: 0 | AH137: 0 | AI137: 0 | AJ137: 0 | AK137: 0 | AL137: 0 | AM137: 0 | AN137: 0 | AO137: 0 | AP137: 0 | AQ137: 0 | AR137: 0 | AS137: 0 | AT137: 0 | AU137: 0 | AV137: 0 | AW137: 17885614.12 | AX137: 37405173.48
A138: 8G | B138: Good Foundations Academy | C138: 0 | D138: 2160041.35 | E138: 0 | F138: 0 | G138: 0 | H138: 540964.09 | I138: 0 | J138: 0 | K138: 32152.3 | L138: 17692.93 | M138: 0 | N138: 0 | O138: 1230.63 | P138: 0 | Q138: 0 | R138: 0 | S138: 0 | T138: 0 | U138: 0 | V138: 0 | W138: 0 | X138: 0 | Y138: 20866.3 | Z138: 0 | AA138: 1712 | AB138: 221649.19 | AC138: 0 | AD138: 0 | AE138: 0 | AF138: 0 | AG138: 0 | AH138: 0 | AI138: 0 | AJ138: 0 | AK138: 0 | AL138: 0 | AM138: 257381.47 | AN138: 111070.14 | AO138: 0 | AP138: 0 | AQ138: 0 | AR138: 0 | AS138: 0 | AT138: 0 | AU138: 0 | AV138: 0 | AW138: 2139402.2 | AX138: 5504162.6
A139: 8H | B139: Valley Academy | C139: 0 | D139: 1181743 | E139: 0 | F139: 0 | G139: 0 | H139: 353666 | I139: 11594 | J139: 0 | K139: 15784 | L139: 268640 | M139: 0 | N139: 0 | O139: 0 | P139: 0 | Q139: 6286 | R139: 0 | S139: 0 | T139: 0 | U139: 0 | V139: 0 | W139: 0 | X139: 0 | Y139: 16932 | Z139: 0 | AA139: 216983 | AB139: 0 | AC139: 0 | AD139: 0 | AE139: 0 | AF139: 0 | AG139: 0 | AH139: 0 | AI139: 0 | AJ139: 0 | AK139: 0 | AL139: 0 | AM139: 0 | AN139: 0 | AO139: 0 | AP139: 0 | AQ139: 0 | AR139: 0 | AS139: 0 | AT139: 0 | AU139: 0 | AV139: 1603798 | AW139: 0 | AX139: 3675426
A140: 8I | B140: Winter Sports School | C140: 0 | D140: 464415 | E140: 0 | F140: 0 | G140: 0 | H140: 2312335 | I140: 7653 | J140: 0 | K140: 0 | L140: 113825 | M140: 0 | N140: 0 | O140: 0 | P140: 0 | Q140: 6088 | R140: 0 | S140: 0 | T140: 0 | U140: 0 | V140: 0 | W140: 0 | X140: 0 | Y140: 4764 | Z140: 0 | AA140: 11972 | AB140: 0 | AC140: 0 | AD140: 0 | AE140: 0 | AF140: 0 | AG140: 0 | AH140: 0 | AI140: 0 | AJ140: 0 | AK140: 0 | AL140: 0 | AM140: 0 | AN140: 0 | AO140: 0 | AP140: 0 | AQ140: 0 | AR140: 0 | AS140: 0 | AT140: 0 | AU140: 0 | AV140: 2887580 | AW140: 0 | AX140: 5808632
A141: 8J | B141: Terra Academy | C141: 0 | D141: 1805745.69 | E141: 249 | F141: 0 | G141: 282175.35 | H141: 0 | I141: 0 | J141: 0 | K141: 5932.83 | L141: 329251.48 | M141: 0 | N141: 0 | O141: 1256.27 | P141: 0 | Q141: 2340 | R141: 0 | S141: 0 | T141: 0 | U141: 0 | V141: 0 | W141: 0 | X141: 0 | Y141: 7539.22 | Z141: 0 | AA141: 0 | AB141: 473267.16 | AC141: 0 | AD141: 0 | AE141: 0 | AF141: 0 | AG141: 0 | AH141: 0 | AI141: 0 | AJ141: 0 | AK141: 0 | AL141: 0 | AM141: 288904.12 | AN141: 2049.72 | AO141: 0 | AP141: 0 | AQ141: 0 | AR141: 0 | AS141: 0 | AT141: 0 | AU141: 0 | AV141: 0 | AW141: 1655190.41 | AX141: 4853901.25
A142: 8K | B142: American Academy of Innovation | C142: 0 | D142: 1317292.87 | E142: 0 | F142: 0 | G142: 0 | H142: 837307.81 | I142: 21458.35 | J142: 0 | K142: 29433.62 | L142: 36786.49 | M142: 0 | N142: 0 | O142: 3746.48 | P142: 0 | Q142: 0 | R142: 0 | S142: 0 | T142: 0 | U142: 0 | V142: 0 | W142: 0 | X142: 0 | Y142: 52714.11 | Z142: 0 | AA142: 0 | AB142: 238013.63 | AC142: 0 | AD142: 0 | AE142: 0 | AF142: 0 | AG142: 0 | AH142: 0 | AI142: 0 | AJ142: 0 | AK142: 0 | AL142: 0 | AM142: 0 | AN142: 8071.31 | AO142: 0 | AP142: 0 | AQ142: 0 | AR142: 0 | AS142: 0 | AT142: 0 | AU142: 0 | AV142: 0 | AW142: 1947226.57 | AX142: 4492051.24
A143: 8L | B143: Real Salt Lake Academy High School | C143: 0 | D143: 427842 | E143: 0 | F143: 0 | G143: 0 | H143: 0 | I143: 41 | J143: 0 | K143: 104563 | L143: 126911 | M143: 0 | N143: 0 | O143: 0 | P143: 0 | Q143: 3451 | R143: 0 | S143: 0 | T143: 0 | U143: 0 | V143: 0 | W143: 0 | X143: 0 | Y143: 64222 | Z143: 0 | AA143: 0 | AB143: 312027 | AC143: 0 | AD143: 1455 | AE143: 92262 | AF143: 0 | AG143: 0 | AH143: 0 | AI143: 0 | AJ143: 0 | AK143: 3451 | AL143: 0 | AM143: 0 | AN143: 0 | AO143: 0 | AP143: 0 | AQ143: 0 | AR143: 0 | AS143: 0 | AT143: 0 | AU143: 0 | AV143: 0 | AW143: 189391 | AX143: 1325616
A144: 9B | B144: Navigator Pointe Academy | C144: 0 | D144: 919940.52 | E144: 0 | F144: 0 | G144: 0 | H144: 662577.48 | I144: 0 | J144: 0 | K144: 0 | L144: 139809.43 | M144: 0 | N144: 0 | O144: 566.57 | P144: 0 | Q144: 0 | R144: 0 | S144: 0 | T144: 0 | U144: 0 | V144: 0 | W144: 0 | X144: 0 | Y144: 9397.5 | Z144: 0 | AA144: 0 | AB144: 330023.74 | AC144: 0 | AD144: 0 | AE144: 0 | AF144: 0 | AG144: 0 | AH144: 0 | AI144: 0 | AJ144: 0 | AK144: 0 | AL144: 0 | AM144: 0 | AN144: 3604.89 | AO144: 0 | AP144: 0 | AQ144: 0 | AR144: 0 | AS144: 0 | AT144: 0 | AU144: 0 | AV144: 0 | AW144: 1379867.87 | AX144: 3445788
A145: 9C | B145: Paradigm High School | C145: 0 | D145: 1987269.85 | E145: 100 | F145: 0 | G145: 0 | H145: 1591423.52 | I145: 0 | J145: 0 | K145: 5297.12 | L145: 95121.54 | M145: 0 | N145: 0 | O145: 0 | P145: 0 | Q145: 385 | R145: 0 | S145: 0 | T145: 0 | U145: 0 | V145: 0 | W145: 0 | X145: 0 | Y145: 28345.06 | Z145: 0 | AA145: 0 | AB145: 143435.84 | AC145: 0 | AD145: 4680 | AE145: 0 | AF145: 0 | AG145: 0 | AH145: 0 | AI145: 0 | AJ145: 0 | AK145: 0 | AL145: 0 | AM145: 0 | AN145: 9556.5 | AO145: 0 | AP145: 0 | AQ145: 0 | AR145: 0 | AS145: 0 | AT145: 0 | AU145: 0 | AV145: 0 | AW145: 3493579.63 | AX145: 7359194.06
A146: 9D | B146: Canyon Rim Academy | C146: 862300 | D146: 0 | E146: 0 | F146: 0 | G146: 0 | H146: 3186434 | I146: 9033 | J146: 0 | K146: 5150 | L146: 49128 | M146: 0 | N146: 0 | O146: 0 | P146: 0 | Q146: 0 | R146: 0 | S146: 0 | T146: 0 | U146: 108 | V146: 0 | W146: 0 | X146: 0 | Y146: 3873 | Z146: 0 | AA146: 0 | AB146: 194242 | AC146: 0 | AD146: 0 | AE146: 405975 | AF146: 0 | AG146: 3637 | AH146: 0 | AI146: 0 | AJ146: 0 | AK146: 0 | AL146: 0 | AM146: 98447 | AN146: 0 | AO146: 0 | AP146: 0 | AQ146: 343826 | AR146: 0 | AS146: 0 | AT146: 0 | AU146: 0 | AV146: 0 | AW146: 3062153 | AX146: 8224306
A147: 9E | B147: Providence Hall | C147: 0 | D147: 10115493.62 | E147: 366 | F147: 0 | G147: 0 | H147: 8349676.72 | I147: 8637.58 | J147: 0 | K147: 121756.63 | L147: 394301.57 | M147: 0 | N147: 0 | O147: 0 | P147: 0 | Q147: 88696.11 | R147: 0 | S147: 0 | T147: 0 | U147: 0 | V147: 0 | W147: 0 | X147: 0 | Y147: 806661.66 | Z147: 549.74 | AA147: 0 | AB147: 812919.91 | AC147: 0 | AD147: 62211.9 | AE147: 0 | AF147: 0 | AG147: 0 | AH147: 0 | AI147: 0 | AJ147: 0 | AK147: 0 | AL147: 0 | AM147: 402892.34 | AN147: 384739.91 | AO147: 0 | AP147: 0 | AQ147: 0 | AR147: 0 | AS147: 0 | AT147: 0 | AU147: 0 | AV147: 0 | AW147: 16608952.77 | AX147: 38157856.46
A148: 9F | B148: Mountain Heights Academy | C148: 0 | D148: 1905270.49 | E148: 15758.34 | F148: 0 | G148: 0 | H148: 8203981.86 | I148: 0 | J148: 0 | K148: 80801.3 | L148: 94624.46 | M148: 0 | N148: 0 | O148: 2571.38 | P148: 0 | Q148: 11535 | R148: 0 | S148: 0 | T148: 0 | U148: 0 | V148: 0 | W148: 0 | X148: 0 | Y148: 75017.12 | Z148: 0 | AA148: 0 | AB148: 731124.4 | AC148: 0 | AD148: 1000 | AE148: 0 | AF148: 0 | AG148: 0 | AH148: 0 | AI148: 0 | AJ148: 0 | AK148: 0 | AL148: 0 | AM148: 0 | AN148: 0 | AO148: 0 | AP148: 0 | AQ148: 0 | AR148: 0 | AS148: 0 | AT148: 0 | AU148: 0 | AV148: 0 | AW148: 9507401.31 | AX148: 20629085.66
A149: 9I | B149: Utah Career Path High School | C149: 0 | D149: 477425.54 | E149: 1994.69 | F149: 0 | G149: 0 | H149: 1359876.5 | I149: 0 | J149: 0 | K149: 7086.89 | L149: 74463.05 | M149: 0 | N149: 0 | O149: 781.55 | P149: 0 | Q149: 0 | R149: 0 | S149: 0 | T149: 0 | U149: 0 | V149: 0 | W149: 0 | X149: 0 | Y149: 16831.63 | Z149: 0 | AA149: 0 | AB149: 102882.12 | AC149: 0 | AD149: 370 | AE149: 0 | AF149: 0 | AG149: 0 | AH149: 0 | AI149: 0 | AJ149: 0 | AK149: 0 | AL149: 0 | AM149: 0 | AN149: 0 | AO149: 0 | AP149: 0 | AQ149: 0 | AR149: 0 | AS149: 0 | AT149: 0 | AU149: 0 | AV149: 0 | AW149: 1801544.47 | AX149: 3843256.44
A150: 9J | B150: Lumen Scholar Institute | C150: 1756017.94 | D150: 0 | E150: 0 | F150: 0 | G150: 0 | H150: 0 | I150: 0 | J150: 0 | K150: 22588.18 | L150: 345078.4 | M150: 0 | N150: 0 | O150: 7557.88 | P150: 0 | Q150: 12003.32 | R150: 0 | S150: 1953.98 | T150: 0 | U150: 0 | V150: 0 | W150: 0 | X150: 0 | Y150: 46230.25 | Z150: 0 | AA150: 0 | AB150: 260928.51 | AC150: 0 | AD150: 0 | AE150: 0 | AF150: 0 | AG150: 0 | AH150: 0 | AI150: 0 | AJ150: 0 | AK150: 0 | AL150: 0 | AM150: 0 | AN150: 0 | AO150: 0 | AP150: 0 | AQ150: 0 | AR150: 0 | AS150: 0 | AT150: 0 | AU150: 0 | AV150: 0 | AW150: 1838040.94 | AX150: 4290399.4
A151: 9K | B151: St. George Academy | C151: 0 | D151: 1242140 | E151: 0 | F151: 0 | G151: 0 | H151: 694576 | I151: 860 | J151: 0 | K151: 11409 | L151: 53668 | M151: 0 | N151: 0 | O151: 0 | P151: 0 | Q151: 0 | R151: 0 | S151: 0 | T151: 0 | U151: 0 | V151: 0 | W151: 0 | X151: 0 | Y151: 7607 | Z151: 0 | AA151: 0 | AB151: 170780 | AC151: 0 | AD151: 0 | AE151: 76733 | AF151: 0 | AG151: 0 | AH151: 0 | AI151: 0 | AJ151: 0 | AK151: 0 | AL151: 694576 | AM151: 0 | AN151: 0 | AO151: 0 | AP151: 0 | AQ151: 0 | AR151: 0 | AS151: 0 | AT151: 0 | AU151: 0 | AV151: 0 | AW151: 1052957 | AX151: 4005306
A152: A1 | B152: No. UT. Acad. for Math Engineering & Science | C152: 0 | D152: 3470353.18 | E152: 0 | F152: 0 | G152: 0 | H152: 0 | I152: 0 | J152: 0 | K152: 142412.24 | L152: 351275.92 | M152: 0 | N152: 0 | O152: 0 | P152: 0 | Q152: 2000000 | R152: 0 | S152: 0 | T152: 0 | U152: 0 | V152: 0 | W152: 0 | X152: 0 | Y152: 222913.2 | Z152: 0 | AA152: 0 | AB152: 950685.61 | AC152: 0 | AD152: 0 | AE152: 229977.9 | AF152: 0 | AG152: 0 | AH152: 0 | AI152: 0 | AJ152: 0 | AK152: 0 | AL152: 0 | AM152: 0 | AN152: 0 | AO152: 0 | AP152: 0 | AQ152: 0 | AR152: 0 | AS152: 0 | AT152: 0 | AU152: 0 | AV152: 0 | AW152: 4560464.63 | AX152: 11928082.68
A153: A2 | B153: Ranches Academy | C153: 2233093 | D153: 0 | E153: 0 | F153: 0 | G153: 0 | H153: 0 | I153: 0 | J153: 0 | K153: 2002 | L153: 57041 | M153: 0 | N153: 0 | O153: 0 | P153: 0 | Q153: 987 | R153: 0 | S153: 6874 | T153: 0 | U153: 0 | V153: 0 | W153: 0 | X153: 0 | Y153: 7341 | Z153: 0 | AA153: 0 | AB153: 93729 | AC153: 0 | AD153: 0 | AE153: 20681 | AF153: 0 | AG153: 0 | AH153: 0 | AI153: 0 | AJ153: 0 | AK153: 0 | AL153: 0 | AM153: 0 | AN153: 0 | AO153: 0 | AP153: 0 | AQ153: 0 | AR153: 0 | AS153: 0 | AT153: 0 | AU153: 0 | AV153: 0 | AW153: 2178246 | AX153: 4599994
A154: A3 | B154: Davinci Academy | C154: 1140069 | D154: 4167265 | E154: 0 | F154: 0 | G154: 0 | H154: 0 | I154: 117214 | J154: 0 | K154: 138615 | L154: 622652 | M154: 0 | N154: 0 | O154: 0 | P154: 0 | Q154: 9776 | R154: 0 | S154: 0 | T154: 0 | U154: 0 | V154: 0 | W154: 0 | X154: 0 | Y154: 148321 | Z154: 0 | AA154: 811592 | AB154: 0 | AC154: 0 | AD154: 0 | AE154: 0 | AF154: 0 | AG154: 0 | AH154: 0 | AI154: 0 | AJ154: 0 | AK154: 0 | AL154: 0 | AM154: 0 | AN154: 0 | AO154: 0 | AP154: 0 | AQ154: 0 | AR154: 0 | AS154: 0 | AT154: 0 | AU154: 0 | AV154: 5235678 | AW154: 0 | AX154: 12391182
A155: A4 | B155: Summit Academy | C155: 3996883 | D155: 0 | E155: 0 | F155: 0 | G155: 3994854 | H155: 5903358 | I155: 34448 | J155: 0 | K155: 84279 | L155: 258829 | M155: 0 | N155: 0 | O155: 0 | P155: 0 | Q155: 0 | R155: 0 | S155: 0 | T155: 0 | U155: 0 | V155: 0 | W155: 0 | X155: 0 | Y155: 746541 | Z155: 0 | AA155: 0 | AB155: 1963679 | AC155: 0 | AD155: 13145 | AE155: 429221 | AF155: 34358 | AG155: 0 | AH155: 0 | AI155: 0 | AJ155: 0 | AK155: 0 | AL155: 0 | AM155: 0 | AN155: 0 | AO155: 0 | AP155: 0 | AQ155: 0 | AR155: 0 | AS155: 0 | AT155: 0 | AU155: 0 | AV155: 11085707 | AW155: 0 | AX155: 28545302
A156: A5 | B156: Itineris Early College High | C156: 0 | D156: 740158.64 | E156: 0 | F156: 0 | G156: 0 | H156: 1199567.04 | I156: 0 | J156: 0 | K156: 62458.68 | L156: 116819.73 | M156: 0 | N156: 0 | O156: 694.06 | P156: 0 | Q156: 0 | R156: 0 | S156: 0 | T156: 0 | U156: 0 | V156: 0 | W156: 0 | X156: 0 | Y156: 29667.92 | Z156: 0 | AA156: 2269.77 | AB156: 200062.61 | AC156: 0 | AD156: 750 | AE156: 0 | AF156: 0 | AG156: 0 | AH156: 0 | AI156: 0 | AJ156: 0 | AK156: 0 | AL156: 0 | AM156: 0 | AN156: 410878.49 | AO156: 0 | AP156: 0 | AQ156: 0 | AR156: 0 | AS156: 0 | AT156: 0 | AU156: 0 | AV156: 0 | AW156: 1476069.36 | AX156: 4239396.3
A157: A6 | B157: North Davis Preparatory Academy | C157: 0 | D157: 2008969.83 | E157: 3258.6 | F157: 0 | G157: 648462.67 | H157: 1763043.99 | I157: 22.87 | J157: 0 | K157: 27157.7 | L157: 313912.28 | M157: 0 | N157: 0 | O157: 661692.58 | P157: 0 | Q157: 7500 | R157: 0 | S157: 481.5 | T157: 0 | U157: 0 | V157: 0 | W157: 0 | X157: 0 | Y157: 159274.03 | Z157: 0 | AA157: 0 | AB157: 482211.09 | AC157: 0 | AD157: 3600 | AE157: 0 | AF157: 0 | AG157: 0 | AH157: 0 | AI157: 0 | AJ157: 0 | AK157: 0 | AL157: 0 | AM157: 0 | AN157: 0 | AO157: 0 | AP157: 0 | AQ157: 0 | AR157: 0 | AS157: 0 | AT157: 0 | AU157: 0 | AV157: 0 | AW157: 4789416.9 | AX157: 10869004.04
A158: A7 | B158: Moab Charter School | C158: 0 | D158: 185292 | E158: 0 | F158: 0 | G158: 0 | H158: 31005 | I158: 60148 | J158: 0 | K158: 1029 | L158: 86962 | M158: 0 | N158: 0 | O158: 0 | P158: 0 | Q158: 1925 | R158: 0 | S158: 0 | T158: 0 | U158: 0 | V158: 0 | W158: 0 | X158: 0 | Y158: 33173 | Z158: 0 | AA158: 95541 | AB158: 0 | AC158: 0 | AD158: 0 | AE158: 0 | AF158: 0 | AG158: 0 | AH158: 0 | AI158: 0 | AJ158: 0 | AK158: 0 | AL158: 0 | AM158: 0 | AN158: 0 | AO158: 0 | AP158: 0 | AQ158: 0 | AR158: 0 | AS158: 0 | AT158: 0 | AU158: 0 | AV158: 237647 | AW158: 0 | AX158: 732722
A159: A8 | B159: East Hollywood High | C159: 0 | D159: 664895 | E159: 0 | F159: 0 | G159: 0 | H159: 0 | I159: 8879 | J159: 0 | K159: 1722 | L159: 179428 | M159: 0 | N159: 0 | O159: 0 | P159: 0 | Q159: 1535 | R159: 0 | S159: 0 | T159: 0 | U159: 0 | V159: 0 | W159: 0 | X159: 0 | Y159: 62972 | Z159: 0 | AA159: 0 | AB159: 246108 | AC159: 0 | AD159: 0 | AE159: 15387 | AF159: 0 | AG159: 0 | AH159: 0 | AI159: 0 | AJ159: 0 | AK159: 1535 | AL159: 0 | AM159: 18144 | AN159: 0 | AO159: 0 | AP159: 0 | AQ159: 0 | AR159: 0 | AS159: 0 | AT159: 0 | AU159: 0 | AV159: 0 | AW159: 512313 | AX159: 1712918
A160: A9 | B160: Success Academy | C160: 0 | D160: 60362.81 | E160: 0 | F160: 0 | G160: 0 | H160: 5057353.31 | I160: 9100 | J160: 0 | K160: 48410.39 | L160: 189843.06 | M160: 0 | N160: 0 | O160: 0 | P160: 0 | Q160: 0 | R160: 0 | S160: 0 | T160: 0 | U160: 0 | V160: 0 | W160: 0 | X160: 0 | Y160: 30977.47 | Z160: 0 | AA160: 0 | AB160: 387053.87 | AC160: 0 | AD160: 0 | AE160: 0 | AF160: 0 | AG160: 0 | AH160: 0 | AI160: 0 | AJ160: 0 | AK160: 0 | AL160: 0 | AM160: 0 | AN160: 0 | AO160: 0 | AP160: 0 | AQ160: 497866.29 | AR160: 0 | AS160: 0 | AT160: 0 | AU160: 0 | AV160: 0 | AW160: 4449171.94 | AX160: 10730139.14
A161: Grand Total | C161: 174490632.5 | D161: 360084159.2 | E161: 290619.35 | F161: 108347.25 | G161: 60595927.61 | H161: 1599859309 | I161: 118702465.8 | J161: 1619151705 | K161: 50481740.51 | L161: 324270653.2 | M161: 159556.26 | N161: 27969994.22 | O161: 1554305.92 | P161: 21100999.64 | Q161: 10018554.05 | R161: 1441134.42 | S161: 404813.4 | T161: 11091242.12 | U161: 108 | V161: 225156 | W161: 196268.28 | X161: 8039.52 | Y161: 66078680.18 | Z161: 1137.09 | AA161: 64098822.41 | AB161: 510294673.2 | AC161: 195621.15 | AD161: 379088131.7 | AE161: 159029013.3 | AF161: 8098486.12 | AG161: 1771637.68 | AH161: 164969.92 | AI161: 1347770500 | AJ161: 27884117.94 | AK161: 33721743.55 | AL161: 32704958 | AM161: 4597819.06 | AN161: 4579257.81 | AO161: 171202.92 | AP161: 2323535.64 | AQ161: 17762921.18 | AR161: 193142406.8 | AS161: 23138563.68 | AT161: 165598640.9 | AU161: 20674856.26 | AV161: 505268200.1 | AW161: 814029753.4 | AX161: 8764395382

Sheet 10 Gen Fund Final
A1: Balance Sheet for Fiscal Year: 2022
A2: 10 General Fund
B4: Balance Sheet Code | C4: 8110 | D4: 8120 | E4: 8131 | F4: 8132 | G4: 8133 | H4: 8134 | I4: 8135 | J4: 8136 | K4: 8139 | L4: 8140 | M4: 8150 | N4: 8160 | O4: 8190 | P4: 8290 | Q4: 8320 | R4: 8330 | S4: 8450 | U4: 9505 | V4: 9510 | W4: 9520 | X4: 9530 | Y4: 9540 | Z4: 9550 | AA4: 9561 | AB4: 9563 | AC4: 9564 | AD4: 9590 | AE4: 9630 | AF4: 9750 | AG4: 9765 | AI4: 9860 | AJ4: 9870 | AK4: 9872 | AL4: 9873 | AM4: 9874 | AN4: 9878 | AO4: 9879 | AP4: 9880 | AQ4: 9881 | AR4: 9882 | AS4: 9889 | AT4: 9890 | AU4: 9899
A5: LEA ID | B5: LEA | C5: Cash | D5: Investments | E5: Local | F5: Local Property Taxes | G5: State | H5: Federal | I5: Due From Other Funds | J5: Lease Receivables | K5: Other Receivables | L5: Inventories | M5: Prepaid Expenditures | N5: Net Pension Asset | O5: Other Current Assets | P5: Other Fixed Assets | Q5: Lease- Building | R5: Lease- Equipment | S5: Deferred Outflows of Resources | T5: Total Assets and Other Debits | U5: Negative Cash Balance | V5: Accounts Payable | W5: Notes Payable | X5: Accrued Liabilities | Y5: Accrued Salaries and Withholdings | Z5: Due to Other Funds | AA5: Unearned Revenue- Local | AB5: Unearned Revenue- State | AC5: Unearned Revenue- Federal | AD5: Other Current Liabilities | AE5: Lease Liabilities | AF5: Deferred Inflows of Resources | AG5: Deferred Inflows of Resources - Leases | AH5: TOTAL LIABILITIES & OTHER CREDITS | AI5: Non-Spendable - Inventories & Prepaid Expenditures | AJ5: Restricted - Debt Service | AK5: Restricted – Food Service | AL5: Restricted – Student Activities | AM5: Restricted – Non K-12 | AN5: Restricted – Reading Levy | AO5: Restricted -- Other | AP5: Committed – Economic Stabilization | AQ5: Committed – Contracts | AR5: Committed – Employee Obligations | AS5: Committed – Other | AT5: Assigned – Unrestricted Programs | AU5: Unassigned Fund Balance | AV5: Total Fund Balances | AW5: Total Liabilities & Other Credits2 | AX5: Total Assets
A6: 1 | B6: Alpine District | C6: -47949 | D6: 182783583 | E6: 2129567 | F6: 174378580 | G6: 4587327 | H6: 37484373 | I6: 0 | J6: 0 | K6: 0 | L6: 0 | M6: 7851 | N6: 0 | O6: 0 | P6: 0 | Q6: 0 | R6: 0 | S6: 0 | T6: =SUM(C6:S6) -> 401323332 | U6: 0 | V6: 6193370 | W6: 0 | X6: 0 | Y6: 86886670 | Z6: 0 | AA6: 617932 | AB6: 27398944 | AC6: 137 | AD6: 8658 | AE6: 0 | AF6: 173767178 | AG6: 0 | AH6: =SUM(U6:AG6) -> 294872889 | AI6: 0 | AJ6: 0 | AK6: 0 | AL6: 0 | AM6: 0 | AN6: 0 | AO6: 0 | AP6: 38134095 | AQ6: 2378466 | AR6: 3891476 | AS6: 0 | AT6: 48447104 | AU6: 13599302 | AV6: =SUM(AI6:AU6) -> 106450443 | AW6: =AH6 -> 294872889 | AX6: =T6 -> 401323332
A7: 2 | B7: Beaver District | C7: -3495198.85 | D7: 14009702.03 | E7: 2461.5 | F7: 7723968.36 | G7: 238859 | H7: 1061811.8 | I7: 3750 | J7: 370591.89 | K7: 0 | L7: 0 | M7: 13234.35 | N7: 0 | O7: 0 | P7: 0 | Q7: 0 | R7: 0 | S7: 0 | T7: =SUM(C7:S7) -> 19929180.08 | U7: 0 | V7: 256434.8 | W7: 0 | X7: 0 | Y7: 2019454.98 | Z7: 100 | AA7: 0 | AB7: 1356743.05 | AC7: 65847.58 | AD7: 0 | AE7: 0 | AF7: 7660717.39 | AG7: 370591.89 | AH7: =SUM(U7:AG7) -> 11729889.69 | AI7: 13234.35 | AJ7: 0 | AK7: 0 | AL7: 0 | AM7: 0 | AN7: 0 | AO7: 0 | AP7: 890025 | AQ7: 0 | AR7: 711466.67 | AS7: 2514268.37 | AT7: 196087 | AU7: 3874209 | AV7: =SUM(AI7:AU7) -> 8199290.39 | AW7: =AH7 -> 11729889.69 | AX7: =T7 -> 19929180.08
A8: 3 | B8: Box Elder District | C8: 1495715.32 | D8: 22640664.43 | E8: 85098.08 | F8: 28050957 | G8: 487918.2 | H8: 2871828.6 | I8: 0 | J8: 0 | K8: 0 | L8: 0 | M8: 10000 | N8: 0 | O8: 0 | P8: 0 | Q8: 0 | R8: 0 | S8: 0 | T8: 55642181.63 | U8: 0 | V8: 425157.31 | W8: 0 | X8: 0 | Y8: 7245399.27 | Z8: 0 | AA8: 0 | AB8: 3327615.31 | AC8: 0 | AD8: 0 | AE8: 0 | AF8: 27194582 | AG8: 0 | AH8: 38192753.89 | AI8: 0 | AJ8: 0 | AK8: 0 | AL8: 0 | AM8: 0 | AN8: 0 | AO8: 0 | AP8: 0 | AQ8: 0 | AR8: 0 | AS8: 0 | AT8: 15807297.27 | AU8: 1642130.47 | AV8: 17449427.74 | AW8: 38192753.89 | AX8: 55642181.63
A9: 4 | B9: Cache District | C9: 12300757.94 | D9: 4655079.53 | E9: 929393.85 | F9: 32393752.63 | G9: 686026.92 | H9: 4257459.28 | I9: 0 | J9: 0 | K9: 0 | L9: 141932.56 | M9: 0 | N9: 0 | O9: 0 | P9: 0 | Q9: 0 | R9: 0 | S9: 0 | T9: 55364402.71 | U9: 0 | V9: 1720751.7 | W9: 0 | X9: 0 | Y9: 652658 | Z9: 0 | AA9: 4832.6 | AB9: 5807175.35 | AC9: 271194.59 | AD9: 16.83 | AE9: 0 | AF9: 31881828 | AG9: 0 | AH9: 40338457.07 | AI9: 141932.56 | AJ9: 0 | AK9: 0 | AL9: 0 | AM9: 0 | AN9: 0 | AO9: 0 | AP9: 5500000 | AQ9: 0 | AR9: 0 | AS9: 0 | AT9: 3832117 | AU9: 5551896.09 | AV9: 15025945.65 | AW9: 40338457.07 | AX9: 55364402.71
A10: 5 | B10: Carbon District | C10: 2684346.12 | D10: 7449672.48 | E10: 0 | F10: 10473096.05 | G10: 3566414.46 | H10: 0 | I10: 0 | J10: 0 | K10: 0 | L10: 343981.59 | M10: 112793.93 | N10: 0 | O10: 0 | P10: 0 | Q10: 0 | R10: 0 | S10: 0 | T10: 24630304.63 | U10: 0 | V10: 676779.21 | W10: 0 | X10: 1681276.82 | Y10: 1718593.7 | Z10: 0 | AA10: 9961659 | AB10: 221000.43 | AC10: 0 | AD10: 0 | AE10: 0 | AF10: 0 | AG10: 0 | AH10: 14259309.16 | AI10: 300994.91 | AJ10: 0 | AK10: 0 | AL10: 0 | AM10: 0 | AN10: 0 | AO10: 0 | AP10: 300000 | AQ10: 0 | AR10: 3500000 | AS10: 0 | AT10: 0 | AU10: 6270000.56 | AV10: 10370995.47 | AW10: 14259309.16 | AX10: 24630304.63
A11: 6 | B11: Daggett District | C11: 2493076 | D11: 0 | E11: 0 | F11: 1412632 | G11: 3905 | H11: 63303 | I11: 0 | J11: 0 | K11: 0 | L11: 0 | M11: 0 | N11: 0 | O11: 0 | P11: 0 | Q11: 0 | R11: 0 | S11: 0 | T11: 3972916 | U11: 0 | V11: 81628 | W11: 0 | X11: 170850 | Y11: 175525 | Z11: 0 | AA11: 0 | AB11: 212316 | AC11: 61363 | AD11: 0 | AE11: 0 | AF11: 1371403 | AG11: 0 | AH11: 2073085 | AI11: 0 | AJ11: 0 | AK11: 0 | AL11: 0 | AM11: 0 | AN11: 0 | AO11: 0 | AP11: 235173 | AQ11: 0 | AR11: 186637 | AS11: 0 | AT11: 0 | AU11: 1478021 | AV11: 1899831 | AW11: 2073085 | AX11: 3972916
A12: 7 | B12: Davis District | C12: 28184533.18 | D12: 119403884.1 | E12: 0 | F12: 169688169.5 | G12: 4728450.33 | H12: 30941618.68 | I12: 0 | J12: 5587072.19 | K12: 0 | L12: 6978683.68 | M12: 0 | N12: 0 | O12: 0 | P12: 0 | Q12: 0 | R12: 0 | S12: 0 | T12: 365512411.7 | U12: 0 | V12: 3244154.55 | W12: 0 | X12: 28650464.45 | Y12: 29700456.61 | Z12: 0 | AA12: 0 | AB12: 10619139.99 | AC12: 0 | AD12: 0 | AE12: 0 | AF12: 164547641.1 | AG12: 5587072.19 | AH12: 242348928.9 | AI12: 6978684 | AJ12: 0 | AK12: 0 | AL12: 0 | AM12: 0 | AN12: 0 | AO12: 0 | AP12: 0 | AQ12: 0 | AR12: 43000000 | AS12: 0 | AT12: 25625000 | AU12: 47559798.77 | AV12: 123163482.8 | AW12: 242348928.9 | AX12: 365512411.7
A13: 8 | B13: Duchesne District | C13: 1481124.41 | D13: 13302286.47 | E13: 13413.21 | F13: 13706131.16 | G13: 405521.02 | H13: 2182916.02 | I13: 0 | J13: 0 | K13: 3329.34 | L13: 0 | M13: 0 | N13: 0 | O13: 0 | P13: 0 | Q13: 0 | R13: 0 | S13: 0 | T13: 31094721.63 | U13: 0 | V13: 644948.72 | W13: 0 | X13: 0 | Y13: 4794334.3 | Z13: 0 | AA13: 0 | AB13: 814356.76 | AC13: 0 | AD13: 0 | AE13: 0 | AF13: 13648575 | AG13: 0 | AH13: 19902214.78 | AI13: 0 | AJ13: 0 | AK13: 0 | AL13: 0 | AM13: 0 | AN13: 0 | AO13: 0 | AP13: 2735000 | AQ13: 0 | AR13: 1185884 | AS13: 375000 | AT13: 2257007.18 | AU13: 4639615.85 | AV13: 11192507.03 | AW13: 19902214.78 | AX13: 31094721.63
A14: 9 | B14: Emery District | C14: 12621625 | D14: 0 | E14: 167927 | F14: 11783914 | G14: 41799 | H14: 826477 | I14: 0 | J14: 0 | K14: 0 | L14: 43732 | M14: 0 | N14: 0 | O14: 0 | P14: 0 | Q14: 0 | R14: 0 | S14: 0 | T14: 25485474 | U14: 0 | V14: 242275 | W14: 0 | X14: 1330488 | Y14: 1218507 | Z14: 0 | AA14: 89278 | AB14: 1217822 | AC14: 114448 | AD14: 0 | AE14: 0 | AF14: 11678943 | AG14: 0 | AH14: 15891761 | AI14: 43732 | AJ14: 0 | AK14: 0 | AL14: 0 | AM14: 0 | AN14: 0 | AO14: 0 | AP14: 0 | AQ14: 0 | AR14: 0 | AS14: 1000000 | AT14: 604453 | AU14: 7945528 | AV14: 9593713 | AW14: 15891761 | AX14: 25485474
A15: 10 | B15: Garfield District | C15: 5229375 | D15: 8858277 | E15: 14455 | F15: 3186863 | G15: 199624 | H15: 1002837 | I15: 0 | J15: 0 | K15: 2979 | L15: 0 | M15: 0 | N15: 0 | O15: 0 | P15: 0 | Q15: 0 | R15: 0 | S15: 0 | T15: 18494410 | U15: 0 | V15: 564957 | W15: 0 | X15: 620808 | Y15: 743141 | Z15: 0 | AA15: 0 | AB15: 1783838 | AC15: 10048 | AD15: 0 | AE15: 0 | AF15: 3107448 | AG15: 0 | AH15: 6830240 | AI15: 4766504 | AJ15: 0 | AK15: 0 | AL15: 0 | AM15: 0 | AN15: 0 | AO15: 0 | AP15: 775393 | AQ15: 0 | AR15: 148682 | AS15: 0 | AT15: 2000000 | AU15: 3973591 | AV15: 11664170 | AW15: 6830240 | AX15: 18494410
A16: 11 | B16: Grand District | C16: 488374.74 | D16: 9222609.24 | E16: 24427.59 | F16: 12351587.08 | G16: 24361.83 | H16: 662305.78 | I16: 0 | J16: 0 | K16: 0 | L16: 0 | M16: 0 | N16: 0 | O16: 0 | P16: 0 | Q16: 0 | R16: 0 | S16: 0 | T16: 22773666.26 | U16: 0 | V16: 221375.98 | W16: 0 | X16: 0 | Y16: 1701443.53 | Z16: 1895.1 | AA16: 0 | AB16: 242778.85 | AC16: 0 | AD16: 10437.61 | AE16: 0 | AF16: 12268328 | AG16: 0 | AH16: 14446259.07 | AI16: 0 | AJ16: 0 | AK16: 0 | AL16: 0 | AM16: 0 | AN16: 0 | AO16: 11908 | AP16: 1138832 | AQ16: 0 | AR16: 455450 | AS16: 0 | AT16: 777257.31 | AU16: 5943959.88 | AV16: 8327407.19 | AW16: 14446259.07 | AX16: 22773666.26
A17: 12 | B17: Granite District | C17: 4744780.69 | D17: 170419470.7 | E17: 1583334.16 | F17: 178830089 | G17: 1169605.32 | H17: 34133219.28 | I17: 0 | J17: 183852.57 | K17: -8453.98 | L17: 4190596.81 | M17: 3231663.53 | N17: 0 | O17: 0 | P17: 0 | Q17: 0 | R17: 0 | S17: 0 | T17: 398478158.1 | U17: 0 | V17: 1424360.28 | W17: 0 | X17: 0 | Y17: 50025763.06 | Z17: 0 | AA17: 2120682.98 | AB17: 17715170.07 | AC17: 842061.87 | AD17: 339958 | AE17: 0 | AF17: 180256520 | AG17: 184605.7 | AH17: 252909122 | AI17: 7422260.34 | AJ17: 0 | AK17: 0 | AL17: 0 | AM17: 0 | AN17: 0 | AO17: 0 | AP17: 34657913 | AQ17: 4909872.47 | AR17: 40486327.13 | AS17: 0 | AT17: 49552257.77 | AU17: 8540405.4 | AV17: 145569036.1 | AW17: 252909122 | AX17: 398478158.1
A18: 13 | B18: Iron District | C18: 7713.32 | D18: 29825487.24 | E18: 23677.49 | F18: 20550019.42 | G18: 1676215.48 | H18: 3377576.29 | I18: 0 | J18: 0 | K18: 0 | L18: 379450.22 | M18: 0 | N18: 0 | O18: 0 | P18: 0 | Q18: 0 | R18: 0 | S18: 0 | T18: 55840139.46 | U18: 0 | V18: 660474.14 | W18: 0 | X18: 4418937.83 | Y18: 4323137.56 | Z18: 0 | AA18: 0 | AB18: 0 | AC18: 0 | AD18: 0 | AE18: 0 | AF18: 20329367 | AG18: 0 | AH18: 29731916.53 | AI18: 379450.22 | AJ18: 0 | AK18: 0 | AL18: 0 | AM18: 0 | AN18: 0 | AO18: 4446620.42 | AP18: 2400000 | AQ18: 0 | AR18: 0 | AS18: 0 | AT18: 9900000 | AU18: 8982152.29 | AV18: 26108222.93 | AW18: 29731916.53 | AX18: 55840139.46
A19: 14 | B19: Jordan District | C19: 20915231.43 | D19: 166146923.1 | E19: 809696.46 | F19: 161971618.8 | G19: 3558758.46 | H19: 12600669.22 | I19: 0 | J19: 5608850 | K19: 0 | L19: 1214094.32 | M19: 0 | N19: 0 | O19: 0 | P19: 0 | Q19: 0 | R19: 0 | S19: 0 | T19: 372825841.8 | U19: 0 | V19: 3357581.09 | W19: 0 | X19: 0 | Y19: 56265778.4 | Z19: 0 | AA19: 0 | AB19: 19439870.81 | AC19: 0 | AD19: 0 | AE19: 0 | AF19: 162348132.8 | AG19: 5608850 | AH19: 247020213.1 | AI19: 1214094.32 | AJ19: 0 | AK19: 0 | AL19: 0 | AM19: 0 | AN19: 2163806.99 | AO19: 0 | AP19: 27100000 | AQ19: 11983489.13 | AR19: 30446041.96 | AS19: 1897791.03 | AT19: 44272943.23 | AU19: 6727462.12 | AV19: 125805628.8 | AW19: 247020213.1 | AX19: 372825841.8
A20: 15 | B20: Juab District | C20: 3787010.9 | D20: 24555.82 | E20: 0 | F20: 6783967.75 | G20: 767896.42 | H20: 2657065.94 | I20: 0 | J20: 0 | K20: 0 | L20: 0 | M20: 93352 | N20: 0 | O20: 0 | P20: 0 | Q20: 0 | R20: 0 | S20: 0 | T20: 14113848.83 | U20: 0 | V20: 1482165.71 | W20: 0 | X20: 0 | Y20: 2190026.83 | Z20: 0 | AA20: 0 | AB20: 1252011.74 | AC20: 0 | AD20: 0 | AE20: 0 | AF20: 6736985 | AG20: 0 | AH20: 11661189.28 | AI20: 93352 | AJ20: 0 | AK20: 0 | AL20: 0 | AM20: 0 | AN20: 0 | AO20: 0 | AP20: 1376250.45 | AQ20: 0 | AR20: 0 | AS20: 0 | AT20: 168418.71 | AU20: 814638.39 | AV20: 2452659.55 | AW20: 11661189.28 | AX20: 14113848.83
A21: 16 | B21: Kane District | C21: 1335047.3 | D21: 10977616.38 | E21: 59018.89 | F21: 7905372 | G21: 326484 | H21: 1120681.15 | I21: 0 | J21: 0 | K21: 0 | L21: 0 | M21: 0 | N21: 0 | O21: 0 | P21: 0 | Q21: 0 | R21: 0 | S21: 0 | T21: 21724219.72 | U21: 0 | V21: 114910 | W21: 0 | X21: 0 | Y21: 1607073 | Z21: 0 | AA21: 0 | AB21: 620135 | AC21: 81263 | AD21: 0 | AE21: 0 | AF21: 7808979 | AG21: 0 | AH21: 10232360 | AI21: 0 | AJ21: 0 | AK21: 0 | AL21: 0 | AM21: 0 | AN21: 0 | AO21: 100548 | AP21: 0 | AQ21: 0 | AR21: 278246 | AS21: 0 | AT21: 4988021 | AU21: 6125045 | AV21: 11491860 | AW21: 10232360 | AX21: 21724219.72
A22: 17 | B22: Millard District | C22: 5348580.8 | D22: 0 | E22: 0 | F22: 13910480.95 | G22: 188704.59 | H22: 1649345.3 | I22: 0 | J22: 0 | K22: 0 | L22: 0 | M22: 0 | N22: 0 | O22: 0 | P22: 0 | Q22: 0 | R22: 0 | S22: 0 | T22: 21097111.64 | U22: 0 | V22: 1 | W22: 0 | X22: 0 | Y22: 446685.09 | Z22: 0 | AA22: 0 | AB22: 352474.08 | AC22: 71031.44 | AD22: 0 | AE22: 0 | AF22: 15864538.9 | AG22: 0 | AH22: 16734730.51 | AI22: 0 | AJ22: 0 | AK22: 0 | AL22: 0 | AM22: 145253.14 | AN22: 0 | AO22: 0 | AP22: 0 | AQ22: 0 | AR22: 300000 | AS22: 200000 | AT22: 60705.65 | AU22: 3656422.34 | AV22: 4362381.13 | AW22: 16734730.51 | AX22: 21097111.64
A23: 18 | B23: Morgan District | C23: -1548978.22 | D23: 15769780.04 | E23: 54973.29 | F23: 6403392.73 | G23: 0 | H23: 930847.63 | I23: 0 | J23: 0 | K23: 0 | L23: 0 | M23: 3291 | N23: 0 | O23: 0 | P23: 0 | Q23: 0 | R23: 0 | S23: 0 | T23: 21613306.47 | U23: 0 | V23: 277402.55 | W23: 0 | X23: 0 | Y23: 2300838.84 | Z23: 0 | AA23: 6326256 | AB23: 0 | AC23: 0 | AD23: 0 | AE23: 0 | AF23: 0 | AG23: 0 | AH23: 8904497.39 | AI23: 0 | AJ23: 0 | AK23: 0 | AL23: 0 | AM23: 0 | AN23: 0 | AO23: 0 | AP23: 0 | AQ23: 0 | AR23: 0 | AS23: 0 | AT23: 0 | AU23: 12708809.19 | AV23: 12708809.19 | AW23: 8904497.39 | AX23: 21613306.47
A24: 19 | B24: Nebo District | C24: -54595890.15 | D24: 155538696.4 | E24: 218147.22 | F24: 67600639.72 | G24: 1789789.68 | H24: 14775702.92 | I24: 0 | J24: 0 | K24: 800 | L24: 851033.51 | M24: 192370 | N24: 0 | O24: 0 | P24: 0 | Q24: 0 | R24: 0 | S24: 0 | T24: 186371289.3 | U24: 0 | V24: 486961.21 | W24: 0 | X24: 0 | Y24: 10885289.03 | Z24: 0 | AA24: 1317618.04 | AB24: 15070937.77 | AC24: 166070.07 | AD24: 1345863.61 | AE24: 0 | AF24: 67118103.72 | AG24: 0 | AH24: 96390843.45 | AI24: 851033.51 | AJ24: 0 | AK24: 0 | AL24: 0 | AM24: 0 | AN24: 0 | AO24: 0 | AP24: 15000000 | AQ24: 0 | AR24: 0 | AS24: 0 | AT24: 47142330.29 | AU24: 26987082.1 | AV24: 89980445.9 | AW24: 96390843.45 | AX24: 186371289.3
A25: 20 | B25: North Sanpete District | C25: 6859979.24 | D25: 0 | E25: 272609.95 | F25: 4750038 | G25: 190393.44 | H25: 2110045.77 | I25: 0 | J25: 0 | K25: 0 | L25: 0 | M25: 103983 | N25: 0 | O25: 209973.9 | P25: 0 | Q25: 0 | R25: 0 | S25: 0 | T25: 14497023.3 | U25: 0 | V25: 186411.1 | W25: 0 | X25: 1415925.58 | Y25: 1492662.39 | Z25: 0 | AA25: 0 | AB25: 1383875.03 | AC25: 0 | AD25: 0 | AE25: 0 | AF25: 4750038 | AG25: 0 | AH25: 9228912.1 | AI25: 0 | AJ25: 0 | AK25: 0 | AL25: 0 | AM25: 0 | AN25: 0 | AO25: 0 | AP25: 1250000 | AQ25: 0 | AR25: 0 | AS25: 0 | AT25: 2495697.32 | AU25: 1522413.88 | AV25: 5268111.2 | AW25: 9228912.1 | AX25: 14497023.3
A26: 21 | B26: North Summit District | C26: 3084877.46 | D26: 1229452.92 | E26: 0 | F26: 8842168.26 | G26: 853276.6 | H26: 0 | I26: 0 | J26: 0 | K26: 0 | L26: 0 | M26: 0 | N26: 0 | O26: 0 | P26: 0 | Q26: 0 | R26: 0 | S26: 0 | T26: 14009775.24 | U26: 0 | V26: 0 | W26: 0 | X26: 0 | Y26: 1384495.22 | Z26: 0 | AA26: 0 | AB26: 0 | AC26: 0 | AD26: 0 | AE26: 0 | AF26: 8762298 | AG26: 0 | AH26: 10146793.22 | AI26: 0 | AJ26: 0 | AK26: 0 | AL26: 0 | AM26: 0 | AN26: 0 | AO26: 897097 | AP26: 0 | AQ26: 0 | AR26: 0 | AS26: 0 | AT26: 0 | AU26: 2965885.01 | AV26: 3862982.01 | AW26: 10146793.22 | AX26: 14009775.24
A27: 22 | B27: Park City District | C27: 5525184 | D27: 30837570 | E27: 94852175 | F27: 0 | G27: 187662 | H27: 1132264 | I27: 0 | J27: 0 | K27: 0 | L27: 0 | M27: 6803 | N27: 0 | O27: 0 | P27: 0 | Q27: 0 | R27: 0 | S27: 0 | T27: 132541658 | U27: 0 | V27: 529409 | W27: 0 | X27: 5498900 | Y27: 2004782 | Z27: 194228 | AA27: 93779972 | AB27: 619490 | AC27: 0 | AD27: 0 | AE27: 0 | AF27: 0 | AG27: 0 | AH27: 102626781 | AI27: 6803 | AJ27: 0 | AK27: 0 | AL27: 0 | AM27: 0 | AN27: 0 | AO27: 0 | AP27: 4052675 | AQ27: 0 | AR27: 1596943 | AS27: 0 | AT27: 980000 | AU27: 23278456 | AV27: 29914877 | AW27: 102626781 | AX27: 132541658
A28: 23 | B28: Piute District | C28: 1387842.8 | D28: 1179663.39 | E28: 9471.18 | F28: 661087.34 | G28: 61799.62 | H28: 516895.73 | I28: 0 | J28: 0 | K28: 0 | L28: 0 | M28: 0 | N28: 0 | O28: 0 | P28: 0 | Q28: 0 | R28: 0 | S28: 0 | T28: 3816760.06 | U28: 0 | V28: 501079.69 | W28: 0 | X28: 0 | Y28: 249971.76 | Z28: 0 | AA28: 660305.56 | AB28: 0 | AC28: 0 | AD28: 0 | AE28: 0 | AF28: 0 | AG28: 0 | AH28: 1411357.01 | AI28: 0 | AJ28: 0 | AK28: 0 | AL28: 0 | AM28: 0 | AN28: 0 | AO28: 0 | AP28: 175000 | AQ28: 0 | AR28: 0 | AS28: 0 | AT28: 487364 | AU28: 1743039 | AV28: 2405403 | AW28: 1411357.01 | AX28: 3816760.06
A29: 24 | B29: Rich District | C29: 78564.59 | D29: 6652715.04 | E29: 1270369.49 | F29: 4519528.61 | G29: 0 | H29: 0 | I29: 0 | J29: 0 | K29: 0 | L29: 0 | M29: 0 | N29: 0 | O29: 0 | P29: 0 | Q29: 0 | R29: 0 | S29: 0 | T29: 12521177.73 | U29: 0 | V29: 5898.63 | W29: 0 | X29: 0 | Y29: 870048.63 | Z29: 0 | AA29: 4787429 | AB29: 289290.36 | AC29: 0 | AD29: 0 | AE29: 0 | AF29: 0 | AG29: 0 | AH29: 5952666.62 | AI29: 0 | AJ29: 0 | AK29: 0 | AL29: 0 | AM29: 0 | AN29: 0 | AO29: 0 | AP29: 330000 | AQ29: 0 | AR29: 826945 | AS29: 0 | AT29: 0 | AU29: 5411566.18 | AV29: 6568511.18 | AW29: 5952666.62 | AX29: 12521177.73
A30: 25 | B30: San Juan District | C30: 25038056.79 | D30: 0 | E30: 236904.75 | F30: 3578244.78 | G30: 151106.44 | H30: 1540611.79 | I30: 0 | J30: 0 | K30: 0 | L30: 0 | M30: 19774.82 | N30: 0 | O30: 0 | P30: 0 | Q30: 0 | R30: 0 | S30: 0 | T30: 30564699.37 | U30: 0 | V30: 950858.17 | W30: 0 | X30: 1683079.26 | Y30: 853481.5 | Z30: 0 | AA30: 4276274.64 | AB30: 4868649.89 | AC30: 0 | AD30: 0 | AE30: 0 | AF30: 0 | AG30: 0 | AH30: 12632343.46 | AI30: 2216300 | AJ30: 0 | AK30: 0 | AL30: 0 | AM30: 0 | AN30: 0 | AO30: 0 | AP30: 1915010.34 | AQ30: 0 | AR30: 0 | AS30: 0 | AT30: 13801044.91 | AU30: 0 | AV30: 17932355.25 | AW30: 12632343.46 | AX30: 30564699.37
A31: 26 | B31: Sevier District | C31: 46195522.2 | D31: 0 | E31: 94412.62 | F31: 9051505.29 | G31: 850084.98 | H31: 4041123.85 | I31: 0 | J31: 0 | K31: 0 | L31: 0 | M31: 0 | N31: 0 | O31: 0 | P31: 0 | Q31: 0 | R31: 0 | S31: 0 | T31: 60232648.94 | U31: 0 | V31: 2187440.13 | W31: 0 | X31: 0 | Y31: 3676409.74 | Z31: 0 | AA31: 197983.38 | AB31: 3426193.07 | AC31: 1783436.43 | AD31: 0 | AE31: 0 | AF31: 8945067 | AG31: 0 | AH31: 20216529.75 | AI31: 0 | AJ31: 0 | AK31: 0 | AL31: 0 | AM31: 0 | AN31: 0 | AO31: 0 | AP31: 3750000 | AQ31: 0 | AR31: 0 | AS31: 2665360 | AT31: 18065030 | AU31: 15535729 | AV31: 40016119 | AW31: 20216529.75 | AX31: 60232648.94
A32: 27 | B32: South Sanpete District | C32: -4286429.9 | D32: 21506125.62 | E32: 4286730.99 | F32: 0 | G32: 537311.61 | H32: 307019.83 | I32: 0 | J32: 0 | K32: 0 | L32: 0 | M32: 0 | N32: 0 | O32: 0 | P32: 0 | Q32: 0 | R32: 0 | S32: 0 | T32: 22350758.15 | U32: 0 | V32: 964054.7 | W32: 0 | X32: 1445563.86 | Y32: 1461049.78 | Z32: 0 | AA32: 0 | AB32: 0 | AC32: 0 | AD32: 0 | AE32: 0 | AF32: 3970171 | AG32: 0 | AH32: 7840839.34 | AI32: 0 | AJ32: 0 | AK32: 0 | AL32: 0 | AM32: 0 | AN32: 0 | AO32: 0 | AP32: 0 | AQ32: 0 | AR32: 0 | AS32: 0 | AT32: 1500000 | AU32: 13009918.81 | AV32: 14509918.81 | AW32: 7840839.34 | AX32: 22350758.15
A33: 28 | B33: South Summit District | C33: 435784.46 | D33: 17126138.26 | E33: 6118.29 | F33: 15389823.23 | G33: 109117.45 | H33: 167877.9 | I33: 0 | J33: 0 | K33: 0 | L33: 33574.8 | M33: 19.6 | N33: 0 | O33: 0 | P33: 0 | Q33: 0 | R33: 0 | S33: 0 | T33: 33268453.99 | U33: 0 | V33: 127953.67 | W33: 0 | X33: 226132.64 | Y33: 1730626.93 | Z33: 0 | AA33: 15266276.86 | AB33: 0 | AC33: 0 | AD33: 10188.86 | AE33: 0 | AF33: 0 | AG33: 0 | AH33: 17361178.96 | AI33: 0 | AJ33: 0 | AK33: 0 | AL33: 0 | AM33: 25949.78 | AN33: 0 | AO33: 1987653.82 | AP33: 674498 | AQ33: 0 | AR33: 2293446.64 | AS33: 2076349.86 | AT33: 89272.61 | AU33: 8760104.32 | AV33: 15907275.03 | AW33: 17361178.96 | AX33: 33268453.99
A34: 29 | B34: Tintic District | C34: -545505.4 | D34: 6554075.47 | E34: 448536.13 | F34: 0 | G34: 0 | H34: 324668.11 | I34: 0 | J34: 0 | K34: 57406.13 | L34: 200 | M34: 0 | N34: 0 | O34: 0 | P34: 0 | Q34: 0 | R34: 0 | S34: 0 | T34: 6839380.44 | U34: 0 | V34: 79763.3 | W34: 0 | X34: 191411.12 | Y34: 136900.11 | Z34: -601.95 | AA34: 438454.94 | AB34: 0 | AC34: 0 | AD34: 0 | AE34: 0 | AF34: 0 | AG34: 0 | AH34: 845927.52 | AI34: 0 | AJ34: 0 | AK34: 0 | AL34: 0 | AM34: 0 | AN34: 0 | AO34: 0 | AP34: 0 | AQ34: 0 | AR34: 0 | AS34: 0 | AT34: 0 | AU34: 5993452.92 | AV34: 5993452.92 | AW34: 845927.52 | AX34: 6839380.44
A35: 30 | B35: Tooele District | C35: 16758181.23 | D35: 17069651.55 | E35: 47966.07 | F35: 33697129.22 | G35: 1736472.84 | H35: 9256872.01 | I35: 52822.51 | J35: 0 | K35: 748.96 | L35: 98294.03 | M35: 1195697.85 | N35: 0 | O35: 0 | P35: 0 | Q35: 0 | R35: 0 | S35: 0 | T35: 79913836.27 | U35: 0 | V35: 1330076.8 | W35: 0 | X35: 0 | Y35: 16104139.56 | Z35: 0 | AA35: 47353.44 | AB35: 1223428.79 | AC35: 115996.1 | AD35: 0 | AE35: 0 | AF35: 32990204.54 | AG35: 0 | AH35: 51811199.23 | AI35: 1293991.88 | AJ35: 0 | AK35: 0 | AL35: 0 | AM35: 0 | AN35: 0 | AO35: 0 | AP35: 8800000 | AQ35: 0 | AR35: 5500000 | AS35: 0 | AT35: 0 | AU35: 12508645.16 | AV35: 28102637.04 | AW35: 51811199.23 | AX35: 79913836.27
A36: 31 | B36: Uintah District | C36: 742938.75 | D36: 34050272.45 | E36: 189017.54 | F36: 18599254 | G36: 603947.89 | H36: 2255935.08 | I36: 0 | J36: 0 | K36: 0 | L36: 222980.1 | M36: 0 | N36: 0 | O36: 0 | P36: 0 | Q36: 0 | R36: 0 | S36: 0 | T36: 56664345.81 | U36: 0 | V36: 251625.23 | W36: 0 | X36: 0 | Y36: 6914487.71 | Z36: 0 | AA36: 19150797.87 | AB36: 3139655.88 | AC36: 0 | AD36: 0 | AE36: 0 | AF36: 0 | AG36: 0 | AH36: 29456566.69 | AI36: 222980.1 | AJ36: 0 | AK36: 0 | AL36: 0 | AM36: 0 | AN36: 159728.65 | AO36: 491673.94 | AP36: 3664343 | AQ36: 0 | AR36: 0 | AS36: 0 | AT36: 1045684.93 | AU36: 21623368.5 | AV36: 27207779.12 | AW36: 29456566.69 | AX36: 56664345.81
A37: 32 | B37: Wasatch District | C37: 23860615 | D37: 0 | E37: 44633 | F37: 50577677 | G37: 566951 | H37: 3874153 | I37: 0 | J37: 0 | K37: 0 | L37: 0 | M37: 0 | N37: 0 | O37: 0 | P37: 0 | Q37: 0 | R37: 0 | S37: 0 | T37: 78924029 | U37: 0 | V37: 616132 | W37: 0 | X37: 6761330 | Y37: 0 | Z37: 0 | AA37: 50204362 | AB37: 0 | AC37: 0 | AD37: 0 | AE37: 0 | AF37: 0 | AG37: 0 | AH37: 57581824 | AI37: 0 | AJ37: 0 | AK37: 0 | AL37: 0 | AM37: 0 | AN37: 0 | AO37: 0 | AP37: 1750000 | AQ37: 0 | AR37: 898148 | AS37: 0 | AT37: 0 | AU37: 18694055 | AV37: 21342203 | AW37: 57581824 | AX37: 78924029
A38: 33 | B38: Washington District | C38: 2815772.21 | D38: 110746773.8 | E38: 1564389.75 | F38: 97344297 | G38: 1885393.74 | H38: 12130947.55 | I38: 0 | J38: 0 | K38: 304238 | L38: 478231.91 | M38: 0 | N38: 0 | O38: 0 | P38: 0 | Q38: 0 | R38: 0 | S38: 0 | T38: 227270044 | U38: 0 | V38: 1868326.29 | W38: 0 | X38: 32579.45 | Y38: 21262586.38 | Z38: 0 | AA38: 97932383.73 | AB38: 16462535.51 | AC38: 1714752.91 | AD38: 0 | AE38: 0 | AF38: 304238 | AG38: 0 | AH38: 139577402.3 | AI38: 0 | AJ38: 0 | AK38: 0 | AL38: 0 | AM38: 0 | AN38: 0 | AO38: 0 | AP38: 0 | AQ38: 0 | AR38: 0 | AS38: 5591179 | AT38: 0 | AU38: 82101462.68 | AV38: 87692641.68 | AW38: 139577402.3 | AX38: 227270044
A39: 34 | B39: Wayne District | C39: 531124.94 | D39: 4310375.17 | E39: -800 | F39: 1839369.33 | G39: 26769.9 | H39: 344344.94 | I39: 0 | J39: 0 | K39: 0 | L39: 0 | M39: 0 | N39: 0 | O39: 0 | P39: 0 | Q39: 0 | R39: 0 | S39: 0 | T39: 7051184.28 | U39: 0 | V39: 89632 | W39: 0 | X39: 0 | Y39: 687282.58 | Z39: 0 | AA39: 0 | AB39: 322056.01 | AC39: 0 | AD39: 0 | AE39: 0 | AF39: 1671341 | AG39: 0 | AH39: 2770311.59 | AI39: 0 | AJ39: 0 | AK39: 0 | AL39: 0 | AM39: 0 | AN39: 0 | AO39: 0 | AP39: 395000 | AQ39: 0 | AR39: 128876 | AS39: 0 | AT39: 2150000 | AU39: 1606996.77 | AV39: 4280872.77 | AW39: 2770311.59 | AX39: 7051184.28
A40: 35 | B40: Weber District | C40: 69343566 | D40: 0 | E40: 173551 | F40: 69982497 | G40: 4634666 | H40: 23832430 | I40: 0 | J40: 0 | K40: 325468 | L40: 2807780 | M40: 312638 | N40: 0 | O40: 0 | P40: 0 | Q40: 0 | R40: 0 | S40: 0 | T40: 171412596 | U40: 0 | V40: 1960541 | W40: 0 | X40: 59430 | Y40: 52658637 | Z40: 0 | AA40: 0 | AB40: 4243827 | AC40: 836673 | AD40: 0 | AE40: 0 | AF40: 70292323 | AG40: 0 | AH40: 130051431 | AI40: 3120418 | AJ40: 0 | AK40: 0 | AL40: 0 | AM40: 0 | AN40: 0 | AO40: 0 | AP40: 6000000 | AQ40: 199743 | AR40: 2948369 | AS40: 0 | AT40: 14372437 | AU40: 14720198 | AV40: 41361165 | AW40: 130051431 | AX40: 171412596
A41: 36 | B41: Salt Lake District | C41: 54542.81 | D41: 86973252.72 | E41: 3265842.41 | F41: 130170231.8 | G41: 3023472.42 | H41: 24031678.42 | I41: 0 | J41: 0 | K41: 0 | L41: 0 | M41: 641821.73 | N41: 0 | O41: 0 | P41: 0 | Q41: 0 | R41: 0 | S41: 0 | T41: 248160842.3 | U41: 0 | V41: 1491981.14 | W41: 0 | X41: 0 | Y41: 29403391.31 | Z41: 0 | AA41: 2610638.65 | AB41: 3918026.79 | AC41: 0 | AD41: 0 | AE41: 0 | AF41: 129556215 | AG41: 0 | AH41: 166980252.9 | AI41: 641821.73 | AJ41: 0 | AK41: 0 | AL41: 0 | AM41: 0 | AN41: 0 | AO41: 0 | AP41: 7000000 | AQ41: 0 | AR41: 0 | AS41: 0 | AT41: 50833018 | AU41: 22705749.73 | AV41: 81180589.46 | AW41: 166980252.9 | AX41: 248160842.3
A42: 37 | B42: Ogden City District | C42: 3765891.48 | D42: 20602037.78 | E42: 39531.3 | F42: 31649454.56 | G42: 1500652.21 | H42: 12141455.56 | I42: 0 | J42: 0 | K42: 0 | L42: 0 | M42: 0 | N42: 0 | O42: 0 | P42: 0 | Q42: 0 | R42: 0 | S42: 0 | T42: 69699022.89 | U42: 0 | V42: 5845464.66 | W42: 0 | X42: 0 | Y42: 9412096.65 | Z42: 0 | AA42: 35649374.05 | AB42: 0 | AC42: 0 | AD42: 0 | AE42: 0 | AF42: 0 | AG42: 0 | AH42: 50906935.36 | AI42: 0 | AJ42: 0 | AK42: 0 | AL42: 0 | AM42: 0 | AN42: 0 | AO42: 3935182.62 | AP42: 0 | AQ42: 0 | AR42: 0 | AS42: 0 | AT42: 14856904.91 | AU42: 0 | AV42: 18792087.53 | AW42: 50906935.36 | AX42: 69699022.89
A43: 38 | B43: Provo District | C43: 33030305.3 | D43: 0 | E43: 2907818.08 | F43: 33066830.59 | G43: 1097657.92 | H43: 12688925.9 | I43: 0 | J43: 0 | K43: 0 | L43: 0 | M43: 170723.37 | N43: 0 | O43: 0 | P43: 11091242.12 | Q43: 0 | R43: 0 | S43: 0 | T43: 94053503.28 | U43: 0 | V43: 3533830.86 | W43: 0 | X43: 0 | Y43: 14653848.91 | Z43: 0 | AA43: 33214667.25 | AB43: 0 | AC43: 0 | AD43: 0 | AE43: 0 | AF43: 0 | AG43: 0 | AH43: 51402347.02 | AI43: 170723.25 | AJ43: 0 | AK43: 0 | AL43: 0 | AM43: 0 | AN43: 0 | AO43: 4039026.79 | AP43: 0 | AQ43: 0 | AR43: 13448244.26 | AS43: 4344402.25 | AT43: 4418354 | AU43: 16230405.01 | AV43: 42651155.56 | AW43: 51402347.02 | AX43: 94053503.28
A44: 39 | B44: Logan City District | C44: 22842799.21 | D44: 0 | E44: 121900.13 | F44: 17010622.84 | G44: 76305.67 | H44: 7319225.16 | I44: 0 | J44: 0 | K44: 0 | L44: 0 | M44: 69833.36 | N44: 0 | O44: 0 | P44: 0 | Q44: 0 | R44: 0 | S44: 0 | T44: 47440686.37 | U44: 0 | V44: 1152506.36 | W44: 0 | X44: 0 | Y44: 4662195.48 | Z44: 0 | AA44: 432.66 | AB44: 2576199.59 | AC44: 636244.31 | AD44: 0 | AE44: 0 | AF44: 16623898 | AG44: 0 | AH44: 25651476.4 | AI44: 0 | AJ44: 0 | AK44: 0 | AL44: 0 | AM44: 0 | AN44: 0 | AO44: 560515.37 | AP44: 2625000 | AQ44: 0 | AR44: 0 | AS44: 0 | AT44: 5811417 | AU44: 12792277.6 | AV44: 21789209.97 | AW44: 25651476.4 | AX44: 47440686.37
A45: 40 | B45: Murray District | C45: 4939157 | D45: 18853855 | E45: 50000 | F45: 21665246 | G45: 725642 | H45: 3966071 | I45: 0 | J45: 9842569 | K45: 0 | L45: 1329790 | M45: 0 | N45: 0 | O45: 0 | P45: 0 | Q45: 0 | R45: 0 | S45: 0 | T45: 61372330 | U45: 0 | V45: 839448 | W45: 0 | X45: 0 | Y45: 5785808 | Z45: 0 | AA45: 59390 | AB45: 1885081 | AC45: 194781 | AD45: 0 | AE45: 0 | AF45: 21808509 | AG45: 9842569 | AH45: 40415586 | AI45: 1329793 | AJ45: 0 | AK45: 0 | AL45: 0 | AM45: 0 | AN45: 0 | AO45: 0 | AP45: 3150417 | AQ45: 0 | AR45: 2824526 | AS45: 0 | AT45: 0 | AU45: 13652008 | AV45: 20956744 | AW45: 40415586 | AX45: 61372330
A46: 42 | B46: Canyons District | C46: 2712928.11 | D46: 94809877.1 | E46: 940823.16 | F46: 137651278.3 | G46: 2484283.4 | H46: 17309201.77 | I46: 0 | J46: 6119196.57 | K46: 39648.78 | L46: 1966112.66 | M46: 53896 | N46: 0 | O46: 0 | P46: 0 | Q46: 0 | R46: 0 | S46: 0 | T46: 264087245.8 | U46: 0 | V46: 6156880.38 | W46: 0 | X46: 0 | Y46: 33488574.81 | Z46: 0 | AA46: 0 | AB46: 2248355.56 | AC46: 331038.09 | AD46: 0 | AE46: 0 | AF46: 138659940 | AG46: 6037838.16 | AH46: 186922627 | AI46: 2020008.66 | AJ46: 0 | AK46: 0 | AL46: 0 | AM46: 0 | AN46: 0 | AO46: 0 | AP46: 17367782 | AQ46: 3666993.08 | AR46: 10542932.2 | AS46: 0 | AT46: 13453632.75 | AU46: 30113270.13 | AV46: 77164618.82 | AW46: 186922627 | AX46: 264087245.8
B47: District Subtotals | C47: =SUM(C6:C46) -> 308600974.2 | D47: =SUM(D6:D46) -> 1403530124 | E47: 116937591.6 | F47: 1619151514 | G47: 45750627.84 | H47: 291891785.3 | I47: 56572.51 | J47: 27712132.22 | K47: 726164.23 | L47: 21080468.19 | M47: 6239746.54 | N47: 0 | O47: 209973.9 | P47: 11091242.12 | Q47: 0 | R47: 0 | S47: 0 | T47: 3852978917 | U47: 0 | V47: 52745001.36 | W47: 0 | X47: 54187177.01 | Y47: 473794251.7 | Z47: 195621.15 | AA47: 378714354.7 | AB47: 154058993.7 | AC47: 7296386.39 | AD47: 1715122.91 | AE47: 0 | AF47: 1345923512 | AG47: 27631526.94 | AH47: 2496261948 | AI47: 33228111.83 | AJ47: 0 | AK47: 0 | AL47: 0 | AM47: 171202.92 | AN47: 2323535.64 | AO47: 16470225.96 | AP47: 193142406.8 | AQ47: 23138563.68 | AR47: 165598640.9 | AS47: 20664350.51 | AT47: 399990856.8 | AU47: 501989071.2 | AV47: 1356716966 | AW47: 2496261948 | AX47: 3852978917
A48: 68 | B48: Ogden Preparatory Academy | C48: 721764 | D48: 5552961 | E48: 6174 | F48: 0 | G48: 40123 | H48: 1229500 | I48: 0 | J48: 0 | K48: 0 | L48: 0 | M48: 27140 | N48: 0 | O48: 0 | P48: 0 | Q48: 0 | R48: 0 | S48: 0 | T48: 7577662 | U48: 0 | V48: 171668 | W48: 0 | X48: 911673 | Y48: 0 | Z48: 0 | AA48: 0 | AB48: 66801 | AC48: 0 | AD48: 0 | AE48: 0 | AF48: 0 | AG48: 0 | AH48: 1150142 | AI48: 0 | AJ48: 0 | AK48: 0 | AL48: 0 | AM48: 0 | AN48: 0 | AO48: 0 | AP48: 0 | AQ48: 0 | AR48: 0 | AS48: 0 | AT48: 6427520 | AU48: 0 | AV48: 6427520 | AW48: 1150142 | AX48: 7577662
A49: 74 | B49: American Preparatory Academy | C49: 9689041.56 | D49: 17536673.46 | E49: 4540.54 | F49: 0 | G49: 133667.68 | H49: 2160725.76 | I49: 0 | J49: 0 | K49: 0 | L49: 0 | M49: 21545 | N49: 0 | O49: 0 | P49: 0 | Q49: 0 | R49: 0 | S49: 0 | T49: 29546194 | U49: 0 | V49: 374192.1 | W49: 0 | X49: 33743.75 | Y49: 3520168.38 | Z49: 0 | AA49: 0 | AB49: 330997.63 | AC49: 89427.98 | AD49: 0 | AE49: 0 | AF49: 0 | AG49: 0 | AH49: 4348529.84 | AI49: 0 | AJ49: 0 | AK49: 0 | AL49: 0 | AM49: 0 | AN49: 0 | AO49: 0 | AP49: 0 | AQ49: 0 | AR49: 0 | AS49: 0 | AT49: 0 | AU49: 25197664.16 | AV49: 25197664.16 | AW49: 4348529.84 | AX49: 29546194
A50: 81 | B50: Walden School of Liberal Arts | C50: 2413005.83 | D50: 0 | E50: 488786.64 | F50: 0 | G50: 0 | H50: 0 | I50: 0 | J50: 0 | K50: 0 | L50: 0 | M50: 0 | N50: 0 | O50: 0 | P50: 0 | Q50: 0 | R50: 0 | S50: 0 | T50: 2901792.47 | U50: 0 | V50: 59232.72 | W50: 0 | X50: 0 | Y50: 0 | Z50: 0 | AA50: 0 | AB50: 0 | AC50: 0 | AD50: 0 | AE50: 0 | AF50: 0 | AG50: 0 | AH50: 59232.72 | AI50: 0 | AJ50: 0 | AK50: 0 | AL50: 0 | AM50: 0 | AN50: 0 | AO50: 326256 | AP50: 0 | AQ50: 0 | AR50: 0 | AS50: 0 | AT50: 0 | AU50: 2516303.72 | AV50: 2842559.72 | AW50: 59232.72 | AX50: 2901792.47
A51: 82 | B51: Freedom Preparatory Academy | C51: 2826623.69 | D51: 5344758.83 | E51: 542.4 | F51: 0 | G51: 79104.68 | H51: 620575.88 | I51: 0 | J51: 0 | K51: 0 | L51: 0 | M51: 0 | N51: 0 | O51: 0 | P51: 0 | Q51: 0 | R51: 0 | S51: 0 | T51: 8871605.48 | U51: 0 | V51: 303113.42 | W51: 0 | X51: 0 | Y51: 2709801.84 | Z51: 0 | AA51: 0 | AB51: 0 | AC51: 0 | AD51: 0 | AE51: 0 | AF51: 0 | AG51: 0 | AH51: 3012915.26 | AI51: 0 | AJ51: 0 | AK51: 0 | AL51: 0 | AM51: 0 | AN51: 0 | AO51: 0 | AP51: 0 | AQ51: 0 | AR51: 0 | AS51: 0 | AT51: 0 | AU51: 5858690.22 | AV51: 5858690.22 | AW51: 3012915.26 | AX51: 8871605.48
A52: 83 | B52: Academy for Math Engineering & Science | C52: 827231.47 | D52: 2666421.06 | E52: 0 | F52: 0 | G52: 0 | H52: 25485.31 | I52: 0 | J52: 0 | K52: 0 | L52: 0 | M52: 0 | N52: 0 | O52: 0 | P52: 0 | Q52: 0 | R52: 0 | S52: 0 | T52: 3519137.84 | U52: 0 | V52: 15959.2 | W52: 0 | X52: 0 | Y52: 721564.2 | Z52: 0 | AA52: 0 | AB52: 0 | AC52: 0 | AD52: 0 | AE52: 0 | AF52: 0 | AG52: 0 | AH52: 737523.4 | AI52: 0 | AJ52: 0 | AK52: 0 | AL52: 0 | AM52: 0 | AN52: 0 | AO52: 0 | AP52: 0 | AQ52: 0 | AR52: 0 | AS52: 0 | AT52: 0 | AU52: 2781614.44 | AV52: 2781614.44 | AW52: 737523.4 | AX52: 3519137.84
A53: 86 | B53: Pinnacle Canyon Academy | C53: 369151.09 | D53: 0 | E53: 0 | F53: 0 | G53: 30974.81 | H53: 264755.74 | I53: 0 | J53: 0 | K53: 0 | L53: 0 | M53: 0 | N53: 0 | O53: 4.36 | P53: 0 | Q53: 0 | R53: 0 | S53: 0 | T53: 664886 | U53: 0 | V53: 44122.73 | W53: 0 | X53: 0 | Y53: 139289.86 | Z53: 0 | AA53: 0 | AB53: 0 | AC53: 0 | AD53: 0 | AE53: 0 | AF53: 0 | AG53: 0 | AH53: 183412.59 | AI53: 0 | AJ53: 0 | AK53: 0 | AL53: 87887.62 | AM53: 0 | AN53: 0 | AO53: 0 | AP53: 0 | AQ53: 0 | AR53: 0 | AS53: 0 | AT53: 0 | AU53: 393585.79 | AV53: 481473.41 | AW53: 183412.59 | AX53: 664886
A54: 87 | B54: City Academy | C54: 285825 | D54: 0 | E54: 81631 | F54: 191 | G54: 45397 | H54: 51039 | I54: 0 | J54: 0 | K54: 1067 | L54: 0 | M54: 50838 | N54: 0 | O54: 0 | P54: 0 | Q54: 0 | R54: 0 | S54: 0 | T54: 515988 | U54: 0 | V54: 23389 | W54: 0 | X54: 709 | Y54: 126108 | Z54: 0 | AA54: 80610 | AB54: 200845 | AC54: 0 | AD54: 0 | AE54: 0 | AF54: 0 | AG54: 0 | AH54: 431661 | AI54: 50838 | AJ54: 0 | AK54: 3132 | AL54: 0 | AM54: 0 | AN54: 0 | AO54: 0 | AP54: 0 | AQ54: 0 | AR54: 0 | AS54: 0 | AT54: 0 | AU54: 30357 | AV54: 84327 | AW54: 431661 | AX54: 515988
A55: 89 | B55: Soldier Hollow Charter School | C55: 1207734.01 | D55: 0 | E55: 25502.25 | F55: 0 | G55: 1847.92 | H55: 111527.55 | I55: 0 | J55: 0 | K55: 0 | L55: 0 | M55: 1325 | N55: 0 | O55: 0 | P55: 0 | Q55: 0 | R55: 0 | S55: 0 | T55: 1347936.73 | U55: 0 | V55: 5979.54 | W55: 0 | X55: 0 | Y55: 336631.56 | Z55: 0 | AA55: 7131 | AB55: 0 | AC55: 0 | AD55: 0 | AE55: 0 | AF55: 0 | AG55: 0 | AH55: 349742.1 | AI55: 0 | AJ55: 0 | AK55: 0 | AL55: 10925.97 | AM55: 0 | AN55: 0 | AO55: 0 | AP55: 0 | AQ55: 0 | AR55: 0 | AS55: 0 | AT55: 0 | AU55: 987268.65 | AV55: 998194.62 | AW55: 349742.1 | AX55: 1347936.73
A56: 90 | B56: Utah Arts Academy OLD | C56: 1131393.7 | D56: 493498.73 | E56: 0 | F56: 0 | G56: 30946.71 | H56: 7500 | I56: 0 | J56: 0 | K56: 0 | L56: 2584.45 | M56: 5597.91 | N56: 0 | O56: 0 | P56: 0 | Q56: 0 | R56: 0 | S56: 0 | T56: 1671521.5 | U56: 0 | V56: 2242.66 | W56: 0 | X56: 500 | Y56: 170800.19 | Z56: 0 | AA56: 6400 | AB56: 30000 | AC56: 0 | AD56: 0 | AE56: 0 | AF56: 0 | AG56: 0 | AH56: 209942.85 | AI56: 0 | AJ56: 0 | AK56: 0 | AL56: 0 | AM56: 0 | AN56: 0 | AO56: 0 | AP56: 0 | AQ56: 0 | AR56: 0 | AS56: 0 | AT56: 0 | AU56: 1461578.65 | AV56: 1461578.65 | AW56: 209942.85 | AX56: 1671521.5
A57: 92 | B57: Uintah River High | C57: 2025387 | D57: 0 | E57: 0 | F57: 0 | G57: 6780 | H57: 0 | I57: 0 | J57: 0 | K57: 0 | L57: 0 | M57: 0 | N57: 0 | O57: 0 | P57: 0 | Q57: 0 | R57: 0 | S57: 0 | T57: 2032167 | U57: 0 | V57: 47320 | W57: 0 | X57: 0 | Y57: 0 | Z57: 0 | AA57: 0 | AB57: 0 | AC57: 0 | AD57: 0 | AE57: 0 | AF57: 0 | AG57: 0 | AH57: 47320 | AI57: 0 | AJ57: 0 | AK57: 0 | AL57: 0 | AM57: 0 | AN57: 0 | AO57: 41809 | AP57: 0 | AQ57: 0 | AR57: 0 | AS57: 0 | AT57: 0 | AU57: 1943038 | AV57: 1984847 | AW57: 47320 | AX57: 2032167
A58: 93 | B58: John Hancock Charter School | C58: 336382.66 | D58: 0 | E58: 44294.35 | F58: 0 | G58: 0 | H58: 5608.27 | I58: 0 | J58: 0 | K58: 0 | L58: 0 | M58: 1140 | N58: 0 | O58: 0 | P58: 0 | Q58: 0 | R58: 0 | S58: 0 | T58: 387425.28 | U58: 0 | V58: 25983.18 | W58: 0 | X58: 0 | Y58: 18328.19 | Z58: 0 | AA58: 0 | AB58: 5514.15 | AC58: 7434.75 | AD58: 0 | AE58: 0 | AF58: 0 | AG58: 0 | AH58: 57260.27 | AI58: 0 | AJ58: 0 | AK58: 0 | AL58: 0 | AM58: 0 | AN58: 0 | AO58: 0 | AP58: 0 | AQ58: 0 | AR58: 0 | AS58: 0 | AT58: 0 | AU58: 330165.01 | AV58: 330165.01 | AW58: 57260.27 | AX58: 387425.28
A59: 94 | B59: Thomas Edison | C59: 2194550 | D59: 997815 | E59: 3067 | F59: 0 | G59: 11426 | H59: 191800 | I59: 0 | J59: 0 | K59: 0 | L59: 0 | M59: 22592 | N59: 0 | O59: 0 | P59: 0 | Q59: 0 | R59: 0 | S59: 0 | T59: 3421250 | U59: 0 | V59: 137436 | W59: 0 | X59: 622695 | Y59: 0 | Z59: 0 | AA59: 0 | AB59: 0 | AC59: 0 | AD59: 0 | AE59: 0 | AF59: 0 | AG59: 0 | AH59: 760131 | AI59: 0 | AJ59: 0 | AK59: 0 | AL59: 0 | AM59: 0 | AN59: 0 | AO59: 0 | AP59: 0 | AQ59: 0 | AR59: 0 | AS59: 0 | AT59: 2661119 | AU59: 0 | AV59: 2661119 | AW59: 760131 | AX59: 3421250
A60: 95 | B60: Timpanogos Academy | C60: 1175799 | D60: 0 | E60: 8013 | F60: 0 | G60: 10831 | H60: 1406 | I60: 0 | J60: 0 | K60: 0 | L60: 0 | M60: 47504 | N60: 0 | O60: 0 | P60: 0 | Q60: 0 | R60: 0 | S60: 0 | T60: 1243553 | U60: 0 | V60: 128 | W60: 0 | X60: 0 | Y60: 10831 | Z60: 0 | AA60: 0 | AB60: 0 | AC60: 0 | AD60: 0 | AE60: 0 | AF60: 0 | AG60: 0 | AH60: 10959 | AI60: 47504 | AJ60: 0 | AK60: 0 | AL60: 0 | AM60: 0 | AN60: 0 | AO60: 0 | AP60: 0 | AQ60: 0 | AR60: 0 | AS60: 0 | AT60: 0 | AU60: 1185090 | AV60: 1232594 | AW60: 10959 | AX60: 1243553
A61: 97 | B61: Salt Lake Arts Academy | C61: 279418 | D61: 1286306 | E61: 14729 | F61: 0 | G61: 0 | H61: 7015 | I61: 0 | J61: 0 | K61: 0 | L61: 0 | M61: 14336 | N61: 0 | O61: 0 | P61: 0 | Q61: 0 | R61: 0 | S61: 0 | T61: 1601804 | U61: 0 | V61: 37202 | W61: 0 | X61: 0 | Y61: 463351 | Z61: 0 | AA61: 0 | AB61: 6984 | AC61: 131021 | AD61: 0 | AE61: 0 | AF61: 0 | AG61: 0 | AH61: 638558 | AI61: 0 | AJ61: 0 | AK61: 0 | AL61: 0 | AM61: 0 | AN61: 0 | AO61: 0 | AP61: 0 | AQ61: 0 | AR61: 0 | AS61: 0 | AT61: 0 | AU61: 963246 | AV61: 963246 | AW61: 638558 | AX61: 1601804
A62: 98 | B62: Fast Forward High | C62: 979595 | D62: 0 | E62: 2111 | F62: 0 | G62: 608 | H62: 165732 | I62: 0 | J62: 0 | K62: 0 | L62: 0 | M62: 2000 | N62: 0 | O62: 0 | P62: 0 | Q62: 0 | R62: 0 | S62: 0 | T62: 1150046 | U62: 0 | V62: 45803 | W62: 0 | X62: 0 | Y62: 252493 | Z62: 0 | AA62: 0 | AB62: 0 | AC62: 0 | AD62: 0 | AE62: 0 | AF62: 0 | AG62: 0 | AH62: 298296 | AI62: 2000 | AJ62: 0 | AK62: 0 | AL62: 0 | AM62: 0 | AN62: 0 | AO62: 0 | AP62: 0 | AQ62: 0 | AR62: 0 | AS62: 0 | AT62: 0 | AU62: 849750 | AV62: 851750 | AW62: 298296 | AX62: 1150046
A63: 1B | B63: Utah County Academy of Science | C63: 3702379 | D63: 2257226 | E63: 0 | F63: 0 | G63: 32010 | H63: 63464 | I63: 0 | J63: 257862 | K63: 0 | L63: 0 | M63: 0 | N63: 0 | O63: 0 | P63: 0 | Q63: 0 | R63: 0 | S63: 0 | T63: 6312941 | U63: 0 | V63: 47761 | W63: 0 | X63: 0 | Y63: 501211 | Z63: 0 | AA63: 12000 | AB63: 0 | AC63: 14456 | AD63: 0 | AE63: 0 | AF63: 0 | AG63: 252591 | AH63: 828019 | AI63: 0 | AJ63: 2257226 | AK63: 0 | AL63: 0 | AM63: 0 | AN63: 0 | AO63: 0 | AP63: 0 | AQ63: 0 | AR63: 0 | AS63: 0 | AT63: 0 | AU63: 3227696 | AV63: 5484922 | AW63: 828019 | AX63: 6312941
A64: 1C | B64: Odyssey Charter School | C64: 735784 | D64: 0 | E64: 1687 | F64: 0 | G64: 6007 | H64: 36300 | I64: 0 | J64: 0 | K64: 0 | L64: 0 | M64: 0 | N64: 0 | O64: 0 | P64: 0 | Q64: 0 | R64: 0 | S64: 0 | T64: 779778 | U64: 0 | V64: 11699 | W64: 0 | X64: 0 | Y64: 270470 | Z64: 0 | AA64: 0 | AB64: 0 | AC64: 0 | AD64: 0 | AE64: 0 | AF64: 0 | AG64: 0 | AH64: 282169 | AI64: 0 | AJ64: 0 | AK64: 33880 | AL64: 0 | AM64: 0 | AN64: 0 | AO64: 0 | AP64: 0 | AQ64: 0 | AR64: 0 | AS64: 0 | AT64: 0 | AU64: 463729 | AV64: 497609 | AW64: 282169 | AX64: 779778
A65: 1D | B65: Renaissance Academy | C65: 2852293 | D65: 923736 | E65: 32117 | F65: 0 | G65: 28833 | H65: 407564 | I65: 0 | J65: 0 | K65: 0 | L65: 0 | M65: 0 | N65: 0 | O65: 0 | P65: 0 | Q65: 0 | R65: 0 | S65: 0 | T65: 4244543 | U65: 0 | V65: 14021 | W65: 0 | X65: 0 | Y65: 676644 | Z65: 0 | AA65: 0 | AB65: 0 | AC65: 0 | AD65: 0 | AE65: 0 | AF65: 0 | AG65: 0 | AH65: 690665 | AI65: 0 | AJ65: 923736 | AK65: 171475 | AL65: 0 | AM65: 0 | AN65: 0 | AO65: 0 | AP65: 0 | AQ65: 0 | AR65: 0 | AS65: 0 | AT65: 0 | AU65: 2458667 | AV65: 3553878 | AW65: 690665 | AX65: 4244543
A66: 1E | B66: Guadalupe School | C66: 757804.9 | D66: 0 | E66: 2244.32 | F66: 0 | G66: 11492.66 | H66: 308931.77 | I66: 0 | J66: 0 | K66: 0 | L66: 0 | M66: 26492.14 | N66: 0 | O66: 0 | P66: 0 | Q66: 0 | R66: 0 | S66: 0 | T66: 1106965.79 | U66: 0 | V66: 482705.15 | W66: 0 | X66: 2070 | Y66: 169529.88 | Z66: 0 | AA66: 0 | AB66: 0 | AC66: 0 | AD66: 0 | AE66: 0 | AF66: 0 | AG66: 0 | AH66: 654305.03 | AI66: 0 | AJ66: 0 | AK66: 0 | AL66: 0 | AM66: 0 | AN66: 0 | AO66: 0 | AP66: 0 | AQ66: 0 | AR66: 0 | AS66: 0 | AT66: 0 | AU66: 452661 | AV66: 452661 | AW66: 654305.03 | AX66: 1106965.79
A67: 1F | B67: Quest Academy | C67: 2880683.87 | D67: 4645765.27 | E67: 0 | F67: 0 | G67: 18113.3 | H67: 500399.72 | I67: 0 | J67: 0 | K67: 3066.65 | L67: 0 | M67: 5798.42 | N67: 0 | O67: 0 | P67: 0 | Q67: 0 | R67: 0 | S67: 0 | T67: 8053827.23 | U67: 0 | V67: 111261.41 | W67: 0 | X67: 12955.54 | Y67: 627507.44 | Z67: 0 | AA67: 23953 | AB67: 0 | AC67: 0 | AD67: 0 | AE67: 0 | AF67: 0 | AG67: 0 | AH67: 775677.39 | AI67: 0 | AJ67: 0 | AK67: 0 | AL67: 0 | AM67: 0 | AN67: 0 | AO67: 0 | AP67: 0 | AQ67: 0 | AR67: 0 | AS67: 0 | AT67: 0 | AU67: 7278149.84 | AV67: 7278149.84 | AW67: 775677.39 | AX67: 8053827.23
A68: 1G | B68: Jefferson Academy | C68: 2253917.85 | D68: 158283.44 | E68: 0 | F68: 0 | G68: 17163.71 | H68: 227752.27 | I68: 0 | J68: 0 | K68: 2822.91 | L68: 0 | M68: 3770 | N68: 0 | O68: 0 | P68: 0 | Q68: 0 | R68: 0 | S68: 0 | T68: 2663710.18 | U68: 0 | V68: 857.24 | W68: 0 | X68: 36745.57 | Y68: 257133.21 | Z68: 0 | AA68: 0 | AB68: 0 | AC68: 0 | AD68: 0 | AE68: 0 | AF68: 0 | AG68: 0 | AH68: 294736.02 | AI68: 0 | AJ68: 0 | AK68: 0 | AL68: 0 | AM68: 0 | AN68: 0 | AO68: 0 | AP68: 0 | AQ68: 0 | AR68: 0 | AS68: 0 | AT68: 0 | AU68: 2368974.16 | AV68: 2368974.16 | AW68: 294736.02 | AX68: 2663710.18
A69: 1I | B69: Utah International Charter School | C69: 1183301 | D69: 0 | E69: 592 | F69: 0 | G69: 35917 | H69: 74015 | I69: 0 | J69: 0 | K69: 0 | L69: 0 | M69: 0 | N69: 0 | O69: 0 | P69: 0 | Q69: 0 | R69: 0 | S69: 0 | T69: 1293825 | U69: 0 | V69: 48111 | W69: 0 | X69: 204407 | Y69: 0 | Z69: 0 | AA69: 0 | AB69: 120281 | AC69: 0 | AD69: 0 | AE69: 0 | AF69: 0 | AG69: 0 | AH69: 372799 | AI69: 0 | AJ69: 0 | AK69: 0 | AL69: 0 | AM69: 0 | AN69: 0 | AO69: 21075 | AP69: 0 | AQ69: 0 | AR69: 0 | AS69: 0 | AT69: 899951 | AU69: 0 | AV69: 921026 | AW69: 372799 | AX69: 1293825
A70: 1K | B70: Vanguard Academy | C70: 3041074 | D70: 0 | E70: 90 | F70: 0 | G70: 0 | H70: 119630 | I70: 0 | J70: 0 | K70: 0 | L70: 0 | M70: 4735 | N70: 0 | O70: 113391 | P70: 0 | Q70: 0 | R70: 0 | S70: 0 | T70: 3278920 | U70: 0 | V70: 390834 | W70: 0 | X70: 0 | Y70: 327055 | Z70: 0 | AA70: 0 | AB70: 654099 | AC70: 479095 | AD70: 0 | AE70: 0 | AF70: 0 | AG70: 0 | AH70: 1851083 | AI70: 4735 | AJ70: 0 | AK70: 0 | AL70: 0 | AM70: 0 | AN70: 0 | AO70: 0 | AP70: 0 | AQ70: 0 | AR70: 0 | AS70: 0 | AT70: 0 | AU70: 1423102 | AV70: 1427837 | AW70: 1851083 | AX70: 3278920
A71: 1L | B71: Athlos Academy of Utah | C71: 1005132.17 | D71: 0 | E71: 3000 | F71: 0 | G71: 26444.22 | H71: 19692 | I71: 0 | J71: 0 | K71: 146.14 | L71: 0 | M71: 405.72 | N71: 0 | O71: 78.77 | P71: 0 | Q71: 0 | R71: 0 | S71: 0 | T71: 1054899.02 | U71: 0 | V71: 127343.91 | W71: 0 | X71: 0 | Y71: 320509.98 | Z71: 0 | AA71: 0 | AB71: 0 | AC71: 0 | AD71: 0 | AE71: 0 | AF71: 0 | AG71: 0 | AH71: 447853.89 | AI71: 0 | AJ71: 0 | AK71: 185311.44 | AL71: 221700.94 | AM71: 0 | AN71: 0 | AO71: 0 | AP71: 0 | AQ71: 0 | AR71: 0 | AS71: 0 | AT71: 0 | AU71: 200032.75 | AV71: 607045.13 | AW71: 447853.89 | AX71: 1054899.02
A72: 1M | B72: Advantage Arts Academy | C72: 319564.71 | D72: 14870.98 | E72: -10.75 | F72: 0 | G72: 2798.51 | H72: 118496.17 | I72: 0 | J72: 0 | K72: 848.66 | L72: 0 | M72: 0 | N72: 0 | O72: 0 | P72: 0 | Q72: 0 | R72: 0 | S72: 0 | T72: =SUM(C72:S72) -> 456568.28 | U72: 0 | V72: 25838.31 | W72: 0 | X72: 0 | Y72: 144211.84 | Z72: 0 | AA72: 0 | AB72: 49564.96 | AC72: 0 | AD72: 0 | AE72: 0 | AF72: 0 | AG72: 0 | AH72: =SUM(U72:AG72) -> 219615.11 | AI72: 0 | AJ72: 0 | AK72: 0 | AL72: 0 | AM72: 0 | AN72: 0 | AO72: 0 | AP72: 0 | AQ72: 0 | AR72: 0 | AS72: 0 | AT72: 0 | AU72: 236953.17 | AV72: =SUM(AI72:AU72) -> 236953.17 | AW72: =AH72 -> 219615.11 | AX72: =T72 -> 456568.28
A73: 2B | B73: Lincoln Academy | C73: 671368 | D73: 5015357 | E73: 7519 | F73: 0 | G73: 62665 | H73: 90294 | I73: 0 | J73: 0 | K73: 0 | L73: 0 | M73: 15049 | N73: 0 | O73: 0 | P73: 0 | Q73: 0 | R73: 0 | S73: 0 | T73: 5862252 | U73: 0 | V73: 49059 | W73: 0 | X73: 0 | Y73: 12197 | Z73: 0 | AA73: 7818 | AB73: 263411 | AC73: 18389 | AD73: 0 | AE73: 0 | AF73: 0 | AG73: 0 | AH73: 350874 | AI73: 15049 | AJ73: 1402508 | AK73: 259268 | AL73: 0 | AM73: 0 | AN73: 0 | AO73: 0 | AP73: 0 | AQ73: 0 | AR73: 0 | AS73: 0 | AT73: 12143 | AU73: 3822410 | AV73: 5511378 | AW73: 350874 | AX73: 5862252
A74: 2C | B74: Intech Collegiate Academy | C74: 776052 | D74: 0 | E74: 2315 | F74: 0 | G74: 28777 | H74: 87788 | I74: 0 | J74: 0 | K74: 0 | L74: 0 | M74: 24760 | N74: 0 | O74: 0 | P74: 0 | Q74: 0 | R74: 0 | S74: 0 | T74: 919692 | U74: 0 | V74: 17191 | W74: 0 | X74: 131223 | Y74: 0 | Z74: 0 | AA74: 0 | AB74: 50099 | AC74: 0 | AD74: 3961 | AE74: 0 | AF74: 0 | AG74: 0 | AH74: 202474 | AI74: 0 | AJ74: 0 | AK74: 0 | AL74: 0 | AM74: 0 | AN74: 0 | AO74: 0 | AP74: 0 | AQ74: 0 | AR74: 0 | AS74: 0 | AT74: 717218 | AU74: 0 | AV74: 717218 | AW74: 202474 | AX74: 919692
A75: 2D | B75: Channing Hall | C75: 577727 | D75: 2753593 | E75: 688 | F75: 0 | G75: 30276 | H75: 138940 | I75: 0 | J75: 0 | K75: 0 | L75: 4835 | M75: 74312 | N75: 0 | O75: 0 | P75: 0 | Q75: 0 | R75: 0 | S75: 0 | T75: 3580371 | U75: 0 | V75: 18865 | W75: 0 | X75: 0 | Y75: 456070 | Z75: 0 | AA75: 16746 | AB75: 106171 | AC75: 13105 | AD75: 0 | AE75: 0 | AF75: 0 | AG75: 0 | AH75: 610957 | AI75: 79147 | AJ75: 1263282 | AK75: 131649 | AL75: 0 | AM75: 0 | AN75: 0 | AO75: 0 | AP75: 0 | AQ75: 0 | AR75: 0 | AS75: 0 | AT75: 198583 | AU75: 1296753 | AV75: 2969414 | AW75: 610957 | AX75: 3580371
A76: 2E | B76: Karl G. Maeser Preparatory Academy | C76: 3202113 | D76: 2443877 | E76: 3401 | F76: 0 | G76: 66527 | H76: 233977 | I76: 0 | J76: 0 | K76: 0 | L76: 0 | M76: 25818 | N76: 0 | O76: 0 | P76: 0 | Q76: 0 | R76: 0 | S76: 0 | T76: 5975713 | U76: 0 | V76: 56299 | W76: 0 | X76: 0 | Y76: 142026 | Z76: 0 | AA76: 24650 | AB76: 184197 | AC76: 0 | AD76: 0 | AE76: 0 | AF76: 0 | AG76: 0 | AH76: 407172 | AI76: 0 | AJ76: 0 | AK76: 0 | AL76: 0 | AM76: 0 | AN76: 0 | AO76: 0 | AP76: 0 | AQ76: 0 | AR76: 0 | AS76: 0 | AT76: 5568541 | AU76: 0 | AV76: 5568541 | AW76: 407172 | AX76: 5975713
A77: 2F | B77: Rockwell Charter High School | C77: 843541 | D77: 2155891 | E77: 273309 | F77: 0 | G77: 16005 | H77: 33096 | I77: 0 | J77: 0 | K77: 0 | L77: 0 | M77: 6318 | N77: 0 | O77: 0 | P77: 0 | Q77: 0 | R77: 0 | S77: 0 | T77: 3328160 | U77: 0 | V77: 39726 | W77: 0 | X77: 16886 | Y77: 0 | Z77: 0 | AA77: 0 | AB77: 0 | AC77: 0 | AD77: 0 | AE77: 0 | AF77: 0 | AG77: 0 | AH77: 56612 | AI77: 0 | AJ77: 0 | AK77: 0 | AL77: 0 | AM77: 0 | AN77: 0 | AO77: 0 | AP77: 0 | AQ77: 0 | AR77: 0 | AS77: 0 | AT77: 3271548 | AU77: 0 | AV77: 3271548 | AW77: 56612 | AX77: 3328160
A78: 2G | B78: Vista School | C78: 3510205 | D78: 23273656 | E78: 4156 | F78: 0 | G78: 37238 | H78: 214526 | I78: 0 | J78: 0 | K78: 0 | L78: 0 | M78: 10143 | N78: 0 | O78: 0 | P78: 0 | Q78: 0 | R78: 0 | S78: 0 | T78: 27049924 | U78: 0 | V78: 1068918 | W78: 0 | X78: 0 | Y78: 484808 | Z78: 0 | AA78: 13363 | AB78: 359267 | AC78: 0 | AD78: 0 | AE78: 0 | AF78: 0 | AG78: 0 | AH78: 1926356 | AI78: 10143 | AJ78: 18070625 | AK78: 375762 | AL78: 0 | AM78: 0 | AN78: 0 | AO78: 0 | AP78: 0 | AQ78: 0 | AR78: 0 | AS78: 0 | AT78: 0 | AU78: 6667038 | AV78: 25123568 | AW78: 1926356 | AX78: 27049924
A79: 2H | B79: Utah Connections Academy | C79: 7964076.67 | D79: 0 | E79: 0 | F79: 0 | G79: 211510.71 | H79: 15804.29 | I79: 0 | J79: 0 | K79: 0 | L79: 0 | M79: 1282.87 | N79: 0 | O79: 4586.67 | P79: 0 | Q79: 0 | R79: 225156 | S79: 0 | T79: 8422417.21 | U79: 0 | V79: 1653972.39 | W79: 0 | X79: 0 | Y79: 376022.91 | Z79: 0 | AA79: 0 | AB79: 0 | AC79: 0 | AD79: 0 | AE79: 164969.92 | AF79: 0 | AG79: 0 | AH79: 2194965.22 | AI79: 0 | AJ79: 0 | AK79: 0 | AL79: 0 | AM79: 0 | AN79: 0 | AO79: 17879.73 | AP79: 0 | AQ79: 0 | AR79: 0 | AS79: 0 | AT79: 6209572.26 | AU79: 0 | AV79: 6227451.99 | AW79: 2194965.22 | AX79: 8422417.21
A80: 2I | B80: Esperanza School | C80: 741303 | D80: 2273401 | E80: 4442 | F80: 0 | G80: 37335 | H80: 761013 | I80: 0 | J80: 0 | K80: 0 | L80: 0 | M80: 7851 | N80: 0 | O80: 0 | P80: 0 | Q80: 0 | R80: 0 | S80: 0 | T80: 3825345 | U80: 0 | V80: 39646 | W80: 0 | X80: 282741 | Y80: 0 | Z80: 0 | AA80: 0 | AB80: 0 | AC80: 0 | AD80: 0 | AE80: 0 | AF80: 0 | AG80: 0 | AH80: 322387 | AI80: 0 | AJ80: 0 | AK80: 0 | AL80: 0 | AM80: 0 | AN80: 0 | AO80: 0 | AP80: 0 | AQ80: 0 | AR80: 0 | AS80: 0 | AT80: 3502958 | AU80: 0 | AV80: 3502958 | AW80: 322387 | AX80: 3825345
A81: 2J | B81: Ascent Academies of Utah | C81: 7652136.95 | D81: 314102.99 | E81: 46 | F81: 0 | G81: 119525.22 | H81: 381976.7 | I81: 102983.75 | J81: 0 | K81: 14044.43 | L81: 0 | M81: 128401.9 | N81: 0 | O81: 3.98 | P81: 0 | Q81: 0 | R81: 0 | S81: 0 | T81: 8713221.92 | U81: -0.48 | V81: 515126.92 | W81: 0 | X81: 0 | Y81: 1419266.02 | Z81: 0 | AA81: 0 | AB81: 0 | AC81: 0 | AD81: 0 | AE81: 0 | AF81: 0 | AG81: 0 | AH81: 1934392.46 | AI81: 0 | AJ81: 0 | AK81: 0 | AL81: 0 | AM81: 0 | AN81: 0 | AO81: 0 | AP81: 0 | AQ81: 0 | AR81: 0 | AS81: 0 | AT81: 0 | AU81: 6778829.46 | AV81: 6778829.46 | AW81: 1934392.46 | AX81: 8713221.92
A82: 2K | B82: Utah Military Academy | C82: 2556662 | D82: 3066788 | E82: 1883 | F82: 0 | G82: 78173 | H82: 380462 | I82: 0 | J82: 0 | K82: 0 | L82: 0 | M82: 15230 | N82: 0 | O82: 0 | P82: 0 | Q82: 0 | R82: 0 | S82: 0 | T82: 6099198 | U82: 0 | V82: 136173 | W82: 0 | X82: 780976 | Y82: 0 | Z82: 0 | AA82: 0 | AB82: 0 | AC82: 0 | AD82: 0 | AE82: 0 | AF82: 0 | AG82: 0 | AH82: 917149 | AI82: 0 | AJ82: 0 | AK82: 0 | AL82: 1480882 | AM82: 0 | AN82: 0 | AO82: 0 | AP82: 0 | AQ82: 0 | AR82: 0 | AS82: 0 | AT82: 3701167 | AU82: 0 | AV82: 5182049 | AW82: 917149 | AX82: 6099198
A83: 2L | B83: The Center for Creativity Innovation and Discovery | C83: 1147599 | D83: 251824 | E83: 8419 | F83: 0 | G83: 33082 | H83: 326032 | I83: 0 | J83: 0 | K83: 0 | L83: 0 | M83: 6024 | N83: 0 | O83: 0 | P83: 0 | Q83: 0 | R83: 0 | S83: 0 | T83: 1772980 | U83: 0 | V83: 5574 | W83: 0 | X83: 259704 | Y83: 0 | Z83: 0 | AA83: 0 | AB83: 0 | AC83: 0 | AD83: 0 | AE83: 0 | AF83: 0 | AG83: 0 | AH83: 265278 | AI83: 0 | AJ83: 0 | AK83: 0 | AL83: 0 | AM83: 0 | AN83: 0 | AO83: 0 | AP83: 0 | AQ83: 0 | AR83: 0 | AS83: 0 | AT83: 1507702 | AU83: 0 | AV83: 1507702 | AW83: 265278 | AX83: 1772980
A84: 3B | B84: Beehive Science & Technology Academy | C84: 2079884 | D84: 5887738 | E84: 6593 | F84: 0 | G84: 35927 | H84: 94290 | I84: 0 | J84: 0 | K84: 0 | L84: 0 | M84: 238337 | N84: 0 | O84: 0 | P84: 0 | Q84: 0 | R84: 0 | S84: 0 | T84: 8342769 | U84: 0 | V84: 1431721 | W84: 0 | X84: 0 | Y84: 278882 | Z84: 0 | AA84: 71098 | AB84: 80605 | AC84: 0 | AD84: 0 | AE84: 0 | AF84: 0 | AG84: 0 | AH84: 1862306 | AI84: 238337 | AJ84: 5887738 | AK84: 9367 | AL84: 0 | AM84: 0 | AN84: 0 | AO84: 0 | AP84: 0 | AQ84: 0 | AR84: 0 | AS84: 0 | AT84: 0 | AU84: 345021 | AV84: 6480463 | AW84: 1862306 | AX84: 8342769
A85: 3C | B85: Entheos Academy | C85: 1431053 | D85: 4070591 | E85: 7580 | F85: 0 | G85: 275629 | H85: 1164375 | I85: 0 | J85: 0 | K85: 0 | L85: 0 | M85: 10099 | N85: 0 | O85: 0 | P85: 0 | Q85: 0 | R85: 0 | S85: 0 | T85: 6959327 | U85: 0 | V85: 104522 | W85: 0 | X85: 489533 | Y85: 0 | Z85: 0 | AA85: 0 | AB85: 0 | AC85: 0 | AD85: 1726 | AE85: 0 | AF85: 0 | AG85: 0 | AH85: 595781 | AI85: 0 | AJ85: 0 | AK85: 0 | AL85: 0 | AM85: 0 | AN85: 0 | AO85: 0 | AP85: 0 | AQ85: 0 | AR85: 0 | AS85: 0 | AT85: 6363546 | AU85: 0 | AV85: 6363546 | AW85: 595781 | AX85: 6959327
A86: 3D | B86: Spectrum Academy | C86: 5586389 | D86: 2205267 | E86: 1000 | F86: 0 | G86: 291094 | H86: 311755 | I86: 0 | J86: 0 | K86: 0 | L86: 0 | M86: 37916 | N86: 0 | O86: 0 | P86: 0 | Q86: 0 | R86: 0 | S86: 0 | T86: 8433421 | U86: 0 | V86: 105054 | W86: 0 | X86: 0 | Y86: 1865740 | Z86: 0 | AA86: 0 | AB86: 0 | AC86: 0 | AD86: 0 | AE86: 0 | AF86: 0 | AG86: 0 | AH86: 1970794 | AI86: 37916 | AJ86: 2205267 | AK86: 291702 | AL86: 0 | AM86: 0 | AN86: 0 | AO86: 0 | AP86: 0 | AQ86: 0 | AR86: 0 | AS86: 0 | AT86: 0 | AU86: 3927742 | AV86: 6462627 | AW86: 1970794 | AX86: 8433421
A87: 3E | B87: C.S. Lewis Academy | C87: 571498 | D87: 243179 | E87: 6082 | F87: 0 | G87: 27514 | H87: 474274 | I87: 0 | J87: 0 | K87: 0 | L87: 0 | M87: 0 | N87: 0 | O87: 0 | P87: 0 | Q87: 0 | R87: 0 | S87: 0 | T87: 1322547 | U87: 0 | V87: 8933 | W87: 0 | X87: 250917 | Y87: 0 | Z87: 0 | AA87: 0 | AB87: 51748 | AC87: 0 | AD87: 0 | AE87: 0 | AF87: 0 | AG87: 0 | AH87: 311598 | AI87: 0 | AJ87: 0 | AK87: 0 | AL87: 0 | AM87: 0 | AN87: 0 | AO87: 0 | AP87: 0 | AQ87: 0 | AR87: 0 | AS87: 0 | AT87: 0 | AU87: 1010949 | AV87: 1010949 | AW87: 311598 | AX87: 1322547
A88: 3F | B88: Venture Academy | C88: 1215557 | D88: 3560309 | E88: 13015 | F88: 0 | G88: 30929 | H88: 311795 | I88: 0 | J88: 0 | K88: 0 | L88: 0 | M88: 25350 | N88: 0 | O88: 0 | P88: 0 | Q88: 0 | R88: 0 | S88: 0 | T88: 5156955 | U88: 0 | V88: 23947 | W88: 0 | X88: 359467 | Y88: 0 | Z88: 0 | AA88: 0 | AB88: 0 | AC88: 0 | AD88: 0 | AE88: 0 | AF88: 0 | AG88: 0 | AH88: 383414 | AI88: 0 | AJ88: 0 | AK88: 0 | AL88: 0 | AM88: 0 | AN88: 0 | AO88: 0 | AP88: 0 | AQ88: 0 | AR88: 0 | AS88: 0 | AT88: 4773541 | AU88: 0 | AV88: 4773541 | AW88: 383414 | AX88: 5156955
A89: 3G | B89: Bear River Charter School | C89: 358799 | D89: 257272 | E89: 2558 | F89: 0 | G89: 37295 | H89: 145310 | I89: 0 | J89: 0 | K89: 0 | L89: 0 | M89: 18533 | N89: 0 | O89: 0 | P89: 0 | Q89: 0 | R89: 0 | S89: 0 | T89: 819767 | U89: 0 | V89: 9317 | W89: 0 | X89: 0 | Y89: 116184 | Z89: 0 | AA89: 0 | AB89: 0 | AC89: 0 | AD89: 0 | AE89: 0 | AF89: 0 | AG89: 0 | AH89: 125501 | AI89: 0 | AJ89: 0 | AK89: 0 | AL89: 0 | AM89: 0 | AN89: 0 | AO89: 0 | AP89: 0 | AQ89: 0 | AR89: 0 | AS89: 0 | AT89: 694266 | AU89: 0 | AV89: 694266 | AW89: 125501 | AX89: 819767
A90: 3H | B90: Endeavor Hall | C90: 487222 | D90: 1151146 | E90: 0 | F90: 0 | G90: 18960 | H90: 763315 | I90: 0 | J90: 0 | K90: 0 | L90: 0 | M90: 4900 | N90: 0 | O90: 0 | P90: 0 | Q90: 0 | R90: 0 | S90: 0 | T90: 2425543 | U90: 0 | V90: 6517 | W90: 0 | X90: 232407 | Y90: 0 | Z90: 0 | AA90: 0 | AB90: 0 | AC90: 0 | AD90: 0 | AE90: 0 | AF90: 0 | AG90: 0 | AH90: 238924 | AI90: 0 | AJ90: 0 | AK90: 0 | AL90: 0 | AM90: 0 | AN90: 0 | AO90: 0 | AP90: 0 | AQ90: 0 | AR90: 0 | AS90: 0 | AT90: 2186619 | AU90: 0 | AV90: 2186619 | AW90: 238924 | AX90: 2425543
A91: 3I | B91: Leadership Learning Academy | C91: 2560821.11 | D91: 1814429.68 | E91: 0 | F91: 0 | G91: 12485 | H91: 743296.89 | I91: 0 | J91: 0 | K91: 5556.69 | L91: 0 | M91: 72118.32 | N91: 0 | O91: 0 | P91: 0 | Q91: 0 | R91: 0 | S91: 0 | T91: 5208707.69 | U91: 0 | V91: 32793.86 | W91: 0 | X91: 91896.5 | Y91: 444994.71 | Z91: 0 | AA91: 0 | AB91: 52086.89 | AC91: 0 | AD91: 0 | AE91: 0 | AF91: 0 | AG91: 0 | AH91: 621771.96 | AI91: 0 | AJ91: 0 | AK91: 0 | AL91: 0 | AM91: 0 | AN91: 0 | AO91: 0 | AP91: 0 | AQ91: 0 | AR91: 0 | AS91: 0 | AT91: 0 | AU91: 4586935.73 | AV91: 4586935.73 | AW91: 621771.96 | AX91: 5208707.69
A92: 3J | B92: Mountain View Montessori | C92: 662110 | D92: 492361 | E92: 1194 | F92: 0 | G92: 22693 | H92: 172329 | I92: 0 | J92: 0 | K92: 0 | L92: 0 | M92: 5811 | N92: 0 | O92: 0 | P92: 0 | Q92: 0 | R92: 0 | S92: 0 | T92: 1356498 | U92: 0 | V92: 4369 | W92: 0 | X92: 147442 | Y92: 0 | Z92: 0 | AA92: 0 | AB92: 0 | AC92: 0 | AD92: 0 | AE92: 0 | AF92: 0 | AG92: 0 | AH92: 151811 | AI92: 0 | AJ92: 0 | AK92: 0 | AL92: 0 | AM92: 0 | AN92: 0 | AO92: 0 | AP92: 0 | AQ92: 0 | AR92: 0 | AS92: 0 | AT92: 1204687 | AU92: 0 | AV92: 1204687 | AW92: 151811 | AX92: 1356498
A93: 3K | B93: Roots Charter High School | C93: 515274.81 | D93: 0 | E93: 0 | F93: 0 | G93: 168761.15 | H93: 244819.03 | I93: 0 | J93: 0 | K93: 8356.92 | L93: 0 | M93: 3505 | N93: 0 | O93: 0 | P93: 0 | Q93: 0 | R93: 0 | S93: 0 | T93: 940716.91 | U93: 0 | V93: 53308.69 | W93: 0 | X93: 0 | Y93: 157151.35 | Z93: 0 | AA93: 0 | AB93: 0 | AC93: 0 | AD93: 0 | AE93: 0 | AF93: 0 | AG93: 0 | AH93: 210460.04 | AI93: 0 | AJ93: 0 | AK93: 0 | AL93: 232266.83 | AM93: 0 | AN93: 0 | AO93: 0 | AP93: 0 | AQ93: 0 | AR93: 0 | AS93: 0 | AT93: 0 | AU93: 497990.05 | AV93: 730256.88 | AW93: 210460.04 | AX93: 940716.91
A94: 3L | B94: Leadership Academy of Utah | C94: 1045221 | D94: 0 | E94: 5479 | F94: 0 | G94: 26773 | H94: 95069 | I94: 0 | J94: 0 | K94: 0 | L94: 0 | M94: 8766 | N94: 0 | O94: 0 | P94: 0 | Q94: 0 | R94: 0 | S94: 0 | T94: 1181308 | U94: 0 | V94: 3594 | W94: 0 | X94: 35210 | Y94: 0 | Z94: 0 | AA94: 0 | AB94: 0 | AC94: 0 | AD94: 0 | AE94: 0 | AF94: 0 | AG94: 0 | AH94: 38804 | AI94: 0 | AJ94: 0 | AK94: 0 | AL94: 0 | AM94: 0 | AN94: 0 | AO94: 0 | AP94: 0 | AQ94: 0 | AR94: 0 | AS94: 0 | AT94: 1142504 | AU94: 0 | AV94: 1142504 | AW94: 38804 | AX94: 1181308
A95: 3M | B95: Bridge Elementary School | C95: 1488677.8 | D95: 0 | E95: 0 | F95: 0 | G95: 11179.03 | H95: 304675.07 | I95: 0 | J95: 0 | K95: 2144.77 | L95: 0 | M95: 6096 | N95: 0 | O95: 0 | P95: 0 | Q95: 0 | R95: 0 | S95: 0 | T95: 1812772.67 | U95: 0 | V95: 216044.81 | W95: 0 | X95: 0 | Y95: 190859.11 | Z95: 0 | AA95: 0 | AB95: 0 | AC95: 0 | AD95: 0 | AE95: 0 | AF95: 0 | AG95: 0 | AH95: 406903.92 | AI95: 0 | AJ95: 0 | AK95: 0 | AL95: 0 | AM95: 0 | AN95: 0 | AO95: 0 | AP95: 0 | AQ95: 0 | AR95: 0 | AS95: 0 | AT95: 0 | AU95: 1405868.75 | AV95: 1405868.75 | AW95: 406903.92 | AX95: 1812772.67
A96: 4B | B96: Wasatch Peak Academy | C96: 2000833.51 | D96: 642280.34 | E96: 0 | F96: 0 | G96: 6806.72 | H96: 36911.96 | I96: 0 | J96: 0 | K96: 3208.81 | L96: 0 | M96: 0 | N96: 0 | O96: 0 | P96: 0 | Q96: 0 | R96: 0 | S96: 0 | T96: 2690041.34 | U96: 0 | V96: 12605.34 | W96: 0 | X96: 0 | Y96: 142659.15 | Z96: 0 | AA96: 0 | AB96: 0 | AC96: 0 | AD96: 0 | AE96: 0 | AF96: 0 | AG96: 0 | AH96: 155264.49 | AI96: 0 | AJ96: 0 | AK96: 0 | AL96: 0 | AM96: 0 | AN96: 0 | AO96: 0 | AP96: 0 | AQ96: 0 | AR96: 0 | AS96: 0 | AT96: 0 | AU96: 2534776.85 | AV96: 2534776.85 | AW96: 155264.49 | AX96: 2690041.34
A97: 4C | B97: Lakeview Academy | C97: 4281335.03 | D97: 1439280.7 | E97: 0 | F97: 0 | G97: 21904 | H97: 43135.31 | I97: 0 | J97: 0 | K97: 692.23 | L97: 0 | M97: 3067.67 | N97: 0 | O97: 0 | P97: 0 | Q97: 0 | R97: 0 | S97: 0 | T97: 5789414.94 | U97: 0 | V97: 54336.01 | W97: 137.25 | X97: 0 | Y97: 638441.18 | Z97: 0 | AA97: 0 | AB97: 11936.98 | AC97: 0 | AD97: 0 | AE97: 0 | AF97: 0 | AG97: 0 | AH97: 704851.42 | AI97: 0 | AJ97: 0 | AK97: 0 | AL97: 264978.55 | AM97: 0 | AN97: 0 | AO97: 0 | AP97: 0 | AQ97: 0 | AR97: 0 | AS97: 0 | AT97: 0 | AU97: 4819584.96 | AV97: 5084563.51 | AW97: 704851.42 | AX97: 5789414.94
A98: 4D | B98: Syracuse Arts Academy | C98: 11630141.22 | D98: 1151289.15 | E98: -81.5 | F98: 0 | G98: 55398.25 | H98: 1039256.29 | I98: 0 | J98: 0 | K98: 6023.3 | L98: 0 | M98: 216839.32 | N98: 0 | O98: 0 | P98: 0 | Q98: 0 | R98: 0 | S98: 0 | T98: 14098866.03 | U98: 0 | V98: 74497.19 | W98: 0 | X98: 0 | Y98: 1096541.89 | Z98: 0 | AA98: 2382.5 | AB98: 0 | AC98: 0 | AD98: 0 | AE98: 0 | AF98: 0 | AG98: 0 | AH98: 1173421.58 | AI98: 0 | AJ98: 0 | AK98: 0 | AL98: 0 | AM98: 0 | AN98: 0 | AO98: 0 | AP98: 0 | AQ98: 0 | AR98: 0 | AS98: 0 | AT98: 0 | AU98: 12925444.45 | AV98: 12925444.45 | AW98: 1173421.58 | AX98: 14098866.03
A99: 4E | B99: Dual Immersion Academy | C99: 1813752 | D99: 839197 | E99: 4695 | F99: 0 | G99: 18251 | H99: 895738 | I99: 0 | J99: 0 | K99: 0 | L99: 0 | M99: 27636 | N99: 0 | O99: 0 | P99: 0 | Q99: 0 | R99: 0 | S99: 0 | T99: 3599269 | U99: 0 | V99: 86913 | W99: 0 | X99: 300096 | Y99: 0 | Z99: 0 | AA99: 0 | AB99: 0 | AC99: 0 | AD99: 0 | AE99: 0 | AF99: 0 | AG99: 0 | AH99: 387009 | AI99: 0 | AJ99: 0 | AK99: 0 | AL99: 0 | AM99: 0 | AN99: 0 | AO99: 0 | AP99: 0 | AQ99: 0 | AR99: 0 | AS99: 0 | AT99: 0 | AU99: 3212260 | AV99: 3212260 | AW99: 387009 | AX99: 3599269
A100: 4F | B100: Salt Lake Center for Science Education | C100: 60 | D100: 858849.47 | E100: 0 | F100: 0 | G100: 48439.08 | H100: 84170.29 | I100: 0 | J100: 0 | K100: 0 | L100: 0 | M100: 2976.72 | N100: 0 | O100: 0 | P100: 0 | Q100: 0 | R100: 0 | S100: 0 | T100: 994495.56 | U100: 0 | V100: 11431.76 | W100: 0 | X100: 0 | Y100: 0 | Z100: 0 | AA100: 0 | AB100: 177326 | AC100: 0 | AD100: 10795.6 | AE100: 0 | AF100: 0 | AG100: 0 | AH100: 199553.36 | AI100: 2976.72 | AJ100: 0 | AK100: 0 | AL100: 0 | AM100: 0 | AN100: 0 | AO100: 0 | AP100: 0 | AQ100: 0 | AR100: 0 | AS100: 0 | AT100: 0 | AU100: 791965.48 | AV100: 794942.2 | AW100: 199553.36 | AX100: 994495.56
A101: 4G | B101: Maria Montessori Academy | C101: 726915.92 | D101: 965563.42 | E101: 0 | F101: 0 | G101: 0 | H101: 381193.73 | I101: 0 | J101: 0 | K101: 2299.89 | L101: 0 | M101: 0 | N101: 0 | O101: 0 | P101: 0 | Q101: 0 | R101: 0 | S101: 0 | T101: 2075972.96 | U101: 0 | V101: 7016.3 | W101: 0 | X101: 0 | Y101: 179597.18 | Z101: 0 | AA101: 0 | AB101: 3566.68 | AC101: 0 | AD101: 0 | AE101: 0 | AF101: 0 | AG101: 0 | AH101: 190180.16 | AI101: 0 | AJ101: 0 | AK101: 0 | AL101: 0 | AM101: 0 | AN101: 0 | AO101: 0 | AP101: 0 | AQ101: 0 | AR101: 0 | AS101: 0 | AT101: 0 | AU101: 1885792.8 | AV101: 1885792.8 | AW101: 190180.16 | AX101: 2075972.96
A102: 4I | B102: Mana Academy Charter School | C102: 1747041 | D102: 865976 | E102: 3011 | F102: 0 | G102: 3931 | H102: 337284 | I102: 0 | J102: 0 | K102: 0 | L102: 0 | M102: 39718 | N102: 0 | O102: 0 | P102: 0 | Q102: 0 | R102: 0 | S102: 0 | T102: 2996961 | U102: 0 | V102: 7702 | W102: 0 | X102: 141507 | Y102: 0 | Z102: 0 | AA102: 0 | AB102: 0 | AC102: 0 | AD102: 0 | AE102: 0 | AF102: 0 | AG102: 0 | AH102: 149209 | AI102: 0 | AJ102: 0 | AK102: 0 | AL102: 0 | AM102: 0 | AN102: 0 | AO102: 0 | AP102: 0 | AQ102: 0 | AR102: 0 | AS102: 0 | AT102: 2847752 | AU102: 0 | AV102: 2847752 | AW102: 149209 | AX102: 2996961
A103: 4K | B103: Athenian eAcademy | C103: 1190488.76 | D103: 0 | E103: 0 | F103: 0 | G103: 85321.87 | H103: 125175.05 | I103: 0 | J103: 0 | K103: 0 | L103: 0 | M103: 0 | N103: 0 | O103: 53500 | P103: 0 | Q103: 0 | R103: 0 | S103: 0 | T103: 1454485.68 | U103: 0 | V103: 100579.42 | W103: 0 | X103: 0 | Y103: 218034.04 | Z103: 0 | AA103: 0 | AB103: 0 | AC103: 0 | AD103: 0 | AE103: 0 | AF103: 0 | AG103: 0 | AH103: 318613.46 | AI103: 0 | AJ103: 0 | AK103: 0 | AL103: 9911.34 | AM103: 0 | AN103: 0 | AO103: 0 | AP103: 0 | AQ103: 0 | AR103: 0 | AS103: 0 | AT103: 0 | AU103: 1125960.88 | AV103: 1135872.22 | AW103: 318613.46 | AX103: 1454485.68
A104: 4M | B104: Mountain Sunrise Academy | C104: 580962 | D104: 786637 | E104: 3670 | F104: 0 | G104: 7643 | H104: 400003 | I104: 0 | J104: 0 | K104: 0 | L104: 0 | M104: 0 | N104: 0 | O104: 0 | P104: 0 | Q104: 0 | R104: 0 | S104: 0 | T104: 1778915 | U104: 0 | V104: 12057 | W104: 0 | X104: 182285 | Y104: 0 | Z104: 0 | AA104: 0 | AB104: 0 | AC104: 0 | AD104: 0 | AE104: 0 | AF104: 0 | AG104: 0 | AH104: 194342 | AI104: 0 | AJ104: 0 | AK104: 0 | AL104: 0 | AM104: 0 | AN104: 0 | AO104: 0 | AP104: 0 | AQ104: 0 | AR104: 0 | AS104: 0 | AT104: 1584573 | AU104: 0 | AV104: 1584573 | AW104: 194342 | AX104: 1778915
A105: 5B | B105: North Star Academy | C105: 1586346.76 | D105: 1915202.95 | E105: 0 | F105: 0 | G105: 13815.18 | H105: 133847.61 | I105: 0 | J105: 0 | K105: 1341.61 | L105: 0 | M105: 14652.5 | N105: 0 | O105: 0 | P105: 0 | Q105: 0 | R105: 0 | S105: 0 | T105: 3665206.61 | U105: 0 | V105: 21861.48 | W105: 0 | X105: 0 | Y105: 189898.92 | Z105: 0 | AA105: 0 | AB105: 0 | AC105: 0 | AD105: 0 | AE105: 0 | AF105: 0 | AG105: 0 | AH105: 211760.4 | AI105: 0 | AJ105: 0 | AK105: 0 | AL105: 0 | AM105: 0 | AN105: 0 | AO105: 0 | AP105: 0 | AQ105: 0 | AR105: 0 | AS105: 0 | AT105: 0 | AU105: 3453446.21 | AV105: 3453446.21 | AW105: 211760.4 | AX105: 3665206.61
A106: 5C | B106: Legacy Preparatory Academy | C106: 11436191.82 | D106: 3156020.47 | E106: 1.25 | F106: 0 | G106: 20082.56 | H106: 42460.07 | I106: 0 | J106: 0 | K106: 55387.41 | L106: 0 | M106: 0 | N106: 0 | O106: 0 | P106: 0 | Q106: 0 | R106: 0 | S106: 0 | T106: 14710143.58 | U106: 0 | V106: 118881.04 | W106: 0 | X106: 0 | Y106: 505959.54 | Z106: 0 | AA106: 0 | AB106: 0 | AC106: 0 | AD106: 0 | AE106: 0 | AF106: 0 | AG106: 0 | AH106: 624840.58 | AI106: 0 | AJ106: 0 | AK106: 0 | AL106: 0 | AM106: 0 | AN106: 0 | AO106: 0 | AP106: 0 | AQ106: 0 | AR106: 0 | AS106: 0 | AT106: 0 | AU106: 14085303 | AV106: 14085303 | AW106: 624840.58 | AX106: 14710143.58
A107: 5D | B107: George Washington Academy | C107: 3434056 | D107: 5257359 | E107: 6505 | F107: 0 | G107: 59266 | H107: 353424 | I107: 0 | J107: 0 | K107: 0 | L107: 0 | M107: 6528 | N107: 0 | O107: 0 | P107: 0 | Q107: 0 | R107: 0 | S107: 0 | T107: 9117138 | U107: 0 | V107: 26327 | W107: 0 | X107: 279273 | Y107: 0 | Z107: 0 | AA107: 0 | AB107: 400000 | AC107: 0 | AD107: 0 | AE107: 0 | AF107: 0 | AG107: 0 | AH107: 705600 | AI107: 0 | AJ107: 0 | AK107: 0 | AL107: 0 | AM107: 0 | AN107: 0 | AO107: 0 | AP107: 0 | AQ107: 0 | AR107: 0 | AS107: 0 | AT107: 8411538 | AU107: 0 | AV107: 8411538 | AW107: 705600 | AX107: 9117138
A108: 5E | B108: Edith Bowen Laboratory School | C108: 658610.46 | D108: 0 | E108: 0 | F108: 0 | G108: 5216.86 | H108: 261032.44 | I108: 0 | J108: 0 | K108: 0 | L108: 13112 | M108: 7259.54 | N108: 1441134.42 | O108: 0 | P108: 0 | Q108: 0 | R108: 0 | S108: 196268.28 | T108: 2582634 | U108: 0 | V108: 11661.42 | W108: 0 | X108: 0 | Y108: 300899.25 | Z108: 0 | AA108: 2181.6 | AB108: 0 | AC108: 0 | AD108: 36395.17 | AE108: 0 | AF108: 1846987.86 | AG108: 0 | AH108: 2198125.3 | AI108: 0 | AJ108: 0 | AK108: 0 | AL108: 0 | AM108: 0 | AN108: 0 | AO108: 0 | AP108: 0 | AQ108: 0 | AR108: 0 | AS108: 0 | AT108: 0 | AU108: 384508.7 | AV108: 384508.7 | AW108: 2198125.3 | AX108: 2582634
A109: 5F | B109: Utah Virtual Academy | C109: 8560038.88 | D109: 823208.74 | E109: 0 | F109: 0 | G109: 160936.59 | H109: 1631660.37 | I109: 0 | J109: 0 | K109: 1391.17 | L109: 0 | M109: 0 | N109: 0 | O109: 0 | P109: 0 | Q109: 0 | R109: 0 | S109: 0 | T109: 11177235.75 | U109: 0 | V109: 542088.37 | W109: 0 | X109: 0 | Y109: 853028.99 | Z109: 0 | AA109: 0 | AB109: 0 | AC109: 0 | AD109: 0 | AE109: 0 | AF109: 0 | AG109: 0 | AH109: 1395117.36 | AI109: 0 | AJ109: 0 | AK109: 0 | AL109: 0 | AM109: 0 | AN109: 0 | AO109: 0 | AP109: 0 | AQ109: 0 | AR109: 0 | AS109: 0 | AT109: 0 | AU109: 9782118.39 | AV109: 9782118.39 | AW109: 1395117.36 | AX109: 11177235.75
A110: 5G | B110: Canyon Grove Academy | C110: 1925050 | D110: 503708 | E110: 4759 | F110: 0 | G110: 901 | H110: 448689 | I110: 0 | J110: 0 | K110: 0 | L110: 0 | M110: 14337 | N110: 0 | O110: 0 | P110: 0 | Q110: 0 | R110: 0 | S110: 0 | T110: 2897444 | U110: 0 | V110: 108346 | W110: 0 | X110: 886792 | Y110: 0 | Z110: 0 | AA110: 0 | AB110: 0 | AC110: 0 | AD110: 0 | AE110: 0 | AF110: 0 | AG110: 0 | AH110: 995138 | AI110: 0 | AJ110: 0 | AK110: 0 | AL110: 0 | AM110: 0 | AN110: 0 | AO110: 0 | AP110: 0 | AQ110: 0 | AR110: 0 | AS110: 0 | AT110: 1902306 | AU110: 0 | AV110: 1902306 | AW110: 995138 | AX110: 2897444
A111: 5H | B111: Highmark Charter School | C111: 1564848.18 | D111: 937106.6 | E111: 0 | F111: 0 | G111: 13389.56 | H111: 288062.92 | I111: 0 | J111: 0 | K111: 1646.21 | L111: 0 | M111: 12244.14 | N111: 0 | O111: 0 | P111: 0 | Q111: 0 | R111: 0 | S111: 0 | T111: 2817297.61 | U111: 0 | V111: 9842.65 | W111: 0 | X111: 8533.57 | Y111: 350599.33 | Z111: 0 | AA111: 17732 | AB111: 0 | AC111: 0 | AD111: 0 | AE111: 0 | AF111: 0 | AG111: 0 | AH111: 386707.55 | AI111: 0 | AJ111: 0 | AK111: 0 | AL111: 0 | AM111: 0 | AN111: 0 | AO111: 0 | AP111: 0 | AQ111: 0 | AR111: 0 | AS111: 0 | AT111: 0 | AU111: 2430590.06 | AV111: 2430590.06 | AW111: 386707.55 | AX111: 2817297.61
A112: 5I | B112: Voyage Academy | C112: 2711087 | D112: 820318.37 | E112: 0 | F112: 0 | G112: 38937.12 | H112: 88060.62 | I112: 0 | J112: 0 | K112: 0 | L112: 0 | M112: 0 | N112: 0 | O112: 0 | P112: 0 | Q112: 0 | R112: 0 | S112: 0 | T112: 3658403.11 | U112: 0 | V112: 47669.52 | W112: 0 | X112: 0 | Y112: 153835.99 | Z112: 0 | AA112: 0 | AB112: 5382.1 | AC112: 0 | AD112: 0 | AE112: 0 | AF112: 0 | AG112: 0 | AH112: 206887.61 | AI112: 0 | AJ112: 0 | AK112: 159656 | AL112: 0 | AM112: 0 | AN112: 0 | AO112: 0 | AP112: 0 | AQ112: 0 | AR112: 0 | AS112: 0 | AT112: 0 | AU112: 3291859.5 | AV112: 3451515.5 | AW112: 206887.61 | AX112: 3658403.11
A113: 5J | B113: Mountain West Montessori Academy | C113: 1991869.86 | D113: 1342465.25 | E113: 0 | F113: 0 | G113: 9349.37 | H113: 70150.99 | I113: 0 | J113: 0 | K113: 2727.58 | L113: 0 | M113: 464 | N113: 0 | O113: 0 | P113: 0 | Q113: 0 | R113: 0 | S113: 0 | T113: 3417027.05 | U113: 0 | V113: 13500 | W113: 0 | X113: 0 | Y113: 224081.85 | Z113: 0 | AA113: 0 | AB113: 0 | AC113: 0 | AD113: 0 | AE113: 0 | AF113: 0 | AG113: 0 | AH113: 237581.85 | AI113: 0 | AJ113: 0 | AK113: 0 | AL113: 0 | AM113: 0 | AN113: 0 | AO113: 0 | AP113: 0 | AQ113: 0 | AR113: 0 | AS113: 0 | AT113: 0 | AU113: 3179445.2 | AV113: 3179445.2 | AW113: 237581.85 | AX113: 3417027.05
A114: 5K | B114: Wasatch Waldorf Charter School | C114: 954500 | D114: 1331020 | E114: 39315 | F114: 0 | G114: 32786 | H114: 390711 | I114: 0 | J114: 0 | K114: 0 | L114: 0 | M114: 2100 | N114: 0 | O114: 0 | P114: 0 | Q114: 0 | R114: 0 | S114: 0 | T114: 2750432 | U114: 0 | V114: 11807 | W114: 0 | X114: 332614 | Y114: 0 | Z114: 0 | AA114: 0 | AB114: 0 | AC114: 0 | AD114: 0 | AE114: 0 | AF114: 0 | AG114: 0 | AH114: 344421 | AI114: 0 | AJ114: 0 | AK114: 0 | AL114: 0 | AM114: 0 | AN114: 0 | AO114: 0 | AP114: 0 | AQ114: 0 | AR114: 0 | AS114: 0 | AT114: 2406011 | AU114: 0 | AV114: 2406011 | AW114: 344421 | AX114: 2750432
A115: 5L | B115: Ignite Entrepreneurship Academy | C115: 1816532.42 | D115: 0 | E115: 0 | F115: 0 | G115: 9116.21 | H115: 0 | I115: 0 | J115: 0 | K115: 0 | L115: 0 | M115: 5000 | N115: 0 | O115: 0 | P115: 0 | Q115: 0 | R115: 0 | S115: 0 | T115: 1830648.63 | U115: 0 | V115: 23565.16 | W115: 0 | X115: 14949.7 | Y115: 225555.27 | Z115: 0 | AA115: 0 | AB115: 13930.3 | AC115: 0 | AD115: 0 | AE115: 0 | AF115: 0 | AG115: 0 | AH115: 278000.43 | AI115: 0 | AJ115: 0 | AK115: 0 | AL115: 8759.8 | AM115: 0 | AN115: 0 | AO115: 43983.2 | AP115: 0 | AQ115: 0 | AR115: 0 | AS115: 10505.75 | AT115: 0 | AU115: 1489399.44 | AV115: 1552648.19 | AW115: 278000.43 | AX115: 1830648.63
A116: 6D | B116: Noah Webster Academy | C116: 3104254.98 | D116: 936524.61 | E116: 0 | F116: 0 | G116: 5632.42 | H116: 244791.05 | I116: 0 | J116: 0 | K116: 913.39 | L116: 0 | M116: 0 | N116: 0 | O116: 0 | P116: 0 | Q116: 0 | R116: 0 | S116: 0 | T116: 4292116.45 | U116: 0 | V116: 20979.42 | W116: 0 | X116: 0 | Y116: 247323.49 | Z116: 0 | AA116: 0 | AB116: 0 | AC116: 0 | AD116: 0 | AE116: 0 | AF116: 0 | AG116: 0 | AH116: 268302.91 | AI116: 0 | AJ116: 0 | AK116: 0 | AL116: 0 | AM116: 0 | AN116: 0 | AO116: 0 | AP116: 0 | AQ116: 0 | AR116: 0 | AS116: 0 | AT116: 0 | AU116: 4023813.54 | AV116: 4023813.54 | AW116: 268302.91 | AX116: 4292116.45
A117: 6F | B117: Early Light Academy at Daybreak | C117: 5494912.13 | D117: 1624943.71 | E117: 0 | F117: 0 | G117: 89271.74 | H117: 129320.88 | I117: 0 | J117: 0 | K117: 10719.22 | L117: 0 | M117: 4608.2 | N117: 0 | O117: 0 | P117: 0 | Q117: 0 | R117: 0 | S117: 0 | T117: 7353775.88 | U117: 0 | V117: 0 | W117: 0 | X117: 0 | Y117: 487228.48 | Z117: 0 | AA117: 0 | AB117: 0 | AC117: 0 | AD117: 0 | AE117: 0 | AF117: 0 | AG117: 0 | AH117: 487228.48 | AI117: 0 | AJ117: 0 | AK117: 0 | AL117: 0 | AM117: 0 | AN117: 0 | AO117: 0 | AP117: 0 | AQ117: 0 | AR117: 0 | AS117: 0 | AT117: 0 | AU117: 6866547.4 | AV117: 6866547.4 | AW117: 487228.48 | AX117: 7353775.88
A118: 6G | B118: Weilenmann School of Discovery | C118: 1330989.22 | D118: 0 | E118: 0 | F118: 0 | G118: 66345.68 | H118: 270085.55 | I118: 0 | J118: 0 | K118: 741.66 | L118: 0 | M118: 0 | N118: 0 | O118: 0 | P118: 0 | Q118: 0 | R118: 0 | S118: 0 | T118: 1668162.11 | U118: 0 | V118: 321.65 | W118: 0 | X118: 0 | Y118: 334432.8 | Z118: 0 | AA118: 0 | AB118: 0 | AC118: 0 | AD118: 0 | AE118: 0 | AF118: 0 | AG118: 0 | AH118: 334754.45 | AI118: 0 | AJ118: 0 | AK118: 0 | AL118: 4558.55 | AM118: 0 | AN118: 0 | AO118: 0 | AP118: 0 | AQ118: 0 | AR118: 0 | AS118: 0 | AT118: 0 | AU118: 1328849.11 | AV118: 1333407.66 | AW118: 334754.45 | AX118: 1668162.11
A119: 6H | B119: Promontory School of Expeditionary Learning | C119: 986220 | D119: 999818 | E119: 16423 | F119: 0 | G119: 34637 | H119: 251256 | I119: 0 | J119: 0 | K119: 0 | L119: 0 | M119: 20551 | N119: 0 | O119: 0 | P119: 0 | Q119: 0 | R119: 0 | S119: 0 | T119: 2308905 | U119: 0 | V119: 40373 | W119: 0 | X119: 191498 | Y119: 0 | Z119: 0 | AA119: 0 | AB119: 0 | AC119: 0 | AD119: 0 | AE119: 0 | AF119: 0 | AG119: 0 | AH119: 231871 | AI119: 0 | AJ119: 0 | AK119: 0 | AL119: 0 | AM119: 0 | AN119: 0 | AO119: 0 | AP119: 0 | AQ119: 0 | AR119: 0 | AS119: 0 | AT119: 2077034 | AU119: 0 | AV119: 2077034 | AW119: 231871 | AX119: 2308905
A120: 6J | B120: Scholar Academy | C120: 2018316.43 | D120: 1456037.32 | E120: 0 | F120: 0 | G120: 51948.05 | H120: 187088.2 | I120: 0 | J120: 0 | K120: 1925.4 | L120: 0 | M120: 0 | N120: 0 | O120: 0 | P120: 0 | Q120: 0 | R120: 0 | S120: 0 | T120: 3715315.4 | U120: 0 | V120: 31801.02 | W120: 0 | X120: 0 | Y120: 229278.67 | Z120: 0 | AA120: 0 | AB120: 0 | AC120: 0 | AD120: 0 | AE120: 0 | AF120: 0 | AG120: 0 | AH120: 261079.69 | AI120: 0 | AJ120: 0 | AK120: 0 | AL120: 0 | AM120: 0 | AN120: 0 | AO120: 0 | AP120: 0 | AQ120: 0 | AR120: 0 | AS120: 0 | AT120: 0 | AU120: 3454235.71 | AV120: 3454235.71 | AW120: 261079.69 | AX120: 3715315.4
A121: 6K | B121: Franklin Discovery Academy | C121: 1812663 | D121: 85833 | E121: 0 | F121: 0 | G121: 46187 | H121: 157207 | I121: 0 | J121: 0 | K121: 478 | L121: 0 | M121: 0 | N121: 0 | O121: 0 | P121: 0 | Q121: 0 | R121: 0 | S121: 0 | T121: 2102368 | U121: 0 | V121: 71344 | W121: 0 | X121: 0 | Y121: 103851 | Z121: 0 | AA121: 0 | AB121: 1203 | AC121: 0 | AD121: 0 | AE121: 0 | AF121: 0 | AG121: 0 | AH121: 176398 | AI121: 0 | AJ121: 0 | AK121: 278364 | AL121: 0 | AM121: 0 | AN121: 0 | AO121: 0 | AP121: 0 | AQ121: 0 | AR121: 0 | AS121: 0 | AT121: 0 | AU121: 1647606 | AV121: 1925970 | AW121: 176398 | AX121: 2102368
A122: 6L | B122: Bonneville Academy | C122: 1174551 | D122: 553207 | E122: 216166 | F122: 0 | G122: 10856 | H122: 252933 | I122: 0 | J122: 0 | K122: 0 | L122: 0 | M122: 0 | N122: 0 | O122: 0 | P122: 0 | Q122: 0 | R122: 0 | S122: 0 | T122: 2207713 | U122: 0 | V122: 27342 | W122: 0 | X122: 285598 | Y122: 0 | Z122: 0 | AA122: 500 | AB122: 0 | AC122: 0 | AD122: 0 | AE122: 0 | AF122: 0 | AG122: 0 | AH122: 313440 | AI122: 0 | AJ122: 0 | AK122: 0 | AL122: 0 | AM122: 0 | AN122: 0 | AO122: 0 | AP122: 0 | AQ122: 0 | AR122: 0 | AS122: 0 | AT122: 1894273 | AU122: 0 | AV122: 1894273 | AW122: 313440 | AX122: 2207713
A123: 7B | B123: Reagan Academy | C123: 1792170 | D123: 1277699 | E123: 0 | F123: 0 | G123: 24161 | H123: 23623 | I123: 0 | J123: 0 | K123: 0 | L123: 0 | M123: 0 | N123: 0 | O123: 10651 | P123: 0 | Q123: 0 | R123: 0 | S123: 0 | T123: 3128304 | U123: 0 | V123: 6276 | W123: 0 | X123: 0 | Y123: 205408 | Z123: 0 | AA123: 0 | AB123: 1251 | AC123: 0 | AD123: 0 | AE123: 0 | AF123: 0 | AG123: 0 | AH123: 212935 | AI123: 0 | AJ123: 0 | AK123: 353849 | AL123: 0 | AM123: 0 | AN123: 0 | AO123: 0 | AP123: 0 | AQ123: 0 | AR123: 0 | AS123: 0 | AT123: 0 | AU123: 2561520 | AV123: 2915369 | AW123: 212935 | AX123: 3128304
A124: 7C | B124: Monticello Academy | C124: 1422812 | D124: 1699252 | E124: 28729 | F124: 0 | G124: 51034 | H124: 272017 | I124: 0 | J124: 0 | K124: 0 | L124: 0 | M124: 0 | N124: 0 | O124: 0 | P124: 0 | Q124: 0 | R124: 0 | S124: 0 | T124: 3473844 | U124: 0 | V124: 162211 | W124: 0 | X124: 0 | Y124: 355183 | Z124: 0 | AA124: 0 | AB124: 200948 | AC124: 0 | AD124: 0 | AE124: 0 | AF124: 0 | AG124: 0 | AH124: 718342 | AI124: 0 | AJ124: 0 | AK124: 348701 | AL124: 0 | AM124: 0 | AN124: 0 | AO124: 0 | AP124: 0 | AQ124: 0 | AR124: 0 | AS124: 0 | AT124: 0 | AU124: 2406801 | AV124: 2755502 | AW124: 718342 | AX124: 3473844
A125: 7D | B125: Salt Lake School for the Performing Arts | C125: 659024 | D125: 326415 | E125: 3816 | F125: 0 | G125: 40026 | H125: 91000 | I125: 0 | J125: 0 | K125: 0 | L125: 0 | M125: 0 | N125: 0 | O125: 0 | P125: 0 | Q125: 0 | R125: 0 | S125: 0 | T125: 1120281 | U125: 0 | V125: 271696 | W125: 0 | X125: 142774 | Y125: 0 | Z125: 0 | AA125: 0 | AB125: 0 | AC125: 0 | AD125: 0 | AE125: 0 | AF125: 0 | AG125: 0 | AH125: 414470 | AI125: 0 | AJ125: 0 | AK125: 0 | AL125: 0 | AM125: 0 | AN125: 0 | AO125: 0 | AP125: 0 | AQ125: 0 | AR125: 0 | AS125: 0 | AT125: 705811 | AU125: 0 | AV125: 705811 | AW125: 414470 | AX125: 1120281
A126: 7E | B126: Gateway Preparatory Academy | C126: 3897792.51 | D126: 0 | E126: 7101.14 | F126: 0 | G126: 35965.22 | H126: 669059.02 | I126: 0 | J126: 0 | K126: 1992.58 | L126: 0 | M126: 22404.18 | N126: 0 | O126: 0 | P126: 0 | Q126: 0 | R126: 0 | S126: 0 | T126: 4634314.65 | U126: 0 | V126: 46303.96 | W126: 0 | X126: 0 | Y126: 217601.35 | Z126: 0 | AA126: 0 | AB126: 3050.49 | AC126: 0 | AD126: 0 | AE126: 0 | AF126: 0 | AG126: 0 | AH126: 266955.8 | AI126: 0 | AJ126: 0 | AK126: 173824.21 | AL126: 34936.5 | AM126: 0 | AN126: 0 | AO126: 0 | AP126: 0 | AQ126: 0 | AR126: 0 | AS126: 0 | AT126: 0 | AU126: 4158598.14 | AV126: 4367358.85 | AW126: 266955.8 | AX126: 4634314.65
A127: 7F | B127: Excelsior Academy | C127: 3766730.14 | D127: 0 | E127: 3520 | F127: 0 | G127: 40314.15 | H127: 548663.06 | I127: 0 | J127: 0 | K127: 1689.69 | L127: 0 | M127: 30075 | N127: 0 | O127: 0 | P127: 0 | Q127: 0 | R127: 0 | S127: 0 | T127: 4390992.04 | U127: 0 | V127: 38614.83 | W127: 450.1 | X127: 0 | Y127: 675550.95 | Z127: 0 | AA127: 0 | AB127: 0 | AC127: 0 | AD127: 0 | AE127: 0 | AF127: 0 | AG127: 0 | AH127: 714615.88 | AI127: 0 | AJ127: 0 | AK127: 501158.48 | AL127: 42414.64 | AM127: 0 | AN127: 0 | AO127: 0 | AP127: 0 | AQ127: 0 | AR127: 0 | AS127: 0 | AT127: 0 | AU127: 3132803.04 | AV127: 3676376.16 | AW127: 714615.88 | AX127: 4390992.04
A128: 7G | B128: Summit Academy High School | C128: 1875469 | D128: 520539 | E128: 28106 | F128: 0 | G128: 28957 | H128: 105115 | I128: 0 | J128: 0 | K128: 0 | L128: 0 | M128: 0 | N128: 0 | O128: 0 | P128: 0 | Q128: 0 | R128: 0 | S128: 0 | T128: 2558186 | U128: 0 | V128: 53693 | W128: 0 | X128: 0 | Y128: 413667 | Z128: 0 | AA128: 0 | AB128: 203574 | AC128: 14813 | AD128: 0 | AE128: 0 | AF128: 0 | AG128: 0 | AH128: 685747 | AI128: 0 | AJ128: 0 | AK128: 0 | AL128: 0 | AM128: 0 | AN128: 0 | AO128: 0 | AP128: 0 | AQ128: 0 | AR128: 0 | AS128: 0 | AT128: 1872439 | AU128: 0 | AV128: 1872439 | AW128: 685747 | AX128: 2558186
A129: 7H | B129: Pacific Heritage Academy | C129: 530815.46 | D129: 1013826.29 | E129: 2447.87 | F129: 0 | G129: 19282.62 | H129: 400170.59 | I129: 0 | J129: 0 | K129: 3959.65 | L129: 0 | M129: 0 | N129: 0 | O129: 0 | P129: 0 | Q129: 0 | R129: 0 | S129: 0 | T129: 1970502.48 | U129: 0 | V129: 44413.99 | W129: 0 | X129: 0 | Y129: 144208.27 | Z129: 0 | AA129: 0 | AB129: 0 | AC129: 0 | AD129: 0 | AE129: 0 | AF129: 0 | AG129: 0 | AH129: 188622.26 | AI129: 0 | AJ129: 0 | AK129: 254951 | AL129: 161385.71 | AM129: 0 | AN129: 0 | AO129: 0 | AP129: 0 | AQ129: 0 | AR129: 0 | AS129: 0 | AT129: 0 | AU129: 1365543.51 | AV129: 1781880.22 | AW129: 188622.26 | AX129: 1970502.48
A130: 7I | B130: Weber State University Charter Academy | C130: 323185.95 | D130: 0 | E130: 0 | F130: 0 | G130: 0 | H130: 0 | I130: 0 | J130: 0 | K130: 0 | L130: 0 | M130: 0 | N130: 0 | O130: 0 | P130: 0 | Q130: 0 | R130: 0 | S130: 0 | T130: 323185.95 | U130: 0 | V130: 0 | W130: 0 | X130: 0 | Y130: 0 | Z130: 0 | AA130: 0 | AB130: 0 | AC130: 0 | AD130: 0 | AE130: 0 | AF130: 0 | AG130: 0 | AH130: 0 | AI130: 0 | AJ130: 0 | AK130: 0 | AL130: 0 | AM130: 0 | AN130: 0 | AO130: 0 | AP130: 0 | AQ130: 0 | AR130: 0 | AS130: 0 | AT130: 0 | AU130: 323185.95 | AV130: 323185.95 | AW130: 0 | AX130: 323185.95
A131: 7J | B131: Greenwood Charter School | C131: 609524 | D131: 930775 | E131: 22621 | F131: 0 | G131: 39352 | H131: 409795 | I131: 0 | J131: 0 | K131: 0 | L131: 0 | M131: 6103 | N131: 0 | O131: 0 | P131: 0 | Q131: 0 | R131: 0 | S131: 0 | T131: 2018170 | U131: 0 | V131: 46687 | W131: 0 | X131: 201219 | Y131: 0 | Z131: 0 | AA131: 0 | AB131: 0 | AC131: 0 | AD131: 0 | AE131: 0 | AF131: 0 | AG131: 0 | AH131: 247906 | AI131: 0 | AJ131: 0 | AK131: 0 | AL131: 0 | AM131: 0 | AN131: 0 | AO131: 0 | AP131: 0 | AQ131: 0 | AR131: 0 | AS131: 0 | AT131: 1770264 | AU131: 0 | AV131: 1770264 | AW131: 247906 | AX131: 2018170
A132: 7K | B132: Wallace Stegner Academy | C132: 22292611.52 | D132: 0 | E132: 161.92 | F132: 0 | G132: 111701.14 | H132: 1060285.2 | I132: 0 | J132: 0 | K132: 10022.58 | L132: 0 | M132: 0 | N132: 0 | O132: 0 | P132: 0 | Q132: 0 | R132: 0 | S132: 0 | T132: 23474782.36 | U132: 0 | V132: 145670.49 | W132: 0 | X132: 0 | Y132: 642852.57 | Z132: 0 | AA132: 0 | AB132: 0 | AC132: 0 | AD132: 0 | AE132: 0 | AF132: 0 | AG132: 0 | AH132: 788523.06 | AI132: 0 | AJ132: 0 | AK132: 0 | AL132: 0 | AM132: 0 | AN132: 0 | AO132: 0 | AP132: 0 | AQ132: 0 | AR132: 0 | AS132: 0 | AT132: 0 | AU132: 22686259.3 | AV132: 22686259.3 | AW132: 788523.06 | AX132: 23474782.36
A133: 7L | B133: Treeside Charter School | C133: 610583 | D133: 0 | E133: 1000 | F133: 0 | G133: 3736 | H133: 283159 | I133: 0 | J133: 0 | K133: 0 | L133: 0 | M133: 133204 | N133: 0 | O133: 0 | P133: 0 | Q133: 0 | R133: 0 | S133: 0 | T133: 1031682 | U133: 0 | V133: 39521 | W133: 0 | X133: 229324 | Y133: 0 | Z133: 0 | AA133: 0 | AB133: 63662 | AC133: 0 | AD133: 0 | AE133: 0 | AF133: 0 | AG133: 0 | AH133: 332507 | AI133: 0 | AJ133: 0 | AK133: 0 | AL133: 0 | AM133: 0 | AN133: 0 | AO133: 0 | AP133: 0 | AQ133: 0 | AR133: 0 | AS133: 0 | AT133: 699175 | AU133: 0 | AV133: 699175 | AW133: 332507 | AX133: 1031682
A134: 8B | B134: American Leadership Academy | C134: 17767597.7 | D134: 2533489.92 | E134: 0 | F134: 0 | G134: 75612.33 | H134: 383338.8 | I134: 0 | J134: 0 | K134: 0 | L134: 0 | M134: 0 | N134: 0 | O134: 3314.24 | P134: 0 | Q134: 0 | R134: 0 | S134: 0 | T134: 20763352.99 | U134: 0 | V134: 41509.06 | W134: 0 | X134: 0 | Y134: 610254 | Z134: 0 | AA134: 0 | AB134: 0 | AC134: 0 | AD134: 0 | AE134: 0 | AF134: 0 | AG134: 0 | AH134: 651763.06 | AI134: 0 | AJ134: 0 | AK134: 0 | AL134: 1088678.4 | AM134: 0 | AN134: 0 | AO134: 0 | AP134: 0 | AQ134: 0 | AR134: 0 | AS134: 0 | AT134: 0 | AU134: 19022911.53 | AV134: 20111589.93 | AW134: 651763.06 | AX134: 20763352.99
A135: 8C | B135: Mountainville Academy | C135: 2934837 | D135: 1220015 | E135: 8681 | F135: 0 | G135: 5000 | H135: 210058 | I135: 0 | J135: 0 | K135: 0 | L135: 0 | M135: 23132 | N135: 0 | O135: 0 | P135: 0 | Q135: 0 | R135: 0 | S135: 0 | T135: 4401723 | U135: 0 | V135: 44100 | W135: 0 | X135: 440000 | Y135: 0 | Z135: 0 | AA135: 0 | AB135: 0 | AC135: 0 | AD135: 0 | AE135: 0 | AF135: 0 | AG135: 0 | AH135: 484100 | AI135: 0 | AJ135: 0 | AK135: 0 | AL135: 0 | AM135: 0 | AN135: 0 | AO135: 0 | AP135: 0 | AQ135: 0 | AR135: 0 | AS135: 0 | AT135: 3917623 | AU135: 0 | AV135: 3917623 | AW135: 484100 | AX135: 4401723
A136: 8D | B136: Open Classroom | C136: 0 | D136: 0 | E136: 0 | F136: 0 | G136: 52488.92 | H136: 154890.44 | I136: 0 | J136: 0 | K136: 0 | L136: 0 | M136: 0 | N136: 0 | O136: 0 | P136: 0 | Q136: 0 | R136: 0 | S136: 0 | T136: =SUM(C136:S136) -> 207379.36 | U136: 8040 | V136: 3363.46 | W136: 0 | X136: 0 | Y136: 0 | Z136: 0 | AA136: 0 | AB136: 1280.51 | AC136: 0 | AD136: 0 | AE136: 0 | AF136: 0 | AG136: 0 | AH136: =SUM(U136:AG136) -> 12683.97 | AI136: 0 | AJ136: 0 | AK136: 0 | AL136: 0 | AM136: 0 | AN136: 0 | AO136: 0 | AP136: 0 | AQ136: 0 | AR136: 0 | AS136: 0 | AT136: 0 | AU136: 194695.39 | AV136: =SUM(AI136:AU136) -> 194695.39 | AW136: =AH136 -> 12683.97 | AX136: =T136 -> 207379.36
A137: 8E | B137: Merit College Preparatory Academy | C137: 1428320 | D137: 1464909 | E137: 6348 | F137: 0 | G137: 48881 | H137: 390872 | I137: 0 | J137: 0 | K137: 0 | L137: 0 | M137: 39357 | N137: 0 | O137: 0 | P137: 0 | Q137: 0 | R137: 0 | S137: 0 | T137: 3378687 | U137: 0 | V137: 52527 | W137: 0 | X137: 231211 | Y137: 0 | Z137: 0 | AA137: 0 | AB137: 0 | AC137: 0 | AD137: 0 | AE137: 0 | AF137: 0 | AG137: 0 | AH137: 283738 | AI137: 0 | AJ137: 0 | AK137: 0 | AL137: 0 | AM137: 0 | AN137: 0 | AO137: 0 | AP137: 0 | AQ137: 0 | AR137: 0 | AS137: 0 | AT137: 3094949 | AU137: 0 | AV137: 3094949 | AW137: 283738 | AX137: 3378687
A138: 8F | B138: Hawthorn Academy | C138: 7447047 | D138: 10894173.91 | E138: 0 | F138: 0 | G138: 37351.84 | H138: 308981.72 | I138: 0 | J138: 0 | K138: 2829.74 | L138: 0 | M138: 12202.53 | N138: 0 | O138: 0 | P138: 0 | Q138: 0 | R138: 0 | S138: 0 | T138: 18702586.74 | U138: 0 | V138: 85186.57 | W138: 0 | X138: 0 | Y138: 731786.05 | Z138: 0 | AA138: 0 | AB138: 0 | AC138: 0 | AD138: 0 | AE138: 0 | AF138: 0 | AG138: 0 | AH138: 816972.62 | AI138: 0 | AJ138: 0 | AK138: 0 | AL138: 0 | AM138: 0 | AN138: 0 | AO138: 0 | AP138: 0 | AQ138: 0 | AR138: 0 | AS138: 0 | AT138: 0 | AU138: 17885614.12 | AV138: 17885614.12 | AW138: 816972.62 | AX138: 18702586.74
A139: 8G | B139: Good Foundations Academy | C139: 2160041.35 | D139: 540964.09 | E139: 0 | F139: 0 | G139: 32152.3 | H139: 17692.93 | I139: 0 | J139: 0 | K139: 1230.63 | L139: 0 | M139: 0 | N139: 0 | O139: 0 | P139: 0 | Q139: 0 | R139: 0 | S139: 0 | T139: 2752081.3 | U139: 0 | V139: 20866.3 | W139: 0 | X139: 1712 | Y139: 221649.19 | Z139: 0 | AA139: 0 | AB139: 0 | AC139: 0 | AD139: 0 | AE139: 0 | AF139: 0 | AG139: 0 | AH139: 244227.49 | AI139: 0 | AJ139: 0 | AK139: 257381.47 | AL139: 111070.14 | AM139: 0 | AN139: 0 | AO139: 0 | AP139: 0 | AQ139: 0 | AR139: 0 | AS139: 0 | AT139: 0 | AU139: 2139402.2 | AV139: 2507853.81 | AW139: 244227.49 | AX139: 2752081.3
A140: 8H | B140: Valley Academy | C140: 1181743 | D140: 353666 | E140: 11594 | F140: 0 | G140: 15784 | H140: 268640 | I140: 0 | J140: 0 | K140: 0 | L140: 0 | M140: 6286 | N140: 0 | O140: 0 | P140: 0 | Q140: 0 | R140: 0 | S140: 0 | T140: 1837713 | U140: 0 | V140: 16932 | W140: 0 | X140: 216983 | Y140: 0 | Z140: 0 | AA140: 0 | AB140: 0 | AC140: 0 | AD140: 0 | AE140: 0 | AF140: 0 | AG140: 0 | AH140: 233915 | AI140: 0 | AJ140: 0 | AK140: 0 | AL140: 0 | AM140: 0 | AN140: 0 | AO140: 0 | AP140: 0 | AQ140: 0 | AR140: 0 | AS140: 0 | AT140: 1603798 | AU140: 0 | AV140: 1603798 | AW140: 233915 | AX140: 1837713
A141: 8I | B141: Winter Sports School | C141: 464415 | D141: 2312335 | E141: 7653 | F141: 0 | G141: 0 | H141: 113825 | I141: 0 | J141: 0 | K141: 0 | L141: 0 | M141: 6088 | N141: 0 | O141: 0 | P141: 0 | Q141: 0 | R141: 0 | S141: 0 | T141: 2904316 | U141: 0 | V141: 4764 | W141: 0 | X141: 11972 | Y141: 0 | Z141: 0 | AA141: 0 | AB141: 0 | AC141: 0 | AD141: 0 | AE141: 0 | AF141: 0 | AG141: 0 | AH141: 16736 | AI141: 0 | AJ141: 0 | AK141: 0 | AL141: 0 | AM141: 0 | AN141: 0 | AO141: 0 | AP141: 0 | AQ141: 0 | AR141: 0 | AS141: 0 | AT141: 2887580 | AU141: 0 | AV141: 2887580 | AW141: 16736 | AX141: 2904316
A142: 8J | B142: Terra Academy | C142: 2088170.04 | D142: 0 | E142: 0 | F142: 0 | G142: 5932.83 | H142: 329251.48 | I142: 0 | J142: 0 | K142: 1256.27 | L142: 0 | M142: 2340 | N142: 0 | O142: 0 | P142: 0 | Q142: 0 | R142: 0 | S142: 0 | T142: 2426950.62 | U142: 0 | V142: 7539.22 | W142: 0 | X142: 0 | Y142: 473267.16 | Z142: 0 | AA142: 0 | AB142: 0 | AC142: 0 | AD142: 0 | AE142: 0 | AF142: 0 | AG142: 0 | AH142: 480806.38 | AI142: 0 | AJ142: 0 | AK142: 288904.12 | AL142: 2049.72 | AM142: 0 | AN142: 0 | AO142: 0 | AP142: 0 | AQ142: 0 | AR142: 0 | AS142: 0 | AT142: 0 | AU142: 1655190.41 | AV142: 1946144.25 | AW142: 480806.38 | AX142: 2426950.62
A143: 8K | B143: American Academy of Innovation | C143: 1317292.87 | D143: 837307.81 | E143: 21458.35 | F143: 0 | G143: 29433.62 | H143: 36786.49 | I143: 0 | J143: 0 | K143: 3746.48 | L143: 0 | M143: 0 | N143: 0 | O143: 0 | P143: 0 | Q143: 0 | R143: 0 | S143: 0 | T143: 2246025.62 | U143: 0 | V143: 52714.11 | W143: 0 | X143: 0 | Y143: 238013.63 | Z143: 0 | AA143: 0 | AB143: 0 | AC143: 0 | AD143: 0 | AE143: 0 | AF143: 0 | AG143: 0 | AH143: 290727.74 | AI143: 0 | AJ143: 0 | AK143: 0 | AL143: 8071.31 | AM143: 0 | AN143: 0 | AO143: 0 | AP143: 0 | AQ143: 0 | AR143: 0 | AS143: 0 | AT143: 0 | AU143: 1947226.57 | AV143: 1955297.88 | AW143: 290727.74 | AX143: 2246025.62
A144: 8L | B144: Real Salt Lake Academy High School | C144: 427842 | D144: 0 | E144: 41 | F144: 0 | G144: 104563 | H144: 126911 | I144: 0 | J144: 0 | K144: 0 | L144: 0 | M144: 3451 | N144: 0 | O144: 0 | P144: 0 | Q144: 0 | R144: 0 | S144: 0 | T144: 662808 | U144: 0 | V144: 64222 | W144: 0 | X144: 0 | Y144: 312027 | Z144: 0 | AA144: 1455 | AB144: 92262 | AC144: 0 | AD144: 0 | AE144: 0 | AF144: 0 | AG144: 0 | AH144: 469966 | AI144: 3451 | AJ144: 0 | AK144: 0 | AL144: 0 | AM144: 0 | AN144: 0 | AO144: 0 | AP144: 0 | AQ144: 0 | AR144: 0 | AS144: 0 | AT144: 0 | AU144: 189391 | AV144: 192842 | AW144: 469966 | AX144: 662808
A145: 9B | B145: Navigator Pointe Academy | C145: 919940.52 | D145: 662577.48 | E145: 0 | F145: 0 | G145: 0 | H145: 139809.43 | I145: 0 | J145: 0 | K145: 566.57 | L145: 0 | M145: 0 | N145: 0 | O145: 0 | P145: 0 | Q145: 0 | R145: 0 | S145: 0 | T145: 1722894 | U145: 0 | V145: 9397.5 | W145: 0 | X145: 0 | Y145: 330023.74 | Z145: 0 | AA145: 0 | AB145: 0 | AC145: 0 | AD145: 0 | AE145: 0 | AF145: 0 | AG145: 0 | AH145: 339421.24 | AI145: 0 | AJ145: 0 | AK145: 0 | AL145: 3604.89 | AM145: 0 | AN145: 0 | AO145: 0 | AP145: 0 | AQ145: 0 | AR145: 0 | AS145: 0 | AT145: 0 | AU145: 1379867.87 | AV145: 1383472.76 | AW145: 339421.24 | AX145: 1722894
A146: 9C | B146: Paradigm High School | C146: 1987369.85 | D146: 1591423.52 | E146: 0 | F146: 0 | G146: 5297.12 | H146: 95121.54 | I146: 0 | J146: 0 | K146: 0 | L146: 0 | M146: 385 | N146: 0 | O146: 0 | P146: 0 | Q146: 0 | R146: 0 | S146: 0 | T146: 3679597.03 | U146: 0 | V146: 28345.06 | W146: 0 | X146: 0 | Y146: 143435.84 | Z146: 0 | AA146: 4680 | AB146: 0 | AC146: 0 | AD146: 0 | AE146: 0 | AF146: 0 | AG146: 0 | AH146: 176460.9 | AI146: 0 | AJ146: 0 | AK146: 0 | AL146: 9556.5 | AM146: 0 | AN146: 0 | AO146: 0 | AP146: 0 | AQ146: 0 | AR146: 0 | AS146: 0 | AT146: 0 | AU146: 3493579.63 | AV146: 3503136.13 | AW146: 176460.9 | AX146: 3679597.03
A147: 9D | B147: Canyon Rim Academy | C147: 862300 | D147: 3186434 | E147: 9033 | F147: 0 | G147: 5150 | H147: 49128 | I147: 0 | J147: 0 | K147: 0 | L147: 0 | M147: 0 | N147: 0 | O147: 0 | P147: 0 | Q147: 108 | R147: 0 | S147: 0 | T147: 4112153 | U147: 0 | V147: 3873 | W147: 0 | X147: 0 | Y147: 194242 | Z147: 0 | AA147: 0 | AB147: 405975 | AC147: 0 | AD147: 3637 | AE147: 0 | AF147: 0 | AG147: 0 | AH147: 607727 | AI147: 0 | AJ147: 0 | AK147: 98447 | AL147: 0 | AM147: 0 | AN147: 0 | AO147: 343826 | AP147: 0 | AQ147: 0 | AR147: 0 | AS147: 0 | AT147: 0 | AU147: 3062153 | AV147: 3504426 | AW147: 607727 | AX147: 4112153
A148: 9E | B148: Providence Hall | C148: 10115859.62 | D148: 8349676.72 | E148: 8637.58 | F148: 0 | G148: 121756.63 | H148: 394301.57 | I148: 0 | J148: 0 | K148: 0 | L148: 0 | M148: 88696.11 | N148: 0 | O148: 0 | P148: 0 | Q148: 0 | R148: 0 | S148: 0 | T148: 19078928.23 | U148: 0 | V148: 806661.66 | W148: 549.74 | X148: 0 | Y148: 812919.91 | Z148: 0 | AA148: 62211.9 | AB148: 0 | AC148: 0 | AD148: 0 | AE148: 0 | AF148: 0 | AG148: 0 | AH148: 1682343.21 | AI148: 0 | AJ148: 0 | AK148: 402892.34 | AL148: 384739.91 | AM148: 0 | AN148: 0 | AO148: 0 | AP148: 0 | AQ148: 0 | AR148: 0 | AS148: 0 | AT148: 0 | AU148: 16608952.77 | AV148: 17396585.02 | AW148: 1682343.21 | AX148: 19078928.23
A149: 9F | B149: Mountain Heights Academy | C149: 1921028.83 | D149: 8203981.86 | E149: 0 | F149: 0 | G149: 80801.3 | H149: 94624.46 | I149: 0 | J149: 0 | K149: 2571.38 | L149: 0 | M149: 11535 | N149: 0 | O149: 0 | P149: 0 | Q149: 0 | R149: 0 | S149: 0 | T149: 10314542.83 | U149: 0 | V149: 75017.12 | W149: 0 | X149: 0 | Y149: 731124.4 | Z149: 0 | AA149: 1000 | AB149: 0 | AC149: 0 | AD149: 0 | AE149: 0 | AF149: 0 | AG149: 0 | AH149: 807141.52 | AI149: 0 | AJ149: 0 | AK149: 0 | AL149: 0 | AM149: 0 | AN149: 0 | AO149: 0 | AP149: 0 | AQ149: 0 | AR149: 0 | AS149: 0 | AT149: 0 | AU149: 9507401.31 | AV149: 9507401.31 | AW149: 807141.52 | AX149: 10314542.83
A150: 9I | B150: Utah Career Path High School | C150: 479420.23 | D150: 1359876.5 | E150: 0 | F150: 0 | G150: 7086.89 | H150: 74463.05 | I150: 0 | J150: 0 | K150: 781.55 | L150: 0 | M150: 0 | N150: 0 | O150: 0 | P150: 0 | Q150: 0 | R150: 0 | S150: 0 | T150: 1921628.22 | U150: 0 | V150: 16831.63 | W150: 0 | X150: 0 | Y150: 102882.12 | Z150: 0 | AA150: 370 | AB150: 0 | AC150: 0 | AD150: 0 | AE150: 0 | AF150: 0 | AG150: 0 | AH150: 120083.75 | AI150: 0 | AJ150: 0 | AK150: 0 | AL150: 0 | AM150: 0 | AN150: 0 | AO150: 0 | AP150: 0 | AQ150: 0 | AR150: 0 | AS150: 0 | AT150: 0 | AU150: 1801544.47 | AV150: 1801544.47 | AW150: 120083.75 | AX150: 1921628.22
A151: 9J | B151: Lumen Scholar Institute | C151: 1756017.94 | D151: 0 | E151: 0 | F151: 0 | G151: 22588.18 | H151: 345078.4 | I151: 0 | J151: 0 | K151: 7557.88 | L151: 0 | M151: 12003.32 | N151: 0 | O151: 1953.98 | P151: 0 | Q151: 0 | R151: 0 | S151: 0 | T151: 2145199.7 | U151: 0 | V151: 46230.25 | W151: 0 | X151: 0 | Y151: 260928.51 | Z151: 0 | AA151: 0 | AB151: 0 | AC151: 0 | AD151: 0 | AE151: 0 | AF151: 0 | AG151: 0 | AH151: 307158.76 | AI151: 0 | AJ151: 0 | AK151: 0 | AL151: 0 | AM151: 0 | AN151: 0 | AO151: 0 | AP151: 0 | AQ151: 0 | AR151: 0 | AS151: 0 | AT151: 0 | AU151: 1838040.94 | AV151: 1838040.94 | AW151: 307158.76 | AX151: 2145199.7
A152: 9K | B152: St. George Academy | C152: 1242140 | D152: 694576 | E152: 860 | F152: 0 | G152: 11409 | H152: 53668 | I152: 0 | J152: 0 | K152: 0 | L152: 0 | M152: 0 | N152: 0 | O152: 0 | P152: 0 | Q152: 0 | R152: 0 | S152: 0 | T152: 2002653 | U152: 0 | V152: 7607 | W152: 0 | X152: 0 | Y152: 170780 | Z152: 0 | AA152: 0 | AB152: 76733 | AC152: 0 | AD152: 0 | AE152: 0 | AF152: 0 | AG152: 0 | AH152: 255120 | AI152: 0 | AJ152: 694576 | AK152: 0 | AL152: 0 | AM152: 0 | AN152: 0 | AO152: 0 | AP152: 0 | AQ152: 0 | AR152: 0 | AS152: 0 | AT152: 0 | AU152: 1052957 | AV152: 1747533 | AW152: 255120 | AX152: 2002653
A153: A1 | B153: No. UT. Acad. for Math Engineering & Science | C153: 3470353.18 | D153: 0 | E153: 0 | F153: 0 | G153: 142412.24 | H153: 351275.92 | I153: 0 | J153: 0 | K153: 0 | L153: 0 | M153: 2000000 | N153: 0 | O153: 0 | P153: 0 | Q153: 0 | R153: 0 | S153: 0 | T153: 5964041.34 | U153: 0 | V153: 222913.2 | W153: 0 | X153: 0 | Y153: 950685.61 | Z153: 0 | AA153: 0 | AB153: 229977.9 | AC153: 0 | AD153: 0 | AE153: 0 | AF153: 0 | AG153: 0 | AH153: 1403576.71 | AI153: 0 | AJ153: 0 | AK153: 0 | AL153: 0 | AM153: 0 | AN153: 0 | AO153: 0 | AP153: 0 | AQ153: 0 | AR153: 0 | AS153: 0 | AT153: 0 | AU153: 4560464.63 | AV153: 4560464.63 | AW153: 1403576.71 | AX153: 5964041.34
A154: A2 | B154: Ranches Academy | C154: 2233093 | D154: 0 | E154: 0 | F154: 0 | G154: 2002 | H154: 57041 | I154: 0 | J154: 0 | K154: 0 | L154: 0 | M154: 987 | N154: 0 | O154: 6874 | P154: 0 | Q154: 0 | R154: 0 | S154: 0 | T154: 2299997 | U154: 0 | V154: 7341 | W154: 0 | X154: 0 | Y154: 93729 | Z154: 0 | AA154: 0 | AB154: 20681 | AC154: 0 | AD154: 0 | AE154: 0 | AF154: 0 | AG154: 0 | AH154: 121751 | AI154: 0 | AJ154: 0 | AK154: 0 | AL154: 0 | AM154: 0 | AN154: 0 | AO154: 0 | AP154: 0 | AQ154: 0 | AR154: 0 | AS154: 0 | AT154: 0 | AU154: 2178246 | AV154: 2178246 | AW154: 121751 | AX154: 2299997
A155: A3 | B155: Davinci Academy | C155: 5307334 | D155: 0 | E155: 117214 | F155: 0 | G155: 138615 | H155: 622652 | I155: 0 | J155: 0 | K155: 0 | L155: 0 | M155: 9776 | N155: 0 | O155: 0 | P155: 0 | Q155: 0 | R155: 0 | S155: 0 | T155: 6195591 | U155: 0 | V155: 148321 | W155: 0 | X155: 811592 | Y155: 0 | Z155: 0 | AA155: 0 | AB155: 0 | AC155: 0 | AD155: 0 | AE155: 0 | AF155: 0 | AG155: 0 | AH155: 959913 | AI155: 0 | AJ155: 0 | AK155: 0 | AL155: 0 | AM155: 0 | AN155: 0 | AO155: 0 | AP155: 0 | AQ155: 0 | AR155: 0 | AS155: 0 | AT155: 5235678 | AU155: 0 | AV155: 5235678 | AW155: 959913 | AX155: 6195591
A156: A4 | B156: Summit Academy | C156: 7991737 | D156: 5903358 | E156: 34448 | F156: 0 | G156: 84279 | H156: 258829 | I156: 0 | J156: 0 | K156: 0 | L156: 0 | M156: 0 | N156: 0 | O156: 0 | P156: 0 | Q156: 0 | R156: 0 | S156: 0 | T156: 14272651 | U156: 0 | V156: 746541 | W156: 0 | X156: 0 | Y156: 1963679 | Z156: 0 | AA156: 13145 | AB156: 429221 | AC156: 34358 | AD156: 0 | AE156: 0 | AF156: 0 | AG156: 0 | AH156: 3186944 | AI156: 0 | AJ156: 0 | AK156: 0 | AL156: 0 | AM156: 0 | AN156: 0 | AO156: 0 | AP156: 0 | AQ156: 0 | AR156: 0 | AS156: 0 | AT156: 11085707 | AU156: 0 | AV156: 11085707 | AW156: 3186944 | AX156: 14272651
A157: A5 | B157: Itineris Early College High | C157: 740158.64 | D157: 1199567.04 | E157: 0 | F157: 0 | G157: 62458.68 | H157: 116819.73 | I157: 0 | J157: 0 | K157: 694.06 | L157: 0 | M157: 0 | N157: 0 | O157: 0 | P157: 0 | Q157: 0 | R157: 0 | S157: 0 | T157: 2119698.15 | U157: 0 | V157: 29667.92 | W157: 0 | X157: 2269.77 | Y157: 200062.61 | Z157: 0 | AA157: 750 | AB157: 0 | AC157: 0 | AD157: 0 | AE157: 0 | AF157: 0 | AG157: 0 | AH157: 232750.3 | AI157: 0 | AJ157: 0 | AK157: 0 | AL157: 410878.49 | AM157: 0 | AN157: 0 | AO157: 0 | AP157: 0 | AQ157: 0 | AR157: 0 | AS157: 0 | AT157: 0 | AU157: 1476069.36 | AV157: 1886947.85 | AW157: 232750.3 | AX157: 2119698.15
A158: A6 | B158: North Davis Preparatory Academy | C158: 2660691.1 | D158: 1763043.99 | E158: 22.87 | F158: 0 | G158: 27157.7 | H158: 313912.28 | I158: 0 | J158: 0 | K158: 661692.58 | L158: 0 | M158: 7500 | N158: 0 | O158: 481.5 | P158: 0 | Q158: 0 | R158: 0 | S158: 0 | T158: 5434502.02 | U158: 0 | V158: 159274.03 | W158: 0 | X158: 0 | Y158: 482211.09 | Z158: 0 | AA158: 3600 | AB158: 0 | AC158: 0 | AD158: 0 | AE158: 0 | AF158: 0 | AG158: 0 | AH158: 645085.12 | AI158: 0 | AJ158: 0 | AK158: 0 | AL158: 0 | AM158: 0 | AN158: 0 | AO158: 0 | AP158: 0 | AQ158: 0 | AR158: 0 | AS158: 0 | AT158: 0 | AU158: 4789416.9 | AV158: 4789416.9 | AW158: 645085.12 | AX158: 5434502.02
A159: A7 | B159: Moab Charter School | C159: 185292 | D159: 31005 | E159: 60148 | F159: 0 | G159: 1029 | H159: 86962 | I159: 0 | J159: 0 | K159: 0 | L159: 0 | M159: 1925 | N159: 0 | O159: 0 | P159: 0 | Q159: 0 | R159: 0 | S159: 0 | T159: 366361 | U159: 0 | V159: 33173 | W159: 0 | X159: 95541 | Y159: 0 | Z159: 0 | AA159: 0 | AB159: 0 | AC159: 0 | AD159: 0 | AE159: 0 | AF159: 0 | AG159: 0 | AH159: 128714 | AI159: 0 | AJ159: 0 | AK159: 0 | AL159: 0 | AM159: 0 | AN159: 0 | AO159: 0 | AP159: 0 | AQ159: 0 | AR159: 0 | AS159: 0 | AT159: 237647 | AU159: 0 | AV159: 237647 | AW159: 128714 | AX159: 366361
A160: A8 | B160: East Hollywood High | C160: 664895 | D160: 0 | E160: 8879 | F160: 0 | G160: 1722 | H160: 179428 | I160: 0 | J160: 0 | K160: 0 | L160: 0 | M160: 1535 | N160: 0 | O160: 0 | P160: 0 | Q160: 0 | R160: 0 | S160: 0 | T160: 856459 | U160: 0 | V160: 62972 | W160: 0 | X160: 0 | Y160: 246108 | Z160: 0 | AA160: 0 | AB160: 15387 | AC160: 0 | AD160: 0 | AE160: 0 | AF160: 0 | AG160: 0 | AH160: 324467 | AI160: 1535 | AJ160: 0 | AK160: 18144 | AL160: 0 | AM160: 0 | AN160: 0 | AO160: 0 | AP160: 0 | AQ160: 0 | AR160: 0 | AS160: 0 | AT160: 0 | AU160: 512313 | AV160: 531992 | AW160: 324467 | AX160: 856459
A161: A9 | B161: Success Academy | C161: 60362.81 | D161: 5057353.31 | E161: 9100 | F161: 0 | G161: 48410.39 | H161: 189843.06 | I161: 0 | J161: 0 | K161: 0 | L161: 0 | M161: 0 | N161: 0 | O161: 0 | P161: 0 | Q161: 0 | R161: 0 | S161: 0 | T161: 5365069.57 | U161: 0 | V161: 30977.47 | W161: 0 | X161: 0 | Y161: 387053.87 | Z161: 0 | AA161: 0 | AB161: 0 | AC161: 0 | AD161: 0 | AE161: 0 | AF161: 0 | AG161: 0 | AH161: 418031.34 | AI161: 0 | AJ161: 0 | AK161: 0 | AL161: 0 | AM161: 0 | AN161: 0 | AO161: 497866.29 | AP161: 0 | AQ161: 0 | AR161: 0 | AS161: 0 | AT161: 0 | AU161: 4449171.94 | AV161: 4947038.23 | AW161: 418031.34 | AX161: 5365069.57
B162: Charter Subtotals | C162: =SUM(C48:C161) -> 286968711.7 | D162: =SUM(D48:D161) -> 196329185 | E162: 1764874.23 | F162: 191 | G162: 4731112.67 | H162: 32378867.92 | I162: 102983.75 | J162: 257862 | K162: 828141.69 | L162: 20531.45 | M162: 3778807.51 | N162: 1441134.42 | O162: 194839.5 | P162: 0 | Q162: 108 | R162: 225156 | S162: 196268.28 | T162: 529218775.1 | U162: 8039.52 | V162: 13333678.82 | W162: 1137.09 | X162: 9911645.4 | Y162: 36500421.56 | Z162: 0 | AA162: 373777 | AB162: 4970019.59 | AC162: 802099.73 | AD162: 56514.77 | AE162: 164969.92 | AF162: 1846987.86 | AG162: 252591 | AH162: 68221882.26 | AI162: 493631.72 | AJ162: 32704958 | AK162: 4597819.06 | AL162: 4579257.81 | AM162: 0 | AN162: 0 | AO162: 1292695.22 | AP162: 0 | AQ162: 0 | AR162: 0 | AS162: 10505.75 | AT162: 105277343.3 | AU162: 312040682.2 | AV162: 460996893 | AW162: 68221882.26 | AX162: 529218775.1
B163: Statewide | C163: 595569685.9 | D163: 1599859309 | E163: 118702465.8 | F163: 1619151705 | G163: 50481740.51 | H163: 324270653.2 | I163: 159556.26 | J163: 27969994.22 | K163: 1554305.92 | L163: 21100999.64 | M163: 10018554.05 | N163: 1441134.42 | O163: 404813.4 | P163: 11091242.12 | Q163: 108 | R163: 225156 | S163: 196268.28 | T163: 4382197692 | U163: 8039.52 | V163: 66078680.18 | W163: 1137.09 | X163: 64098822.41 | Y163: 510294673.2 | Z163: 195621.15 | AA163: 379088131.7 | AB163: 159029013.3 | AC163: 8098486.12 | AD163: 1771637.68 | AE163: 164969.92 | AF163: 1347770500 | AG163: 27884117.94 | AH163: 2564483830 | AI163: 33721743.55 | AJ163: 32704958 | AK163: 4597819.06 | AL163: 4579257.81 | AM163: 171202.92 | AN163: 2323535.64 | AO163: 17762921.18 | AP163: 193142406.8 | AQ163: 23138563.68 | AR163: 165598640.9 | AS163: 20674856.26 | AT163: 505268200.1 | AU163: 814029753.4 | AV163: 1817713859 | AW163: 2564483830 | AX163: 4382197692

Sheet 20 Special Revenue Fund (hidden)
A1: FundCode | B1: 20
A3: Sum of Amount | C3: BalanceSheetCode | D3: BalanceSheetDescription
C4: 8110 | D4: 8111 | E4: 8120 | F4: 8131 | G4: 8135 | H4: 8150 | I4: 8450 | J4: 9510 | K4: 9540 | L4: 9550 | M4: 9561 | N4: 9750 | O4: 9860 | P4: 9879 | Q4: 9881 | R4: 9889 | S4: 9890 | T4: 9899 | U4: Grand Total
A5: district_nbr | B5: LEA_name | C5: Cash | D5: Cash in Banks | E5: Investments | F5: Local | G5: Due From Other Funds | H5: Prepaid Expenditures | I5: Deferred Outflows of Resources | J5: Accounts Payable | K5: Accrued Salaries and Withholdings | L5: Due to Other Funds | M5: Unearned Revenue- Local | N5: Deferred Inflows of Resources | O5: Non-Spendable - Inventories & Prepaid Expenditures | P5: Restricted -- Other | Q5: Committed – Contracts | R5: Committed – Other | S5: Assigned – Unrestricted Programs | T5: Unassigned Fund Balance
A6: 1 | B6: Alpine District | C6: 0 | D6: 17288 | E6: 6290889 | F6: 800000 | G6: 0 | H6: 0 | I6: 0 | J6: 0 | K6: 0 | L6: 0 | M6: 0 | N6: 800000 | O6: 0 | P6: 5982810 | Q6: 0 | R6: 325367 | S6: 0 | T6: 0 | U6: 14216354
A7: 2 | B7: Beaver District | C7: 0 | D7: -557.65 | E7: 75359.49 | F7: 0 | G7: 100 | H7: 0 | I7: 0 | J7: 1250 | K7: 0 | L7: 3750 | M7: 0 | N7: 0 | O7: 0 | P7: 69901.84 | Q7: 0 | R7: 0 | S7: 0 | T7: 0 | U7: 149803.68
A8: 3 | B8: Box Elder District | C8: 0 | D8: 46486.31 | E8: 691234.77 | F8: 0 | G8: 0 | H8: 0 | I8: 0 | J8: 74101.11 | K8: 0 | L8: 0 | M8: 0 | N8: 0 | O8: 0 | P8: 663619.97 | Q8: 0 | R8: 0 | S8: 0 | T8: 0 | U8: 1475442.16
A9: 7 | B9: Davis District | C9: 0 | D9: 2394014.59 | E9: 2691958 | F9: 0 | G9: 0 | H9: 0 | I9: 0 | J9: 0 | K9: 0 | L9: 0 | M9: 0 | N9: 0 | O9: 0 | P9: 0 | Q9: 0 | R9: 0 | S9: 0 | T9: 5085972.59 | U9: 10171945.18
A10: 12 | B10: Granite District | C10: 0 | D10: 286092.98 | E10: 2606287 | F10: 12437.7 | G10: 0 | H10: 0 | I10: 0 | J10: 172953.56 | K10: 0 | L10: 0 | M10: 0 | N10: 0 | O10: 0 | P10: 779301.05 | Q10: 0 | R10: 1952563.07 | S10: 0 | T10: 0 | U10: 5809635.36
A11: 14 | B11: Jordan District | C11: 0 | D11: 5159.02 | E11: 1623252.35 | F11: 0 | G11: 0 | H11: 0 | I11: 0 | J11: 20036.08 | K11: 0 | L11: 0 | M11: 0 | N11: 0 | O11: 0 | P11: 1379250.1 | Q11: 0 | R11: 229125.19 | S11: 0 | T11: 0 | U11: 3256822.74
A12: 16 | B12: Kane District | C12: 0 | D12: 356056 | E12: 0 | F12: 0 | G12: 0 | H12: 0 | I12: 0 | J12: 6171 | K12: 874 | L12: 0 | M12: 0 | N12: 0 | O12: 0 | P12: 0 | Q12: 0 | R12: 0 | S12: 349011 | T12: 0 | U12: 712112
A13: 17 | B13: Millard District | C13: 0 | D13: 46829.81 | E13: 852315.29 | F13: 0 | G13: 0 | H13: 0 | I13: 19609.58 | J13: 0 | K13: 0 | L13: 0 | M13: 0 | N13: 0 | O13: 0 | P13: 995976.46 | Q13: 0 | R13: 0 | S13: 0 | T13: -77221.78 | U13: 1837509.36
A14: 19 | B14: Nebo District | C14: 0 | D14: 1430627.27 | E14: 0 | F14: 0 | G14: 0 | H14: 0 | I14: 0 | J14: 0 | K14: 0 | L14: 0 | M14: 0 | N14: 0 | O14: 0 | P14: 1391730.33 | Q14: 0 | R14: 0 | S14: 38896.94 | T14: 0 | U14: 2861254.54
A15: 25 | B15: San Juan District | C15: 0 | D15: 278942.02 | E15: 0 | F15: 0 | G15: 0 | H15: 0 | I15: 0 | J15: 14165.39 | K15: 0 | L15: 0 | M15: 0 | N15: 0 | O15: 0 | P15: 264777 | Q15: 0 | R15: 0 | S15: 0 | T15: 0 | U15: 557884.41
A16: 28 | B16: South Summit District | C16: 0 | D16: 169461.44 | E16: 429462.59 | F16: 9000 | G16: 0 | H16: 0 | I16: 0 | J16: 2903.42 | K16: 67750 | L16: 0 | M16: 0 | N16: 0 | O16: 0 | P16: 0 | Q16: 0 | R16: 0 | S16: 108902.52 | T16: 428368.09 | U16: 1215848.06
A17: 30 | B17: Tooele District | C17: 0 | D17: 900822.76 | E17: 0 | F17: 0 | G17: 0 | H17: 0 | I17: 0 | J17: 31582.57 | K17: 2292.75 | L17: 52822.51 | M17: 3396 | N17: 0 | O17: 0 | P17: 810728.93 | Q17: 0 | R17: 0 | S17: 0 | T17: 0 | U17: 1801645.52
A18: 35 | B18: Weber District | C18: 3759054 | D18: 0 | E18: 0 | F18: 36308 | G18: 0 | H18: 0 | I18: 0 | J18: 6958 | K18: 0 | L18: 0 | M18: 0 | N18: 0 | O18: 2045454 | P18: 0 | Q18: 0 | R18: 0 | S18: 1208171 | T18: 534779 | U18: 7590724
A19: 36 | B19: Salt Lake District | C19: 0 | D19: 0 | E19: 4352430.68 | F19: 2015.61 | G19: 0 | H19: 2605.49 | I19: 0 | J19: 32812.56 | K19: 0 | L19: 0 | M19: 395000 | N19: 0 | O19: 2605.49 | P19: 0 | Q19: 0 | R19: 0 | S19: 0 | T19: 3926633.73 | U19: 8714103.56
A20: 38 | B20: Provo District | C20: 0 | D20: 1247526.79 | E20: 0 | F20: 0 | G20: 0 | H20: 0 | I20: 0 | J20: 64313.55 | K20: 0 | L20: 0 | M20: 0 | N20: 0 | O20: 0 | P20: 879165.8 | Q20: 0 | R20: 0 | S20: 0 | T20: 304047.44 | U20: 2495053.58
A21: 39 | B21: Logan City District | C21: 0 | D21: 998786 | E21: 0 | F21: 0 | G21: 0 | H21: 0 | I21: 0 | J21: 4390 | K21: 0 | L21: 0 | M21: 0 | N21: 0 | O21: 0 | P21: 0 | Q21: 0 | R21: 0 | S21: 0 | T21: 994396 | U21: 1997572
A22: 40 | B22: Murray District | C22: 75593 | D22: 1716 | E22: 1188704 | F22: 0 | G22: 0 | H22: 0 | I22: 0 | J22: 0 | K22: 0 | L22: 0 | M22: 0 | N22: 0 | O22: 1377202 | P22: 0 | Q22: 0 | R22: -111189 | S22: 0 | T22: 0 | U22: 2532026
A23: 42 | B23: Canyons District | C23: 0 | D23: 735785.01 | E23: 434240.64 | F23: 5752.35 | G23: 0 | H23: 0 | I23: 0 | J23: 40827.75 | K23: 0 | L23: 0 | M23: 0 | N23: 0 | O23: 0 | P23: 0 | Q23: 7792.74 | R23: 1127157.51 | S23: 0 | T23: 0 | U23: 2351556
A24: Grand Total | C24: 3834647 | D24: 8915036.35 | E24: 21236133.81 | F24: 865513.66 | G24: 100 | H24: 2605.49 | I24: 19609.58 | J24: 472464.99 | K24: 70916.75 | L24: 56572.51 | M24: 398396 | N24: 800000 | O24: 3425261.49 | P24: 13217261.48 | Q24: 7792.74 | R24: 3523023.77 | S24: 1704981.46 | T24: 11196975.07 | U24: 69747292.15

Sheet 20 Special Revenue Fund Final
A1: Balance Sheet for Fiscal Year: 2022
A2: 20 Special Revenue Fund
B4: Balance Sheet Code | C4: 8110 | D4: 8120 | E4: 8131 | F4: 8135 | G4: 8150 | H4: 8450 | J4: 9510 | K4: 9540 | L4: 9550 | M4: 9561 | N4: 9750 | P4: 9860 | Q4: 9879 | R4: 9881 | S4: 9889 | T4: 9890 | U4: 9899
A5: LEA ID | B5: District Name | C5: Cash | D5: Investments | E5: Local | F5: Due From Other Funds | G5: Prepaid Expenditures | H5: Deferred Outflows of Resources | I5: Total Assets & Other Debits | J5: Accounts Payable | K5: Accrued Salaries and Withholdings | L5: Due to Other Funds | M5: Unearned Revenue- Local | N5: Deferred Inflows of Resources | O5: Total Liabilities and Other Credits | P5: Non-Spendable - Inventories & Prepaid Expenditures | Q5: Restricted -- Other | R5: Committed – Contracts | S5: Committed – Other | T5: Assigned – Unrestricted Programs | U5: Unassigned Fund Balance | V5: Total Fund Balances | W5: Total Assets | X5: Total Liabilities & Fund Balances
A6: 1 | B6: Alpine District | C6: 17288 | D6: 6290889 | E6: 800000 | F6: 0 | G6: 0 | H6: 0 | I6: =SUM(Table3[[#This Row],[Cash]:[Deferred Outflows of Resources]]) -> 7108177 | J6: 0 | K6: 0 | L6: 0 | M6: 0 | N6: 800000 | O6: =SUM(Table3[[#This Row],[Accounts Payable]:[Deferred Inflows of Resources]]) -> 800000 | P6: 0 | Q6: 5982810 | R6: 0 | S6: 325367 | T6: 0 | U6: 0 | V6: =SUM(Table3[[#This Row],[Non-Spendable - Inventories & Prepaid Expenditures]:[Unassigned Fund Balance]]) -> 6308177 | W6: =Table3[[#This Row],[Total Assets & Other Debits]] -> 7108177 | X6: =Table3[[#This Row],[Total Fund Balances]]+Table3[[#This Row],[Total Liabilities and Other Credits]] -> 7108177
A7: 2 | B7: Beaver District | C7: -557.65 | D7: 75359.49 | E7: 0 | F7: 100 | G7: 0 | H7: 0 | I7: =SUM(Table3[[#This Row],[Cash]:[Deferred Outflows of Resources]]) -> 74901.84 | J7: 1250 | K7: 0 | L7: 3750 | M7: 0 | N7: 0 | O7: =SUM(Table3[[#This Row],[Accounts Payable]:[Deferred Inflows of Resources]]) -> 5000 | P7: 0 | Q7: 69901.84 | R7: 0 | S7: 0 | T7: 0 | U7: 0 | V7: =SUM(Table3[[#This Row],[Non-Spendable - Inventories & Prepaid Expenditures]:[Unassigned Fund Balance]]) -> 69901.84 | W7: =Table3[[#This Row],[Total Assets & Other Debits]] -> 74901.84 | X7: =Table3[[#This Row],[Total Fund Balances]]+Table3[[#This Row],[Total Liabilities and Other Credits]] -> 74901.84
A8: 3 | B8: Box Elder District | C8: 46486.31 | D8: 691234.77 | E8: 0 | F8: 0 | G8: 0 | H8: 0 | I8: =SUM(Table3[[#This Row],[Cash]:[Deferred Outflows of Resources]]) -> 737721.08 | J8: 74101.11 | K8: 0 | L8: 0 | M8: 0 | N8: 0 | O8: =SUM(Table3[[#This Row],[Accounts Payable]:[Deferred Inflows of Resources]]) -> 74101.11 | P8: 0 | Q8: 663619.97 | R8: 0 | S8: 0 | T8: 0 | U8: 0 | V8: =SUM(Table3[[#This Row],[Non-Spendable - Inventories & Prepaid Expenditures]:[Unassigned Fund Balance]]) -> 663619.97 | W8: =Table3[[#This Row],[Total Assets & Other Debits]] -> 737721.08 | X8: =Table3[[#This Row],[Total Fund Balances]]+Table3[[#This Row],[Total Liabilities and Other Credits]] -> 737721.08
A9: 7 | B9: Davis District | C9: 2394014.59 | D9: 2691958 | E9: 0 | F9: 0 | G9: 0 | H9: 0 | I9: =SUM(Table3[[#This Row],[Cash]:[Deferred Outflows of Resources]]) -> 5085972.59 | J9: 0 | K9: 0 | L9: 0 | M9: 0 | N9: 0 | O9: =SUM(Table3[[#This Row],[Accounts Payable]:[Deferred Inflows of Resources]]) -> 0 | P9: 0 | Q9: 0 | R9: 0 | S9: 0 | T9: 0 | U9: 5085972.59 | V9: =SUM(Table3[[#This Row],[Non-Spendable - Inventories & Prepaid Expenditures]:[Unassigned Fund Balance]]) -> 5085972.59 | W9: =Table3[[#This Row],[Total Assets & Other Debits]] -> 5085972.59 | X9: =Table3[[#This Row],[Total Fund Balances]]+Table3[[#This Row],[Total Liabilities and Other Credits]] -> 5085972.59
A10: 12 | B10: Granite District | C10: 286092.98 | D10: 2606287 | E10: 12437.7 | F10: 0 | G10: 0 | H10: 0 | I10: =SUM(Table3[[#This Row],[Cash]:[Deferred Outflows of Resources]]) -> 2904817.68 | J10: 172953.56 | K10: 0 | L10: 0 | M10: 0 | N10: 0 | O10: =SUM(Table3[[#This Row],[Accounts Payable]:[Deferred Inflows of Resources]]) -> 172953.56 | P10: 0 | Q10: 779301.05 | R10: 0 | S10: 1952563.07 | T10: 0 | U10: 0 | V10: =SUM(Table3[[#This Row],[Non-Spendable - Inventories & Prepaid Expenditures]:[Unassigned Fund Balance]]) -> 2731864.12 | W10: =Table3[[#This Row],[Total Assets & Other Debits]] -> 2904817.68 | X10: =Table3[[#This Row],[Total Fund Balances]]+Table3[[#This Row],[Total Liabilities and Other Credits]] -> 2904817.68
A11: 14 | B11: Jordan District | C11: 5159.02 | D11: 1623252.35 | E11: 0 | F11: 0 | G11: 0 | H11: 0 | I11: =SUM(Table3[[#This Row],[Cash]:[Deferred Outflows of Resources]]) -> 1628411.37 | J11: 20036.08 | K11: 0 | L11: 0 | M11: 0 | N11: 0 | O11: =SUM(Table3[[#This Row],[Accounts Payable]:[Deferred Inflows of Resources]]) -> 20036.08 | P11: 0 | Q11: 1379250.1 | R11: 0 | S11: 229125.19 | T11: 0 | U11: 0 | V11: =SUM(Table3[[#This Row],[Non-Spendable - Inventories & Prepaid Expenditures]:[Unassigned Fund Balance]]) -> 1608375.29 | W11: =Table3[[#This Row],[Total Assets & Other Debits]] -> 1628411.37 | X11: =Table3[[#This Row],[Total Fund Balances]]+Table3[[#This Row],[Total Liabilities and Other Credits]] -> 1628411.37
A12: 16 | B12: Kane District | C12: 356056 | D12: 0 | E12: 0 | F12: 0 | G12: 0 | H12: 0 | I12: =SUM(Table3[[#This Row],[Cash]:[Deferred Outflows of Resources]]) -> 356056 | J12: 6171 | K12: 874 | L12: 0 | M12: 0 | N12: 0 | O12: =SUM(Table3[[#This Row],[Accounts Payable]:[Deferred Inflows of Resources]]) -> 7045 | P12: 0 | Q12: 0 | R12: 0 | S12: 0 | T12: 349011 | U12: 0 | V12: =SUM(Table3[[#This Row],[Non-Spendable - Inventories & Prepaid Expenditures]:[Unassigned Fund Balance]]) -> 349011 | W12: =Table3[[#This Row],[Total Assets & Other Debits]] -> 356056 | X12: =Table3[[#This Row],[Total Fund Balances]]+Table3[[#This Row],[Total Liabilities and Other Credits]] -> 356056
A13: 17 | B13: Millard District | C13: 46829.81 | D13: 852315.29 | E13: 0 | F13: 0 | G13: 0 | H13: 19609.58 | I13: =SUM(Table3[[#This Row],[Cash]:[Deferred Outflows of Resources]]) -> 918754.68 | J13: 0 | K13: 0 | L13: 0 | M13: 0 | N13: 0 | O13: =SUM(Table3[[#This Row],[Accounts Payable]:[Deferred Inflows of Resources]]) -> 0 | P13: 0 | Q13: 995976.46 | R13: 0 | S13: 0 | T13: 0 | U13: -77221.78 | V13: =SUM(Table3[[#This Row],[Non-Spendable - Inventories & Prepaid Expenditures]:[Unassigned Fund Balance]]) -> 918754.68 | W13: =Table3[[#This Row],[Total Assets & Other Debits]] -> 918754.68 | X13: =Table3[[#This Row],[Total Fund Balances]]+Table3[[#This Row],[Total Liabilities and Other Credits]] -> 918754.68
A14: 19 | B14: Nebo District | C14: 1430627.27 | D14: 0 | E14: 0 | F14: 0 | G14: 0 | H14: 0 | I14: =SUM(Table3[[#This Row],[Cash]:[Deferred Outflows of Resources]]) -> 1430627.27 | J14: 0 | K14: 0 | L14: 0 | M14: 0 | N14: 0 | O14: =SUM(Table3[[#This Row],[Accounts Payable]:[Deferred Inflows of Resources]]) -> 0 | P14: 0 | Q14: 1391730.33 | R14: 0 | S14: 0 | T14: 38896.94 | U14: 0 | V14: =SUM(Table3[[#This Row],[Non-Spendable - Inventories & Prepaid Expenditures]:[Unassigned Fund Balance]]) -> 1430627.27 | W14: =Table3[[#This Row],[Total Assets & Other Debits]] -> 1430627.27 | X14: =Table3[[#This Row],[Total Fund Balances]]+Table3[[#This Row],[Total Liabilities and Other Credits]] -> 1430627.27
A15: 25 | B15: San Juan District | C15: 278942.02 | D15: 0 | E15: 0 | F15: 0 | G15: 0 | H15: 0 | I15: =SUM(Table3[[#This Row],[Cash]:[Deferred Outflows of Resources]]) -> 278942.02 | J15: 14165.39 | K15: 0 | L15: 0 | M15: 0 | N15: 0 | O15: =SUM(Table3[[#This Row],[Accounts Payable]:[Deferred Inflows of Resources]]) -> 14165.39 | P15: 0 | Q15: 264777 | R15: 0 | S15: 0 | T15: 0 | U15: 0 | V15: =SUM(Table3[[#This Row],[Non-Spendable - Inventories & Prepaid Expenditures]:[Unassigned Fund Balance]]) -> 264777 | W15: =Table3[[#This Row],[Total Assets & Other Debits]] -> 278942.02 | X15: =Table3[[#This Row],[Total Fund Balances]]+Table3[[#This Row],[Total Liabilities and Other Credits]] -> 278942.39
A16: 28 | B16: South Summit District | C16: 169461.44 | D16: 429462.59 | E16: 9000 | F16: 0 | G16: 0 | H16: 0 | I16: =SUM(Table3[[#This Row],[Cash]:[Deferred Outflows of Resources]]) -> 607924.03 | J16: 2903.42 | K16: 67750 | L16: 0 | M16: 0 | N16: 0 | O16: =SUM(Table3[[#This Row],[Accounts Payable]:[Deferred Inflows of Resources]]) -> 70653.42 | P16: 0 | Q16: 0 | R16: 0 | S16: 0 | T16: 108902.52 | U16: 428368.09 | V16: =SUM(Table3[[#This Row],[Non-Spendable - Inventories & Prepaid Expenditures]:[Unassigned Fund Balance]]) -> 537270.61 | W16: =Table3[[#This Row],[Total Assets & Other Debits]] -> 607924.03 | X16: =Table3[[#This Row],[Total Fund Balances]]+Table3[[#This Row],[Total Liabilities and Other Credits]] -> 607924.03
A17: 30 | B17: Tooele District | C17: 900822.76 | D17: 0 | E17: 0 | F17: 0 | G17: 0 | H17: 0 | I17: =SUM(Table3[[#This Row],[Cash]:[Deferred Outflows of Resources]]) -> 900822.76 | J17: 31582.57 | K17: 2292.75 | L17: 52822.51 | M17: 3396 | N17: 0 | O17: =SUM(Table3[[#This Row],[Accounts Payable]:[Deferred Inflows of Resources]]) -> 90093.83 | P17: 0 | Q17: 810728.93 | R17: 0 | S17: 0 | T17: 0 | U17: 0 | V17: =SUM(Table3[[#This Row],[Non-Spendable - Inventories & Prepaid Expenditures]:[Unassigned Fund Balance]]) -> 810728.93 | W17: =Table3[[#This Row],[Total Assets & Other Debits]] -> 900822.76 | X17: =Table3[[#This Row],[Total Fund Balances]]+Table3[[#This Row],[Total Liabilities and Other Credits]] -> 900822.76
A18: 35 | B18: Weber District | C18: 3759054 | D18: 0 | E18: 36308 | F18: 0 | G18: 0 | H18: 0 | I18: =SUM(Table3[[#This Row],[Cash]:[Deferred Outflows of Resources]]) -> 3795362 | J18: 6958 | K18: 0 | L18: 0 | M18: 0 | N18: 0 | O18: =SUM(Table3[[#This Row],[Accounts Payable]:[Deferred Inflows of Resources]]) -> 6958 | P18: 2045454 | Q18: 0 | R18: 0 | S18: 0 | T18: 1208171 | U18: 534779 | V18: =SUM(Table3[[#This Row],[Non-Spendable - Inventories & Prepaid Expenditures]:[Unassigned Fund Balance]]) -> 3788404 | W18: =Table3[[#This Row],[Total Assets & Other Debits]] -> 3795362 | X18: =Table3[[#This Row],[Total Fund Balances]]+Table3[[#This Row],[Total Liabilities and Other Credits]] -> 3795362
A19: 36 | B19: Salt Lake District | C19: 0 | D19: 4352430.68 | E19: 2015.61 | F19: 0 | G19: 2605.49 | H19: 0 | I19: =SUM(Table3[[#This Row],[Cash]:[Deferred Outflows of Resources]]) -> 4357051.78 | J19: 32812.56 | K19: 0 | L19: 0 | M19: 395000 | N19: 0 | O19: =SUM(Table3[[#This Row],[Accounts Payable]:[Deferred Inflows of Resources]]) -> 427812.56 | P19: 2605.49 | Q19: 0 | R19: 0 | S19: 0 | T19: 0 | U19: 3926633.73 | V19: =SUM(Table3[[#This Row],[Non-Spendable - Inventories & Prepaid Expenditures]:[Unassigned Fund Balance]]) -> 3929239.22 | W19: =Table3[[#This Row],[Total Assets & Other Debits]] -> 4357051.78 | X19: =Table3[[#This Row],[Total Fund Balances]]+Table3[[#This Row],[Total Liabilities and Other Credits]] -> 4357051.78
A20: 38 | B20: Provo District | C20: 1247526.79 | D20: 0 | E20: 0 | F20: 0 | G20: 0 | H20: 0 | I20: =SUM(Table3[[#This Row],[Cash]:[Deferred Outflows of Resources]]) -> 1247526.79 | J20: 64313.55 | K20: 0 | L20: 0 | M20: 0 | N20: 0 | O20: =SUM(Table3[[#This Row],[Accounts Payable]:[Deferred Inflows of Resources]]) -> 64313.55 | P20: 0 | Q20: 879165.8 | R20: 0 | S20: 0 | T20: 0 | U20: 304047.44 | V20: =SUM(Table3[[#This Row],[Non-Spendable - Inventories & Prepaid Expenditures]:[Unassigned Fund Balance]]) -> 1183213.24 | W20: =Table3[[#This Row],[Total Assets & Other Debits]] -> 1247526.79 | X20: =Table3[[#This Row],[Total Fund Balances]]+Table3[[#This Row],[Total Liabilities and Other Credits]] -> 1247526.79
A21: 39 | B21: Logan City District | C21: 998786 | D21: 0 | E21: 0 | F21: 0 | G21: 0 | H21: 0 | I21: =SUM(Table3[[#This Row],[Cash]:[Deferred Outflows of Resources]]) -> 998786 | J21: 4390 | K21: 0 | L21: 0 | M21: 0 | N21: 0 | O21: =SUM(Table3[[#This Row],[Accounts Payable]:[Deferred Inflows of Resources]]) -> 4390 | P21: 0 | Q21: 0 | R21: 0 | S21: 0 | T21: 0 | U21: 994396 | V21: =SUM(Table3[[#This Row],[Non-Spendable - Inventories & Prepaid Expenditures]:[Unassigned Fund Balance]]) -> 994396 | W21: =Table3[[#This Row],[Total Assets & Other Debits]] -> 998786 | X21: =Table3[[#This Row],[Total Fund Balances]]+Table3[[#This Row],[Total Liabilities and Other Credits]] -> 998786
A22: 40 | B22: Murray District | C22: 77309 | D22: 1188704 | E22: 0 | F22: 0 | G22: 0 | H22: 0 | I22: =SUM(Table3[[#This Row],[Cash]:[Deferred Outflows of Resources]]) -> 1266013 | J22: 0 | K22: 0 | L22: 0 | M22: 0 | N22: 0 | O22: =SUM(Table3[[#This Row],[Accounts Payable]:[Deferred Inflows of Resources]]) -> 0 | P22: 1377202 | Q22: 0 | R22: 0 | S22: -111189 | T22: 0 | U22: 0 | V22: =SUM(Table3[[#This Row],[Non-Spendable - Inventories & Prepaid Expenditures]:[Unassigned Fund Balance]]) -> 1266013 | W22: =Table3[[#This Row],[Total Assets & Other Debits]] -> 1266013 | X22: =Table3[[#This Row],[Total Fund Balances]]+Table3[[#This Row],[Total Liabilities and Other Credits]] -> 1266013
A23: 42 | B23: Canyons District | C23: 735785.01 | D23: 434240.64 | E23: 5752.35 | F23: 0 | G23: 0 | H23: 0 | I23: =SUM(Table3[[#This Row],[Cash]:[Deferred Outflows of Resources]]) -> 1175778 | J23: 40827.75 | K23: 0 | L23: 0 | M23: 0 | N23: 0 | O23: =SUM(Table3[[#This Row],[Accounts Payable]:[Deferred Inflows of Resources]]) -> 40827.75 | P23: 0 | Q23: 0 | R23: 7792.74 | S23: 1127157.51 | T23: 0 | U23: 0 | V23: =SUM(Table3[[#This Row],[Non-Spendable - Inventories & Prepaid Expenditures]:[Unassigned Fund Balance]]) -> 1134950.25 | W23: =Table3[[#This Row],[Total Assets & Other Debits]] -> 1175778 | X23: =Table3[[#This Row],[Total Fund Balances]]+Table3[[#This Row],[Total Liabilities and Other Credits]] -> 1175778
A24: District Total & Grand Total | C24: 12749683.35 | D24: 21236133.81 | E24: 865513.66 | F24: 100 | G24: 2605.49 | H24: 19609.58 | I24: =SUM(Table3[[#This Row],[Cash]:[Deferred Outflows of Resources]]) -> 34873645.89 | J24: 472464.99 | K24: 70916.75 | L24: 56572.51 | M24: 398396 | N24: 800000 | O24: =SUM(Table3[[#This Row],[Accounts Payable]:[Deferred Inflows of Resources]]) -> 1798350.25 | P24: 3425261.49 | Q24: 13217261.48 | R24: 7792.74 | S24: 3523023.77 | T24: 1704981.46 | U24: 11196975.07 | V24: =SUM(Table3[[#This Row],[Non-Spendable - Inventories & Prepaid Expenditures]:[Unassigned Fund Balance]]) -> 33075296.01 | W24: =Table3[[#This Row],[Total Assets & Other Debits]] -> 34873645.89 | X24: =Table3[[#This Row],[Total Fund Balances]]+Table3[[#This Row],[Total Liabilities and Other Credits]] -> 34873646.26

Sheet 21 Student Activity Fund (hidden)
A1: FundCode | B1: 21
A3: Sum of Amount | C3: BalanceSheetCode | D3: BalanceSheetDescription
C4: 8110 | D4: 8111 | E4: 8112 | F4: 8113 | G4: 8119 | H4: 8120 | I4: 8131 | J4: 8150 | K4: 9510 | L4: 9530 | M4: 9540 | N4: 9561 | O4: 9590 | P4: 9750 | Q4: 9765 | R4: 9860 | S4: 9873 | T4: 9879 | U4: 9881 | V4: 9889 | W4: 9890 | X4: 9899 | Y4: Grand Total
A5: district_nbr | B5: LEA_name | C5: Cash | D5: Cash in Banks | E5: Petty Cash | F5: Cash Change Funds | G5: Other Cash | H5: Investments | I5: Local | J5: Prepaid Expenditures | K5: Accounts Payable | L5: Accrued Liabilities | M5: Accrued Salaries and Withholdings | N5: Unearned Revenue- Local | O5: Other Current Liabilities | P5: Deferred Inflows of Resources | Q5: Deferred Inflows of Resources - Leases | R5: Non-Spendable - Inventories & Prepaid Expenditures | S5: Restricted – Student Activities | T5: Restricted -- Other | U5: Committed – Contracts | V5: Committed – Other | W5: Assigned – Unrestricted Programs | X5: Unassigned Fund Balance
A6: 1 | B6: Alpine District | C6: 0 | D6: 347794 | E6: 0 | F6: 32135 | G6: 6063947 | H6: 15859556 | I6: 0 | J6: 0 | K6: 56595 | L6: 0 | M6: 0 | N6: 0 | O6: 431421 | P6: 0 | Q6: 5894148 | R6: 0 | S6: 0 | T6: 0 | U6: 0 | V6: 15921268 | W6: 0 | X6: 0 | Y6: 44606864
A7: 2 | B7: Beaver District | C7: 594840.11 | D7: 0 | E7: 0 | F7: 0 | G7: 0 | H7: 0 | I7: 0 | J7: 0 | K7: 1905.11 | L7: 0 | M7: 0 | N7: 23341.65 | O7: 0 | P7: 0 | Q7: 0 | R7: 0 | S7: 569593.35 | T7: 0 | U7: 0 | V7: 0 | W7: 0 | X7: 0 | Y7: 1189680.22
A8: 3 | B8: Box Elder District | C8: 0 | D8: 2262820.24 | E8: 125 | F8: 2805 | G8: 0 | H8: 1362262.25 | I8: 0 | J8: 0 | K8: 47891.4 | L8: 0 | M8: 0 | N8: 0 | O8: -1.8 | P8: 0 | Q8: 0 | R8: 0 | S8: 0 | T8: 0 | U8: 0 | V8: 0 | W8: 0 | X8: 3580122.89 | Y8: 7256024.98
A9: 4 | B9: Cache District | C9: 0 | D9: 6807288.24 | E9: 0 | F9: 0 | G9: 0 | H9: 0 | I9: 0 | J9: 0 | K9: 0 | L9: 0 | M9: 0 | N9: 0 | O9: 0 | P9: 0 | Q9: 0 | R9: 0 | S9: 0 | T9: 0 | U9: 0 | V9: 6807288.24 | W9: 0 | X9: 0 | Y9: 13614576.48
A10: 5 | B10: Carbon District | C10: 0 | D10: 0 | E10: 0 | F10: 0 | G10: 493025.08 | H10: 0 | I10: 0 | J10: 0 | K10: 0 | L10: 0 | M10: 0 | N10: 0 | O10: 0 | P10: 0 | Q10: 0 | R10: 0 | S10: 0 | T10: 0 | U10: 0 | V10: 493025.08 | W10: 0 | X10: 0 | Y10: 986050.16
A11: 6 | B11: Daggett District | C11: 0 | D11: 52173 | E11: 20859 | F11: 0 | G11: 0 | H11: 0 | I11: 0 | J11: 0 | K11: 0 | L11: 0 | M11: 0 | N11: 0 | O11: 0 | P11: 0 | Q11: 0 | R11: 0 | S11: 0 | T11: 0 | U11: 0 | V11: -9231 | W11: 0 | X11: 82263 | Y11: 146064
A12: 7 | B12: Davis District | C12: 0 | D12: 2743394.8 | E12: 0 | F12: 0 | G12: 0 | H12: 11417789.29 | I12: 0 | J12: 0 | K12: 256013.93 | L12: 0 | M12: 0 | N12: 0 | O12: 0 | P12: 0 | Q12: 0 | R12: 0 | S12: 0 | T12: 0 | U12: 0 | V12: 0 | W12: 0 | X12: 13905170.63 | Y12: 28322368.65
A13: 8 | B13: Duchesne District | C13: 0 | D13: 1312478.36 | E13: 0 | F13: 0 | G13: 0 | H13: 73740.78 | I13: 0 | J13: 0 | K13: 0 | L13: 0 | M13: 0 | N13: 0 | O13: 0 | P13: 0 | Q13: 0 | R13: 0 | S13: 1386219.14 | T13: 0 | U13: 0 | V13: 0 | W13: 0 | X13: 0 | Y13: 2772438.28
A14: 9 | B14: Emery District | C14: 454475 | D14: 0 | E14: 0 | F14: 0 | G14: 0 | H14: 0 | I14: 0 | J14: 0 | K14: 0 | L14: 0 | M14: 0 | N14: 0 | O14: 0 | P14: 0 | Q14: 0 | R14: 0 | S14: 454475 | T14: 0 | U14: 0 | V14: 0 | W14: 0 | X14: 0 | Y14: 908950
A15: 10 | B15: Garfield District | C15: 0 | D15: 0 | E15: 348840 | F15: 0 | G15: 0 | H15: 0 | I15: 6034 | J15: 0 | K15: 0 | L15: 0 | M15: 0 | N15: 0 | O15: 0 | P15: 15363 | Q15: 0 | R15: 339511 | S15: 0 | T15: 0 | U15: 0 | V15: 0 | W15: 0 | X15: 0 | Y15: 709748
A16: 11 | B16: Grand District | C16: 0 | D16: 278016.67 | E16: 0 | F16: 0 | G16: 0 | H16: 0 | I16: 0 | J16: 0 | K16: 0 | L16: 0 | M16: 0 | N16: 0 | O16: 0 | P16: 0 | Q16: 0 | R16: 0 | S16: 278016.67 | T16: 0 | U16: 0 | V16: 0 | W16: 0 | X16: 0 | Y16: 556033.34
A17: 12 | B17: Granite District | C17: 0 | D17: 0 | E17: 0 | F17: 40683.44 | G17: 0 | H17: 14174231.53 | I17: 2289.74 | J17: 126355.2 | K17: 279053.25 | L17: 0 | M17: 212270.98 | N17: 0 | O17: 0 | P17: 0 | Q17: 0 | R17: 126355.2 | S17: 0 | T17: 0 | U17: 0 | V17: 13725880.48 | W17: 0 | X17: 0 | Y17: 28687119.82
A18: 13 | B18: Iron District | C18: 0 | D18: 431184.69 | E18: 0 | F18: 0 | G18: 0 | H18: 1014124.7 | I18: -3535 | J18: 0 | K18: 49747.58 | L18: 0 | M18: 0 | N18: 0 | O18: 0 | P18: 0 | Q18: 0 | R18: 0 | S18: 1392026.81 | T18: 0 | U18: 0 | V18: 0 | W18: 0 | X18: 0 | Y18: 2883548.78
A19: 14 | B19: Jordan District | C19: 0 | D19: 832723.77 | E19: 4600 | F19: 0 | G19: 0 | H19: 5823840.6 | I19: 0 | J19: 0 | K19: 986692.03 | L19: 0 | M19: 0 | N19: 0 | O19: 0 | P19: 0 | Q19: 0 | R19: 0 | S19: 0 | T19: 0 | U19: 0 | V19: 5674472.34 | W19: 0 | X19: 0 | Y19: 13322328.74
A20: 15 | B20: Juab District | C20: 0 | D20: 602879 | E20: 0 | F20: 0 | G20: 0 | H20: 0 | I20: 0 | J20: 0 | K20: 0 | L20: 0 | M20: 0 | N20: 0 | O20: 0 | P20: 0 | Q20: 0 | R20: 0 | S20: 0 | T20: 0 | U20: 0 | V20: 0 | W20: 602879 | X20: 0 | Y20: 1205758
A21: 16 | B21: Kane District | C21: 0 | D21: 425280.34 | E21: 614 | F21: 0 | G21: 0 | H21: 0 | I21: 502.29 | J21: 0 | K21: 0 | L21: 57772 | M21: 0 | N21: 0 | O21: 0 | P21: 0 | Q21: 0 | R21: 0 | S21: 0 | T21: 0 | U21: 0 | V21: 0 | W21: 368624 | X21: 0 | Y21: 852792.63
A22: 17 | B22: Millard District | C22: 0 | D22: 713951.61 | E22: 0 | F22: 0 | G22: 0 | H22: 0 | I22: 0 | J22: 0 | K22: 0 | L22: 0 | M22: 0 | N22: -20674.12 | O22: 0 | P22: 0 | Q22: 0 | R22: 0 | S22: 636679.71 | T22: 0 | U22: 0 | V22: 0 | W22: 0 | X22: 97946.02 | Y22: 1427903.22
A23: 18 | B23: Morgan District | C23: 0 | D23: 834280.26 | E23: 0 | F23: 0 | G23: 0 | H23: 0 | I23: 0 | J23: 0 | K23: 0 | L23: 0 | M23: 0 | N23: 0 | O23: 0 | P23: 0 | Q23: 0 | R23: 0 | S23: 0 | T23: 0 | U23: 0 | V23: 0 | W23: 0 | X23: 834280.26 | Y23: 1668560.52
A24: 19 | B24: Nebo District | C24: 0 | D24: 13021048.02 | E24: 0 | F24: 0 | G24: 0 | H24: 0 | I24: 0 | J24: 0 | K24: 0 | L24: 0 | M24: 0 | N24: 0 | O24: 0 | P24: 0 | Q24: 0 | R24: 0 | S24: 0 | T24: 0 | U24: 0 | V24: 0 | W24: 13021049.02 | X24: 0 | Y24: 26042097.04
A25: 20 | B25: North Sanpete District | C25: 486229.31 | D25: 0 | E25: 0 | F25: 0 | G25: 0 | H25: 128820.19 | I25: 0 | J25: 0 | K25: 0 | L25: 0 | M25: 0 | N25: 0 | O25: 0 | P25: 0 | Q25: 0 | R25: 0 | S25: 0 | T25: 0 | U25: 0 | V25: 0 | W25: 0 | X25: 615049.5 | Y25: 1230099
A26: 21 | B26: North Summit District | C26: 0 | D26: 102344.71 | E26: 0 | F26: 0 | G26: 0 | H26: 0 | I26: 0 | J26: 0 | K26: 0 | L26: 0 | M26: 0 | N26: 0 | O26: 0 | P26: 0 | Q26: 0 | R26: 0 | S26: 0 | T26: 0 | U26: 0 | V26: 0 | W26: 0 | X26: 102344.71 | Y26: 204689.42
A27: 22 | B27: Park City District | C27: 0 | D27: 700865 | E27: 0 | F27: 3000 | G27: 0 | H27: 0 | I27: 14575 | J27: 0 | K27: 6408 | L27: 0 | M27: 0 | N27: 0 | O27: 0 | P27: 0 | Q27: 0 | R27: 0 | S27: 0 | T27: 0 | U27: 0 | V27: 0 | W27: 0 | X27: 712032 | Y27: 1436880
A28: 23 | B28: Piute District | C28: 0 | D28: 136934.3 | E28: 0 | F28: 0 | G28: 0 | H28: 0 | I28: 0 | J28: 0 | K28: 0 | L28: 0 | M28: 0 | N28: 0 | O28: 0 | P28: 0 | Q28: 0 | R28: 0 | S28: 0 | T28: 0 | U28: 0 | V28: 136934 | W28: 0 | X28: 0 | Y28: 273868.3
A29: 24 | B29: Rich District | C29: 0 | D29: 63442.08 | E29: 0 | F29: 0 | G29: 0 | H29: 0 | I29: 0 | J29: 0 | K29: 0 | L29: 0 | M29: 0 | N29: 0 | O29: 0 | P29: 0 | Q29: 0 | R29: 0 | S29: 63259.86 | T29: 0 | U29: 0 | V29: 0 | W29: 0 | X29: 182 | Y29: 126883.94
A30: 25 | B30: San Juan District | C30: 387797.9 | D30: 296844.3 | E30: 0 | F30: 0 | G30: 0 | H30: 0 | I30: 0 | J30: 0 | K30: 4439.98 | L30: 0 | M30: 0 | N30: 0 | O30: 0 | P30: 0 | Q30: 0 | R30: 0 | S30: 0 | T30: 680202.23 | U30: 0 | V30: 0 | W30: 0 | X30: 0 | Y30: 1369284.41
A31: 26 | B31: Sevier District | C31: 0 | D31: 1912283.48 | E31: 0 | F31: 0 | G31: 0 | H31: 0 | I31: 27548.09 | J31: 0 | K31: 93780 | L31: 0 | M31: 0 | N31: 0 | O31: 0 | P31: 0 | Q31: 0 | R31: 0 | S31: 1846051.93 | T31: 0 | U31: 0 | V31: 0 | W31: 0 | X31: 0 | Y31: 3879663.5
A32: 27 | B32: South Sanpete District | C32: 0 | D32: 958630.14 | E32: 0 | F32: 0 | G32: 0 | H32: 0 | I32: 0 | J32: 0 | K32: 0 | L32: 0 | M32: 0 | N32: 0 | O32: 0 | P32: 0 | Q32: 0 | R32: 0 | S32: 958630.14 | T32: 0 | U32: 0 | V32: 0 | W32: 0 | X32: 0 | Y32: 1917260.28
A33: 28 | B33: South Summit District | C33: 0 | D33: 313201.14 | E33: 0 | F33: 0 | G33: 0 | H33: 0 | I33: 0 | J33: 0 | K33: 0 | L33: 0 | M33: 0 | N33: 0 | O33: 0 | P33: 0 | Q33: 0 | R33: 0 | S33: 0 | T33: 0 | U33: 0 | V33: 313201.14 | W33: 0 | X33: 0 | Y33: 626402.28
A34: 29 | B34: Tintic District | C34: 0 | D34: -5169.88 | E34: 97706.93 | F34: 17262.43 | G34: 0 | H34: 0 | I34: 0 | J34: 0 | K34: 0 | L34: 0 | M34: 0 | N34: 0 | O34: 0 | P34: 0 | Q34: 0 | R34: 0 | S34: 109799.48 | T34: 0 | U34: 0 | V34: 0 | W34: 0 | X34: 0 | Y34: 219598.96
A35: 30 | B35: Tooele District | C35: 0 | D35: 2429409.32 | E35: 0 | F35: 0 | G35: 0 | H35: 0 | I35: 10901.6 | J35: 0 | K35: 12380.88 | L35: 0 | M35: 631.18 | N35: 0 | O35: 0 | P35: 0 | Q35: 0 | R35: 0 | S35: 2427298.86 | T35: 0 | U35: 0 | V35: 0 | W35: 0 | X35: 0 | Y35: 4880621.84
A36: 31 | B36: Uintah District | C36: 0 | D36: 71513.13 | E36: 0 | F36: 1100 | G36: 0 | H36: 693097.72 | I36: 0 | J36: 0 | K36: 0 | L36: 0 | M36: 0 | N36: 882 | O36: 0 | P36: 0 | Q36: 0 | R36: 0 | S36: 0 | T36: 0 | U36: 0 | V36: 0 | W36: 764828.85 | X36: 0 | Y36: 1531421.7
A37: 32 | B37: Wasatch District | C37: 0 | D37: 1174925 | E37: 0 | F37: 0 | G37: 0 | H37: 0 | I37: 0 | J37: 0 | K37: 1174925 | L37: 0 | M37: 0 | N37: 0 | O37: 0 | P37: 0 | Q37: 0 | R37: 0 | S37: 0 | T37: 0 | U37: 0 | V37: 0 | W37: 0 | X37: 0 | Y37: 2349850
A38: 33 | B38: Washington District | C38: 0 | D38: 5891646.81 | E38: 0 | F38: 0 | G38: 0 | H38: 549238.13 | I38: 6618.86 | J38: 0 | K38: 284191.91 | L38: 0 | M38: 0 | N38: 6163311.89 | O38: 0 | P38: 0 | Q38: 0 | R38: 0 | S38: 0 | T38: 0 | U38: 0 | V38: 0 | W38: 0 | X38: 0 | Y38: 12895007.6
A39: 34 | B39: Wayne District | C39: 0 | D39: 201159.17 | E39: 0 | F39: 0 | G39: 0 | H39: 0 | I39: 0 | J39: 0 | K39: 30742 | L39: 0 | M39: 0 | N39: 0 | O39: 0 | P39: 0 | Q39: 0 | R39: 0 | S39: 0 | T39: 0 | U39: 0 | V39: 170417.17 | W39: 0 | X39: 0 | Y39: 402318.34
A40: 35 | B40: Weber District | C40: 443378 | D40: 0 | E40: 0 | F40: 0 | G40: 0 | H40: 0 | I40: 1774 | J40: 0 | K40: 260928 | L40: 0 | M40: 94146 | N40: 0 | O40: 0 | P40: 0 | Q40: 0 | R40: 0 | S40: 0 | T40: 0 | U40: 93752 | V40: 0 | W40: 0 | X40: -3674 | Y40: 890304
A41: 36 | B41: Salt Lake District | C41: 0 | D41: 650183.17 | E41: 0 | F41: 6410.44 | G41: 0 | H41: 2595069.77 | I41: 0 | J41: 0 | K41: 13979.88 | L41: 0 | M41: 0 | N41: 6039.27 | O41: 162047.99 | P41: 0 | Q41: 0 | R41: 0 | S41: 0 | T41: 0 | U41: 0 | V41: 0 | W41: 0 | X41: 3069596.24 | Y41: 6503326.76
A42: 37 | B42: Ogden City District | C42: 0 | D42: 2058084.64 | E42: 0 | F42: 0 | G42: 0 | H42: 0 | I42: 1225115.69 | J42: 0 | K42: 34266.23 | L42: 0 | M42: 0 | N42: 1095801 | O42: 0 | P42: 0 | Q42: 0 | R42: 0 | S42: 0 | T42: 0 | U42: 0 | V42: 0 | W42: 2153133.1 | X42: 0 | Y42: 6566400.66
A43: 38 | B43: Provo District | C43: 0 | D43: 2267114.67 | E43: 0 | F43: 0 | G43: 0 | H43: 0 | I43: 45710 | J43: 0 | K43: 93568.41 | L43: 0 | M43: 0 | N43: 0 | O43: 0 | P43: 0 | Q43: 0 | R43: 0 | S43: 0 | T43: 0 | U43: 0 | V43: 0 | W43: 2219256.26 | X43: 0 | Y43: 4625649.34
A44: 39 | B44: Logan City District | C44: 0 | D44: 1111655.7 | E44: 0 | F44: 0 | G44: 0 | H44: 0 | I44: 0 | J44: 0 | K44: 89981.51 | L44: 0 | M44: 0 | N44: 0 | O44: 0 | P44: 0 | Q44: 0 | R44: 0 | S44: 0 | T44: 0 | U44: 0 | V44: 0 | W44: 505816.63 | X44: 515857.56 | Y44: 2223311.4
A45: 40 | B45: Murray District | C45: 285203 | D45: 188 | E45: 0 | F45: 0 | G45: 0 | H45: 709790 | I45: 0 | J45: 0 | K45: 148 | L45: 0 | M45: 0 | N45: 0 | O45: 0 | P45: 0 | Q45: 0 | R45: 1072938 | S45: 0 | T45: 0 | U45: 0 | V45: -77905 | W45: 0 | X45: 0 | Y45: 1990362
A46: 42 | B46: Canyons District | C46: 0 | D46: 8608068.11 | E46: 0 | F46: 0 | G46: 0 | H46: 713612.87 | I46: 0 | J46: 0 | K46: 260673.71 | L46: 0 | M46: 0 | N46: 0 | O46: 0 | P46: 0 | Q46: 0 | R46: 0 | S46: 0 | T46: 0 | U46: 6991.05 | V46: 9054016.22 | W46: 0 | X46: 0 | Y46: 18643361.96
A47: Grand Total | C47: 2651923.32 | D47: 59608635.99 | E47: 472744.93 | F47: 103396.31 | G47: 6556972.08 | H47: 55115173.83 | I47: 1337534.27 | J47: 126355.2 | K47: 4038311.81 | L47: 57772 | M47: 307048.16 | N47: 7268701.69 | O47: 593467.19 | P47: 15363 | Q47: 5894148 | R47: 1538804.2 | S47: 10122050.95 | T47: 680202.23 | U47: 100743.05 | V47: 52209366.67 | W47: 19635586.86 | X47: 23511170.81 | Y47: 251945472.6

Sheet 21 Student Activty Fund Final
A1: Balance Sheet for Fiscal Year: 2022
A2: 21 Student Activity Fund
B4: Balance Sheet Code | C4: 8110 | D4: 8120 | E4: 8131 | F4: 8150 | H4: 9510 | I4: 9530 | J4: 9540 | K4: 9561 | L4: 9590 | M4: 9750 | O4: 9765 | P4: 9860 | Q4: 9873 | R4: 9879 | S4: 9881 | T4: 9889 | U4: 9890 | V4: 9899
A5: LEA ID | B5: District | C5: Cash | D5: Investments | E5: Local | F5: Prepaid Expenditures | G5: Total Assets & Other Debits | H5: Accounts Payable | I5: Accrued Liabilities | J5: Accrued Salaries and Withholdings | K5: Unearned Revenue- Local | L5: Other Current Liabilities | M5: Deferred Inflows of Resources | N5: Total Liabilities & Other Credits | O5: Deferred Inflows of Resources - Leases | P5: Non-Spendable - Inventories & Prepaid Expenditures | Q5: Restricted – Student Activities | R5: Restricted -- Other | S5: Committed – Contracts | T5: Committed – Other | U5: Assigned – Unrestricted Programs | V5: Unassigned Fund Balance | W5: Total Fund Balances | X5: Total Assets | Y5: Total Liabilities & Fund Balances
A6: 1 | B6: Alpine District | C6: 6443876 | D6: 15859556 | E6: 0 | F6: 0 | G6: =SUM(Table5[[#This Row],[Cash]:[Prepaid Expenditures]]) -> 22303432 | H6: 56595 | I6: 0 | J6: 0 | K6: 0 | L6: 431421 | M6: 0 | N6: =SUM(Table5[[#This Row],[Accounts Payable]:[Deferred Inflows of Resources]]) -> 488016 | O6: 5894148 | P6: 0 | Q6: 0 | R6: 0 | S6: 0 | T6: 15921268 | U6: 0 | V6: 0 | W6: =SUM(Table5[[#This Row],[Deferred Inflows of Resources - Leases]:[Unassigned Fund Balance]]) -> 21815416 | X6: =Table5[[#This Row],[Total Assets & Other Debits]] -> 22303432 | Y6: =Table5[[#This Row],[Total Fund Balances]]+Table5[[#This Row],[Total Liabilities & Other Credits]] -> 22303432
A7: 2 | B7: Beaver District | C7: 594840.11 | D7: 0 | E7: 0 | F7: 0 | G7: =SUM(Table5[[#This Row],[Cash]:[Prepaid Expenditures]]) -> 594840.11 | H7: 1905.11 | I7: 0 | J7: 0 | K7: 23341.65 | L7: 0 | M7: 0 | N7: =SUM(Table5[[#This Row],[Accounts Payable]:[Deferred Inflows of Resources]]) -> 25246.76 | O7: 0 | P7: 0 | Q7: 569593.35 | R7: 0 | S7: 0 | T7: 0 | U7: 0 | V7: 0 | W7: =SUM(Table5[[#This Row],[Deferred Inflows of Resources - Leases]:[Unassigned Fund Balance]]) -> 569593.35 | X7: =Table5[[#This Row],[Total Assets & Other Debits]] -> 594840.11 | Y7: =Table5[[#This Row],[Total Fund Balances]]+Table5[[#This Row],[Total Liabilities & Other Credits]] -> 594840.11
A8: 3 | B8: Box Elder District | C8: 2265750.24 | D8: 1362262.25 | E8: 0 | F8: 0 | G8: =SUM(Table5[[#This Row],[Cash]:[Prepaid Expenditures]]) -> 3628012.49 | H8: 47891.4 | I8: 0 | J8: 0 | K8: 0 | L8: -1.8 | M8: 0 | N8: =SUM(Table5[[#This Row],[Accounts Payable]:[Deferred Inflows of Resources]]) -> 47889.6 | O8: 0 | P8: 0 | Q8: 0 | R8: 0 | S8: 0 | T8: 0 | U8: 0 | V8: 3580122.89 | W8: =SUM(Table5[[#This Row],[Deferred Inflows of Resources - Leases]:[Unassigned Fund Balance]]) -> 3580122.89 | X8: =Table5[[#This Row],[Total Assets & Other Debits]] -> 3628012.49 | Y8: =Table5[[#This Row],[Total Fund Balances]]+Table5[[#This Row],[Total Liabilities & Other Credits]] -> 3628012.49
A9: 4 | B9: Cache District | C9: 6807288.24 | D9: 0 | E9: 0 | F9: 0 | G9: =SUM(Table5[[#This Row],[Cash]:[Prepaid Expenditures]]) -> 6807288.24 | H9: 0 | I9: 0 | J9: 0 | K9: 0 | L9: 0 | M9: 0 | N9: =SUM(Table5[[#This Row],[Accounts Payable]:[Deferred Inflows of Resources]]) -> 0 | O9: 0 | P9: 0 | Q9: 0 | R9: 0 | S9: 0 | T9: 6807288.24 | U9: 0 | V9: 0 | W9: =SUM(Table5[[#This Row],[Deferred Inflows of Resources - Leases]:[Unassigned Fund Balance]]) -> 6807288.24 | X9: =Table5[[#This Row],[Total Assets & Other Debits]] -> 6807288.24 | Y9: =Table5[[#This Row],[Total Fund Balances]]+Table5[[#This Row],[Total Liabilities & Other Credits]] -> 6807288.24
A10: 5 | B10: Carbon District | C10: 493025.08 | D10: 0 | E10: 0 | F10: 0 | G10: =SUM(Table5[[#This Row],[Cash]:[Prepaid Expenditures]]) -> 493025.08 | H10: 0 | I10: 0 | J10: 0 | K10: 0 | L10: 0 | M10: 0 | N10: =SUM(Table5[[#This Row],[Accounts Payable]:[Deferred Inflows of Resources]]) -> 0 | O10: 0 | P10: 0 | Q10: 0 | R10: 0 | S10: 0 | T10: 493025.08 | U10: 0 | V10: 0 | W10: =SUM(Table5[[#This Row],[Deferred Inflows of Resources - Leases]:[Unassigned Fund Balance]]) -> 493025.08 | X10: =Table5[[#This Row],[Total Assets & Other Debits]] -> 493025.08 | Y10: =Table5[[#This Row],[Total Fund Balances]]+Table5[[#This Row],[Total Liabilities & Other Credits]] -> 493025.08
A11: 6 | B11: Daggett District | C11: 73032 | D11: 0 | E11: 0 | F11: 0 | G11: =SUM(Table5[[#This Row],[Cash]:[Prepaid Expenditures]]) -> 73032 | H11: 0 | I11: 0 | J11: 0 | K11: 0 | L11: 0 | M11: 0 | N11: =SUM(Table5[[#This Row],[Accounts Payable]:[Deferred Inflows of Resources]]) -> 0 | O11: 0 | P11: 0 | Q11: 0 | R11: 0 | S11: 0 | T11: -9231 | U11: 0 | V11: 82263 | W11: =SUM(Table5[[#This Row],[Deferred Inflows of Resources - Leases]:[Unassigned Fund Balance]]) -> 73032 | X11: =Table5[[#This Row],[Total Assets & Other Debits]] -> 73032 | Y11: =Table5[[#This Row],[Total Fund Balances]]+Table5[[#This Row],[Total Liabilities & Other Credits]] -> 73032
A12: 7 | B12: Davis District | C12: 2743394.8 | D12: 11417789.29 | E12: 0 | F12: 0 | G12: =SUM(Table5[[#This Row],[Cash]:[Prepaid Expenditures]]) -> 14161184.09 | H12: 256013.93 | I12: 0 | J12: 0 | K12: 0 | L12: 0 | M12: 0 | N12: =SUM(Table5[[#This Row],[Accounts Payable]:[Deferred Inflows of Resources]]) -> 256013.93 | O12: 0 | P12: 0 | Q12: 0 | R12: 0 | S12: 0 | T12: 0 | U12: 0 | V12: 13905170.63 | W12: =SUM(Table5[[#This Row],[Deferred Inflows of Resources - Leases]:[Unassigned Fund Balance]]) -> 13905170.63 | X12: =Table5[[#This Row],[Total Assets & Other Debits]] -> 14161184.09 | Y12: =Table5[[#This Row],[Total Fund Balances]]+Table5[[#This Row],[Total Liabilities & Other Credits]] -> 14161184.56
A13: 8 | B13: Duchesne District | C13: 1312478.36 | D13: 73740.78 | E13: 0 | F13: 0 | G13: =SUM(Table5[[#This Row],[Cash]:[Prepaid Expenditures]]) -> 1386219.14 | H13: 0 | I13: 0 | J13: 0 | K13: 0 | L13: 0 | M13: 0 | N13: =SUM(Table5[[#This Row],[Accounts Payable]:[Deferred Inflows of Resources]]) -> 0 | O13: 0 | P13: 0 | Q13: 1386219.14 | R13: 0 | S13: 0 | T13: 0 | U13: 0 | V13: 0 | W13: =SUM(Table5[[#This Row],[Deferred Inflows of Resources - Leases]:[Unassigned Fund Balance]]) -> 1386219.14 | X13: =Table5[[#This Row],[Total Assets & Other Debits]] -> 1386219.14 | Y13: =Table5[[#This Row],[Total Fund Balances]]+Table5[[#This Row],[Total Liabilities & Other Credits]] -> 1386219.14
A14: 9 | B14: Emery District | C14: 454475 | D14: 0 | E14: 0 | F14: 0 | G14: =SUM(Table5[[#This Row],[Cash]:[Prepaid Expenditures]]) -> 454475 | H14: 0 | I14: 0 | J14: 0 | K14: 0 | L14: 0 | M14: 0 | N14: =SUM(Table5[[#This Row],[Accounts Payable]:[Deferred Inflows of Resources]]) -> 0 | O14: 0 | P14: 0 | Q14: 454475 | R14: 0 | S14: 0 | T14: 0 | U14: 0 | V14: 0 | W14: =SUM(Table5[[#This Row],[Deferred Inflows of Resources - Leases]:[Unassigned Fund Balance]]) -> 454475 | X14: =Table5[[#This Row],[Total Assets & Other Debits]] -> 454475 | Y14: =Table5[[#This Row],[Total Fund Balances]]+Table5[[#This Row],[Total Liabilities & Other Credits]] -> 454475
A15: 10 | B15: Garfield District | C15: 348840 | D15: 0 | E15: 6034 | F15: 0 | G15: =SUM(Table5[[#This Row],[Cash]:[Prepaid Expenditures]]) -> 354874 | H15: 0 | I15: 0 | J15: 0 | K15: 0 | L15: 0 | M15: 15363 | N15: =SUM(Table5[[#This Row],[Accounts Payable]:[Deferred Inflows of Resources]]) -> 15363 | O15: 0 | P15: 339511 | Q15: 0 | R15: 0 | S15: 0 | T15: 0 | U15: 0 | V15: 0 | W15: =SUM(Table5[[#This Row],[Deferred Inflows of Resources - Leases]:[Unassigned Fund Balance]]) -> 339511 | X15: =Table5[[#This Row],[Total Assets & Other Debits]] -> 354874 | Y15: =Table5[[#This Row],[Total Fund Balances]]+Table5[[#This Row],[Total Liabilities & Other Credits]] -> 354874
A16: 11 | B16: Grand District | C16: 278016.67 | D16: 0 | E16: 0 | F16: 0 | G16: =SUM(Table5[[#This Row],[Cash]:[Prepaid Expenditures]]) -> 278016.67 | H16: 0 | I16: 0 | J16: 0 | K16: 0 | L16: 0 | M16: 0 | N16: =SUM(Table5[[#This Row],[Accounts Payable]:[Deferred Inflows of Resources]]) -> 0 | O16: 0 | P16: 0 | Q16: 278016.67 | R16: 0 | S16: 0 | T16: 0 | U16: 0 | V16: 0 | W16: =SUM(Table5[[#This Row],[Deferred Inflows of Resources - Leases]:[Unassigned Fund Balance]]) -> 278016.67 | X16: =Table5[[#This Row],[Total Assets & Other Debits]] -> 278016.67 | Y16: =Table5[[#This Row],[Total Fund Balances]]+Table5[[#This Row],[Total Liabilities & Other Credits]] -> 278016.67
A17: 12 | B17: Granite District | C17: 40683.44 | D17: 14174231.53 | E17: 2289.74 | F17: 126355.2 | G17: =SUM(Table5[[#This Row],[Cash]:[Prepaid Expenditures]]) -> 14343559.91 | H17: 279053.25 | I17: 0 | J17: 212270.98 | K17: 0 | L17: 0 | M17: 0 | N17: =SUM(Table5[[#This Row],[Accounts Payable]:[Deferred Inflows of Resources]]) -> 491324.23 | O17: 0 | P17: 126355.2 | Q17: 0 | R17: 0 | S17: 0 | T17: 13725880.48 | U17: 0 | V17: 0 | W17: =SUM(Table5[[#This Row],[Deferred Inflows of Resources - Leases]:[Unassigned Fund Balance]]) -> 13852235.68 | X17: =Table5[[#This Row],[Total Assets & Other Debits]] -> 14343559.91 | Y17: =Table5[[#This Row],[Total Fund Balances]]+Table5[[#This Row],[Total Liabilities & Other Credits]] -> 14343559.91
A18: 13 | B18: Iron District | C18: 431184.69 | D18: 1014124.7 | E18: -3535 | F18: 0 | G18: =SUM(Table5[[#This Row],[Cash]:[Prepaid Expenditures]]) -> 1441774.39 | H18: 49747.58 | I18: 0 | J18: 0 | K18: 0 | L18: 0 | M18: 0 | N18: =SUM(Table5[[#This Row],[Accounts Payable]:[Deferred Inflows of Resources]]) -> 49747.58 | O18: 0 | P18: 0 | Q18: 1392026.81 | R18: 0 | S18: 0 | T18: 0 | U18: 0 | V18: 0 | W18: =SUM(Table5[[#This Row],[Deferred Inflows of Resources - Leases]:[Unassigned Fund Balance]]) -> 1392026.81 | X18: =Table5[[#This Row],[Total Assets & Other Debits]] -> 1441774.39 | Y18: =Table5[[#This Row],[Total Fund Balances]]+Table5[[#This Row],[Total Liabilities & Other Credits]] -> 1441774.39
A19: 14 | B19: Jordan District | C19: 837323.77 | D19: 5823840.6 | E19: 0 | F19: 0 | G19: =SUM(Table5[[#This Row],[Cash]:[Prepaid Expenditures]]) -> 6661164.37 | H19: 986692.03 | I19: 0 | J19: 0 | K19: 0 | L19: 0 | M19: 0 | N19: =SUM(Table5[[#This Row],[Accounts Payable]:[Deferred Inflows of Resources]]) -> 986692.03 | O19: 0 | P19: 0 | Q19: 0 | R19: 0 | S19: 0 | T19: 5674472.34 | U19: 0 | V19: 0 | W19: =SUM(Table5[[#This Row],[Deferred Inflows of Resources - Leases]:[Unassigned Fund Balance]]) -> 5674472.34 | X19: =Table5[[#This Row],[Total Assets & Other Debits]] -> 6661164.37 | Y19: =Table5[[#This Row],[Total Fund Balances]]+Table5[[#This Row],[Total Liabilities & Other Credits]] -> 6661164.37
A20: 15 | B20: Juab District | C20: 602879 | D20: 0 | E20: 0 | F20: 0 | G20: =SUM(Table5[[#This Row],[Cash]:[Prepaid Expenditures]]) -> 602879 | H20: 0 | I20: 0 | J20: 0 | K20: 0 | L20: 0 | M20: 0 | N20: =SUM(Table5[[#This Row],[Accounts Payable]:[Deferred Inflows of Resources]]) -> 0 | O20: 0 | P20: 0 | Q20: 0 | R20: 0 | S20: 0 | T20: 0 | U20: 602879 | V20: 0 | W20: =SUM(Table5[[#This Row],[Deferred Inflows of Resources - Leases]:[Unassigned Fund Balance]]) -> 602879 | X20: =Table5[[#This Row],[Total Assets & Other Debits]] -> 602879 | Y20: =Table5[[#This Row],[Total Fund Balances]]+Table5[[#This Row],[Total Liabilities & Other Credits]] -> 602879
A21: 16 | B21: Kane District | C21: 425894.34 | D21: 0 | E21: 502.29 | F21: 0 | G21: =SUM(Table5[[#This Row],[Cash]:[Prepaid Expenditures]]) -> 426396.63 | H21: 0 | I21: 57772 | J21: 0 | K21: 0 | L21: 0 | M21: 0 | N21: =SUM(Table5[[#This Row],[Accounts Payable]:[Deferred Inflows of Resources]]) -> 57772 | O21: 0 | P21: 0 | Q21: 0 | R21: 0 | S21: 0 | T21: 0 | U21: 368624 | V21: 0 | W21: =SUM(Table5[[#This Row],[Deferred Inflows of Resources - Leases]:[Unassigned Fund Balance]]) -> 368624 | X21: =Table5[[#This Row],[Total Assets & Other Debits]] -> 426396.63 | Y21: =Table5[[#This Row],[Total Fund Balances]]+Table5[[#This Row],[Total Liabilities & Other Credits]] -> 426396
A22: 17 | B22: Millard District | C22: 713951.61 | D22: 0 | E22: 0 | F22: 0 | G22: =SUM(Table5[[#This Row],[Cash]:[Prepaid Expenditures]]) -> 713951.61 | H22: 0 | I22: 0 | J22: 0 | K22: -20674.12 | L22: 0 | M22: 0 | N22: =SUM(Table5[[#This Row],[Accounts Payable]:[Deferred Inflows of Resources]]) -> -20674.12 | O22: 0 | P22: 0 | Q22: 636679.71 | R22: 0 | S22: 0 | T22: 0 | U22: 0 | V22: 97946.02 | W22: =SUM(Table5[[#This Row],[Deferred Inflows of Resources - Leases]:[Unassigned Fund Balance]]) -> 734625.73 | X22: =Table5[[#This Row],[Total Assets & Other Debits]] -> 713951.61 | Y22: =Table5[[#This Row],[Total Fund Balances]]+Table5[[#This Row],[Total Liabilities & Other Credits]] -> 713951.61
A23: 18 | B23: Morgan District | C23: 834280.26 | D23: 0 | E23: 0 | F23: 0 | G23: =SUM(Table5[[#This Row],[Cash]:[Prepaid Expenditures]]) -> 834280.26 | H23: 0 | I23: 0 | J23: 0 | K23: 0 | L23: 0 | M23: 0 | N23: =SUM(Table5[[#This Row],[Accounts Payable]:[Deferred Inflows of Resources]]) -> 0 | O23: 0 | P23: 0 | Q23: 0 | R23: 0 | S23: 0 | T23: 0 | U23: 0 | V23: 834280.26 | W23: =SUM(Table5[[#This Row],[Deferred Inflows of Resources - Leases]:[Unassigned Fund Balance]]) -> 834280.26 | X23: =Table5[[#This Row],[Total Assets & Other Debits]] -> 834280.26 | Y23: =Table5[[#This Row],[Total Fund Balances]]+Table5[[#This Row],[Total Liabilities & Other Credits]] -> 834280.26
A24: 19 | B24: Nebo District | C24: 13021048.02 | D24: 0 | E24: 0 | F24: 0 | G24: =SUM(Table5[[#This Row],[Cash]:[Prepaid Expenditures]]) -> 13021048.02 | H24: 0 | I24: 0 | J24: 0 | K24: 0 | L24: 0 | M24: 0 | N24: =SUM(Table5[[#This Row],[Accounts Payable]:[Deferred Inflows of Resources]]) -> 0 | O24: 0 | P24: 0 | Q24: 0 | R24: 0 | S24: 0 | T24: 0 | U24: 13021049.02 | V24: 0 | W24: =SUM(Table5[[#This Row],[Deferred Inflows of Resources - Leases]:[Unassigned Fund Balance]]) -> 13021049.02 | X24: =Table5[[#This Row],[Total Assets & Other Debits]] -> 13021048.02 | Y24: =Table5[[#This Row],[Total Fund Balances]]+Table5[[#This Row],[Total Liabilities & Other Credits]] -> 13021049.02
A25: 20 | B25: North Sanpete District | C25: 486229.31 | D25: 128820.19 | E25: 0 | F25: 0 | G25: =SUM(Table5[[#This Row],[Cash]:[Prepaid Expenditures]]) -> 615049.5 | H25: 0 | I25: 0 | J25: 0 | K25: 0 | L25: 0 | M25: 0 | N25: =SUM(Table5[[#This Row],[Accounts Payable]:[Deferred Inflows of Resources]]) -> 0 | O25: 0 | P25: 0 | Q25: 0 | R25: 0 | S25: 0 | T25: 0 | U25: 0 | V25: 615049.5 | W25: =SUM(Table5[[#This Row],[Deferred Inflows of Resources - Leases]:[Unassigned Fund Balance]]) -> 615049.5 | X25: =Table5[[#This Row],[Total Assets & Other Debits]] -> 615049.5 | Y25: =Table5[[#This Row],[Total Fund Balances]]+Table5[[#This Row],[Total Liabilities & Other Credits]] -> 615049.5
A26: 21 | B26: North Summit District | C26: 102344.71 | D26: 0 | E26: 0 | F26: 0 | G26: =SUM(Table5[[#This Row],[Cash]:[Prepaid Expenditures]]) -> 102344.71 | H26: 0 | I26: 0 | J26: 0 | K26: 0 | L26: 0 | M26: 0 | N26: =SUM(Table5[[#This Row],[Accounts Payable]:[Deferred Inflows of Resources]]) -> 0 | O26: 0 | P26: 0 | Q26: 0 | R26: 0 | S26: 0 | T26: 0 | U26: 0 | V26: 102344.71 | W26: =SUM(Table5[[#This Row],[Deferred Inflows of Resources - Leases]:[Unassigned Fund Balance]]) -> 102344.71 | X26: =Table5[[#This Row],[Total Assets & Other Debits]] -> 102344.71 | Y26: =Table5[[#This Row],[Total Fund Balances]]+Table5[[#This Row],[Total Liabilities & Other Credits]] -> 102344.71
A27: 22 | B27: Park City District | C27: 703865 | D27: 0 | E27: 14575 | F27: 0 | G27: =SUM(Table5[[#This Row],[Cash]:[Prepaid Expenditures]]) -> 718440 | H27: 6408 | I27: 0 | J27: 0 | K27: 0 | L27: 0 | M27: 0 | N27: =SUM(Table5[[#This Row],[Accounts Payable]:[Deferred Inflows of Resources]]) -> 6408 | O27: 0 | P27: 0 | Q27: 0 | R27: 0 | S27: 0 | T27: 0 | U27: 0 | V27: 712032 | W27: =SUM(Table5[[#This Row],[Deferred Inflows of Resources - Leases]:[Unassigned Fund Balance]]) -> 712032 | X27: =Table5[[#This Row],[Total Assets & Other Debits]] -> 718440 | Y27: =Table5[[#This Row],[Total Fund Balances]]+Table5[[#This Row],[Total Liabilities & Other Credits]] -> 718440
A28: 23 | B28: Piute District | C28: 136934.3 | D28: 0 | E28: 0 | F28: 0 | G28: =SUM(Table5[[#This Row],[Cash]:[Prepaid Expenditures]]) -> 136934.3 | H28: 0 | I28: 0 | J28: 0 | K28: 0 | L28: 0 | M28: 0 | N28: =SUM(Table5[[#This Row],[Accounts Payable]:[Deferred Inflows of Resources]]) -> 0 | O28: 0 | P28: 0 | Q28: 0 | R28: 0 | S28: 0 | T28: 136934 | U28: 0 | V28: 0 | W28: =SUM(Table5[[#This Row],[Deferred Inflows of Resources - Leases]:[Unassigned Fund Balance]]) -> 136934 | X28: =Table5[[#This Row],[Total Assets & Other Debits]] -> 136934.3 | Y28: =Table5[[#This Row],[Total Fund Balances]]+Table5[[#This Row],[Total Liabilities & Other Credits]] -> 136934
A29: 24 | B29: Rich District | C29: 63442.08 | D29: 0 | E29: 0 | F29: 0 | G29: =SUM(Table5[[#This Row],[Cash]:[Prepaid Expenditures]]) -> 63442.08 | H29: 0 | I29: 0 | J29: 0 | K29: 0 | L29: 0 | M29: 0 | N29: =SUM(Table5[[#This Row],[Accounts Payable]:[Deferred Inflows of Resources]]) -> 0 | O29: 0 | P29: 0 | Q29: 63259.86 | R29: 0 | S29: 0 | T29: 0 | U29: 0 | V29: 182 | W29: =SUM(Table5[[#This Row],[Deferred Inflows of Resources - Leases]:[Unassigned Fund Balance]]) -> 63441.86 | X29: =Table5[[#This Row],[Total Assets & Other Debits]] -> 63442.08 | Y29: =Table5[[#This Row],[Total Fund Balances]]+Table5[[#This Row],[Total Liabilities & Other Credits]] -> 63441.86
A30: 25 | B30: San Juan District | C30: 684642.2 | D30: 0 | E30: 0 | F30: 0 | G30: =SUM(Table5[[#This Row],[Cash]:[Prepaid Expenditures]]) -> 684642.2 | H30: 4439.98 | I30: 0 | J30: 0 | K30: 0 | L30: 0 | M30: 0 | N30: =SUM(Table5[[#This Row],[Accounts Payable]:[Deferred Inflows of Resources]]) -> 4439.98 | O30: 0 | P30: 0 | Q30: 0 | R30: 680202.23 | S30: 0 | T30: 0 | U30: 0 | V30: 0 | W30: =SUM(Table5[[#This Row],[Deferred Inflows of Resources - Leases]:[Unassigned Fund Balance]]) -> 680202.23 | X30: =Table5[[#This Row],[Total Assets & Other Debits]] -> 684642.2 | Y30: =Table5[[#This Row],[Total Fund Balances]]+Table5[[#This Row],[Total Liabilities & Other Credits]] -> 684642.21
A31: 26 | B31: Sevier District | C31: 1912283.48 | D31: 0 | E31: 27548.09 | F31: 0 | G31: =SUM(Table5[[#This Row],[Cash]:[Prepaid Expenditures]]) -> 1939831.57 | H31: 93780 | I31: 0 | J31: 0 | K31: 0 | L31: 0 | M31: 0 | N31: =SUM(Table5[[#This Row],[Accounts Payable]:[Deferred Inflows of Resources]]) -> 93780 | O31: 0 | P31: 0 | Q31: 1846051.93 | R31: 0 | S31: 0 | T31: 0 | U31: 0 | V31: 0 | W31: =SUM(Table5[[#This Row],[Deferred Inflows of Resources - Leases]:[Unassigned Fund Balance]]) -> 1846051.93 | X31: =Table5[[#This Row],[Total Assets & Other Debits]] -> 1939831.57 | Y31: =Table5[[#This Row],[Total Fund Balances]]+Table5[[#This Row],[Total Liabilities & Other Credits]] -> 1939831.93
A32: 27 | B32: South Sanpete District | C32: 958630.14 | D32: 0 | E32: 0 | F32: 0 | G32: =SUM(Table5[[#This Row],[Cash]:[Prepaid Expenditures]]) -> 958630.14 | H32: 0 | I32: 0 | J32: 0 | K32: 0 | L32: 0 | M32: 0 | N32: =SUM(Table5[[#This Row],[Accounts Payable]:[Deferred Inflows of Resources]]) -> 0 | O32: 0 | P32: 0 | Q32: 958630.14 | R32: 0 | S32: 0 | T32: 0 | U32: 0 | V32: 0 | W32: =SUM(Table5[[#This Row],[Deferred Inflows of Resources - Leases]:[Unassigned Fund Balance]]) -> 958630.14 | X32: =Table5[[#This Row],[Total Assets & Other Debits]] -> 958630.14 | Y32: =Table5[[#This Row],[Total Fund Balances]]+Table5[[#This Row],[Total Liabilities & Other Credits]] -> 958630.14
A33: 28 | B33: South Summit District | C33: 313201.14 | D33: 0 | E33: 0 | F33: 0 | G33: =SUM(Table5[[#This Row],[Cash]:[Prepaid Expenditures]]) -> 313201.14 | H33: 0 | I33: 0 | J33: 0 | K33: 0 | L33: 0 | M33: 0 | N33: =SUM(Table5[[#This Row],[Accounts Payable]:[Deferred Inflows of Resources]]) -> 0 | O33: 0 | P33: 0 | Q33: 0 | R33: 0 | S33: 0 | T33: 313201.14 | U33: 0 | V33: 0 | W33: =SUM(Table5[[#This Row],[Deferred Inflows of Resources - Leases]:[Unassigned Fund Balance]]) -> 313201.14 | X33: =Table5[[#This Row],[Total Assets & Other Debits]] -> 313201.14 | Y33: =Table5[[#This Row],[Total Fund Balances]]+Table5[[#This Row],[Total Liabilities & Other Credits]] -> 313201.14
A34: 29 | B34: Tintic District | C34: 109799.48 | D34: 0 | E34: 0 | F34: 0 | G34: =SUM(Table5[[#This Row],[Cash]:[Prepaid Expenditures]]) -> 109799.48 | H34: 0 | I34: 0 | J34: 0 | K34: 0 | L34: 0 | M34: 0 | N34: =SUM(Table5[[#This Row],[Accounts Payable]:[Deferred Inflows of Resources]]) -> 0 | O34: 0 | P34: 0 | Q34: 109799.48 | R34: 0 | S34: 0 | T34: 0 | U34: 0 | V34: 0 | W34: =SUM(Table5[[#This Row],[Deferred Inflows of Resources - Leases]:[Unassigned Fund Balance]]) -> 109799.48 | X34: =Table5[[#This Row],[Total Assets & Other Debits]] -> 109799.48 | Y34: =Table5[[#This Row],[Total Fund Balances]]+Table5[[#This Row],[Total Liabilities & Other Credits]] -> 109799.48
A35: 30 | B35: Tooele District | C35: 2429409.32 | D35: 0 | E35: 10901.6 | F35: 0 | G35: =SUM(Table5[[#This Row],[Cash]:[Prepaid Expenditures]]) -> 2440310.92 | H35: 12380.88 | I35: 0 | J35: 631.18 | K35: 0 | L35: 0 | M35: 0 | N35: =SUM(Table5[[#This Row],[Accounts Payable]:[Deferred Inflows of Resources]]) -> 13012.06 | O35: 0 | P35: 0 | Q35: 2427298.86 | R35: 0 | S35: 0 | T35: 0 | U35: 0 | V35: 0 | W35: =SUM(Table5[[#This Row],[Deferred Inflows of Resources - Leases]:[Unassigned Fund Balance]]) -> 2427298.86 | X35: =Table5[[#This Row],[Total Assets & Other Debits]] -> 2440310.92 | Y35: =Table5[[#This Row],[Total Fund Balances]]+Table5[[#This Row],[Total Liabilities & Other Credits]] -> 2440310.92
A36: 31 | B36: Uintah District | C36: 72613.13 | D36: 693097.72 | E36: 0 | F36: 0 | G36: =SUM(Table5[[#This Row],[Cash]:[Prepaid Expenditures]]) -> 765710.85 | H36: 0 | I36: 0 | J36: 0 | K36: 882 | L36: 0 | M36: 0 | N36: =SUM(Table5[[#This Row],[Accounts Payable]:[Deferred Inflows of Resources]]) -> 882 | O36: 0 | P36: 0 | Q36: 0 | R36: 0 | S36: 0 | T36: 0 | U36: 764828.85 | V36: 0 | W36: =SUM(Table5[[#This Row],[Deferred Inflows of Resources - Leases]:[Unassigned Fund Balance]]) -> 764828.85 | X36: =Table5[[#This Row],[Total Assets & Other Debits]] -> 765710.85 | Y36: =Table5[[#This Row],[Total Fund Balances]]+Table5[[#This Row],[Total Liabilities & Other Credits]] -> 765710.85
A37: 32 | B37: Wasatch District | C37: 1174925 | D37: 0 | E37: 0 | F37: 0 | G37: =SUM(Table5[[#This Row],[Cash]:[Prepaid Expenditures]]) -> 1174925 | H37: 1174925 | I37: 0 | J37: 0 | K37: 0 | L37: 0 | M37: 0 | N37: =SUM(Table5[[#This Row],[Accounts Payable]:[Deferred Inflows of Resources]]) -> 1174925 | O37: 0 | P37: 0 | Q37: 0 | R37: 0 | S37: 0 | T37: 0 | U37: 0 | V37: 0 | W37: =SUM(Table5[[#This Row],[Deferred Inflows of Resources - Leases]:[Unassigned Fund Balance]]) -> 0 | X37: =Table5[[#This Row],[Total Assets & Other Debits]] -> 1174925 | Y37: =Table5[[#This Row],[Total Fund Balances]]+Table5[[#This Row],[Total Liabilities & Other Credits]] -> 1174925
A38: 33 | B38: Washington District | C38: 5891646.81 | D38: 549238.13 | E38: 6618.86 | F38: 0 | G38: =SUM(Table5[[#This Row],[Cash]:[Prepaid Expenditures]]) -> 6447503.8 | H38: 284191.91 | I38: 0 | J38: 0 | K38: 6163311.89 | L38: 0 | M38: 0 | N38: =SUM(Table5[[#This Row],[Accounts Payable]:[Deferred Inflows of Resources]]) -> 6447503.8 | O38: 0 | P38: 0 | Q38: 0 | R38: 0 | S38: 0 | T38: 0 | U38: 0 | V38: 0 | W38: =SUM(Table5[[#This Row],[Deferred Inflows of Resources - Leases]:[Unassigned Fund Balance]]) -> 0 | X38: =Table5[[#This Row],[Total Assets & Other Debits]] -> 6447503.8 | Y38: =Table5[[#This Row],[Total Fund Balances]]+Table5[[#This Row],[Total Liabilities & Other Credits]] -> 6447503.8
A39: 34 | B39: Wayne District | C39: 201159.17 | D39: 0 | E39: 0 | F39: 0 | G39: =SUM(Table5[[#This Row],[Cash]:[Prepaid Expenditures]]) -> 201159.17 | H39: 30742 | I39: 0 | J39: 0 | K39: 0 | L39: 0 | M39: 0 | N39: =SUM(Table5[[#This Row],[Accounts Payable]:[Deferred Inflows of Resources]]) -> 30742 | O39: 0 | P39: 0 | Q39: 0 | R39: 0 | S39: 0 | T39: 170417.17 | U39: 0 | V39: 0 | W39: =SUM(Table5[[#This Row],[Deferred Inflows of Resources - Leases]:[Unassigned Fund Balance]]) -> 170417.17 | X39: =Table5[[#This Row],[Total Assets & Other Debits]] -> 201159.17 | Y39: =Table5[[#This Row],[Total Fund Balances]]+Table5[[#This Row],[Total Liabilities & Other Credits]] -> 201159.17
A40: 35 | B40: Weber District | C40: 443378 | D40: 0 | E40: 1774 | F40: 0 | G40: =SUM(Table5[[#This Row],[Cash]:[Prepaid Expenditures]]) -> 445152 | H40: 260928 | I40: 0 | J40: 94146 | K40: 0 | L40: 0 | M40: 0 | N40: =SUM(Table5[[#This Row],[Accounts Payable]:[Deferred Inflows of Resources]]) -> 355074 | O40: 0 | P40: 0 | Q40: 0 | R40: 0 | S40: 93752 | T40: 0 | U40: 0 | V40: -3674 | W40: =SUM(Table5[[#This Row],[Deferred Inflows of Resources - Leases]:[Unassigned Fund Balance]]) -> 90078 | X40: =Table5[[#This Row],[Total Assets & Other Debits]] -> 445152 | Y40: =Table5[[#This Row],[Total Fund Balances]]+Table5[[#This Row],[Total Liabilities & Other Credits]] -> 445152
A41: 36 | B41: Salt Lake District | C41: 656593.61 | D41: 2595069.77 | E41: 0 | F41: 0 | G41: =SUM(Table5[[#This Row],[Cash]:[Prepaid Expenditures]]) -> 3251663.38 | H41: 13979.88 | I41: 0 | J41: 0 | K41: 6039.27 | L41: 162047.99 | M41: 0 | N41: =SUM(Table5[[#This Row],[Accounts Payable]:[Deferred Inflows of Resources]]) -> 182067.14 | O41: 0 | P41: 0 | Q41: 0 | R41: 0 | S41: 0 | T41: 0 | U41: 0 | V41: 3069596.24 | W41: =SUM(Table5[[#This Row],[Deferred Inflows of Resources - Leases]:[Unassigned Fund Balance]]) -> 3069596.24 | X41: =Table5[[#This Row],[Total Assets & Other Debits]] -> 3251663.38 | Y41: =Table5[[#This Row],[Total Fund Balances]]+Table5[[#This Row],[Total Liabilities & Other Credits]] -> 3251663.38
A42: 37 | B42: Ogden City District | C42: 2058084.64 | D42: 0 | E42: 1225115.69 | F42: 0 | G42: =SUM(Table5[[#This Row],[Cash]:[Prepaid Expenditures]]) -> 3283200.33 | H42: 34266.23 | I42: 0 | J42: 0 | K42: 1095801 | L42: 0 | M42: 0 | N42: =SUM(Table5[[#This Row],[Accounts Payable]:[Deferred Inflows of Resources]]) -> 1130067.23 | O42: 0 | P42: 0 | Q42: 0 | R42: 0 | S42: 0 | T42: 0 | U42: 2153133.1 | V42: 0 | W42: =SUM(Table5[[#This Row],[Deferred Inflows of Resources - Leases]:[Unassigned Fund Balance]]) -> 2153133.1 | X42: =Table5[[#This Row],[Total Assets & Other Debits]] -> 3283200.33 | Y42: =Table5[[#This Row],[Total Fund Balances]]+Table5[[#This Row],[Total Liabilities & Other Credits]] -> 3283200.33
A43: 38 | B43: Provo District | C43: 2267114.67 | D43: 0 | E43: 45710 | F43: 0 | G43: =SUM(Table5[[#This Row],[Cash]:[Prepaid Expenditures]]) -> 2312824.67 | H43: 93568.41 | I43: 0 | J43: 0 | K43: 0 | L43: 0 | M43: 0 | N43: =SUM(Table5[[#This Row],[Accounts Payable]:[Deferred Inflows of Resources]]) -> 93568.41 | O43: 0 | P43: 0 | Q43: 0 | R43: 0 | S43: 0 | T43: 0 | U43: 2219256.26 | V43: 0 | W43: =SUM(Table5[[#This Row],[Deferred Inflows of Resources - Leases]:[Unassigned Fund Balance]]) -> 2219256.26 | X43: =Table5[[#This Row],[Total Assets & Other Debits]] -> 2312824.67 | Y43: =Table5[[#This Row],[Total Fund Balances]]+Table5[[#This Row],[Total Liabilities & Other Credits]] -> 2312824.67
A44: 39 | B44: Logan City District | C44: 1111655.7 | D44: 0 | E44: 0 | F44: 0 | G44: =SUM(Table5[[#This Row],[Cash]:[Prepaid Expenditures]]) -> 1111655.7 | H44: 89981.51 | I44: 0 | J44: 0 | K44: 0 | L44: 0 | M44: 0 | N44: =SUM(Table5[[#This Row],[Accounts Payable]:[Deferred Inflows of Resources]]) -> 89981.51 | O44: 0 | P44: 0 | Q44: 0 | R44: 0 | S44: 0 | T44: 0 | U44: 505816.63 | V44: 515857.56 | W44: =SUM(Table5[[#This Row],[Deferred Inflows of Resources - Leases]:[Unassigned Fund Balance]]) -> 1021674.19 | X44: =Table5[[#This Row],[Total Assets & Other Debits]] -> 1111655.7 | Y44: =Table5[[#This Row],[Total Fund Balances]]+Table5[[#This Row],[Total Liabilities & Other Credits]] -> 1111655.7
A45: 40 | B45: Murray District | C45: 285391 | D45: 709790 | E45: 0 | F45: 0 | G45: =SUM(Table5[[#This Row],[Cash]:[Prepaid Expenditures]]) -> 995181 | H45: 148 | I45: 0 | J45: 0 | K45: 0 | L45: 0 | M45: 0 | N45: =SUM(Table5[[#This Row],[Accounts Payable]:[Deferred Inflows of Resources]]) -> 148 | O45: 0 | P45: 1072938 | Q45: 0 | R45: 0 | S45: 0 | T45: -77905 | U45: 0 | V45: 0 | W45: =SUM(Table5[[#This Row],[Deferred Inflows of Resources - Leases]:[Unassigned Fund Balance]]) -> 995033 | X45: =Table5[[#This Row],[Total Assets & Other Debits]] -> 995181 | Y45: =Table5[[#This Row],[Total Fund Balances]]+Table5[[#This Row],[Total Liabilities & Other Credits]] -> 995181
A46: 42 | B46: Canyons District | C46: 8608068.11 | D46: 713612.87 | E46: 0 | F46: 0 | G46: =SUM(Table5[[#This Row],[Cash]:[Prepaid Expenditures]]) -> 9321680.98 | H46: 260673.71 | I46: 0 | J46: 0 | K46: 0 | L46: 0 | M46: 0 | N46: =SUM(Table5[[#This Row],[Accounts Payable]:[Deferred Inflows of Resources]]) -> 260673.71 | O46: 0 | P46: 0 | Q46: 0 | R46: 0 | S46: 6991.05 | T46: 9054016.22 | U46: 0 | V46: 0 | W46: =SUM(Table5[[#This Row],[Deferred Inflows of Resources - Leases]:[Unassigned Fund Balance]]) -> 9061007.27 | X46: =Table5[[#This Row],[Total Assets & Other Debits]] -> 9321680.98 | Y46: =Table5[[#This Row],[Total Fund Balances]]+Table5[[#This Row],[Total Liabilities & Other Credits]] -> 9321680.98
A47: Grand Total | C47: 69393672.63 | D47: 55115173.83 | E47: 1337534.27 | F47: 126355.2 | G47: =SUM(Table5[[#This Row],[Cash]:[Prepaid Expenditures]]) -> 125972735.9 | H47: 4038311.81 | I47: 57772 | J47: 307048.16 | K47: 7268701.69 | L47: 593467.19 | M47: 15363 | N47: =SUM(Table5[[#This Row],[Accounts Payable]:[Deferred Inflows of Resources]]) -> 12280663.85 | O47: 5894148 | P47: 1538804.2 | Q47: 10122050.95 | R47: 680202.23 | S47: 100743.05 | T47: 52209366.67 | U47: 19635586.86 | V47: 23511170.81 | W47: =SUM(Table5[[#This Row],[Deferred Inflows of Resources - Leases]:[Unassigned Fund Balance]]) -> 113692072.8 | X47: =Table5[[#This Row],[Total Assets & Other Debits]] -> 125972735.9 | Y47: =Table5[[#This Row],[Total Fund Balances]]+Table5[[#This Row],[Total Liabilities & Other Credits]] -> 125972736.6

Sheet 23 Non K-12 Program Fund (hidden)
A1: FundCode | B1: 23
A3: Sum of Amount | C3: BalanceSheetCode | D3: BalanceSheetDescription
C4: 8110 | D4: 8111 | E4: 8120 | F4: 8131 | G4: 8132 | H4: 8133 | I4: 8134 | J4: 9505 | K4: 9510 | L4: 9530 | M4: 9540 | N4: 9561 | O4: 9563 | P4: 9564 | Q4: 9750 | R4: 9860 | S4: 9874 | T4: 9879 | U4: 9880 | V4: 9890 | W4: 9899 | X4: Grand Total
A5: district_nbr | B5: LEA_name | C5: Cash | D5: Cash in Banks | E5: Investments | F5: Local | G5: Local Property Taxes | H5: State | I5: Federal | J5: Negative Cash Balance | K5: Accounts Payable | L5: Accrued Liabilities | M5: Accrued Salaries and Withholdings | N5: Unearned Revenue- Local | O5: Unearned Revenue- State | P5: Unearned Revenue- Federal | Q5: Deferred Inflows of Resources | R5: Non-Spendable - Inventories & Prepaid Expenditures | S5: Restricted – Non K-12 | T5: Restricted -- Other | U5: Committed – Economic Stabilization | V5: Assigned – Unrestricted Programs | W5: Unassigned Fund Balance
A6: 1 | B6: Alpine District | C6: 0 | D6: 0 | E6: 5111632 | F6: 0 | G6: 4354366 | H6: 4923 | I6: 426312 | J6: 0 | K6: 110 | L6: 0 | M6: 0 | N6: 87422 | O6: 4988910 | P6: 0 | Q6: 4337147 | R6: 0 | S6: 483644 | T6: 0 | U6: 0 | V6: 0 | W6: 0 | X6: 19794466
A7: 5 | B7: Carbon District | C7: 0 | D7: 24244.17 | E7: 43196.99 | F7: 0 | G7: 0 | H7: 1999.99 | I7: 0 | J7: 0 | K7: 733.22 | L7: 21958.3 | M7: 6977.2 | N7: 0 | O7: 0 | P7: 0 | Q7: 0 | R7: 0 | S7: 39772.43 | T7: 0 | U7: 0 | V7: 0 | W7: 0 | X7: 138882.3
A8: 13 | B8: Iron District | C8: 0 | D8: 0 | E8: 1000607.28 | F8: -20.25 | G8: 0 | H8: 0 | I8: 6200.11 | J8: 0 | K8: 265.25 | L8: 164795.45 | M8: 0 | N8: 0 | O8: 0 | P8: 0 | Q8: 0 | R8: 0 | S8: 0 | T8: 0 | U8: 321901.86 | V8: 519824.58 | W8: 0 | X8: 2013574.28
A9: 15 | B9: Juab District | C9: 0 | D9: 115839.13 | E9: 0 | F9: 0 | G9: 0 | H9: 0 | I9: 52185.24 | J9: 0 | K9: 40764.97 | L9: 0 | M9: 50651.43 | N9: 0 | O9: 76607.97 | P9: 0 | Q9: 0 | R9: 0 | S9: 0 | T9: 0 | U9: 0 | V9: 0 | W9: 0 | X9: 336048.74
A10: 19 | B10: Nebo District | C10: 0 | D10: 1848617.07 | E10: 0 | F10: 11472 | G10: 2146531.97 | H10: 48570.76 | I10: 584824.79 | J10: 0 | K10: 55177.27 | L10: 0 | M10: 0 | N10: 0 | O10: 432412.22 | P10: 0 | Q10: 2128374.45 | R10: 0 | S10: 0 | T10: 2024052.65 | U10: 0 | V10: 0 | W10: 0 | X10: 9280033.18
A11: 20 | B11: North Sanpete District | C11: 75352.28 | D11: 0 | E11: 0 | F11: 0 | G11: 0 | H11: 19571.16 | I11: 46517.11 | J11: 0 | K11: 3621.96 | L11: 0 | M11: 0 | N11: 0 | O11: 137818.59 | P11: 0 | Q11: 0 | R11: 0 | S11: 0 | T11: 0 | U11: 0 | V11: 0 | W11: 0 | X11: 282881.1
A12: 21 | B12: North Summit District | C12: 0 | D12: 30699.33 | E12: 0 | F12: 0 | G12: 0 | H12: 0 | I12: 13845.26 | J12: 0 | K12: 0 | L12: 0 | M12: 0 | N12: 0 | O12: 0 | P12: 0 | Q12: 0 | R12: 0 | S12: 44544.59 | T12: 0 | U12: 0 | V12: 0 | W12: 0 | X12: 89089.18
A13: 27 | B13: South Sanpete District | C13: 0 | D13: 673762.67 | E13: 0 | F13: 0 | G13: 0 | H13: 0 | I13: 0 | J13: 0 | K13: 37147.34 | L13: 72804.12 | M13: 82482.01 | N13: 0 | O13: 0 | P13: 0 | Q13: 0 | R13: 0 | S13: 481329.2 | T13: 0 | U13: 0 | V13: 0 | W13: 0 | X13: 1347525.34
A14: 29 | B14: Tintic District | C14: 0 | D14: 93551.37 | E14: 0 | F14: 0 | G14: 0 | H14: 0 | I14: 7238.06 | J14: 0 | K14: 767.97 | L14: 0 | M14: 0 | N14: 0 | O14: 0 | P14: 0 | Q14: 0 | R14: 0 | S14: 0 | T14: 0 | U14: 0 | V14: 0 | W14: 100024.46 | X14: 201581.86
A15: 37 | B15: Ogden City District | C15: 0 | D15: 0 | E15: 0 | F15: 0 | G15: 0 | H15: 117978.02 | I15: 0 | J15: 113221.57 | K15: 4756.45 | L15: 0 | M15: 0 | N15: 0 | O15: 0 | P15: 0 | Q15: 0 | R15: 0 | S15: 0 | T15: 0 | U15: 0 | V15: 0 | W15: 0 | X15: 235956.04
A16: 40 | B16: Murray District | C16: 0 | D16: 488975 | E16: -5004 | F16: 0 | G16: 0 | H16: 0 | I16: 0 | J16: 0 | K16: 4522 | L16: 0 | M16: 386029 | N16: 0 | O16: 14421 | P16: 52118 | Q16: 0 | R16: 207936 | S16: 0 | T16: 0 | U16: 0 | V16: 0 | W16: -181055 | X16: 967942
A17: Grand Total | C17: 75352.28 | D17: 3275688.74 | E17: 6150432.27 | F17: 11451.75 | G17: 6500897.97 | H17: 193042.93 | I17: 1137122.57 | J17: 113221.57 | K17: 147866.43 | L17: 259557.87 | M17: 526139.64 | N17: 87422 | O17: 5650169.78 | P17: 52118 | Q17: 6465521.45 | R17: 207936 | S17: 1049290.22 | T17: 2024052.65 | U17: 321901.86 | V17: 519824.58 | W17: -81030.54 | X17: 34687980.02

Sheet 23 Non K-12 Program Fund Final
A1: Balance Sheet for Fiscal Year: 2022
A2: 23 Non K-12 Program Fund
B4: Balance Sheet Code | C4: 8110 | D4: 8120 | E4: 8131 | F4: 8132 | G4: 8133 | H4: 8134 | J4: 9505 | K4: 9510 | L4: 9530 | M4: 9540 | N4: 9561 | O4: 9563 | P4: 9564 | Q4: 9750 | S4: 9860 | T4: 9874 | U4: 9879 | V4: 9880 | W4: 9890 | X4: 9899
A5: LEA ID | B5: District | C5: Cash | D5: Investments | E5: Local | F5: Local Property Taxes | G5: State | H5: Federal | I5: Total Assets & Other Debits | J5: Negative Cash Balance | K5: Accounts Payable | L5: Accrued Liabilities | M5: Accrued Salaries and Withholdings | N5: Unearned Revenue- Local | O5: Unearned Revenue- State | P5: Unearned Revenue- Federal | Q5: Deferred Inflows of Resources | R5: Total Liabilities & Other Credits | S5: Non-Spendable - Inventories & Prepaid Expenditures | T5: Restricted – Non K-12 | U5: Restricted -- Other | V5: Committed – Economic Stabilization | W5: Assigned – Unrestricted Programs | X5: Unassigned Fund Balance | Y5: Total Fund Balances | Z5: Total Assets | AA5: Total Liabilities and Fund Balances
A6: 1 | B6: Alpine District | C6: 0 | D6: 5111632 | E6: 0 | F6: 4354366 | G6: 4923 | H6: 426312 | I6: =SUM(Table6[[#This Row],[Cash]:[Federal]]) -> 9897233 | J6: 0 | K6: 110 | L6: 0 | M6: 0 | N6: 87422 | O6: 4988910 | P6: 0 | Q6: 4337147 | R6: =SUM(Table6[[#This Row],[Negative Cash Balance]:[Deferred Inflows of Resources]]) -> 9413589 | S6: 0 | T6: 483644 | U6: 0 | V6: 0 | W6: 0 | X6: 0 | Y6: =SUM(Table6[[#This Row],[Non-Spendable - Inventories & Prepaid Expenditures]:[Unassigned Fund Balance]]) -> 483644 | Z6: =Table6[[#This Row],[Total Assets & Other Debits]] -> 9897233 | AA6: =Table6[[#This Row],[Total Fund Balances]]+Table6[[#This Row],[Total Liabilities & Other Credits]] -> 9897233
A7: 5 | B7: Carbon District | C7: 24244.17 | D7: 43196.99 | E7: 0 | F7: 0 | G7: 1999.99 | H7: 0 | I7: =SUM(Table6[[#This Row],[Cash]:[Federal]]) -> 69441.15 | J7: 0 | K7: 733.22 | L7: 21958.3 | M7: 6977.2 | N7: 0 | O7: 0 | P7: 0 | Q7: 0 | R7: =SUM(Table6[[#This Row],[Negative Cash Balance]:[Deferred Inflows of Resources]]) -> 29668.72 | S7: 0 | T7: 39772.43 | U7: 0 | V7: 0 | W7: 0 | X7: 0 | Y7: =SUM(Table6[[#This Row],[Non-Spendable - Inventories & Prepaid Expenditures]:[Unassigned Fund Balance]]) -> 39772.43 | Z7: =Table6[[#This Row],[Total Assets & Other Debits]] -> 69441.15 | AA7: =Table6[[#This Row],[Total Fund Balances]]+Table6[[#This Row],[Total Liabilities & Other Credits]] -> 69441.15
A8: 13 | B8: Iron District | C8: 0 | D8: 1000607.28 | E8: -20.25 | F8: 0 | G8: 0 | H8: 6200.11 | I8: =SUM(Table6[[#This Row],[Cash]:[Federal]]) -> 1006787.14 | J8: 0 | K8: 265.25 | L8: 164795.45 | M8: 0 | N8: 0 | O8: 0 | P8: 0 | Q8: 0 | R8: =SUM(Table6[[#This Row],[Negative Cash Balance]:[Deferred Inflows of Resources]]) -> 165060.7 | S8: 0 | T8: 0 | U8: 0 | V8: 321901.86 | W8: 519824.58 | X8: 0 | Y8: =SUM(Table6[[#This Row],[Non-Spendable - Inventories & Prepaid Expenditures]:[Unassigned Fund Balance]]) -> 841726.44 | Z8: =Table6[[#This Row],[Total Assets & Other Debits]] -> 1006787.14 | AA8: =Table6[[#This Row],[Total Fund Balances]]+Table6[[#This Row],[Total Liabilities & Other Credits]] -> 1006787.14
A9: 15 | B9: Juab District | C9: 115839.13 | D9: 0 | E9: 0 | F9: 0 | G9: 0 | H9: 52185.24 | I9: =SUM(Table6[[#This Row],[Cash]:[Federal]]) -> 168024.37 | J9: 0 | K9: 40764.97 | L9: 0 | M9: 50651.43 | N9: 0 | O9: 76607.97 | P9: 0 | Q9: 0 | R9: =SUM(Table6[[#This Row],[Negative Cash Balance]:[Deferred Inflows of Resources]]) -> 168024.37 | S9: 0 | T9: 0 | U9: 0 | V9: 0 | W9: 0 | X9: 0 | Y9: =SUM(Table6[[#This Row],[Non-Spendable - Inventories & Prepaid Expenditures]:[Unassigned Fund Balance]]) -> 0 | Z9: =Table6[[#This Row],[Total Assets & Other Debits]] -> 168024.37 | AA9: =Table6[[#This Row],[Total Fund Balances]]+Table6[[#This Row],[Total Liabilities & Other Credits]] -> 168024.37
A10: 19 | B10: Nebo District | C10: 1848617.07 | D10: 0 | E10: 11472 | F10: 2146531.97 | G10: 48570.76 | H10: 584824.79 | I10: =SUM(Table6[[#This Row],[Cash]:[Federal]]) -> 4640016.59 | J10: 0 | K10: 55177.27 | L10: 0 | M10: 0 | N10: 0 | O10: 432412.22 | P10: 0 | Q10: 2128374.45 | R10: =SUM(Table6[[#This Row],[Negative Cash Balance]:[Deferred Inflows of Resources]]) -> 2615963.94 | S10: 0 | T10: 0 | U10: 2024052.65 | V10: 0 | W10: 0 | X10: 0 | Y10: =SUM(Table6[[#This Row],[Non-Spendable - Inventories & Prepaid Expenditures]:[Unassigned Fund Balance]]) -> 2024052.65 | Z10: =Table6[[#This Row],[Total Assets & Other Debits]] -> 4640016.59 | AA10: =Table6[[#This Row],[Total Fund Balances]]+Table6[[#This Row],[Total Liabilities & Other Credits]] -> 4640016.59
A11: 20 | B11: North Sanpete District | C11: 75352.28 | D11: 0 | E11: 0 | F11: 0 | G11: 19571.16 | H11: 46517.11 | I11: =SUM(Table6[[#This Row],[Cash]:[Federal]]) -> 141440.55 | J11: 0 | K11: 3621.96 | L11: 0 | M11: 0 | N11: 0 | O11: 137818.59 | P11: 0 | Q11: 0 | R11: =SUM(Table6[[#This Row],[Negative Cash Balance]:[Deferred Inflows of Resources]]) -> 141440.55 | S11: 0 | T11: 0 | U11: 0 | V11: 0 | W11: 0 | X11: 0 | Y11: =SUM(Table6[[#This Row],[Non-Spendable - Inventories & Prepaid Expenditures]:[Unassigned Fund Balance]]) -> 0 | Z11: =Table6[[#This Row],[Total Assets & Other Debits]] -> 141440.55 | AA11: =Table6[[#This Row],[Total Fund Balances]]+Table6[[#This Row],[Total Liabilities & Other Credits]] -> 141440.55
A12: 21 | B12: North Summit District | C12: 30699.33 | D12: 0 | E12: 0 | F12: 0 | G12: 0 | H12: 13845.26 | I12: =SUM(Table6[[#This Row],[Cash]:[Federal]]) -> 44544.59 | J12: 0 | K12: 0 | L12: 0 | M12: 0 | N12: 0 | O12: 0 | P12: 0 | Q12: 0 | R12: =SUM(Table6[[#This Row],[Negative Cash Balance]:[Deferred Inflows of Resources]]) -> 0 | S12: 0 | T12: 44544.59 | U12: 0 | V12: 0 | W12: 0 | X12: 0 | Y12: =SUM(Table6[[#This Row],[Non-Spendable - Inventories & Prepaid Expenditures]:[Unassigned Fund Balance]]) -> 44544.59 | Z12: =Table6[[#This Row],[Total Assets & Other Debits]] -> 44544.59 | AA12: =Table6[[#This Row],[Total Fund Balances]]+Table6[[#This Row],[Total Liabilities & Other Credits]] -> 44544.59
A13: 27 | B13: South Sanpete District | C13: 673762.67 | D13: 0 | E13: 0 | F13: 0 | G13: 0 | H13: 0 | I13: =SUM(Table6[[#This Row],[Cash]:[Federal]]) -> 673762.67 | J13: 0 | K13: 37147.34 | L13: 72804.12 | M13: 82482.01 | N13: 0 | O13: 0 | P13: 0 | Q13: 0 | R13: =SUM(Table6[[#This Row],[Negative Cash Balance]:[Deferred Inflows of Resources]]) -> 192433.47 | S13: 0 | T13: 481329.2 | U13: 0 | V13: 0 | W13: 0 | X13: 0 | Y13: =SUM(Table6[[#This Row],[Non-Spendable - Inventories & Prepaid Expenditures]:[Unassigned Fund Balance]]) -> 481329.2 | Z13: =Table6[[#This Row],[Total Assets & Other Debits]] -> 673762.67 | AA13: =Table6[[#This Row],[Total Fund Balances]]+Table6[[#This Row],[Total Liabilities & Other Credits]] -> 673762.67
A14: 29 | B14: Tintic District | C14: 93551.37 | D14: 0 | E14: 0 | F14: 0 | G14: 0 | H14: 7238.06 | I14: =SUM(Table6[[#This Row],[Cash]:[Federal]]) -> 100789.43 | J14: 0 | K14: 767.97 | L14: 0 | M14: 0 | N14: 0 | O14: 0 | P14: 0 | Q14: 0 | R14: =SUM(Table6[[#This Row],[Negative Cash Balance]:[Deferred Inflows of Resources]]) -> 767.97 | S14: 0 | T14: 0 | U14: 0 | V14: 0 | W14: 0 | X14: 100024.46 | Y14: =SUM(Table6[[#This Row],[Non-Spendable - Inventories & Prepaid Expenditures]:[Unassigned Fund Balance]]) -> 100024.46 | Z14: =Table6[[#This Row],[Total Assets & Other Debits]] -> 100789.43 | AA14: =Table6[[#This Row],[Total Fund Balances]]+Table6[[#This Row],[Total Liabilities & Other Credits]] -> 100792.43
A15: 37 | B15: Ogden City District | C15: 0 | D15: 0 | E15: 0 | F15: 0 | G15: 117978.02 | H15: 0 | I15: =SUM(Table6[[#This Row],[Cash]:[Federal]]) -> 117978.02 | J15: 113221.57 | K15: 4756.45 | L15: 0 | M15: 0 | N15: 0 | O15: 0 | P15: 0 | Q15: 0 | R15: =SUM(Table6[[#This Row],[Negative Cash Balance]:[Deferred Inflows of Resources]]) -> 117978.02 | S15: 0 | T15: 0 | U15: 0 | V15: 0 | W15: 0 | X15: 0 | Y15: =SUM(Table6[[#This Row],[Non-Spendable - Inventories & Prepaid Expenditures]:[Unassigned Fund Balance]]) -> 0 | Z15: =Table6[[#This Row],[Total Assets & Other Debits]] -> 117978.02 | AA15: =Table6[[#This Row],[Total Fund Balances]]+Table6[[#This Row],[Total Liabilities & Other Credits]] -> 117978.02
A16: 40 | B16: Murray District | C16: 488975 | D16: -5004 | E16: 0 | F16: 0 | G16: 0 | H16: 0 | I16: =SUM(Table6[[#This Row],[Cash]:[Federal]]) -> 483971 | J16: 0 | K16: 4522 | L16: 0 | M16: 386029 | N16: 0 | O16: 14421 | P16: 52118 | Q16: 0 | R16: =SUM(Table6[[#This Row],[Negative Cash Balance]:[Deferred Inflows of Resources]]) -> 457090 | S16: 207936 | T16: 0 | U16: 0 | V16: 0 | W16: 0 | X16: -181055 | Y16: =SUM(Table6[[#This Row],[Non-Spendable - Inventories & Prepaid Expenditures]:[Unassigned Fund Balance]]) -> 26881 | Z16: =Table6[[#This Row],[Total Assets & Other Debits]] -> 483971 | AA16: =Table6[[#This Row],[Total Fund Balances]]+Table6[[#This Row],[Total Liabilities & Other Credits]] -> 483971
B17: District Totals | C17: 3351041.02 | D17: 6150432.27 | E17: 11451.75 | F17: 6500897.97 | G17: 193042.93 | H17: 1137122.57 | I17: =SUM(Table6[[#This Row],[Cash]:[Federal]]) -> 17343988.51 | J17: 113221.57 | K17: 147866.43 | L17: 259557.87 | M17: 526139.64 | N17: 87422 | O17: 5650169.78 | P17: 52118 | Q17: 6465521.45 | R17: =SUM(Table6[[#This Row],[Negative Cash Balance]:[Deferred Inflows of Resources]]) -> 13302016.74 | S17: 207936 | T17: 1049290.22 | U17: 2024052.65 | V17: 321901.86 | W17: 519824.58 | X17: -81030.54 | Y17: =SUM(Table6[[#This Row],[Non-Spendable - Inventories & Prepaid Expenditures]:[Unassigned Fund Balance]]) -> 4041974.77 | Z17: =Table6[[#This Row],[Total Assets & Other Debits]] -> 17343988.51 | AA17: =Table6[[#This Row],[Total Fund Balances]]+Table6[[#This Row],[Total Liabilities & Other Credits]] -> 17343991.51

Sheet 26 Tax Incremental Fund (hidden)
A1: FundCode | B1: 26
A3: Sum of Amount | C3: BalanceSheetCode | D3: BalanceSheetDescription
C4: 8131 | D4: 8132 | E4: 9561 | F4: 9750 | G4: 9899 | H4: Grand Total
A5: district_nbr | B5: LEA_name | C5: Local | D5: Local Property Taxes | E5: Unearned Revenue- Local | F5: Deferred Inflows of Resources | G5: Unassigned Fund Balance
A6: 1 | B6: Alpine District | C6: 0 | D6: 30778175 | E6: 0 | F6: 30778175 | G6: 0 | H6: 61556350
A7: 2 | B7: Beaver District | C7: 0 | D7: 2968 | E7: 0 | F7: 2968 | G7: 0 | H7: 5936
A8: 3 | B8: Box Elder District | C8: 0 | D8: 3861609.13 | E8: 0 | F8: 3861609.13 | G8: 0 | H8: 7723218.26
A9: 4 | B9: Cache District | C9: 0 | D9: 0 | E9: 0 | F9: 0 | G9: 0 | H9: 0
A10: 7 | B10: Davis District | C10: 0 | D10: 10236044.79 | E10: 0 | F10: 10236044.79 | G10: 0 | H10: 20472089.58
A11: 9 | B11: Emery District | C11: 0 | D11: 47740 | E11: 0 | F11: 47740 | G11: 0 | H11: 95480
A12: 10 | B12: Garfield District | C12: 0 | D12: 1567 | E12: 0 | F12: 1567 | G12: 0 | H12: 3134
A13: 11 | B13: Grand District | C13: 0 | D13: 159741 | E13: 0 | F13: 159741 | G13: 0 | H13: 319482
A14: 12 | B14: Granite District | C14: 0 | D14: 17268945 | E14: 0 | F14: 17268945 | G14: 0 | H14: 34537890
A15: 13 | B15: Iron District | C15: 0 | D15: 4539000 | E15: 0 | F15: 4539000 | G15: 0 | H15: 9078000
A16: 14 | B16: Jordan District | C16: 0 | D16: 27862890 | E16: 0 | F16: 27862890 | G16: 0 | H16: 55725780
A17: 16 | B17: Kane District | C17: 0 | D17: 15311 | E17: 14811 | F17: 500 | G17: 0 | H17: 30622
A18: 17 | B18: Millard District | C18: 0 | D18: 28026.44 | E18: 0 | F18: 28026.44 | G18: 0 | H18: 56052.88
A19: 18 | B19: Morgan District | C19: 0 | D19: 255306 | E19: 255306 | F19: 0 | G19: 0 | H19: 510612
A20: 20 | B20: North Sanpete District | C20: 20789 | D20: 0 | E20: 20789 | F20: 0 | G20: 0 | H20: 41578
A21: 21 | B21: North Summit District | C21: 44806 | D21: 0 | E21: 0 | F21: 44806 | G21: 0 | H21: 89612
A22: 22 | B22: Park City District | C22: 3868856 | D22: 0 | E22: 3868856 | F22: 0 | G22: 0 | H22: 7737712
A23: 24 | B23: Rich District | C23: -69500 | D23: 69500 | E23: 0 | F23: 0 | G23: 0 | H23: 0
A24: 26 | B24: Sevier District | C24: 0 | D24: 345038 | E24: 0 | F24: 345038 | G24: 0 | H24: 690076
A25: 27 | B25: South Sanpete District | C25: 18690 | D25: 0 | E25: 0 | F25: 18690 | G25: 0 | H25: 37380
A26: 28 | B26: South Summit District | C26: 0 | D26: 121877.27 | E26: 121877.27 | F26: 0 | G26: 0 | H26: 243754.54
A27: 30 | B27: Tooele District | C27: 0 | D27: 3565415.39 | E27: 0 | F27: 3565415.39 | G27: 0 | H27: 7130830.78
A28: 31 | B28: Uintah District | C28: 0 | D28: 545602 | E28: 545602 | F28: 0 | G28: 0 | H28: 1091204
A29: 32 | B29: Wasatch District | C29: 0 | D29: 363882 | E29: 363882 | F29: 0 | G29: 0 | H29: 727764
A30: 34 | B30: Wayne District | C30: 0 | D30: 3955 | E30: 0 | F30: 3955 | G30: 0 | H30: 7910
A31: 35 | B31: Weber District | C31: 0 | D31: 4101598 | E31: 0 | F31: 4101598 | G31: 0 | H31: 8203196
A32: 36 | B32: Salt Lake District | C32: 0 | D32: 30681134 | E32: 0 | F32: 30681134 | G32: 0 | H32: 61362268
A33: 37 | B33: Ogden City District | C33: 0 | D33: 1091156 | E33: 1091156 | F33: 0 | G33: 0 | H33: 2182312
A34: 39 | B34: Logan City District | C34: 0 | D34: 1998190 | E34: 0 | F34: 1998190 | G34: 0 | H34: 3996380
A35: 40 | B35: Murray District | C35: 0 | D35: 2574194 | E35: 0 | F35: 2574194 | G35: 0 | H35: 5148388
A36: 42 | B36: Canyons District | C36: 0 | D36: 16207599 | E36: 0 | F36: 16207599 | G36: 0 | H36: 32415198
A37: Grand Total | C37: 3883641 | D37: 156726464 | E37: 6282279.27 | F37: 154327825.8 | G37: 0 | H37: 321220210

Sheet 26 Tax Incremental Fund Final
A1: Balance Sheet for Fiscal Year: 2022
A2: 26 Tax Incremental Fund
B4: Balance Sheet Code | C4: 8131 | D4: 8132 | F4: 9561 | G4: 9750
A5: LEA ID | B5: District | C5: Local | D5: Local Property Taxes | E5: Total Assets & Other Debits | F5: Unearned Revenue- Local | G5: Deferred Inflows of Resources | H5: Total Liabilities & Other Credits | I5: Total Fund Balances | J5: Total Assets | K5: Total Liabilities & Fund Balances
A6: 1 | B6: Alpine District | C6: 0 | D6: 30778175 | E6: =SUM(Table7[[#This Row],[Local]:[Local Property Taxes]]) -> 30778175 | F6: 0 | G6: 30778175 | H6: =SUM(Table7[[#This Row],[Unearned Revenue- Local]:[Deferred Inflows of Resources]]) -> 30778175 | I6: 0 | J6: =Table7[[#This Row],[Total Assets & Other Debits]] -> 30778175 | K6: =Table7[[#This Row],[Total Fund Balances]]+Table7[[#This Row],[Total Liabilities & Other Credits]] -> 30778175
A7: 2 | B7: Beaver District | C7: 0 | D7: 2968 | E7: =SUM(Table7[[#This Row],[Local]:[Local Property Taxes]]) -> 2968 | F7: 0 | G7: 2968 | H7: =SUM(Table7[[#This Row],[Unearned Revenue- Local]:[Deferred Inflows of Resources]]) -> 2968 | I7: 0 | J7: =Table7[[#This Row],[Total Assets & Other Debits]] -> 2968 | K7: =Table7[[#This Row],[Total Fund Balances]]+Table7[[#This Row],[Total Liabilities & Other Credits]] -> 2968
A8: 3 | B8: Box Elder District | C8: 0 | D8: 3861609.13 | E8: =SUM(Table7[[#This Row],[Local]:[Local Property Taxes]]) -> 3861609.13 | F8: 0 | G8: 3861609.13 | H8: =SUM(Table7[[#This Row],[Unearned Revenue- Local]:[Deferred Inflows of Resources]]) -> 3861609.13 | I8: 0 | J8: =Table7[[#This Row],[Total Assets & Other Debits]] -> 3861609.13 | K8: =Table7[[#This Row],[Total Fund Balances]]+Table7[[#This Row],[Total Liabilities & Other Credits]] -> 3861609.13
A9: 4 | B9: Cache District | C9: 0 | D9: 0 | E9: =SUM(Table7[[#This Row],[Local]:[Local Property Taxes]]) -> 0 | F9: 0 | G9: 0 | H9: =SUM(Table7[[#This Row],[Unearned Revenue- Local]:[Deferred Inflows of Resources]]) -> 0 | I9: 0 | J9: =Table7[[#This Row],[Total Assets & Other Debits]] -> 0 | K9: =Table7[[#This Row],[Total Fund Balances]]+Table7[[#This Row],[Total Liabilities & Other Credits]] -> 0
A10: 7 | B10: Davis District | C10: 0 | D10: 10236044.79 | E10: =SUM(Table7[[#This Row],[Local]:[Local Property Taxes]]) -> 10236044.79 | F10: 0 | G10: 10236044.79 | H10: =SUM(Table7[[#This Row],[Unearned Revenue- Local]:[Deferred Inflows of Resources]]) -> 10236044.79 | I10: 0 | J10: =Table7[[#This Row],[Total Assets & Other Debits]] -> 10236044.79 | K10: =Table7[[#This Row],[Total Fund Balances]]+Table7[[#This Row],[Total Liabilities & Other Credits]] -> 10236044.79
A11: 9 | B11: Emery District | C11: 0 | D11: 47740 | E11: =SUM(Table7[[#This Row],[Local]:[Local Property Taxes]]) -> 47740 | F11: 0 | G11: 47740 | H11: =SUM(Table7[[#This Row],[Unearned Revenue- Local]:[Deferred Inflows of Resources]]) -> 47740 | I11: 0 | J11: =Table7[[#This Row],[Total Assets & Other Debits]] -> 47740 | K11: =Table7[[#This Row],[Total Fund Balances]]+Table7[[#This Row],[Total Liabilities & Other Credits]] -> 47740
A12: 10 | B12: Garfield District | C12: 0 | D12: 1567 | E12: =SUM(Table7[[#This Row],[Local]:[Local Property Taxes]]) -> 1567 | F12: 0 | G12: 1567 | H12: =SUM(Table7[[#This Row],[Unearned Revenue- Local]:[Deferred Inflows of Resources]]) -> 1567 | I12: 0 | J12: =Table7[[#This Row],[Total Assets & Other Debits]] -> 1567 | K12: =Table7[[#This Row],[Total Fund Balances]]+Table7[[#This Row],[Total Liabilities & Other Credits]] -> 1567
A13: 11 | B13: Grand District | C13: 0 | D13: 159741 | E13: =SUM(Table7[[#This Row],[Local]:[Local Property Taxes]]) -> 159741 | F13: 0 | G13: 159741 | H13: =SUM(Table7[[#This Row],[Unearned Revenue- Local]:[Deferred Inflows of Resources]]) -> 159741 | I13: 0 | J13: =Table7[[#This Row],[Total Assets & Other Debits]] -> 159741 | K13: =Table7[[#This Row],[Total Fund Balances]]+Table7[[#This Row],[Total Liabilities & Other Credits]] -> 159741
A14: 12 | B14: Granite District | C14: 0 | D14: 17268945 | E14: =SUM(Table7[[#This Row],[Local]:[Local Property Taxes]]) -> 17268945 | F14: 0 | G14: 17268945 | H14: =SUM(Table7[[#This Row],[Unearned Revenue- Local]:[Deferred Inflows of Resources]]) -> 17268945 | I14: 0 | J14: =Table7[[#This Row],[Total Assets & Other Debits]] -> 17268945 | K14: =Table7[[#This Row],[Total Fund Balances]]+Table7[[#This Row],[Total Liabilities & Other Credits]] -> 17268945
A15: 13 | B15: Iron District | C15: 0 | D15: 4539000 | E15: =SUM(Table7[[#This Row],[Local]:[Local Property Taxes]]) -> 4539000 | F15: 0 | G15: 4539000 | H15: =SUM(Table7[[#This Row],[Unearned Revenue- Local]:[Deferred Inflows of Resources]]) -> 4539000 | I15: 0 | J15: =Table7[[#This Row],[Total Assets & Other Debits]] -> 4539000 | K15: =Table7[[#This Row],[Total Fund Balances]]+Table7[[#This Row],[Total Liabilities & Other Credits]] -> 4539000
A16: 14 | B16: Jordan District | C16: 0 | D16: 27862890 | E16: =SUM(Table7[[#This Row],[Local]:[Local Property Taxes]]) -> 27862890 | F16: 0 | G16: 27862890 | H16: =SUM(Table7[[#This Row],[Unearned Revenue- Local]:[Deferred Inflows of Resources]]) -> 27862890 | I16: 0 | J16: =Table7[[#This Row],[Total Assets & Other Debits]] -> 27862890 | K16: =Table7[[#This Row],[Total Fund Balances]]+Table7[[#This Row],[Total Liabilities & Other Credits]] -> 27862890
A17: 16 | B17: Kane District | C17: 0 | D17: 15311 | E17: =SUM(Table7[[#This Row],[Local]:[Local Property Taxes]]) -> 15311 | F17: 14811 | G17: 500 | H17: =SUM(Table7[[#This Row],[Unearned Revenue- Local]:[Deferred Inflows of Resources]]) -> 15311 | I17: 0 | J17: =Table7[[#This Row],[Total Assets & Other Debits]] -> 15311 | K17: =Table7[[#This Row],[Total Fund Balances]]+Table7[[#This Row],[Total Liabilities & Other Credits]] -> 15311
A18: 17 | B18: Millard District | C18: 0 | D18: 28026.44 | E18: =SUM(Table7[[#This Row],[Local]:[Local Property Taxes]]) -> 28026.44 | F18: 0 | G18: 28026.44 | H18: =SUM(Table7[[#This Row],[Unearned Revenue- Local]:[Deferred Inflows of Resources]]) -> 28026.44 | I18: 0 | J18: =Table7[[#This Row],[Total Assets & Other Debits]] -> 28026.44 | K18: =Table7[[#This Row],[Total Fund Balances]]+Table7[[#This Row],[Total Liabilities & Other Credits]] -> 28026.44
A19: 18 | B19: Morgan District | C19: 0 | D19: 255306 | E19: =SUM(Table7[[#This Row],[Local]:[Local Property Taxes]]) -> 255306 | F19: 255306 | G19: 0 | H19: =SUM(Table7[[#This Row],[Unearned Revenue- Local]:[Deferred Inflows of Resources]]) -> 255306 | I19: 0 | J19: =Table7[[#This Row],[Total Assets & Other Debits]] -> 255306 | K19: =Table7[[#This Row],[Total Fund Balances]]+Table7[[#This Row],[Total Liabilities & Other Credits]] -> 255306
A20: 20 | B20: North Sanpete District | C20: 20789 | D20: 0 | E20: =SUM(Table7[[#This Row],[Local]:[Local Property Taxes]]) -> 20789 | F20: 20789 | G20: 0 | H20: =SUM(Table7[[#This Row],[Unearned Revenue- Local]:[Deferred Inflows of Resources]]) -> 20789 | I20: 0 | J20: =Table7[[#This Row],[Total Assets & Other Debits]] -> 20789 | K20: =Table7[[#This Row],[Total Fund Balances]]+Table7[[#This Row],[Total Liabilities & Other Credits]] -> 20789
A21: 21 | B21: North Summit District | C21: 44806 | D21: 0 | E21: =SUM(Table7[[#This Row],[Local]:[Local Property Taxes]]) -> 44806 | F21: 0 | G21: 44806 | H21: =SUM(Table7[[#This Row],[Unearned Revenue- Local]:[Deferred Inflows of Resources]]) -> 44806 | I21: 0 | J21: =Table7[[#This Row],[Total Assets & Other Debits]] -> 44806 | K21: =Table7[[#This Row],[Total Fund Balances]]+Table7[[#This Row],[Total Liabilities & Other Credits]] -> 44806
A22: 22 | B22: Park City District | C22: 3868856 | D22: 0 | E22: =SUM(Table7[[#This Row],[Local]:[Local Property Taxes]]) -> 3868856 | F22: 3868856 | G22: 0 | H22: =SUM(Table7[[#This Row],[Unearned Revenue- Local]:[Deferred Inflows of Resources]]) -> 3868856 | I22: 0 | J22: =Table7[[#This Row],[Total Assets & Other Debits]] -> 3868856 | K22: =Table7[[#This Row],[Total Fund Balances]]+Table7[[#This Row],[Total Liabilities & Other Credits]] -> 3868856
A23: 24 | B23: Rich District | C23: -69500 | D23: 69500 | E23: =SUM(Table7[[#This Row],[Local]:[Local Property Taxes]]) -> 0 | F23: 0 | G23: 0 | H23: =SUM(Table7[[#This Row],[Unearned Revenue- Local]:[Deferred Inflows of Resources]]) -> 0 | I23: 0 | J23: =Table7[[#This Row],[Total Assets & Other Debits]] -> 0 | K23: =Table7[[#This Row],[Total Fund Balances]]+Table7[[#This Row],[Total Liabilities & Other Credits]] -> 0
A24: 26 | B24: Sevier District | C24: 0 | D24: 345038 | E24: =SUM(Table7[[#This Row],[Local]:[Local Property Taxes]]) -> 345038 | F24: 0 | G24: 345038 | H24: =SUM(Table7[[#This Row],[Unearned Revenue- Local]:[Deferred Inflows of Resources]]) -> 345038 | I24: 0 | J24: =Table7[[#This Row],[Total Assets & Other Debits]] -> 345038 | K24: =Table7[[#This Row],[Total Fund Balances]]+Table7[[#This Row],[Total Liabilities & Other Credits]] -> 345038
A25: 27 | B25: South Sanpete District | C25: 18690 | D25: 0 | E25: =SUM(Table7[[#This Row],[Local]:[Local Property Taxes]]) -> 18690 | F25: 0 | G25: 18690 | H25: =SUM(Table7[[#This Row],[Unearned Revenue- Local]:[Deferred Inflows of Resources]]) -> 18690 | I25: 0 | J25: =Table7[[#This Row],[Total Assets & Other Debits]] -> 18690 | K25: =Table7[[#This Row],[Total Fund Balances]]+Table7[[#This Row],[Total Liabilities & Other Credits]] -> 18690
A26: 28 | B26: South Summit District | C26: 0 | D26: 121877.27 | E26: =SUM(Table7[[#This Row],[Local]:[Local Property Taxes]]) -> 121877.27 | F26: 121877.27 | G26: 0 | H26: =SUM(Table7[[#This Row],[Unearned Revenue- Local]:[Deferred Inflows of Resources]]) -> 121877.27 | I26: 0 | J26: =Table7[[#This Row],[Total Assets & Other Debits]] -> 121877.27 | K26: =Table7[[#This Row],[Total Fund Balances]]+Table7[[#This Row],[Total Liabilities & Other Credits]] -> 121877.27
A27: 30 | B27: Tooele District | C27: 0 | D27: 3565415.39 | E27: =SUM(Table7[[#This Row],[Local]:[Local Property Taxes]]) -> 3565415.39 | F27: 0 | G27: 3565415.39 | H27: =SUM(Table7[[#This Row],[Unearned Revenue- Local]:[Deferred Inflows of Resources]]) -> 3565415.39 | I27: 0 | J27: =Table7[[#This Row],[Total Assets & Other Debits]] -> 3565415.39 | K27: =Table7[[#This Row],[Total Fund Balances]]+Table7[[#This Row],[Total Liabilities & Other Credits]] -> 3565415.39
A28: 31 | B28: Uintah District | C28: 0 | D28: 545602 | E28: =SUM(Table7[[#This Row],[Local]:[Local Property Taxes]]) -> 545602 | F28: 545602 | G28: 0 | H28: =SUM(Table7[[#This Row],[Unearned Revenue- Local]:[Deferred Inflows of Resources]]) -> 545602 | I28: 0 | J28: =Table7[[#This Row],[Total Assets & Other Debits]] -> 545602 | K28: =Table7[[#This Row],[Total Fund Balances]]+Table7[[#This Row],[Total Liabilities & Other Credits]] -> 545602
A29: 32 | B29: Wasatch District | C29: 0 | D29: 363882 | E29: =SUM(Table7[[#This Row],[Local]:[Local Property Taxes]]) -> 363882 | F29: 363882 | G29: 0 | H29: =SUM(Table7[[#This Row],[Unearned Revenue- Local]:[Deferred Inflows of Resources]]) -> 363882 | I29: 0 | J29: =Table7[[#This Row],[Total Assets & Other Debits]] -> 363882 | K29: =Table7[[#This Row],[Total Fund Balances]]+Table7[[#This Row],[Total Liabilities & Other Credits]] -> 363882
A30: 34 | B30: Wayne District | C30: 0 | D30: 3955 | E30: =SUM(Table7[[#This Row],[Local]:[Local Property Taxes]]) -> 3955 | F30: 0 | G30: 3955 | H30: =SUM(Table7[[#This Row],[Unearned Revenue- Local]:[Deferred Inflows of Resources]]) -> 3955 | I30: 0 | J30: =Table7[[#This Row],[Total Assets & Other Debits]] -> 3955 | K30: =Table7[[#This Row],[Total Fund Balances]]+Table7[[#This Row],[Total Liabilities & Other Credits]] -> 3955
A31: 35 | B31: Weber District | C31: 0 | D31: 4101598 | E31: =SUM(Table7[[#This Row],[Local]:[Local Property Taxes]]) -> 4101598 | F31: 0 | G31: 4101598 | H31: =SUM(Table7[[#This Row],[Unearned Revenue- Local]:[Deferred Inflows of Resources]]) -> 4101598 | I31: 0 | J31: =Table7[[#This Row],[Total Assets & Other Debits]] -> 4101598 | K31: =Table7[[#This Row],[Total Fund Balances]]+Table7[[#This Row],[Total Liabilities & Other Credits]] -> 4101598
A32: 36 | B32: Salt Lake District | C32: 0 | D32: 30681134 | E32: =SUM(Table7[[#This Row],[Local]:[Local Property Taxes]]) -> 30681134 | F32: 0 | G32: 30681134 | H32: =SUM(Table7[[#This Row],[Unearned Revenue- Local]:[Deferred Inflows of Resources]]) -> 30681134 | I32: 0 | J32: =Table7[[#This Row],[Total Assets & Other Debits]] -> 30681134 | K32: =Table7[[#This Row],[Total Fund Balances]]+Table7[[#This Row],[Total Liabilities & Other Credits]] -> 30681134
A33: 37 | B33: Ogden City District | C33: 0 | D33: 1091156 | E33: =SUM(Table7[[#This Row],[Local]:[Local Property Taxes]]) -> 1091156 | F33: 1091156 | G33: 0 | H33: =SUM(Table7[[#This Row],[Unearned Revenue- Local]:[Deferred Inflows of Resources]]) -> 1091156 | I33: 0 | J33: =Table7[[#This Row],[Total Assets & Other Debits]] -> 1091156 | K33: =Table7[[#This Row],[Total Fund Balances]]+Table7[[#This Row],[Total Liabilities & Other Credits]] -> 1091156
A34: 39 | B34: Logan City District | C34: 0 | D34: 1998190 | E34: =SUM(Table7[[#This Row],[Local]:[Local Property Taxes]]) -> 1998190 | F34: 0 | G34: 1998190 | H34: =SUM(Table7[[#This Row],[Unearned Revenue- Local]:[Deferred Inflows of Resources]]) -> 1998190 | I34: 0 | J34: =Table7[[#This Row],[Total Assets & Other Debits]] -> 1998190 | K34: =Table7[[#This Row],[Total Fund Balances]]+Table7[[#This Row],[Total Liabilities & Other Credits]] -> 1998190
A35: 40 | B35: Murray District | C35: 0 | D35: 2574194 | E35: =SUM(Table7[[#This Row],[Local]:[Local Property Taxes]]) -> 2574194 | F35: 0 | G35: 2574194 | H35: =SUM(Table7[[#This Row],[Unearned Revenue- Local]:[Deferred Inflows of Resources]]) -> 2574194 | I35: 0 | J35: =Table7[[#This Row],[Total Assets & Other Debits]] -> 2574194 | K35: =Table7[[#This Row],[Total Fund Balances]]+Table7[[#This Row],[Total Liabilities & Other Credits]] -> 2574194
A36: 42 | B36: Canyons District | C36: 0 | D36: 16207599 | E36: =SUM(Table7[[#This Row],[Local]:[Local Property Taxes]]) -> 16207599 | F36: 0 | G36: 16207599 | H36: =SUM(Table7[[#This Row],[Unearned Revenue- Local]:[Deferred Inflows of Resources]]) -> 16207599 | I36: 0 | J36: =Table7[[#This Row],[Total Assets & Other Debits]] -> 16207599 | K36: =Table7[[#This Row],[Total Fund Balances]]+Table7[[#This Row],[Total Liabilities & Other Credits]] -> 16207599
A37: Grand Total | C37: 3883641 | D37: 156726464 | E37: =SUM(Table7[[#This Row],[Local]:[Local Property Taxes]]) -> 160610105 | F37: 6282279.27 | G37: 154327825.8 | H37: =SUM(Table7[[#This Row],[Unearned Revenue- Local]:[Deferred Inflows of Resources]]) -> 160610105 | I37: 0 | J37: =Table7[[#This Row],[Total Assets & Other Debits]] -> 160610105 | K37: =Table7[[#This Row],[Total Fund Balances]]+Table7[[#This Row],[Total Liabilities & Other Credits]] -> 160610105

Sheet 31 Debt Service Fund (hidden)
A1: FundCode | B1: 31
A3: Sum of Amount | C3: BalanceSheetCode | D3: BalanceSheetDescription
C4: 8110 | D4: 8111 | E4: 8120 | F4: 8131 | G4: 8132 | H4: 8150 | I4: 9505 | J4: 9510 | K4: 9561 | L4: 9750 | M4: 9860 | N4: 9870 | O4: 9879 | P4: 9880 | Q4: 9890 | R4: 9899 | S4: Grand Total
A5: district_nbr | B5: LEA_name | C5: Cash | D5: Cash in Banks | E5: Investments | F5: Local | G5: Local Property Taxes | H5: Prepaid Expenditures | I5: Negative Cash Balance | J5: Accounts Payable | K5: Unearned Revenue- Local | L5: Deferred Inflows of Resources | M5: Non-Spendable - Inventories & Prepaid Expenditures | N5: Restricted - Debt Service | O5: Restricted -- Other | P5: Committed – Economic Stabilization | Q5: Assigned – Unrestricted Programs | R5: Unassigned Fund Balance
A6: 1 | B6: Alpine District | C6: 0 | D6: 0 | E6: 31413831 | F6: 0 | G6: 34973620 | H6: 0 | I6: 0 | J6: 0 | K6: 0 | L6: 34569807 | M6: 0 | N6: 31817644 | O6: 0 | P6: 0 | Q6: 0 | R6: 0 | S6: 132774902
A7: 2 | B7: Beaver District | C7: 0 | D7: 1100539.51 | E7: 5979229.44 | F7: 28.14 | G7: 1581887.52 | H7: 0 | I7: 0 | J7: 0 | K7: 0 | L7: 1568648.61 | M7: 0 | N7: 7093036 | O7: 0 | P7: 0 | Q7: 0 | R7: 0 | S7: 17323369.22
A8: 3 | B8: Box Elder District | C8: 0 | D8: 250570.05 | E8: 3723004.43 | F8: 0.02 | G8: 3520266 | H8: 2886672.34 | I8: 0 | J8: 0 | K8: 0 | L8: 3416841 | M8: 0 | N8: 0 | O8: 0 | P8: 0 | Q8: 0 | R8: 6963671.84 | S8: 20761025.68
A9: 4 | B9: Cache District | C9: 0 | D9: 1492311.31 | E9: 0 | F9: 0 | G9: 19198461.3 | H9: 0 | I9: 0 | J9: 0 | K9: 0 | L9: 18894837 | M9: 0 | N9: 1795935.61 | O9: 0 | P9: 0 | Q9: 0 | R9: 0 | S9: 41381545.22
A10: 5 | B10: Carbon District | C10: 0 | D10: 0 | E10: 598272.73 | F10: 0 | G10: 2214415.26 | H10: 0 | I10: 0 | J10: 0 | K10: 2086556 | L10: 0 | M10: 0 | N10: 726131.99 | O10: 0 | P10: 0 | Q10: 0 | R10: 0 | S10: 5625375.98
A11: 6 | B11: Daggett District | C11: 0 | D11: 111445 | E11: 0 | F11: 0 | G11: 241641 | H11: 0 | I11: 0 | J11: 0 | K11: 0 | L11: 233547 | M11: 0 | N11: 0 | O11: 0 | P11: 0 | Q11: 0 | R11: 119539 | S11: 706172
A12: 7 | B12: Davis District | C12: 0 | D12: 7218732.22 | E12: 24114093.61 | F12: 0 | G12: 64418384.1 | H12: 0 | I12: 0 | J12: 2000 | K12: 0 | L12: 62346336.77 | M12: 0 | N12: 0 | O12: 0 | P12: 0 | Q12: 0 | R12: 33402873.16 | S12: 191502419.9
A13: 8 | B13: Duchesne District | C13: 0 | D13: 0 | E13: 16723.03 | F13: -0.3 | G13: 3737980.34 | H13: 0 | I13: 0 | J13: 0 | K13: 0 | L13: 3731485.28 | M13: 0 | N13: 23218.07 | O13: 0 | P13: 0 | Q13: 0 | R13: 0 | S13: 7509406.42
A14: 9 | B14: Emery District | C14: 374298 | D14: 0 | E14: 0 | F14: 0 | G14: 4671594 | H14: 0 | I14: 0 | J14: 0 | K14: 0 | L14: 4630674 | M14: 0 | N14: 415218 | O14: 0 | P14: 0 | Q14: 0 | R14: 0 | S14: 10091784
A15: 11 | B15: Grand District | C15: 0 | D15: 116345.17 | E15: 3372110.85 | F15: 0 | G15: 2703084.66 | H15: 0 | I15: 0 | J15: 0 | K15: 0 | L15: 2681668 | M15: 0 | N15: 1352589.87 | O15: 2157282.81 | P15: 0 | Q15: 0 | R15: 0 | S15: 12383081.36
A16: 12 | B16: Granite District | C16: 0 | D16: 0 | E16: 379345.73 | F16: 0 | G16: 30707739 | H16: 0 | I16: 0 | J16: 0 | K16: 0 | L16: 30952678 | M16: 0 | N16: 134406.73 | O16: 0 | P16: 0 | Q16: 0 | R16: 0 | S16: 62174169.46
A17: 13 | B17: Iron District | C17: 0 | D17: 0 | E17: 8731873.26 | F17: 0 | G17: 6966263.97 | H17: 0 | I17: 0 | J17: 30319.71 | K17: 0 | L17: 6919159 | M17: 0 | N17: 6767454.64 | O17: 0 | P17: 1981203.88 | Q17: 0 | R17: 0 | S17: 31396274.46
A18: 14 | B18: Jordan District | C18: 0 | D18: 0 | E18: 1399442.35 | F18: 12900.12 | G18: 23428044.87 | H18: 0 | I18: 0 | J18: 0 | K18: 0 | L18: 23474283.44 | M18: 0 | N18: 1366103.9 | O18: 0 | P18: 0 | Q18: 0 | R18: 0 | S18: 49680774.68
A19: 15 | B19: Juab District | C19: 0 | D19: 245016.01 | E19: 0 | F19: 1944396.37 | G19: 0 | H19: 0 | I19: 0 | J19: 0 | K19: 0 | L19: 1929174 | M19: 0 | N19: 0 | O19: 0 | P19: 0 | Q19: 260238.38 | R19: 0 | S19: 4378824.76
A20: 17 | B20: Millard District | C20: 0 | D20: 3946.2 | E20: 0 | F20: 0 | G20: 0 | H20: 0 | I20: 0 | J20: 0 | K20: 0 | L20: 0 | M20: 0 | N20: 0 | O20: 0 | P20: 0 | Q20: 0 | R20: 3946.2 | S20: 7892.4
A21: 18 | B21: Morgan District | C21: 0 | D21: 1696682.34 | E21: 410041.1 | F21: 0 | G21: 4624375 | H21: 0 | I21: 0 | J21: 0 | K21: 4624375 | L21: 0 | M21: 0 | N21: 0 | O21: 0 | P21: 0 | Q21: 0 | R21: 2106723.44 | S21: 13462196.88
A22: 19 | B22: Nebo District | C22: 0 | D22: 872803.68 | E22: 0 | F22: 0 | G22: 37119535.61 | H22: 0 | I22: 0 | J22: 0 | K22: 0 | L22: 36804502.7 | M22: 0 | N22: 1187836.59 | O22: 0 | P22: 0 | Q22: 0 | R22: 0 | S22: 75984678.58
A23: 20 | B23: North Sanpete District | C23: 0 | D23: 0 | E23: 0 | F23: 65903.62 | G23: 1060607 | H23: 0 | I23: 59907.2 | J23: 0 | K23: 0 | L23: 1060607 | M23: 0 | N23: 5996.42 | O23: 0 | P23: 0 | Q23: 0 | R23: 0 | S23: 2253021.24
A24: 21 | B24: North Summit District | C24: 0 | D24: 166508.44 | E24: 0 | F24: 0 | G24: 736466.79 | H24: 0 | I24: 0 | J24: 0 | K24: 0 | L24: 721000 | M24: 0 | N24: 181975.23 | O24: 0 | P24: 0 | Q24: 0 | R24: 0 | S24: 1805950.46
A25: 23 | B25: Piute District | C25: 0 | D25: 3671366 | E25: 0 | F25: 0 | G25: 200050.14 | H25: 0 | I25: 0 | J25: 0 | K25: 188275.22 | L25: 0 | M25: 0 | N25: 3683141 | O25: 0 | P25: 0 | Q25: 0 | R25: 0 | S25: 7742832.36
A26: 24 | B26: Rich District | C26: 0 | D26: 23839.41 | E26: 487555.76 | F26: 32767.6 | G26: 838950 | H26: 0 | I26: 0 | J26: 0 | K26: 688950 | L26: 0 | M26: 0 | N26: 389669.25 | O26: 0 | P26: 0 | Q26: 0 | R26: 304494 | S26: 2766226.02
A27: 26 | B27: Sevier District | C27: 1117668.59 | D27: 0 | E27: 0 | F27: 0 | G27: 3049628.8 | H27: 0 | I27: 0 | J27: 0 | K27: 0 | L27: 3010950 | M27: 0 | N27: 1156347 | O27: 0 | P27: 0 | Q27: 0 | R27: 0 | S27: 8334594.39
A28: 27 | B28: South Sanpete District | C28: 0 | D28: 1288919.01 | E28: 2991619.24 | F28: 2215694.61 | G28: 0 | H28: 0 | I28: 0 | J28: 0 | K28: 0 | L28: 2072144 | M28: 0 | N28: 4424088.86 | O28: 0 | P28: 0 | Q28: 0 | R28: 0 | S28: 12992465.72
A29: 29 | B29: Tintic District | C29: 0 | D29: 106312.63 | E29: 0 | F29: 113704.75 | G29: 0 | H29: 0 | I29: 0 | J29: 0 | K29: 111606.71 | L29: 0 | M29: 0 | N29: 108410.67 | O29: 0 | P29: 0 | Q29: 0 | R29: 0 | S29: 440034.76
A30: 30 | B30: Tooele District | C30: 0 | D30: 2771368.23 | E30: 0 | F30: 0 | G30: 14949732.86 | H30: 0 | I30: 0 | J30: 0 | K30: 0 | L30: 14606696.14 | M30: 0 | N30: 3114404.95 | O30: 0 | P30: 0 | Q30: 0 | R30: 0 | S30: 35442202.18
A31: 31 | B31: Uintah District | C31: 0 | D31: 0 | E31: 455711.53 | F31: 32024.85 | G31: 3176625 | H31: 0 | I31: 0 | J31: 0 | K31: 3176625 | L31: 0 | M31: 0 | N31: 487736.38 | O31: 0 | P31: 0 | Q31: 0 | R31: 0 | S31: 7328722.76
A32: 32 | B32: Wasatch District | C32: 0 | D32: 3553537 | E32: 0 | F32: 0 | G32: 12090627 | H32: 0 | I32: 0 | J32: 0 | K32: 12008110 | L32: 0 | M32: 0 | N32: 3636054 | O32: 0 | P32: 0 | Q32: 0 | R32: 0 | S32: 31288328
A33: 33 | B33: Washington District | C33: 0 | D33: 514153.65 | E33: 3000000 | F33: 0 | G33: 59153284.49 | H33: 0 | I33: 0 | J33: 0 | K33: 59441411.5 | L33: 0 | M33: 0 | N33: 3226026.64 | O33: 0 | P33: 0 | Q33: 0 | R33: 0 | S33: 125334876.3
A34: 35 | B34: Weber District | C34: 2185212 | D34: 0 | E34: 0 | F34: 0 | G34: 27741278 | H34: 0 | I34: 0 | J34: 0 | K34: 0 | L34: 27734796 | M34: 0 | N34: 0 | O34: 0 | P34: 0 | Q34: 0 | R34: 2191694 | S34: 59852980
A35: 36 | B35: Salt Lake District | C35: 0 | D35: 0 | E35: 5262352.65 | F35: 0 | G35: 4358379 | H35: 0 | I35: 0 | J35: 0 | K35: 0 | L35: 4337820 | M35: 0 | N35: 0 | O35: 0 | P35: 0 | Q35: 0 | R35: 5282911.65 | S35: 19241463.3
A36: 37 | B36: Ogden City District | C36: 0 | D36: 582508.3 | E36: 2994342.82 | F36: 0 | G36: 10882855.06 | H36: 0 | I36: 0 | J36: 0 | K36: 12582537.55 | L36: 0 | M36: 0 | N36: 1877168.63 | O36: 0 | P36: 0 | Q36: 0 | R36: 0 | S36: 28919412.36
A37: 38 | B37: Provo District | C37: 0 | D37: 179994.24 | E37: 0 | F37: 0 | G37: 10361066.22 | H37: 0 | I37: 0 | J37: 2500 | K37: 10321757.72 | L37: 0 | M37: 0 | N37: 216802.14 | O37: 0 | P37: 0 | Q37: 0 | R37: 0 | S37: 21082120.32
